Workbook

Sheet StMichael as per CFR (hidden)
B1: =+'Front sheet'!#REF! ->  | C1: Period | D1: DfE No | E1: =+'Front sheet'!#REF! ->  | F1: London Borough of Barnet
B2: =NOW() -> 2023-09-21T16:50:11.040 | C2: =+'Front sheet'!#REF! ->  | D2: Cost Centre | E2: =+'Front sheet'!#REF! ->  | F2: SCHOOL REPORT | K2: TRANSACTION LIST
B3: =VLOOKUP(J32,check!$B$6:$E$102,4,0) -> St Michael's Cath Gram
B4: I verify that the information given is a true and complete statement.
B6: Signed | H6: (Headteacher)
B8: Name
B10: Date
B12: To Be Submitted By Friday 22nd May 2020
B14: CFR Return - Division of Total Revenue and Capital Balances as at 31 March 2020 | H14: B01 | I14: Committed Revenue Balances - This includes:
I15: Committed cumulative balance of income, less expenditure from revenue funding sources during the financial year and any committed revenue balances from previous years - this includes revenue funding received during previous financial years from specific grants
B16: CFR Heading | C16: Description | F16: £
G17: check
B18: B01 | C18: Committed Revenue Balance | I18: Any unspent voluntary income
B19: B02 | C19: Uncommitted Revenue Balance | I19: Any unspent and committed pupil-focused extended school funding and/or grants
B20: B06 | C20: Community Focussed Extended Schl Bal | I20: Unspent amount of current financial year's Pupil Premium grant
B21: Total Revenue Balance | F21: =$I$87 -> -595363.43 | G21: =(F18+F19+F20)-F21 -> 595363.43 | H21: B02 | I21: Uncommitted Revenue Balance - Any revenue balances including
I22: the previous years not committed - Not including any balances from B01 or B06
B23: B03 | C23: Devolved Formula Capital Balance | H23: B06 | I23: Community Focussed Sch Balance - Any unspent
B24: B05 | C24: Other Capital Balances | I24: community focussed school balances (I16 & I17 less E31 & E32)
H25: B03 | I25: Devolved Formula Capital Balance - Any Devolved Formula Capital Funding not spent
B26: Total Capital Balance | F26: =$I$97 -> -766.2 | G26: =(F23+F24)-F26 -> 766.2 | H26: B05 | I26: Other Capital Balances - Other Capital balances not yet spent
I27: can include unspent Direct Revenue Finance or Private capital Income
B30: CFR_Code. | C30: Budget | D30: Bal._B/Fwd | E30: This Period | G30: Bal_C/Fwd | H30: %Spent/ Received | I30: Bud_Avail
F31: RM | J31: CC | K31: Period | L31: CFR | M31: Desc | N31: Narrative | O31: Entered by | P31: Amount
B32: Revenue Balance B/forward | C32: -497456 | J32: 10148 | K32: 192012 | L32: CE04 | M32: =VLOOKUP(L32,codes!$B$5:$C$85,2,FALSE) -> Information Communications Technology | N32: M1 - M11 Actuals | O32: EVANSG01 | P32: 12517.2
B33: I01 - Funds Delegated by LA | C33: -2657025 | D33: -500000 | E33: -2157023.33 | F33: -134211.82 | G33: =SUM(D33:F33) -> -2791235.15 | H33: =G33/C33*100 -> 105.0511437 | I33: =C33-G33 -> 134210.15 | J33: 10148 | K33: 192012 | L33: CI03 | M33: =VLOOKUP(L33,codes!$B$5:$C$85,2,FALSE) -> Voluntary or Private Capital Income | N33: M1 - M11 Actuals | O33: EVANSG01 | P33: -8500
B34: I02 - Funding for Sixth Form | C34: -1069379 | D34: 0 | E34: -1069475.92 | G34: =SUM(D34:F34) -> -1069475.92 | H34: =G34/C34*100 -> 100.0090632 | I34: =C34-G34 -> 96.92 | J34: 10148 | K34: 192012 | L34: E01 | M34: =VLOOKUP(L34,codes!$B$5:$C$85,2,FALSE) -> Teaching Staff | N34: P12 Posting Summary | O34: EVANSG01 | P34: 259629.02
B35: I03 - SEN Funding | C35: -12012 | D35: 5000 | E35: -9247.13 | F35: 2200 | G35: -2047.13 | H35: 17.04237429 | I35: -9964.87 | J35: 10148 | K35: 192012 | L35: E01 | M35: =VLOOKUP(L35,codes!$B$5:$C$85,2,FALSE) -> Teaching Staff | N35: M1 - M11 Actuals | O35: EVANSG01 | P35: 2644992.03
B36: I05 - Pupil Premium Grant | C36: -34090 | D36: 0 | E36: -35960 | G36: -35960 | H36: 105.4854796 | I36: 1870 | J36: 10148 | K36: 192012 | L36: E03 | M36: =VLOOKUP(L36,codes!$B$5:$C$85,2,FALSE) -> Education Support Staff | N36: P12 Posting Summary | O36: EVANSG01 | P36: 17811.37
B37: I06 - Other Government Grants | C37: -154909 | D37: 0 | E37: -321443.36 | F37: =134211.82+108440 -> 242651.82 | G37: -78791.54 | H37: 50.86311318 | I37: -76117.46 | J37: 10148 | K37: 192012 | L37: E03 | M37: =VLOOKUP(L37,codes!$B$5:$C$85,2,FALSE) -> Education Support Staff | N37: M1 - M11 Actuals | O37: EVANSG01 | P37: 190893.82
B38: I07 - Other Grants & Payments | C38: -12500 | D38: 0 | E38: -11280.64 | G38: -11280.64 | H38: 90.24512 | I38: -1219.36 | J38: 10148 | K38: 192012 | L38: E04 | M38: =VLOOKUP(L38,codes!$B$5:$C$85,2,FALSE) -> Premises Staff | N38: P12 Posting Summary | O38: EVANSG01 | P38: 6347.32
B39: I08 - Income -Facilities & Svs | C39: -40150 | D39: 0 | E39: -419408.69 | F39: 362434.41 | G39: -56974.28 | H39: 141.9035616 | I39: 16824.28 | J39: 10148 | K39: 192012 | L39: E04 | M39: =VLOOKUP(L39,codes!$B$5:$C$85,2,FALSE) -> Premises Staff | N39: M1 - M11 Actuals | O39: EVANSG01 | P39: 76232.53
B40: I09 - Income from Catering | C40: -110000 | D40: 0 | E40: -124339.21 | G40: -124339.21 | H40: 113.0356455 | I40: 14339.21 | J40: 10148 | K40: 192012 | L40: E05 | M40: =VLOOKUP(L40,codes!$B$5:$C$85,2,FALSE) -> Administrative & Clerical Staff | N40: P12 Posting Summary | O40: EVANSG01 | P40: 26762.65
B41: I12 - Income - Contributions | C41: -30480 | D41: 0 | E41: -28277.02 | F41: -3090 | G41: -31367.02 | H41: 102.9101706 | I41: 887.02 | J41: 10148 | K41: 192012 | L41: E05 | M41: =VLOOKUP(L41,codes!$B$5:$C$85,2,FALSE) -> Administrative & Clerical Staff | N41: M1 - M11 Actuals | O41: EVANSG01 | P41: 329562.7
B42: I13 - Donations/Private Funds | C42: -842250 | D42: 0 | E42: -373140.95 | F42: 1 | G42: -373139.95 | H42: 44.30275453 | I42: -469110.05 | J42: 10148 | K42: 192012 | L42: E06 | M42: =VLOOKUP(L42,codes!$B$5:$C$85,2,FALSE) -> Catering Staff | N42: M1 - M11 Actuals | O42: EVANSG01 | P42: 51937.3
B43: I18 - Addit Grants for Schools | F43: -2200 | G43: -2200 | H43: 0 | I43: 2200 | J43: 10148 | K43: 192012 | L43: E06 | M43: =VLOOKUP(L43,codes!$B$5:$C$85,2,FALSE) -> Catering Staff | N43: P12 Posting Summary | O43: EVANSG01 | P43: 5094.79
J44: 10148 | K44: 192012 | L44: E07 | M44: =VLOOKUP(L44,codes!$B$5:$C$85,2,FALSE) -> Cost of Other Staff | N44: P12 Posting Summary | O44: EVANSG01 | P44: 101.35
B45: CFR Revenue Income (Excl Bal) | C45: -4962795 | D45: -495000 | E45: =SUM(E33:E43) -> -4549596.25 | F45: =SUM(F33:F43) -> 467785.41 | G45: =SUM(G33:G43) -> -4576810.84 | H45: =G45/C45*100 -> 92.22244401 | I45: =SUM(I33:I43) -> -385984.16 | J45: 10148 | K45: 192012 | L45: E07 | M45: =VLOOKUP(L45,codes!$B$5:$C$85,2,FALSE) -> Cost of Other Staff | N45: M1 - M11 Actuals | O45: EVANSG01 | P45: 2262.7
J46: 10148 | K46: 192012 | L46: E08 | M46: =VLOOKUP(L46,codes!$B$5:$C$85,2,FALSE) -> Indirect Employee Expenses | N46: P12 Posting Summary | O46: EVANSG01 | P46: 11703.14
B47: E01 - Teaching Staff | C47: 2811290 | D47: 0 | E47: 2904621.05 | G47: =SUM(D47:F47) -> 2904621.05 | H47: =G47/C47*100 -> 103.3198656 | I47: =C47-G47 -> -93331.05 | J47: 10148 | K47: 192012 | L47: E08 | M47: =VLOOKUP(L47,codes!$B$5:$C$85,2,FALSE) -> Indirect Employee Expenses | N47: M1 - M11 Actuals | O47: EVANSG01 | P47: 53244.28
B48: E03 - Education Support Staff | C48: 205410 | D48: 0 | E48: 208705.19 | F48: 414 | G48: =SUM(D48:F48) -> 209119.19 | H48: =G48/C48*100 -> 101.8057495 | I48: =C48-G48 -> -3709.19 | J48: 10148 | K48: 192012 | L48: E09 | M48: =VLOOKUP(L48,codes!$B$5:$C$85,2,FALSE) -> Staff Development & Training | N48: M1 - M11 Actuals | O48: EVANSG01 | P48: 6482.79
B49: E04 - Premises Staff | C49: 89826 | D49: 0 | E49: 82579.85 | G49: 82579.85 | H49: 91.93312627 | I49: 7246.15 | J49: 10148 | K49: 192012 | L49: E09 | M49: =VLOOKUP(L49,codes!$B$5:$C$85,2,FALSE) -> Staff Development & Training | N49: P12 Posting Summary | O49: EVANSG01 | P49: 803.95
B50: E05 - Admin & Clerical | C50: 353462 | D50: 0 | E50: 356325.35 | G50: 356325.35 | H50: 100.8100871 | I50: -2863.35 | J50: 10148 | K50: 192012 | L50: E10 | M50: =VLOOKUP(L50,codes!$B$5:$C$85,2,FALSE) -> Supply Teacher Insurance | N50: M1 - M11 Actuals | O50: EVANSG01 | P50: 486.54
B51: E06 - Catering Staff | C51: 59509 | D51: 0 | E51: 57032.09 | G51: 57032.09 | H51: 95.83775563 | I51: 2476.91 | J51: 10148 | K51: 192012 | L51: E11 | M51: =VLOOKUP(L51,codes!$B$5:$C$85,2,FALSE) -> Staff Related Insurance | N51: M1 - M11 Actuals | O51: EVANSG01 | P51: 7411.65
B52: E07 - Other Staff | C52: 12986 | D52: 0 | E52: 2364.05 | G52: 2364.05 | H52: 18.20460496 | I52: 10621.95 | J52: 10148 | K52: 192012 | L52: E12 | M52: =VLOOKUP(L52,codes!$B$5:$C$85,2,FALSE) -> Building Maintenance & Improvement | N52: 2018-19 Accruals | O52: EVANSG01 | P52: 8000
B53: E08 - Indirect Employee Exp | C53: 50725 | D53: 0 | E53: 64947.42 | F53: 5541 | G53: 70488.42 | H53: 138.9618926 | I53: -19763.42 | J53: 10148 | K53: 192012 | L53: E12 | M53: =VLOOKUP(L53,codes!$B$5:$C$85,2,FALSE) -> Building Maintenance & Improvement | N53: P12 Posting Summary | O53: EVANSG01 | P53: 8335.93
B54: E09 - Staff Training/Develpmnt | C54: 7002 | D54: 0 | E54: 7286.74 | G54: 7286.74 | H54: 104.0665524 | I54: -284.74 | J54: 10148 | K54: 192012 | L54: E12 | M54: =VLOOKUP(L54,codes!$B$5:$C$85,2,FALSE) -> Building Maintenance & Improvement | N54: M1 - M11 Actuals | O54: EVANSG01 | P54: 34592.49
B55: E10 - Supply Teacher Insurance | C55: 488 | D55: 0 | E55: 486.54 | G55: 486.54 | H55: 99.70081967 | I55: 1.46 | J55: 10148 | K55: 192012 | L55: E14 | M55: =VLOOKUP(L55,codes!$B$5:$C$85,2,FALSE) -> Caretaking & Cleaning | N55: M1 - M11 Actuals | O55: EVANSG01 | P55: 38619.44
B56: E11 - Staff Related Insurance | C56: 7523 | D56: 0 | E56: 7411.65 | G56: 7411.65 | H56: 98.51987239 | I56: 111.35 | J56: 10148 | K56: 192012 | L56: E14 | M56: =VLOOKUP(L56,codes!$B$5:$C$85,2,FALSE) -> Caretaking & Cleaning | N56: SCH 10148 Year End Adj 2019/20 | O56: EVANSG01 | P56: 5500
J57: 10148 | K57: 192012 | L57: E14 | M57: =VLOOKUP(L57,codes!$B$5:$C$85,2,FALSE) -> Caretaking & Cleaning | N57: 2018-19 Accruals | O57: EVANSG01 | P57: 5000
B58: CFR Employee Expenditure | C58: 3598221 | D58: 0 | E58: =SUM(E47:E56) -> 3691759.93 | F58: =SUM(F47:F56) -> 5955 | G58: =SUM(G47:G56) -> 3697714.93 | H58: =G58/C58*100 -> 102.7650867 | I58: =SUM(I47:I56) -> -99493.93 | J58: 10148 | K58: 192012 | L58: E14 | M58: =VLOOKUP(L58,codes!$B$5:$C$85,2,FALSE) -> Caretaking & Cleaning | N58: 2018-19 Accruals | O58: EVANSG01 | P58: 11679
B59: E12 - Bldg Maint/Improvement | C59: 25050 | D59: -8000 | E59: 50928.42 | F59: 10746 | G59: =SUM(D59:F59) -> 53674.42 | H59: =G59/C59*100 -> 214.2691417 | I59: =C59-G59 -> -28624.42 | J59: 10148 | K59: 192012 | L59: E14 | M59: =VLOOKUP(L59,codes!$B$5:$C$85,2,FALSE) -> Caretaking & Cleaning | N59: 2018-19 Accruals | O59: EVANSG01 | P59: -5000
B60: E14 - Cleaning & Caretaking | C60: 52214 | D60: -11679 | E60: 56280.01 | F60: 3500 | G60: =SUM(D60:F60) -> 48101.01 | H60: =G60/C60*100 -> 92.12282147 | I60: =C60-G60 -> 4112.99 | J60: 10148 | K60: 192012 | L60: E14 | M60: =VLOOKUP(L60,codes!$B$5:$C$85,2,FALSE) -> Caretaking & Cleaning | N60: P12 Posting Summary | O60: EVANSG01 | P60: 481.57
B61: E15 - Water & Sewerage | C61: 12875 | D61: 0 | E61: 9664.73 | G61: 9664.73 | H61: 75.06586408 | I61: 3210.27 | J61: 10148 | K61: 192012 | L61: E15 | M61: =VLOOKUP(L61,codes!$B$5:$C$85,2,FALSE) -> Water & Sewerage | N61: M1 - M11 Actuals | O61: EVANSG01 | P61: 8934.68
B62: E16 - Energy | C62: 74650 | D62: -10500 | E62: 105468 | F62: 1000 | G62: 95968 | H62: 128.5572672 | I62: -21318 | J62: 10148 | K62: 192012 | L62: E15 | M62: =VLOOKUP(L62,codes!$B$5:$C$85,2,FALSE) -> Water & Sewerage | N62: P12 Posting Summary | O62: EVANSG01 | P62: 730.05
B63: E17 - Rates | C63: 17000 | D63: 0 | E63: 16872.8 | G63: 16872.8 | H63: 99.25176471 | I63: 127.2 | J63: 10148 | K63: 192012 | L63: E16 | M63: =VLOOKUP(L63,codes!$B$5:$C$85,2,FALSE) -> Energy | N63: 2018-19 Accruals | O63: EVANSG01 | P63: 10500
B64: E18 - Other Occupation Costs | C64: 46760 | D64: 0 | E64: 52140.19 | F64: 220 | G64: 52360.19 | H64: 111.9764542 | I64: -5600.19 | J64: 10148 | K64: 192012 | L64: E16 | M64: =VLOOKUP(L64,codes!$B$5:$C$85,2,FALSE) -> Energy | N64: P12 Posting Summary | O64: EVANSG01 | P64: 6989.8
J65: 10148 | K65: 192012 | L65: E16 | M65: =VLOOKUP(L65,codes!$B$5:$C$85,2,FALSE) -> Energy | N65: M1 - M11 Actuals | O65: EVANSG01 | P65: 82978.2
B66: CFR Premises Expenditure | C66: 228549 | D66: -30179 | E66: =SUM(E59:E64) -> 291354.15 | F66: =SUM(F59:F64) -> 15466 | G66: =SUM(G59:G64) -> 276641.15 | H66: =G66/C66*100 -> 121.0423804 | I66: =SUM(I59:I64) -> -48092.15 | J66: 10148 | K66: 192012 | L66: E16 | M66: =VLOOKUP(L66,codes!$B$5:$C$85,2,FALSE) -> Energy | N66: SCH 10148 Year End Adj 2019/20 | O66: EVANSG01 | P66: 5000
B67: E19 - Learning Resources | C67: 148772 | D67: 0 | E67: 138816.68 | F67: 7620 | G67: =SUM(D67:F67) -> 146436.68 | H67: =G67/C67*100 -> 98.43026914 | I67: =C67-G67 -> 2335.32 | J67: 10148 | K67: 192012 | L67: E17 | M67: =VLOOKUP(L67,codes!$B$5:$C$85,2,FALSE) -> Rates | N67: M1 - M11 Actuals | O67: EVANSG01 | P67: 16872.8
B68: E20 - ICT Learning Resources | C68: 124968 | D68: -73999 | E68: 205120.24 | F68: 5500 | G68: =SUM(D68:F68) -> 136621.24 | H68: =G68/C68*100 -> 109.3249792 | I68: =C68-G68 -> -11653.24 | J68: 10148 | K68: 192012 | L68: E18 | M68: =VLOOKUP(L68,codes!$B$5:$C$85,2,FALSE) -> Other Occupation Costs | N68: P12 Posting Summary | O68: EVANSG01 | P68: 2520.66
B69: E21 - Exam Fees | C69: 87550 | D69: 0 | E69: 90490.13 | F69: 166 | G69: 90656.13 | H69: 103.5478355 | I69: -3106.13 | J69: 10148 | K69: 192012 | L69: E18 | M69: =VLOOKUP(L69,codes!$B$5:$C$85,2,FALSE) -> Other Occupation Costs | N69: M1 - M11 Actuals | O69: EVANSG01 | P69: 49619.53
B70: E22 - Administrative Supplies | C70: 42332 | D70: 0 | E70: 51837.43 | F70: 6 | G70: 51843.43 | H70: 122.4686526 | I70: -9511.43 | J70: 10148 | K70: 192012 | L70: E19 | M70: =VLOOKUP(L70,codes!$B$5:$C$85,2,FALSE) -> Learning Resources (not ICT) | N70: P12 Posting Summary | O70: EVANSG01 | P70: 6959.59
B71: E23 - Other Insurance Premiums | C71: 41799 | D71: 0 | E71: 36580.15 | G71: 36580.15 | H71: 87.51441422 | I71: 5218.85 | J71: 10148 | K71: 192012 | L71: E19 | M71: =VLOOKUP(L71,codes!$B$5:$C$85,2,FALSE) -> Learning Resources (not ICT) | N71: M1 - M11 Actuals | O71: EVANSG01 | P71: 131857.09
B72: E24 - Special Facilities | C72: 0 | D72: 0 | E72: 9908 | F72: -414 | G72: 9494 | H72: 0 | I72: -9494 | J72: 10148 | K72: 192012 | L72: E20 | M72: =VLOOKUP(L72,codes!$B$5:$C$85,2,FALSE) -> ICT Learning Resources | N72: 2018-19 Accruals | O72: EVANSG01 | P72: 27375
B73: E25 - Catering Supplies | C73: 52832 | D73: 0 | E73: 58073.53 | F73: -70 | G73: 58003.53 | H73: 109.7886319 | I73: -5171.53 | J73: 10148 | K73: 192012 | L73: E20 | M73: =VLOOKUP(L73,codes!$B$5:$C$85,2,FALSE) -> ICT Learning Resources | N73: 2018-19 Accruals | O73: EVANSG01 | P73: 73999
B74: E29 - Loan Interest | C74: 0 | D74: 0 | E74: 30 | G74: 30 | H74: 0 | I74: -30 | J74: 10148 | K74: 192012 | L74: E20 | M74: =VLOOKUP(L74,codes!$B$5:$C$85,2,FALSE) -> ICT Learning Resources | N74: P12 Posting Summary | O74: EVANSG01 | P74: 2097.37
J75: 10148 | K75: 192012 | L75: E20 | M75: =VLOOKUP(L75,codes!$B$5:$C$85,2,FALSE) -> ICT Learning Resources | N75: 2018-19 Accruals | O75: EVANSG01 | P75: -27375
B76: CFR Supplies & Services | C76: 498253 | D76: -73999 | E76: =SUM(E67:E74) -> 590856.16 | F76: =SUM(F67:F74) -> 12808 | G76: =SUM(G67:G74) -> 529665.16 | H76: =G76/C76*100 -> 106.3044598 | I76: =SUM(I67:I74) -> -31412.16 | J76: 10148 | K76: 192012 | L76: E20 | M76: =VLOOKUP(L76,codes!$B$5:$C$85,2,FALSE) -> ICT Learning Resources | N76: M1 - M11 Actuals | O76: EVANSG01 | P76: 129023.87
B77: E26 - Agency Supply Teachers | C77: 10000 | D77: 0 | E77: 162.5 | G77: =SUM(D77:F77) -> 162.5 | H77: =G77/C77*100 -> 1.625 | I77: =C77-G77 -> 9837.5 | J77: 10148 | K77: 192012 | L77: E21 | M77: =VLOOKUP(L77,codes!$B$5:$C$85,2,FALSE) -> Exam Fees | N77: P12 Posting Summary | O77: EVANSG01 | P77: 3910.05
B78: E27 - Prof Services-Curriculum | C78: 60302 | D78: 0 | E78: 61556.05 | G78: =SUM(D78:F78) -> 61556.05 | H78: =G78/C78*100 -> 102.0796159 | I78: =C78-G78 -> -1254.05 | J78: 10148 | K78: 192012 | L78: E21 | M78: =VLOOKUP(L78,codes!$B$5:$C$85,2,FALSE) -> Exam Fees | N78: M1 - M11 Actuals | O78: EVANSG01 | P78: 86580.08
B79: E28 - Prof Services-Other | C79: 65027 | D79: 0 | E79: 102932.48 | F79: 6046 | G79: 108978.48 | H79: 167.5895859 | I79: -43951.48 | J79: 10148 | K79: 192012 | L79: E22 | M79: =VLOOKUP(L79,codes!$B$5:$C$85,2,FALSE) -> Administrative Supplies | N79: P12 Posting Summary | O79: EVANSG01 | P79: 6763.33
J80: 10148 | K80: 192012 | L80: E22 | M80: =VLOOKUP(L80,codes!$B$5:$C$85,2,FALSE) -> Administrative Supplies | N80: M1 - M11 Actuals | O80: EVANSG01 | P80: 45074.1
B81: CFR Agency & Contr Serv | C81: 135329 | D81: 0 | E81: =SUM(E77:E79) -> 164651.03 | F81: =SUM(F77:F79) -> 6046 | G81: =SUM(G77:G79) -> 170697.03 | H81: =G81/C81*100 -> 126.1348491 | I81: =SUM(I77:I79) -> -35368.03 | J81: 10148 | K81: 192012 | L81: E23 | M81: =VLOOKUP(L81,codes!$B$5:$C$85,2,FALSE) -> Other Insurance Premiums | N81: M1 - M11 Actuals | O81: EVANSG01 | P81: 36580.15
B82: Contingency | C82: 4987 | D82: 0 | E82: 0 | G82: =SUM(D82:F82) -> 0 | H82: =G82/C82*100 -> 0 | I82: =C82-G82 -> 4987 | J82: 10148 | K82: 192012 | L82: E24 | M82: =VLOOKUP(L82,codes!$B$5:$C$85,2,FALSE) -> Special Facilities | N82: M1 - M11 Actuals | O82: EVANSG01 | P82: 8436
J83: 10148 | K83: 192012 | L83: E24 | M83: =VLOOKUP(L83,codes!$B$5:$C$85,2,FALSE) -> Special Facilities | N83: P12 Posting Summary | O83: EVANSG01 | P83: 1472
B84: CFR Holding | C84: 4987 | D84: 0 | E84: =SUM(E82) -> 0 | F84: =SUM(F82) -> 0 | G84: =SUM(G82) -> 0 | H84: =SUM(H82) -> 0 | I84: 4987 | J84: 10148 | K84: 192012 | L84: E25 | M84: =VLOOKUP(L84,codes!$B$5:$C$85,2,FALSE) -> Catering Supplies | N84: M1 - M11 Actuals | O84: EVANSG01 | P84: 53565.56
J85: 10148 | K85: 192012 | L85: E25 | M85: =VLOOKUP(L85,codes!$B$5:$C$85,2,FALSE) -> Catering Supplies | N85: P12 Posting Summary | O85: EVANSG01 | P85: 4507.97
B86: CFR2 Revenue Expenditure: TOTAL | C86: 4465339 | D86: -104178 | E86: =E58+E66+E76+E81+E84 -> 4738621.27 | F86: =F58+F66+F76+F81+F84 -> 40275 | G86: 4674718.27 | I86: -209379.27 | J86: 10148 | K86: 192012 | L86: E26 | M86: =VLOOKUP(L86,codes!$B$5:$C$85,2,FALSE) -> Agency Supply Teachers | N86: M1 - M11 Actuals | O86: EVANSG01 | P86: 162.5
B87: Revenue Balance C/forward | C87: -497456 | D87: -599178 | E87: =E45+E86 -> 189025.02 | F87: =F45+F86 -> 508060.41 | G87: 97907.43 | I87: =C32-G87 -> -595363.43 | J87: 10148 | K87: 192012 | L87: E27 | M87: =VLOOKUP(L87,codes!$B$5:$C$85,2,FALSE) -> Bought in Prof. Services - Curriculum | N87: M1 - M11 Actuals | O87: EVANSG01 | P87: 58932.13
B88: Capital Balance B/forward | C88: 3251 | J88: 10148 | K88: 192012 | L88: E27 | M88: =VLOOKUP(L88,codes!$B$5:$C$85,2,FALSE) -> Bought in Prof. Services - Curriculum | N88: P12 Posting Summary | O88: EVANSG01 | P88: 2623.92
B89: CI03 - Private Capital Income | C89: -8057 | D89: 0 | E89: -8500 | G89: =SUM(D89:F89) -> -8500 | H89: =G89/C89*100 -> 105.4983244 | I89: =C89-G89 -> 443 | J89: 10148 | K89: 192012 | L89: E28 | M89: =VLOOKUP(L89,codes!$B$5:$C$85,2,FALSE) -> Bought in Prof. Services - Other | N89: M1 - M11 Actuals | O89: EVANSG01 | P89: 96454.46
J90: 10148 | K90: 192012 | L90: E28 | M90: =VLOOKUP(L90,codes!$B$5:$C$85,2,FALSE) -> Bought in Prof. Services - Other | N90: SCH 10148 Year End Adj 2019/20 | O90: EVANSG01 | P90: 5236
B91: CFR Capital Income (Excl Bal) | C91: -8057 | D91: 0 | E91: =SUM(E89) -> -8500 | F91: =SUM(F89) -> 0 | G91: =SUM(G89) -> -8500 | I91: =SUM(I89) -> 443 | J91: 10148 | K91: 192012 | L91: E28 | M91: =VLOOKUP(L91,codes!$B$5:$C$85,2,FALSE) -> Bought in Prof. Services - Other | N91: P12 Posting Summary | O91: EVANSG01 | P91: 1242.02
J92: 10148 | K92: 192012 | L92: E29 | M92: =VLOOKUP(L92,codes!$B$5:$C$85,2,FALSE) -> Loan Interest | N92: P12 Posting Summary | O92: EVANSG01 | P92: 30
B93: CE04 - ICT Capital | C93: 11308 | D93: 0 | E93: 12517.2 | G93: =SUM(D93:F93) -> 12517.2 | H93: =G93/C93*100 -> 110.6933145 | I93: =C93-G93 -> -1209.2 | J93: 10148 | K93: 192012 | L93: I01 | M93: =VLOOKUP(L93,codes!$B$5:$C$85,2,FALSE) -> Funds Delegated by LEA | N93: M1 - M11 Actuals | O93: EVANSG01 | P93: -2509411.33
J94: 10148 | K94: 192012 | L94: I01 | M94: =VLOOKUP(L94,codes!$B$5:$C$85,2,FALSE) -> Funds Delegated by LEA | N94: P12 Posting Summary | O94: EVANSG01 | P94: -147612
B95: CFR Capital Expenditure | C95: 11308 | D95: 0 | E95: =SUM(E93) -> 12517.2 | F95: =SUM(F93) -> 0 | G95: =SUM(G93) -> 12517.2 | I95: =SUM(I93) -> -1209.2 | J95: 10148 | K95: 192012 | L95: I01 | M95: =VLOOKUP(L95,codes!$B$5:$C$85,2,FALSE) -> Funds Delegated by LEA | N95: St Michaels advance corr | O95: EVANSG01 | P95: 500000
J96: 10148 | K96: 192012 | L96: I02 | M96: =VLOOKUP(L96,codes!$B$5:$C$85,2,FALSE) -> Funding for 6th Form Students | N96: M1 - M11 Actuals | O96: EVANSG01 | P96: -1012084.23
B97: Capital Balance C/forward | C97: 3251 | D97: 0 | E97: =E91+E95 -> 4017.2 | F97: =F91+F95 -> 0 | G97: 4017.2 | I97: =C88-G97 -> -766.2 | J97: 10148 | K97: 192012 | L97: I02 | M97: =VLOOKUP(L97,codes!$B$5:$C$85,2,FALSE) -> Funding for 6th Form Students | N97: P12 Posting Summary | O97: EVANSG01 | P97: -57391.69
J98: 10148 | K98: 192012 | L98: I03 | M98: =VLOOKUP(L98,codes!$B$5:$C$85,2,FALSE) -> SEN Funding | N98: 2018-19 Accruals | O98: EVANSG01 | P98: -5000
B99: TOTAL | C99: -494205 | D99: -599178 | E99: =E87+E97 -> 193042.22 | G99: =G87+G97 -> 101924.63 | I99: -596129.63 | J99: 10148 | K99: 192012 | L99: I03 | M99: =VLOOKUP(L99,codes!$B$5:$C$85,2,FALSE) -> SEN Funding | N99: St Michael's Catholic | O99: EVANSG01 | P99: -2200.49
J100: 10148 | K100: 192012 | L100: I03 | M100: =VLOOKUP(L100,codes!$B$5:$C$85,2,FALSE) -> SEN Funding | N100: P12 Posting Summary | O100: EVANSG01 | P100: -3523.32
J101: 10148 | K101: 192012 | L101: I03 | M101: =VLOOKUP(L101,codes!$B$5:$C$85,2,FALSE) -> SEN Funding | N101: M1 - M11 Actuals | O101: EVANSG01 | P101: 1476.68
J102: 10148 | K102: 192012 | L102: I05 | M102: =VLOOKUP(L102,codes!$B$5:$C$85,2,FALSE) -> Pupil Premium | N102: P12 Posting Summary | O102: EVANSG01 | P102: -5275
J103: 10148 | K103: 192012 | L103: I05 | M103: =VLOOKUP(L103,codes!$B$5:$C$85,2,FALSE) -> Pupil Premium | N103: M1 - M11 Actuals | O103: EVANSG01 | P103: -32885.49
J104: 10148 | K104: 192012 | L104: I05 | M104: =VLOOKUP(L104,codes!$B$5:$C$85,2,FALSE) -> Pupil Premium | N104: St Michael's Catholic | O104: EVANSG01 | P104: 2200.49
J105: 10148 | K105: 192012 | L105: I06 | M105: =VLOOKUP(L105,codes!$B$5:$C$85,2,FALSE) -> Other Government Grants | N105: P12 Posting Summary | O105: EVANSG01 | P105: -83389
J106: 10148 | K106: 192012 | L106: I06 | M106: =VLOOKUP(L106,codes!$B$5:$C$85,2,FALSE) -> Other Government Grants | N106: M1 - M11 Actuals | O106: EVANSG01 | P106: -232377.36
J107: 10148 | K107: 192012 | L107: I06 | M107: =VLOOKUP(L107,codes!$B$5:$C$85,2,FALSE) -> Other Government Grants | N107: SCH 10148 Year End Adj 2019/20 | O107: EVANSG01 | P107: -5677
J108: 10148 | K108: 192012 | L108: I07 | M108: =VLOOKUP(L108,codes!$B$5:$C$85,2,FALSE) -> Other Grants & Payments | N108: M1 - M11 Actuals | O108: EVANSG01 | P108: -11280.64
J109: 10148 | K109: 192012 | L109: I08 | M109: =VLOOKUP(L109,codes!$B$5:$C$85,2,FALSE) -> Income from Facilities & Services | N109: M1 - M11 Actuals | O109: EVANSG01 | P109: -983050.2
J110: 10148 | K110: 192012 | L110: I08 | M110: =VLOOKUP(L110,codes!$B$5:$C$85,2,FALSE) -> Income from Facilities & Services | N110: P12 Posting Summary | O110: EVANSG01 | P110: 605863.51
J111: 10148 | K111: 192012 | L111: I08 | M111: =VLOOKUP(L111,codes!$B$5:$C$85,2,FALSE) -> Income from Facilities & Services | N111: M1 - M11 Actuals | O111: EVANSG01 | P111: -42222
J112: 10148 | K112: 192012 | L112: I09 | M112: =VLOOKUP(L112,codes!$B$5:$C$85,2,FALSE) -> Income from Catering | N112: M1 - M11 Actuals | O112: EVANSG01 | P112: -112798.95
J113: 10148 | K113: 192012 | L113: I09 | M113: =VLOOKUP(L113,codes!$B$5:$C$85,2,FALSE) -> Income from Catering | N113: P12 Posting Summary | O113: EVANSG01 | P113: -11540.26
J114: 10148 | K114: 192012 | L114: I12 | M114: =VLOOKUP(L114,codes!$B$5:$C$85,2,FALSE) -> Income from Contributions | N114: P12 Posting Summary | O114: EVANSG01 | P114: -3000
J115: 10148 | K115: 192012 | L115: I12 | M115: =VLOOKUP(L115,codes!$B$5:$C$85,2,FALSE) -> Income from Contributions | N115: M1 - M11 Actuals | O115: EVANSG01 | P115: -25277.02
J116: 10148 | K116: 192012 | L116: I13 | M116: =VLOOKUP(L116,codes!$B$5:$C$85,2,FALSE) -> Donations and / or Voluntary Funds | N116: M1 - M11 Actuals | O116: EVANSG01 | P116: -370914.02
J117: 10148 | K117: 192012 | L117: I13 | M117: =VLOOKUP(L117,codes!$B$5:$C$85,2,FALSE) -> Donations and / or Voluntary Funds | N117: P12 Posting Summary | O117: EVANSG01 | P117: -2226.93
J118: 10148 Total | P118: =SUBTOTAL(9,P32:P117) -> 193042.22
J119: Grand Total | P119: =SUBTOTAL(9,P32:P117) -> 193042.22

Sheet Trans (1) (hidden)
A1: Profit Ctr | B1: Period | C1: CFR | D1: CFR Text | E1: Narrative | F1: User Name | G1: In PCLC | J1: =K1 -> 10188 | K1: 10188 | L1: =VLOOKUP(K1,Y:Z,2,0) -> Pavilion
A2: 10040 | B2: 2324/06 | C2: E01 | D2: Teaching Staff | E2: Q1 M1-M3 Actuals | F2: TIBAR01 | G2: 136959.3
A3: 10040 | B3: 2324/06 | C3: E03 | D3: Education Support Staff | E3: Q1 M1-M3 Actuals | F3: TIBAR01 | G3: 33798.85
A4: 10040 | B4: 2324/06 | C4: E04 | D4: Premises Staff | E4: Q1 M1-M3 Actuals | F4: TIBAR01 | G4: 9856.08
A5: 10040 | B5: 2324/06 | C5: E05 | D5: Administrative & Clerical Staff | E5: Q1 M1-M3 Actuals | F5: TIBAR01 | G5: 9123.72
A6: 10040 | B6: 2324/06 | C6: E07 | D6: Cost of Other Staff | E6: Q1 M1-M3 Actuals | F6: TIBAR01 | G6: 3355.4
A7: 10040 | B7: 2324/06 | C7: E08 | D7: Indirect Employee Expenses | E7: Q1 M1-M3 Actuals | F7: TIBAR01 | G7: 35
A8: 10040 | B8: 2324/06 | C8: E09 | D8: Staff Development & Training | E8: Q1 M1-M3 Actuals | F8: TIBAR01 | G8: 335
A9: 10040 | B9: 2324/06 | C9: E12 | D9: Building Maintenance & Improvement | E9: Q1 M1-M3 Actuals | F9: TIBAR01 | G9: 3040.08
A10: 10040 | B10: 2324/06 | C10: E13 | D10: Grounds Maintenance & Improvement | E10: Q1 M1-M3 Actuals | F10: TIBAR01 | G10: 345
A11: 10040 | B11: 2324/06 | C11: E14 | D11: Caretaking & Cleaning | E11: Q1 M1-M3 Actuals | F11: TIBAR01 | G11: 6558.29
A12: 10040 | B12: 2324/06 | C12: E15 | D12: Water & Sewerage | E12: Q1 M1-M3 Actuals | F12: TIBAR01 | G12: 888.39
A13: 10040 | B13: 2324/06 | C13: E16 | D13: Energy | E13: Q1 M1-M3 Actuals | F13: TIBAR01 | G13: 3976.77
A14: 10040 | B14: 2324/06 | C14: E18 | D14: Other Occupation Costs | E14: Q1 M1-M3 Actuals | F14: TIBAR01 | G14: 3271.65
A15: 10040 | B15: 2324/06 | C15: E19 | D15: Learning Resources (not ICT) | E15: Q1 M1-M3 Actuals | F15: TIBAR01 | G15: 17070.02
A16: 10040 | B16: 2324/06 | C16: E20 | D16: ICT Learning Resources | E16: Q1 M1-M3 Actuals | F16: TIBAR01 | G16: 6069.95
A17: 10040 | B17: 2324/06 | C17: E22 | D17: Administrative Supplies | E17: Q1 M1-M3 Actuals | F17: TIBAR01 | G17: 2906
A18: 10040 | B18: 2324/06 | C18: E24 | D18: Special Facilities | E18: Q1 M1-M3 Actuals | F18: TIBAR01 | G18: 134.47
A19: 10040 | B19: 2324/01 | C19: E25 | D19: Catering Supplies | E19: R/SCH 10040 Year End Adj 2022/23 | F19: TIBAR01 | G19: -6367
A20: 10040 | B20: 2324/06 | C20: E25 | D20: Catering Supplies | E20: Q1 M1-M3 Actuals | F20: TIBAR01 | G20: 7039.05
A21: 10040 | B21: 2324/06 | C21: E26 | D21: Agency Supply Teachers | E21: Q1 M1-M3 Actuals | F21: TIBAR01 | G21: 10557.17
A22: 10040 | B22: 2324/06 | C22: E27 | D22: Bought in Prof. Services - Curriculum | E22: Q1 M1-M3 Actuals | F22: TIBAR01 | G22: 37772.63
A23: 10040 | B23: 2324/06 | C23: E28a | D23: Bought in Prof. Services - Other (except PFI) | E23: Q1 M1-M3 Actuals | F23: TIBAR01 | G23: 14228.45
A24: 10040 | B24: 2324/06 | C24: I01 | D24: Funds Delegated by LEA | E24: Q1 M1-M3 Actuals | F24: TIBAR01 | G24: -329466.8
A25: 10040 | B25: 2324/06 | C25: I03 | D25: SEN Funding | E25: Q1 M1-M3 Actuals | F25: TIBAR01 | G25: -14517.97
A26: 10040 | B26: 2324/06 | C26: I08b | D26: Other income from facilities and services | E26: Q1 M1-M3 Actuals | F26: TIBAR01 | G26: -2614.5
A27: 10040 | B27: 2324/06 | C27: I09 | D27: Income from Catering | E27: Q1 M1-M3 Actuals | F27: TIBAR01 | G27: -1623.14
A28: 10040 | B28: 2324/06 | C28: I12 | D28: Income from Contributions | E28: Q1 M1-M3 Actuals | F28: TIBAR01 | G28: -6160
A29: 10040 | B29: 2324/01 | C29: I18c | D29: Income from the £1bn coronavirus (COVID-19) catch-up package announced on 20 July 2020 | E29: R/SCH 10040 Year End Adj 2022/23 | F29: TIBAR01 | G29: -19130
A30: 10040 | B30: 2324/06 | C30: I18c | D30: Income from the £1bn coronavirus (COVID-19) catch-up package announced on 20 July 2020 | E30: Q1 M1-M3 Actuals | F30: TIBAR01 | G30: -27450
A31: 10040 | B31: 2324/06 | C31: I18d | D31: Income from other additional grants | E31: Q1 M1-M3 Actuals | F31: TIBAR01 | G31: -7208
A32: 10042 | B32: 2324/01 | C32: E01 | D32: Teaching Staff | E32: Payroll for Apr 2023 | F32: TOPPG01 | G32: 42343.54
A33: 10042 | B33: 2324/01 | C33: E01 | D33: Teaching Staff | E33: Payroll for Apr 2023 | F33: TOPPG01 | G33: 4420.82
A34: 10042 | B34: 2324/01 | C34: E01 | D34: Teaching Staff | E34: Payroll for Apr 2023 | F34: TOPPG01 | G34: 10173.81
A35: 10042 | B35: 2324/02 | C35: E01 | D35: Teaching Staff | E35: Payroll for May 2023 | F35: BROWNJ01 | G35: 40250.54
A36: 10042 | B36: 2324/02 | C36: E01 | D36: Teaching Staff | E36: Payroll for May 2023 | F36: BROWNJ01 | G36: 4237.12
A37: 10042 | B37: 2324/02 | C37: E01 | D37: Teaching Staff | E37: Payroll for May 2023 | F37: BROWNJ01 | G37: 9681.64
A38: 10042 | B38: 2324/03 | C38: E01 | D38: Teaching Staff | E38: Payroll for Jun 2023 | F38: TOPPG01 | G38: 43840.7
A39: 10042 | B39: 2324/03 | C39: E01 | D39: Teaching Staff | E39: Payroll for Jun 2023 | F39: TOPPG01 | G39: 4649.87
A40: 10042 | B40: 2324/03 | C40: E01 | D40: Teaching Staff | E40: Payroll for Jun 2023 | F40: TOPPG01 | G40: 10569.36
A41: 10042 | B41: 2324/04 | C41: E01 | D41: Teaching Staff | E41: Payroll for Jul 2023 | F41: TOPPG01 | G41: 46526.19
A42: 10042 | B42: 2324/04 | C42: E01 | D42: Teaching Staff | E42: Payroll for Jul 2023 | F42: TOPPG01 | G42: 5009.45
A43: 10042 | B43: 2324/04 | C43: E01 | D43: Teaching Staff | E43: Payroll for Jul 2023 | F43: TOPPG01 | G43: 11167.71
A44: 10042 | B44: 2324/04 | C44: E01 | D44: Teaching Staff | E44: Additional salary amount | F44: PHELAND01 | G44: -512.97
A45: 10042 | B45: 2324/04 | C45: E01 | D45: Teaching Staff | E45: To cancel Invoice 0020306670 | F45: PHELAND01 | G45: 3020.44
A46: 10042 | B46: 2324/04 | C46: E01 | D46: Teaching Staff | E46: To refund inv.20316871 | F46: PHELAND01 | G46: 24505.33
A47: 10042 | B47: 2324/04 | C47: E01 | D47: Teaching Staff | E47: To refund inv. 20316871 | F47: PHELAND01 | G47: 20000
A48: 10042 | B48: 2324/04 | C48: E01 | D48: Teaching Staff | E48: To cancel inv. 0020310662 | F48: PHELAND01 | G48: 1481.15
A49: 10042 | B49: 2324/05 | C49: E01 | D49: Teaching Staff | E49: Payroll for Aug 2023 | F49: MCINTOSHM01 | G49: 43653.22
A50: 10042 | B50: 2324/05 | C50: E01 | D50: Teaching Staff | E50: Payroll for Aug 2023 | F50: MCINTOSHM01 | G50: 4624
A51: 10042 | B51: 2324/05 | C51: E01 | D51: Teaching Staff | E51: Payroll for Aug 2023 | F51: MCINTOSHM01 | G51: 10524.97
A52: 10042 | B52: 2324/01 | C52: E02 | D52: Supply Teaching Staff (employed by the school) | E52: Payroll for Apr 2023 | F52: TOPPG01 | G52: 3244.2
A53: 10042 | B53: 2324/01 | C53: E02 | D53: Supply Teaching Staff (employed by the school) | E53: Payroll for Apr 2023 | F53: TOPPG01 | G53: 238.49
A54: 10042 | B54: 2324/02 | C54: E02 | D54: Supply Teaching Staff (employed by the school) | E54: Payroll for May 2023 | F54: BROWNJ01 | G54: 974.5
A55: 10042 | B55: 2324/03 | C55: E02 | D55: Supply Teaching Staff (employed by the school) | E55: Payroll for Jun 2023 | F55: TOPPG01 | G55: 2355.74
A56: 10042 | B56: 2324/03 | C56: E02 | D56: Supply Teaching Staff (employed by the school) | E56: Payroll for Jun 2023 | F56: TOPPG01 | G56: 142.66
A57: 10042 | B57: 2324/04 | C57: E02 | D57: Supply Teaching Staff (employed by the school) | E57: Payroll for Jul 2023 | F57: TOPPG01 | G57: 2597.37
A58: 10042 | B58: 2324/04 | C58: E02 | D58: Supply Teaching Staff (employed by the school) | E58: Payroll for Jul 2023 | F58: TOPPG01 | G58: 149.23
A59: 10042 | B59: 2324/05 | C59: E02 | D59: Supply Teaching Staff (employed by the school) | E59: Payroll for Aug 2023 | F59: MCINTOSHM01 | G59: 969
A60: 10042 | B60: 2324/05 | C60: E02 | D60: Supply Teaching Staff (employed by the school) | E60: Payroll for Aug 2023 | F60: MCINTOSHM01 | G60: 29.1
A61: 10042 | B61: 2324/01 | C61: E03 | D61: Education Support Staff | E61: Payroll for Apr 2023 | F61: TOPPG01 | G61: 24092.26
A62: 10042 | B62: 2324/01 | C62: E03 | D62: Education Support Staff | E62: Payroll for Apr 2023 | F62: TOPPG01 | G62: 1694.01
A63: 10042 | B63: 2324/01 | C63: E03 | D63: Education Support Staff | E63: Payroll for Apr 2023 | F63: TOPPG01 | G63: 6830.38
A64: 10042 | B64: 2324/02 | C64: E03 | D64: Education Support Staff | E64: Payroll for May 2023 | F64: BROWNJ01 | G64: 21878.16
A65: 10042 | B65: 2324/02 | C65: E03 | D65: Education Support Staff | E65: Payroll for May 2023 | F65: BROWNJ01 | G65: 1507.36
A66: 10042 | B66: 2324/02 | C66: E03 | D66: Education Support Staff | E66: Payroll for May 2023 | F66: BROWNJ01 | G66: 6213.39
A67: 10042 | B67: 2324/03 | C67: E03 | D67: Education Support Staff | E67: Payroll for Jun 2023 | F67: TOPPG01 | G67: 21968.78
A68: 10042 | B68: 2324/03 | C68: E03 | D68: Education Support Staff | E68: Payroll for Jun 2023 | F68: TOPPG01 | G68: 1507.09
A69: 10042 | B69: 2324/03 | C69: E03 | D69: Education Support Staff | E69: Payroll for Jun 2023 | F69: TOPPG01 | G69: 6239.14
A70: 10042 | B70: 2324/04 | C70: E03 | D70: Education Support Staff | E70: Payroll for Jul 2023 | F70: TOPPG01 | G70: 22068.71
A71: 10042 | B71: 2324/04 | C71: E03 | D71: Education Support Staff | E71: Payroll for Jul 2023 | F71: TOPPG01 | G71: 1519.58
A72: 10042 | B72: 2324/04 | C72: E03 | D72: Education Support Staff | E72: Payroll for Jul 2023 | F72: TOPPG01 | G72: 6267.52
A73: 10042 | B73: 2324/05 | C73: E03 | D73: Education Support Staff | E73: Payroll for Aug 2023 | F73: MCINTOSHM01 | G73: 21619.78
A74: 10042 | B74: 2324/05 | C74: E03 | D74: Education Support Staff | E74: Payroll for Aug 2023 | F74: MCINTOSHM01 | G74: 1472.69
A75: 10042 | B75: 2324/05 | C75: E03 | D75: Education Support Staff | E75: Payroll for Aug 2023 | F75: MCINTOSHM01 | G75: 6140.03
A76: 10042 | B76: 2324/01 | C76: E04 | D76: Premises Staff | E76: Payroll for Apr 2023 | F76: TOPPG01 | G76: 2427.62
A77: 10042 | B77: 2324/01 | C77: E04 | D77: Premises Staff | E77: Payroll for Apr 2023 | F77: TOPPG01 | G77: 230.41
A78: 10042 | B78: 2324/01 | C78: E04 | D78: Premises Staff | E78: Payroll for Apr 2023 | F78: TOPPG01 | G78: 689.44
A79: 10042 | B79: 2324/02 | C79: E04 | D79: Premises Staff | E79: Payroll for May 2023 | F79: BROWNJ01 | G79: 2352.42
A80: 10042 | B80: 2324/02 | C80: E04 | D80: Premises Staff | E80: Payroll for May 2023 | F80: BROWNJ01 | G80: 220.03
A81: 10042 | B81: 2324/02 | C81: E04 | D81: Premises Staff | E81: Payroll for May 2023 | F81: BROWNJ01 | G81: 668.09
A82: 10042 | B82: 2324/03 | C82: E04 | D82: Premises Staff | E82: Payroll for Jun 2023 | F82: TOPPG01 | G82: 2352.42
A83: 10042 | B83: 2324/03 | C83: E04 | D83: Premises Staff | E83: Payroll for Jun 2023 | F83: TOPPG01 | G83: 220.03
A84: 10042 | B84: 2324/03 | C84: E04 | D84: Premises Staff | E84: Payroll for Jun 2023 | F84: TOPPG01 | G84: 668.09
A85: 10042 | B85: 2324/04 | C85: E04 | D85: Premises Staff | E85: Payroll for Jul 2023 | F85: TOPPG01 | G85: 2367.46
A86: 10042 | B86: 2324/04 | C86: E04 | D86: Premises Staff | E86: Payroll for Jul 2023 | F86: TOPPG01 | G86: 222.1
A87: 10042 | B87: 2324/04 | C87: E04 | D87: Premises Staff | E87: Payroll for Jul 2023 | F87: TOPPG01 | G87: 672.36
A88: 10042 | B88: 2324/05 | C88: E04 | D88: Premises Staff | E88: Payroll for Aug 2023 | F88: MCINTOSHM01 | G88: 2352.42
A89: 10042 | B89: 2324/05 | C89: E04 | D89: Premises Staff | E89: Payroll for Aug 2023 | F89: MCINTOSHM01 | G89: 220.03
A90: 10042 | B90: 2324/05 | C90: E04 | D90: Premises Staff | E90: Payroll for Aug 2023 | F90: MCINTOSHM01 | G90: 668.09
A91: 10042 | B91: 2324/01 | C91: E05 | D91: Administrative & Clerical Staff | E91: Payroll for Apr 2023 | F91: TOPPG01 | G91: 3705.42
A92: 10042 | B92: 2324/01 | C92: E05 | D92: Administrative & Clerical Staff | E92: Payroll for Apr 2023 | F92: TOPPG01 | G92: 302.14
A93: 10042 | B93: 2324/01 | C93: E05 | D93: Administrative & Clerical Staff | E93: Payroll for Apr 2023 | F93: TOPPG01 | G93: 1052.33
A94: 10042 | B94: 2324/02 | C94: E05 | D94: Administrative & Clerical Staff | E94: Payroll for May 2023 | F94: BROWNJ01 | G94: 3705.42
A95: 10042 | B95: 2324/02 | C95: E05 | D95: Administrative & Clerical Staff | E95: Payroll for May 2023 | F95: BROWNJ01 | G95: 302.14
A96: 10042 | B96: 2324/02 | C96: E05 | D96: Administrative & Clerical Staff | E96: Payroll for May 2023 | F96: BROWNJ01 | G96: 1052.33
A97: 10042 | B97: 2324/03 | C97: E05 | D97: Administrative & Clerical Staff | E97: Payroll for Jun 2023 | F97: TOPPG01 | G97: 3705.42
A98: 10042 | B98: 2324/03 | C98: E05 | D98: Administrative & Clerical Staff | E98: Payroll for Jun 2023 | F98: TOPPG01 | G98: 302.14
A99: 10042 | B99: 2324/03 | C99: E05 | D99: Administrative & Clerical Staff | E99: Payroll for Jun 2023 | F99: TOPPG01 | G99: 1052.33
A100: 10042 | B100: 2324/04 | C100: E05 | D100: Administrative & Clerical Staff | E100: Payroll for Jul 2023 | F100: TOPPG01 | G100: 3874.66
A101: 10042 | B101: 2324/04 | C101: E05 | D101: Administrative & Clerical Staff | E101: Payroll for Jul 2023 | F101: TOPPG01 | G101: 325.49
A102: 10042 | B102: 2324/04 | C102: E05 | D102: Administrative & Clerical Staff | E102: Payroll for Jul 2023 | F102: TOPPG01 | G102: 1100.4
A103: 10042 | B103: 2324/05 | C103: E05 | D103: Administrative & Clerical Staff | E103: Payroll for Aug 2023 | F103: MCINTOSHM01 | G103: 3705.42
A104: 10042 | B104: 2324/05 | C104: E05 | D104: Administrative & Clerical Staff | E104: Payroll for Aug 2023 | F104: MCINTOSHM01 | G104: 302.14
A105: 10042 | B105: 2324/05 | C105: E05 | D105: Administrative & Clerical Staff | E105: Payroll for Aug 2023 | F105: MCINTOSHM01 | G105: 1052.33
A106: 10042 | B106: 2324/01 | C106: E07 | D106: Cost of Other Staff | E106: Payroll for Apr 2023 | F106: TOPPG01 | G106: 2362.74
A107: 10042 | B107: 2324/01 | C107: E07 | D107: Cost of Other Staff | E107: Payroll for Apr 2023 | F107: TOPPG01 | G107: 136.25
A108: 10042 | B108: 2324/01 | C108: E07 | D108: Cost of Other Staff | E108: Payroll for Apr 2023 | F108: TOPPG01 | G108: 601.45
A109: 10042 | B109: 2324/02 | C109: E07 | D109: Cost of Other Staff | E109: Payroll for May 2023 | F109: BROWNJ01 | G109: 2362.74
A110: 10042 | B110: 2324/02 | C110: E07 | D110: Cost of Other Staff | E110: Payroll for May 2023 | F110: BROWNJ01 | G110: 134.73
A111: 10042 | B111: 2324/02 | C111: E07 | D111: Cost of Other Staff | E111: Payroll for May 2023 | F111: BROWNJ01 | G111: 601.45
A112: 10042 | B112: 2324/03 | C112: E07 | D112: Cost of Other Staff | E112: Payroll for Jun 2023 | F112: TOPPG01 | G112: 2385.87
A113: 10042 | B113: 2324/03 | C113: E07 | D113: Cost of Other Staff | E113: Payroll for Jun 2023 | F113: TOPPG01 | G113: 134.72
A114: 10042 | B114: 2324/03 | C114: E07 | D114: Cost of Other Staff | E114: Payroll for Jun 2023 | F114: TOPPG01 | G114: 608.02
A115: 10042 | B115: 2324/04 | C115: E07 | D115: Cost of Other Staff | E115: Payroll for Jul 2023 | F115: TOPPG01 | G115: 2402.45
A116: 10042 | B116: 2324/04 | C116: E07 | D116: Cost of Other Staff | E116: Payroll for Jul 2023 | F116: TOPPG01 | G116: 136.03
A117: 10042 | B117: 2324/04 | C117: E07 | D117: Cost of Other Staff | E117: Payroll for Jul 2023 | F117: TOPPG01 | G117: 612.73
A118: 10042 | B118: 2324/05 | C118: E07 | D118: Cost of Other Staff | E118: Payroll for Aug 2023 | F118: MCINTOSHM01 | G118: 2385.87
A119: 10042 | B119: 2324/05 | C119: E07 | D119: Cost of Other Staff | E119: Payroll for Aug 2023 | F119: MCINTOSHM01 | G119: 133.74
A120: 10042 | B120: 2324/05 | C120: E07 | D120: Cost of Other Staff | E120: Payroll for Aug 2023 | F120: MCINTOSHM01 | G120: 608.02
A121: 10042 | B121: 2324/06 | C121: E08 | D121: Indirect Employee Expenses | E121: Q1 M1-M3 Actuals | F121: TIBAR01 | G121: 432.24
A122: 10042 | B122: 2324/06 | C122: E10 | D122: Supply Teacher Insurance | E122: Q1 M1-M3 Actuals | F122: TIBAR01 | G122: 7079.63
A123: 10042 | B123: 2324/06 | C123: E12 | D123: Building Maintenance & Improvement | E123: Q1 M1-M3 Actuals | F123: TIBAR01 | G123: 7616.49
A124: 10042 | B124: 2324/06 | C124: E13 | D124: Grounds Maintenance & Improvement | E124: Q1 M1-M3 Actuals | F124: TIBAR01 | G124: 730.7
A125: 10042 | B125: 2324/06 | C125: E14 | D125: Caretaking & Cleaning | E125: Q1 M1-M3 Actuals | F125: TIBAR01 | G125: 8222.41
A126: 10042 | B126: 2324/01 | C126: E15 | D126: Water & Sewerage | E126: R/SCH 10042 Year End Adj 2022/23 | F126: TIBAR01 | G126: -5000
A127: 10042 | B127: 2324/06 | C127: E15 | D127: Water & Sewerage | E127: Q1 M1-M3 Actuals | F127: TIBAR01 | G127: -5000
A128: 10042 | B128: 2324/06 | C128: E16 | D128: Energy | E128: Q1 M1-M3 Actuals | F128: TIBAR01 | G128: 11241.01
A129: 10042 | B129: 2324/06 | C129: E18 | D129: Other Occupation Costs | E129: Q1 M1-M3 Actuals | F129: TIBAR01 | G129: 6422.6
A130: 10042 | B130: 2324/01 | C130: E19 | D130: Learning Resources (not ICT) | E130: R/SCH 10042 Year End Adj 2022/23 | F130: TIBAR01 | G130: 8520
A131: 10042 | B131: 2324/06 | C131: E19 | D131: Learning Resources (not ICT) | E131: Q1 M1-M3 Actuals | F131: TIBAR01 | G131: 20485.61
A132: 10042 | B132: 2324/06 | C132: E20 | D132: ICT Learning Resources | E132: Q1 M1-M3 Actuals | F132: TIBAR01 | G132: 7473.53
A133: 10042 | B133: 2324/06 | C133: E22 | D133: Administrative Supplies | E133: Q1 M1-M3 Actuals | F133: TIBAR01 | G133: 5574.99
A134: 10042 | B134: 2324/06 | C134: E23 | D134: Other Insurance Premiums | E134: Q1 M1-M3 Actuals | F134: TIBAR01 | G134: 95
A135: 10042 | B135: 2324/06 | C135: E24 | D135: Special Facilities | E135: Q1 M1-M3 Actuals | F135: TIBAR01 | G135: 1258.81
A136: 10042 | B136: 2324/01 | C136: E25 | D136: Catering Supplies | E136: R/SCH 10042 Year End Adj 2022/23 | F136: TIBAR01 | G136: -8850
A137: 10042 | B137: 2324/06 | C137: E25 | D137: Catering Supplies | E137: Q1 M1-M3 Actuals | F137: TIBAR01 | G137: 10416.43
A138: 10042 | B138: 2324/06 | C138: E26 | D138: Agency Supply Teachers | E138: Q1 M1-M3 Actuals | F138: TIBAR01 | G138: 5974.77
A139: 10042 | B139: 2324/06 | C139: E27 | D139: Bought in Prof. Services - Curriculum | E139: Q1 M1-M3 Actuals | F139: TIBAR01 | G139: 11381.85
A140: 10042 | B140: 2324/06 | C140: E28a | D140: Bought in Prof. Services - Other (except PFI) | E140: Q1 M1-M3 Actuals | F140: TIBAR01 | G140: 21871.18
A141: 10042 | B141: 2324/01 | C141: I01 | D141: Funds Delegated by LEA | E141: R/SCH 10042 Year End Adj 2022/23 | F141: TIBAR01 | G141: 41160.65
A142: 10042 | B142: 2324/06 | C142: I01 | D142: Funds Delegated by LEA | E142: Q1 M1-M3 Actuals | F142: TIBAR01 | G142: -384332.68
A143: 10042 | B143: 2324/06 | C143: I03 | D143: SEN Funding | E143: Q1 M1-M3 Actuals | F143: TIBAR01 | G143: -23608.61
A144: 10042 | B144: 2324/01 | C144: I05 | D144: Pupil Premium | E144: R/SCH 10042 Year End Adj2022/23 | F144: TIBAR01 | G144: 1245
A145: 10042 | B145: 2324/06 | C145: I05 | D145: Pupil Premium | E145: Q1 M1-M3 Actuals | F145: TIBAR01 | G145: -195
A146: 10042 | B146: 2324/01 | C146: I06 | D146: Other Government Grants | E146: R/SCH 10042 Year End Adj 2022/23 | F146: TIBAR01 | G146: 2538
A147: 10042 | B147: 2324/06 | C147: I06 | D147: Other Government Grants | E147: Q1 M1-M3 Actuals | F147: TIBAR01 | G147: -2179.28
A148: 10042 | B148: 2324/06 | C148: I07 | D148: Other Grants & Payments | E148: Q1 M1-M3 Actuals | F148: TIBAR01 | G148: -1066.22
A149: 10042 | B149: 2324/06 | C149: I08a | D149: Income from Lettings | E149: Q1 M1-M3 Actuals | F149: TIBAR01 | G149: -912.5
A150: 10042 | B150: 2324/06 | C150: I08b | D150: Other income from facilities and services | E150: Q1 M1-M3 Actuals | F150: TIBAR01 | G150: -3094.5
A151: 10042 | B151: 2324/06 | C151: I09 | D151: Income from Catering | E151: Q1 M1-M3 Actuals | F151: TIBAR01 | G151: -8472.97
A152: 10042 | B152: 2324/01 | C152: I12 | D152: Income from Contributions | E152: R/SCH 10042 Year End Adj 2022/23 | F152: TIBAR01 | G152: -12870
A153: 10042 | B153: 2324/06 | C153: I12 | D153: Income from Contributions | E153: Q1 M1-M3 Actuals | F153: TIBAR01 | G153: -21267.5
A154: 10042 | B154: 2324/06 | C154: I13 | D154: Donations and / or Voluntary Funds | E154: Q1 M1-M3 Actuals | F154: TIBAR01 | G154: -2093.41
A155: 10042 | B155: 2324/06 | C155: I18d | D155: Income from other additional grants | E155: Q1 M1-M3 Actuals | F155: TIBAR01 | G155: -12298.25
A156: 10043 | B156: 2324/06 | C156: CE04 | D156: Information Communications Technology | E156: Q1 M1-M3 Actuals | F156: TIBAR01 | G156: 26427.41
A157: 10043 | B157: 2324/06 | C157: CI03 | D157: Voluntary or Private Capital Income | E157: Q1 M1-M3 Actuals | F157: TIBAR01 | G157: -20657.87
A158: 10043 | B158: 2324/01 | C158: E01 | D158: Teaching Staff | E158: Payroll for Apr 2023 | F158: TOPPG01 | G158: 25524.4
A159: 10043 | B159: 2324/01 | C159: E01 | D159: Teaching Staff | E159: Payroll for Apr 2023 | F159: TOPPG01 | G159: 2868.28
A160: 10043 | B160: 2324/01 | C160: E01 | D160: Teaching Staff | E160: Payroll for Apr 2023 | F160: TOPPG01 | G160: 6191.04
A161: 10043 | B161: 2324/01 | C161: E01 | D161: Teaching Staff | E161: R/SCH 10043 Year End Adj 2022/23 | F161: TIBAR01 | G161: -23054
A162: 10043 | B162: 2324/02 | C162: E01 | D162: Teaching Staff | E162: Payroll for May 2023 | F162: BROWNJ01 | G162: 24746.4
A163: 10043 | B163: 2324/02 | C163: E01 | D163: Teaching Staff | E163: Payroll for May 2023 | F163: BROWNJ01 | G163: 2641.86
A164: 10043 | B164: 2324/02 | C164: E01 | D164: Teaching Staff | E164: Payroll for May 2023 | F164: BROWNJ01 | G164: 6010.25
A165: 10043 | B165: 2324/03 | C165: E01 | D165: Teaching Staff | E165: Payroll for Jun 2023 | F165: TOPPG01 | G165: 24749.18
A166: 10043 | B166: 2324/03 | C166: E01 | D166: Teaching Staff | E166: Payroll for Jun 2023 | F166: TOPPG01 | G166: 2733.55
A167: 10043 | B167: 2324/03 | C167: E01 | D167: Teaching Staff | E167: Payroll for Jun 2023 | F167: TOPPG01 | G167: 5898.18
A168: 10043 | B168: 2324/04 | C168: E01 | D168: Teaching Staff | E168: Payroll for Jul 2023 | F168: TOPPG01 | G168: 25356.71
A169: 10043 | B169: 2324/04 | C169: E01 | D169: Teaching Staff | E169: Payroll for Jul 2023 | F169: TOPPG01 | G169: 2819.3
A170: 10043 | B170: 2324/04 | C170: E01 | D170: Teaching Staff | E170: Payroll for Jul 2023 | F170: TOPPG01 | G170: 6004.46
A171: 10043 | B171: 2324/05 | C171: E01 | D171: Teaching Staff | E171: Payroll for Aug 2023 | F171: MCINTOSHM01 | G171: 25145.6
A172: 10043 | B172: 2324/05 | C172: E01 | D172: Teaching Staff | E172: Payroll for Aug 2023 | F172: MCINTOSHM01 | G172: 2790.16
A173: 10043 | B173: 2324/05 | C173: E01 | D173: Teaching Staff | E173: Payroll for Aug 2023 | F173: MCINTOSHM01 | G173: 5954.48
A174: 10043 | B174: 2324/01 | C174: E03 | D174: Education Support Staff | E174: Payroll for Apr 2023 | F174: TOPPG01 | G174: 9419.8
A175: 10043 | B175: 2324/01 | C175: E03 | D175: Education Support Staff | E175: Payroll for Apr 2023 | F175: TOPPG01 | G175: 672.32
A176: 10043 | B176: 2324/01 | C176: E03 | D176: Education Support Staff | E176: Payroll for Apr 2023 | F176: TOPPG01 | G176: 2675.22
A177: 10043 | B177: 2324/02 | C177: E03 | D177: Education Support Staff | E177: Payroll for May 2023 | F177: BROWNJ01 | G177: 10312.95
A178: 10043 | B178: 2324/02 | C178: E03 | D178: Education Support Staff | E178: Payroll for May 2023 | F178: BROWNJ01 | G178: 673.35
A179: 10043 | B179: 2324/02 | C179: E03 | D179: Education Support Staff | E179: Payroll for May 2023 | F179: BROWNJ01 | G179: 2928.88
A180: 10043 | B180: 2324/03 | C180: E03 | D180: Education Support Staff | E180: Payroll for Jun 2023 | F180: TOPPG01 | G180: 9769.8
A181: 10043 | B181: 2324/03 | C181: E03 | D181: Education Support Staff | E181: Payroll for Jun 2023 | F181: TOPPG01 | G181: 642.74
A182: 10043 | B182: 2324/03 | C182: E03 | D182: Education Support Staff | E182: Payroll for Jun 2023 | F182: TOPPG01 | G182: 2774.61
A183: 10043 | B183: 2324/04 | C183: E03 | D183: Education Support Staff | E183: Payroll for Jul 2023 | F183: TOPPG01 | G183: 10046.11
A184: 10043 | B184: 2324/04 | C184: E03 | D184: Education Support Staff | E184: Payroll for Jul 2023 | F184: TOPPG01 | G184: 654.13
A185: 10043 | B185: 2324/04 | C185: E03 | D185: Education Support Staff | E185: Payroll for Jul 2023 | F185: TOPPG01 | G185: 2853.1
A186: 10043 | B186: 2324/05 | C186: E03 | D186: Education Support Staff | E186: Payroll for Aug 2023 | F186: MCINTOSHM01 | G186: 10016
A187: 10043 | B187: 2324/05 | C187: E03 | D187: Education Support Staff | E187: Payroll for Aug 2023 | F187: MCINTOSHM01 | G187: 649.98
A188: 10043 | B188: 2324/05 | C188: E03 | D188: Education Support Staff | E188: Payroll for Aug 2023 | F188: MCINTOSHM01 | G188: 2844.54
A189: 10043 | B189: 2324/01 | C189: E04 | D189: Premises Staff | E189: Payroll for Apr 2023 | F189: TOPPG01 | G189: 2428.61
A190: 10043 | B190: 2324/01 | C190: E04 | D190: Premises Staff | E190: Payroll for Apr 2023 | F190: TOPPG01 | G190: 203.16
A191: 10043 | B191: 2324/01 | C191: E04 | D191: Premises Staff | E191: Payroll for Apr 2023 | F191: TOPPG01 | G191: 689.73
A192: 10043 | B192: 2324/02 | C192: E04 | D192: Premises Staff | E192: Payroll for May 2023 | F192: BROWNJ01 | G192: 2428.61
A193: 10043 | B193: 2324/02 | C193: E04 | D193: Premises Staff | E193: Payroll for May 2023 | F193: BROWNJ01 | G193: 210.1
A194: 10043 | B194: 2324/02 | C194: E04 | D194: Premises Staff | E194: Payroll for May 2023 | F194: BROWNJ01 | G194: 689.73
A195: 10043 | B195: 2324/03 | C195: E04 | D195: Premises Staff | E195: Payroll for Jun 2023 | F195: TOPPG01 | G195: 2428.61
A196: 10043 | B196: 2324/03 | C196: E04 | D196: Premises Staff | E196: Payroll for Jun 2023 | F196: TOPPG01 | G196: 206.79
A197: 10043 | B197: 2324/03 | C197: E04 | D197: Premises Staff | E197: Payroll for Jun 2023 | F197: TOPPG01 | G197: 689.73
A198: 10043 | B198: 2324/04 | C198: E04 | D198: Premises Staff | E198: Payroll for Jul 2023 | F198: TOPPG01 | G198: 2428.61
A199: 10043 | B199: 2324/04 | C199: E04 | D199: Premises Staff | E199: Payroll for Jul 2023 | F199: TOPPG01 | G199: 207.16
A200: 10043 | B200: 2324/04 | C200: E04 | D200: Premises Staff | E200: Payroll for Jul 2023 | F200: TOPPG01 | G200: 689.73
... 6448 more rows

Sheet Rep Prim (hidden)
A2: Click onto your schools name for your schools Budget Monitoring Report
A5: Primary Schools
A6: School Name | B6: DCSF No | C6: Cost Centre
A7: Akiva | B7: 3520 | C7: 11094
A8: All Saints N20 | B8: 3317 | C8: 10042
A9: All Saints NW2 | B9: 3300 | C9: 10040
A10: Annunciation Inf | B10: 3500 | C10: 10043
A11: Annunciation Jun | B11: 3514 | C11: 10117
A12: Barnfield | B12: 2002 | C12: 10044
A13: Beis Yaakov | B13: 2079 | C13: 10128
A14: Bell Lane | B14: 2003 | C14: 10045
A15: Blessed Dominic | B15: 3511 | C15: 10115
A16: Brookland Inf | B16: 2008 | C16: 10047
A17: Brookland Jun | B17: 2007 | C17: 10046
A18: Brunswick Park | B18: 2009 | C18: 10048
A19: Chalgrove | B19: 2067 | C19: 10118
A20: Childs Hill | B20: 2010 | C20: 10049
A21: Christchurch JMI | B21: 3302 | C21: 10050
A22: Church Hill | B22: 2011 | C22: 10051
A23: Claremont Primary | B23: 3522 | C23: 10953
A24: Colindale | B24: 2014 | C24: 10054
A25: Coppetts Wood | B25: 2015 | C25: 10055
A26: Courtland | B26: 2016 | C26: 10056
A27: Cromer Road | B27: 2017 | C27: 10057
A28: Danegrove | B28: 2073 | C28: 10083
A29: Deansbrook Inf | B29: 2019 | C29: 10059
A30: Dollis Primary | B30: 2021 | C30: 10061
A31: Edgware Primary | B31: 2023 | C31: 10063
A32: Beit Shvidler School | B32: 3524 | C32: 11278
A33: Fairway | B33: 2024 | C33: 10064
A34: Foulds | B34: 2025 | C34: 10065
A35: Frith Manor | B35: 2026 | C35: 10066
A36: Garden Suburb Inf | B36: 2028 | C36: 10068
A37: Garden Suburb Jnr | B37: 2027 | C37: 10067
A38: Goldbeaters | B38: 2029 | C38: 10069
A39: Hasmonean Primary | B39: 3516 | C39: 10121
A40: Hollickwood | B40: 2031 | C40: 10071
A41: Holly Park | B41: 2032 | C41: 10072
A42: Holy Trinity | B42: 3304 | C42: 10073
A43: Livingstone | B43: 2036 | C43: 10074
A44: Manorside | B44: 2037 | C44: 10075
A45: Martin Primary School | B45: 3523 | C45: 11093
A46: Mathilda Marks Kennedy | B46: 5948 | C46: 10125
A47: Menorah Foundation | B47: 5949 | C47: 10126
A48: Menorah Primary | B48: 3513 | C48: 10114
A49: Monken Hadley CE | B49: 3305 | C49: 10078
A50: Monkfrith | B50: 2042 | C50: 10079
A51: Moss Hall Inf | B51: 2044 | C51: 10081
A52: Moss Hall Jun | B52: 2043 | C52: 10080
A53: Noam Primary | B53: 2053 | C53: 10113
A54: Northside | B54: 2045 | C54: 10082
A55: Orion | B55: 2077 | C55: 10127
A56: Osidge JMI | B56: 5201 | C56: 10084
A57: Our Lady of Lourdes | B57: 3501 | C57: 10085
A58: Pardes House | B58: 2078 | C58: 10129
A59: Queenswell Inf | B59: 2071 | C59: 10119
A60: Queenswell Jun | B60: 2072 | C60: 10086
A61: Rosh Pinah | B61: 3512 | C61: 10112
A62: Sacred Heart | B62: 3510 | C62: 10110
A63: Sacks Morasha | B63: 2041 | C63: 11381
A64: St Agnes RC | B64: 3502 | C64: 10087
A65: St Andrews CE | B65: 3315 | C65: 10099
A66: St Catherines RC | B66: 3504 | C66: 10088
A67: St Johns CE N11 | B67: 3307 | C67: 10089
A68: St Johns CE N20 | B68: 3309 | C68: 10116
A69: St Josephs RC Primary | B69: 3509 | C69: 10107
A70: St Marys CE EB | B70: 3312 | C70: 10093
A71: St Marys CE N3 | B71: 3311 | C71: 10092
A72: St Pauls CE N11 | B72: 3313 | C72: 10094
A73: St Pauls CE NW7 | B73: 3314 | C73: 10095
A74: St Theresas RC | B74: 3507 | C74: 10108
A75: St Vincents RC | B75: 3506 | C75: 10096
A76: Summerside | B76: 2052 | C76: 10098
A77: Sunnyfields | B77: 2070 | C77: 10097
A78: Trent | B78: 3316 | C78: 10100
A79: Tudor | B79: 2055 | C79: 10101
A80: Underhill School | B80: 2057 | C80: 10103
A81: Wessex Gardens | B81: 2076 | C81: 10124
A82: Whitings Hill | B82: 2060 | C82: 10105
A83: Woodcroft Primary | B83: 3518 | C83: 10123
A84: Woodridge | B84: 2054 | C84: 10109

Sheet Rep Sec (hidden)
A2: Click onto your schools name for your schools Budget Monitoring Report
A5: Nursery Schools
A6: School Name | B6: DfE No | C6: Cost Centre
A7: BEYA | C7: 10135
A8: Brookhill Nursery | B8: 1000 | C8: 10130
A9: Hampden Way Nursery | B9: 1001 | C9: 10131
A10: Moss Hall Nursery | B10: 1002 | C10: 10132
A11: St Margaret's Nursery | B11: 1003 | C11: 10133
A17: Click onto your schools name for your schools Budget Monitoring Report
A20: Secondary Schools
A21: School Name | B21: DCSF No | C21: Cost Centre
A22: Bishop Douglass | B22: 5408 | C22: 10137
A23: Finchley Catholic High | B23: 5405 | C23: 10145
A24: Friern Barnet | B24: 4003 | C24: 10139
A25: JCoSS | B25: 5427 | C25: 11174
A26: Menorah High School | B26: 4004 | C26: 11513
A27: St Mary's & St Johns Primary | B27: 3521 | C27: 10698
A28: St James' Catholic High | B28: 5407 | C28: 10142
A29: St Mary's C E High | B29: 5403 | C29: 10143
A30: St Michaels Cath Gram | B30: 5404 | C30: 10148
A33: Click onto your schools name for your schools Budget Monitoring Report
A37: Special Schools
A38: School Name | B38: DCSF No | C38: Cost Centre
A39: Mapledown | B39: 7010 | C39: 10159
A40: Northway | B40: 7005 | C40: 10157
A41: Oak Lodge | B41: 7000 | C41: 10156
A42: Oakleigh | B42: 7009 | C42: 10158
A45: Click onto your schools name for your schools Budget Monitoring Report
A48: PUPIL REFERRAL UNITS
A49: School Name | B49: DCSF No | C49: Cost Centre
A50: Northgate | B50: 1102 | C50: 10185
A51: Pavilion | B51: 1100 | C51: 10188

Sheet TEMPLATE (hidden)
C1: REPORT TEMPLATE | E1: London Borough of Barnet | P1: Description
E2: Statement of Accounts
A4: Description | B4: Budget | C4: Bal. b/fwd | D4: This Period | E4: Bal. c/fwd | F4: % spent/received | G4: Bud. Avail.
A5: * I01 - Funds Delegated by LEA | B5: -418210 | C5: -418210 | D5: 0 | E5: -418210 | F5: 100 | G5: 0 | Z5: Profit Centre | AA5: Year | AB5: Period | AC5: Account | AD5: Account Text | AE5: Text | AF5: Ref Doc No | AG5: Username | AH5: Amount
A6: * I02 - Funding for Sixth Form Students | B6: 0 | C6: 0 | D6: 0 | E6: 0 | F6: 0 | G6: 0 | Z6: 10188 | AA6: 2223/12 | AB6: CE02 | AC6: New Construction, Conversion & Renovation | AD6: M1-12 School Transactions | AE6: PHELAND01 | AF6: 15007.5 | AG6: GIBSONN01 | AH6: -2500
A7: * I03 - SEN Funding | B7: -16960 | C7: -12071 | D7: 0 | E7: -12071 | F7: 71.1733 | G7: -4889 | Z7: 10188 | AA7: 2223/12 | AB7: CI01 | AC7: Capital Income (SF Category 6) | AD7: M1-12 School Transactions | AE7: PHELAND01 | AF7: -24003.55 | AG7: SHAHP06 | AH7: 97204.5
A8: * I04 - Funding for Ethnic Minority Pupils | B8: -1501 | C8: -1501 | D8: 0 | E8: -1501 | F8: 100 | G8: 0 | Z8: 10188 | AA8: 2223/12 | AB8: E01 | AC8: Teaching Staff | AD8: M1-12 School Transactions | AE8: PHELAND01 | AF8: 1701098.28 | AG8: SHAHP06 | AH8: 94515.18
A9: * I05 - Pupil Premium Grant | B9: 0 | C9: 0 | D9: 0 | E9: 0 | F9: 0 | G9: 0 | Z9: 10188 | AA9: 2223/12 | AB9: E02 | AC9: Supply Teaching Staff (employed by the school) | AD9: M1-12 School Transactions | AE9: PHELAND01 | AF9: 208936.38 | AG9: SHAHP06 | AH9: 10612.56
A10: * I06 - Other Government Grants | B10: 0 | C10: 0 | D10: 0 | E10: 0 | F10: 0 | G10: 0 | Z10: 10188 | AA10: 2223/12 | AB10: E03 | AC10: Education Support Staff | AD10: M1-12 School Transactions | AE10: PHELAND01 | AF10: 443560.45 | AG10: SHAHP06 | AH10: 10417.67
A11: * I07 - Other Grants & Payments | B11: -18055 | C11: -8450 | D11: 0 | E11: -8450 | F11: 46.8014 | G11: -9605 | Z11: 10188 | AA11: 2223/12 | AB11: E04 | AC11: Premises Staff | AD11: M1-12 School Transactions | AE11: PHELAND01 | AF11: 35989.18 | AG11: SHAHP06 | AH11: 15136.11
A12: * I08 - Income from Facilities & Services | B12: -27000 | C12: -25736 | D12: -287 | E12: -26023 | F12: 96.3815 | G12: -977 | Z12: 10188 | AA12: 2223/12 | AB12: E05 | AC12: Administrative & Clerical Staff | AD12: M1-12 School Transactions | AE12: PHELAND01 | AF12: 78234.56 | AG12: SHAHP06 | AH12: 14671.75
A13: * I09 - Income from Catering | B13: 0 | C13: 0 | D13: 0 | E13: 0 | F13: 0 | G13: 0 | Z13: 10188 | AA13: 2223/12 | AB13: E08 | AC13: Indirect Employee Expenses | AD13: M1-12 School Transactions | AE13: PHELAND01 | AF13: 20725.11 | AG13: GIBSONN01 | AH13: -9500
A14: * I10 - Supply Teacher Insurance Claims | B14: 0 | C14: 0 | D14: 0 | E14: 0 | F14: 0 | G14: 0 | Z14: 10188 | AA14: 2223/12 | AB14: E09 | AC14: Staff Development & Training | AD14: M1-12 School Transactions | AE14: PHELAND01 | AF14: 10366.56 | AG14: SHAHP06 | AH14: 12540.64
A15: * I11 - Other Insurance Claims | B15: -528 | C15: -694.86 | D15: 0 | E15: -694.86 | F15: 131.6023 | G15: 166.86 | Z15: 10188 | AA15: 2223/12 | AB15: E10 | AC15: Supply Teacher Insurance | AD15: SCH 10188 Year End Adj 2022/23 | AE15: TIBAR01 | AF15: 1167 | AG15: SHAHP06 | AH15: 1264.17
A16: * I12 - Income from Contributions | B16: 0 | C16: 0 | D16: 0 | E16: 0 | F16: 0 | G16: 0 | Z16: 10188 | AA16: 2223/12 | AB16: E10 | AC16: Supply Teacher Insurance | AD16: M1-12 School Transactions | AE16: PHELAND01 | AF16: 2213.77 | AG16: SHAHP06 | AH16: 615.63
A17: * I13 - Donations/Private Funds | B17: 0 | C17: 0 | D17: 0 | E17: 0 | F17: 0 | G17: 0 | Z17: 10188 | AA17: 2223/12 | AB17: E11 | AC17: Staff Related Insurance | AD17: SCH 10188 Year End Adj 2022/23 | AE17: TIBAR01 | AF17: 1638 | AG17: GIBSONN01 | AH17: -1200
A18: * I14 - SSG Pupil Focussed Only | B18: 0 | C18: 0 | D18: 0 | E18: 0 | F18: 0 | G18: 0 | Z18: 10188 | AA18: 2223/12 | AB18: E12 | AC18: Building Maintenance & Improvement | AD18: M1-12 School Transactions | AE18: PHELAND01 | AF18: 11680.59 | AG18: SHAHP06 | AH18: 25394.86
A19: * I15 - Extended Sch Pupil Focussed Grants | B19: 0 | C19: 0 | D19: 0 | E19: 0 | F19: 0 | G19: 0 | Z19: 10188 | AA19: 2223/12 | AB19: E13 | AC19: Grounds Maintenance & Improvement | AD19: M1-12 School Transactions | AE19: PHELAND01 | AF19: 6115.05 | AG19: SHAHP06 | AH19: 21126.73
A20: * I16 - Community Focussed School Grant | B20: -222001 | C20: -29741.82 | D20: 0 | E20: -29741.82 | F20: 13.3972 | G20: -192259.18 | Z20: 10188 | AA20: 2223/12 | AB20: E14 | AC20: Caretaking & Cleaning | AD20: M1-12 School Transactions | AE20: PHELAND01 | AF20: 33229.58 | AG20: SHAHP06 | AH20: 1534.82
A21: * I17 - Community Focussed School Income | B21: -3119 | C21: -11802.74 | D21: 0 | E21: -11802.74 | F21: 378.4142 | G21: 8683.74 | Z21: 10188 | AA21: 2223/12 | AB21: E15 | AC21: Water & Sewerage | AD21: M1-12 School Transactions | AE21: PHELAND01 | AF21: 4584.74 | AG21: SHAHP06 | AH21: 2037.72
A22: * I18 - Additional Grants for Schools | B22: 0 | C22: 0 | D22: 0 | E22: 0 | F22: 0 | G22: 0 | Z22: 10188 | AA22: 2223/12 | AB22: E16 | AC22: Energy | AD22: SCH 10188 Year End Adj 2022/23 | AE22: TIBAR01 | AF22: 30000 | AG22: SHAHP06 | AH22: 3643.31
A23: ** CFR REVENUE INCOME: TOTAL | B23: -707374 | C23: -508207.42 | D23: -287 | E23: -508494.42 | F23: 71.8848 | G23: -198879.58 | Z23: 10188 | AA23: 2223/12 | AB23: E16 | AC23: Energy | AD23: M1-12 School Transactions | AE23: PHELAND01 | AF23: 18387.08 | AG23: SHAHP06 | AH23: 3409.02
A24: * E01 - Teaching Staff | B24: 181322 | C24: 153350.62 | D24: 14558.66 | E24: 167909.28 | F24: 92.6028 | G24: 13412.72 | Z24: 10188 | AA24: 2223/12 | AB24: E18 | AC24: Other Occupation Costs | AD24: M1-12 School Transactions | AE24: PHELAND01 | AF24: 10564.43 | AG24: SHAHP06 | AH24: 2408.07
A25: * E02 - Supply Teaching Staff | B25: 0 | C25: 53.12 | D25: 391.36 | E25: 444.48 | F25: 0 | G25: -444.48 | Z25: 10188 | AA25: 2223/12 | AB25: E19 | AC25: Learning Resources (not ICT) | AD25: M1-12 School Transactions | AE25: PHELAND01 | AF25: 41558.3 | AG25: SHAHP06 | AH25: 1682.75
A26: * E03 - Education Support Staff | B26: 167653 | C26: 132619.39 | D26: 15001.59 | E26: 147620.98 | F26: 88.0515 | G26: 20032.02 | Z26: 10188 | AA26: 2223/12 | AB26: E20 | AC26: ICT Learning Resources | AD26: M1-12 School Transactions | AE26: PHELAND01 | AF26: 22175.67 | AG26: SHAHP06 | AH26: 138.93
A27: * E04 - Premises Staff | B27: 17470 | C27: 15587.25 | D27: 2138.6 | E27: 17725.85 | F27: 101.4645 | G27: -255.85 | Z27: 10188 | AA27: 2223/12 | AB27: E21 | AC27: Exam Fees | AD27: M1-12 School Transactions | AE27: PHELAND01 | AF27: 15738.47 | AG27: SHAHP06 | AH27: 239.02
A28: * E05 - Administrative & Clerical Staff | B28: 19236 | C28: 15681.87 | D28: 1562.4 | E28: 17244.27 | F28: 89.6458 | G28: 1991.73 | Z28: 10188 | AA28: 2223/12 | AB28: E22 | AC28: Administrative Supplies | AD28: M1-12 School Transactions | AE28: PHELAND01 | AF28: 34468.76 | AG28: SHAHP06 | AH28: 621.28
A29: * E06 - Catering Staff | B29: 0 | C29: 0 | D29: 0 | E29: 0 | F29: 0 | G29: 0 | Z29: 10188 | AA29: 2223/12 | AB29: E23 | AC29: Other Insurance Premiums | AD29: SCH 10188 Year End Adj 2022/23 | AE29: TIBAR01 | AF29: 3900 | AG29: SHAHP06 | AH29: 434.15
A30: * E07 - Other Staff | B30: 14764 | C30: 16589.75 | D30: 1056.85 | E30: 17646.6 | F30: 119.5245 | G30: -2882.6 | Z30: 10188 | AA30: 2223/12 | AB30: E24 | AC30: Special Facilities | AD30: M1-12 School Transactions | AE30: PHELAND01 | AF30: -5781.35 | AG30: SHAHP06 | AH30: 1995.76
A31: * E31 - Community Focussed School Staff | B31: 188339 | C31: 155849.45 | D31: 14452.52 | E31: 170301.97 | F31: 90.4231 | G31: 18037.03 | Z31: 10188 | AA31: 2223/12 | AB31: E25 | AC31: Catering Supplies | AD31: M1-12 School Transactions | AE31: PHELAND01 | AF31: 22933.94 | AG31: SHAHP06 | AH31: 1995.76
A32: * E08 - Indirect Employee Expenses | B32: 1945 | C32: 1635.71 | D32: 195.43 | E32: 1831.14 | F32: 94.146 | G32: 113.86 | Z32: 10188 | AA32: 2223/12 | AB32: E26 | AC32: Agency Supply Teachers | AD32: SCH 10188 Year End Adj 2022/23 | AE32: TIBAR01 | AF32: 5120 | AG32: SHAHP06 | AH32: 182.13
A33: * E09 - Staff Training & Development | B33: 4310 | C33: 1608.58 | D33: 2617.5 | E33: 4226.08 | F33: 98.0529 | G33: 83.92 | Z33: 10188 | AA33: 2223/12 | AB33: E26 | AC33: Agency Supply Teachers | AD33: M1-12 School Transactions | AE33: PHELAND01 | AF33: 284820.77 | AG33: SHAHP06 | AH33: 182.13
A34: * E10 - Supply Teacher Insurance | B34: 4311 | C34: 4310.9 | D34: 0 | E34: 4310.9 | F34: 99.9977 | G34: 0.1 | Z34: 10188 | AA34: 2223/12 | AB34: E27 | AC34: Bought in Prof. Services - Curriculum | AD34: M1-12 School Transactions | AE34: PHELAND01 | AF34: 103859.27 | AG34: GIBSONN01 | AH34: -300
A35: * E11 - Staff Related Insurance | B35: 410 | C35: 400 | D35: 0 | E35: 400 | F35: 97.561 | G35: 10 | Z35: 10188 | AA35: 2223/12 | AB35: E28a | AC35: Bought in Prof. Services - Other (except PFI) | AD35: M1-12 School Transactions | AE35: PHELAND01 | AF35: 49235.01 | AG35: GIBSONN01 | AH35: -350
A36: ** CFR - EMPLOYEE EXPENDITURE | B36: 599760 | C36: 497686.64 | D36: 51974.91 | E36: 549661.55 | F36: 91.6469 | G36: 50098.45 | Z36: 10188 | AA36: 2223/12 | AB36: I01 | AC36: Funds Delegated by LEA | AD36: M1-12 School Transactions | AE36: PHELAND01 | AF36: -1675589.94 | AG36: SHAHP06 | AH36: 568.82
Z37: 10188 | AA37: 2223/12 | AB37: I03 | AC37: SEN Funding | AD37: M1-12 School Transactions | AE37: PHELAND01 | AF37: -1140701.25 | AG37: SHAHP06 | AH37: 51.3
Z38: 10188 | AA38: 2223/12 | AB38: I05 | AC38: Pupil Premium | AD38: M1-12 School Transactions | AE38: PHELAND01 | AF38: -32320 | AG38: GIBSONN01 | AH38: -1229
Z39: 10188 | AA39: 2223/12 | AB39: I07 | AC39: Other Grants & Payments | AD39: SCH 10188 Year End Adj 2022/23 | AE39: TIBAR01 | AF39: -54000 | AG39: SHAHP06 | AH39: 1229
Z40: 10188 | AA40: 2223/12 | AB40: I07 | AC40: Other Grants & Payments | AD40: M1-12 School Transactions | AE40: PHELAND01 | AF40: -20890.26 | AG40: SHAHP06 | AH40: -1229
Z41: 10188 | AA41: 2223/12 | AB41: I08b | AC41: Other income from facilities and services | AD41: SCH 10188 Year End Adj 2022/23 | AE41: TIBAR01 | AF41: -66715 | AG41: GIBSONN01 | AH41: -310
Z42: 10188 | AA42: 2223/12 | AB42: I08b | AC42: Other income from facilities and services | AD42: M1-12 School Transactions | AE42: PHELAND01 | AF42: -125547.71 | AG42: GIBSONN01 | AH42: -260
Z43: 10188 | AA43: 2223/12 | AB43: I10 | AC43: Receipts from Supply Teacher Insurance Claims | AD43: M1-12 School Transactions | AE43: PHELAND01 | AF43: 2176 | AG43: GIBSONN01 | AH43: -1033
Z44: 10188 | AA44: 2223/12 | AB44: I11 | AC44: Receipts from Other Insurance Claims | AD44: M1-12 School Transactions | AE44: PHELAND01 | AF44: -2176 | AG44: GIBSONN01 | AH44: -300
Z45: 10188 | AA45: 2223/12 | AB45: I13 | AC45: Donations and / or Voluntary Funds | AD45: M1-12 School Transactions | AE45: PHELAND01 | AF45: -3950 | AG45: GIBSONN01 | AH45: -1800
Z46: 10188 | AA46: 2223/12 | AB46: I18d | AC46: Income from other additional grants | AD46: M1-12 School Transactions | AE46: PHELAND01 | AF46: -34923.25 | AG46: GIBSONN01 | AH46: -100
Z47: 10188 Total | AF47: =SUBTOTAL(9,AF6:AF46) -> 32886.14 | AG47: GIBSONN01 | AH47: -9800
Z48: Grand Total | AF48: =SUBTOTAL(9,AF6:AF46) -> 32886.14 | AG48: GIBSONN01 | AH48: -383
Z49: 10159 | AA49: 2223/12 | AB49: I10 | AC49: Receipts from Supply Teacher Insurance Claims | AD49: M1-12 School Transactions | AE49: PHELAND01 | AF49: -994.4 | AG49: GIBSONN01 | AH49: 2150
Z50: 10159 | AA50: 2223/12 | AB50: I11 | AC50: Receipts from Other Insurance Claims | AD50: M1-12 School Transactions | AE50: PHELAND01 | AF50: -21450 | AG50: GIBSONN01 | AH50: 1500
Z51: 10159 | AA51: 2223/12 | AB51: I12 | AC51: Income from Contributions | AD51: M1-12 School Transactions | AE51: PHELAND01 | AF51: -441.5 | AG51: GIBSONN01 | AH51: 17980
Z52: 10159 | AA52: 2223/12 | AB52: I13 | AC52: Donations and / or Voluntary Funds | AD52: M1-12 School Transactions | AE52: PHELAND01 | AF52: -5083.43 | AG52: GIBSONN01 | AH52: -626
Z53: 10159 | AA53: 2223/12 | AB53: I18b | AC53: Income from any grants provided in relation to coronavirus (COVID-19) | AD53: M1-12 School Transactions | AE53: PHELAND01 | AF53: -1063.84 | AG53: GIBSONN01 | AH53: -927
Z54: 10159 | AA54: 2223/12 | AB54: I18c | AC54: Income from the £1bn coronavirus (COVID-19) catch-up package announced on 20 July 2020 | AD54: M1-12 School Transactions | AE54: PHELAND01 | AF54: -43138.82 | AG54: GIBSONN01 | AH54: -5300
Z55: 10159 | AA55: 2223/12 | AB55: I18d | AC55: Income from other additional grants | AD55: M1-12 School Transactions | AE55: PHELAND01 | AF55: -2800 | AG55: GIBSONN01 | AH55: -4800
Z56: 10159 Total | AF56: =SUBTOTAL(9,AF6:AF55) -> -42085.85 | AG56: GIBSONN01 | AH56: -3550
Z57: Grand Total | AF57: =SUBTOTAL(9,AF6:AF55) -> -42085.85 | AG57: GIBSONN01 | AH57: 336
Z58: 11174 Total | AF58: =SUBTOTAL(9,AF6:AF57) -> -42085.85 | AG58: GIBSONN01 | AH58: -1439
Z59: Grand Total | AF59: =SUBTOTAL(9,AF6:AF57) -> -42085.85 | AG59: GIBSONN01 | AH59: -906562
Z60: Grand Total | AF60: =SUBTOTAL(9,AF6:AF58) -> -42085.85 | AG60: GIBSONN01 | AH60: -726550
Z61: 10045 | AA61: 2223/12 | AB61: I18d | AC61: Income from other additional grants | AD61: M1-12 School Transactions | AE61: TIBAR01 | AF61: -48976 | AG61: GIBSONN01 | AH61: -5500
Z62: 10045 Total | AF62: =SUBTOTAL(9,AF6:AF61) -> -91061.85 | AG62: GIBSONN01 | AH62: 13850
Z63: Grand Total | AF63: =SUBTOTAL(9,AF6:AF61) -> -91061.85 | AH63: =SUBTOTAL(9,AH6:AH62) -> -1323878.23
Z64: 10148 | AA64: 192012 | AB64: E28 | AC64: =VLOOKUP(AB64,codes!$B$5:$C$85,2,FALSE) -> Bought in Prof. Services - Other | AD64: SCH 10148 Year End Adj 2019/20 | AE64: EVANSG01 | AF64: 5236 | AH64: =SUBTOTAL(9,AH6:AH62) -> -1323878.23
Z65: 10148 | AA65: 192012 | AB65: E28 | AC65: =VLOOKUP(AB65,codes!$B$5:$C$85,2,FALSE) -> Bought in Prof. Services - Other | AD65: P12 Posting Summary | AE65: EVANSG01 | AF65: 1242.02 | AG65: TOPPG01 | AH65: -1588.89
Z66: 10148 | AA66: 192012 | AB66: E29 | AC66: =VLOOKUP(AB66,codes!$B$5:$C$85,2,FALSE) -> Loan Interest | AD66: P12 Posting Summary | AE66: EVANSG01 | AF66: 30 | AG66: TOPPG01 | AH66: 776.91
Z67: 10148 | AA67: 192012 | AB67: I01 | AC67: =VLOOKUP(AB67,codes!$B$5:$C$85,2,FALSE) -> Funds Delegated by LEA | AD67: M1 - M11 Actuals | AE67: EVANSG01 | AF67: -2509411.33 | AG67: TOPPG01 | AH67: 512.5
Z68: 10148 | AA68: 192012 | AB68: I01 | AC68: =VLOOKUP(AB68,codes!$B$5:$C$85,2,FALSE) -> Funds Delegated by LEA | AD68: P12 Posting Summary | AE68: EVANSG01 | AF68: -147612 | AG68: TOPPG01 | AH68: 1992.56
Z69: 10148 | AA69: 192012 | AB69: I01 | AC69: =VLOOKUP(AB69,codes!$B$5:$C$85,2,FALSE) -> Funds Delegated by LEA | AD69: St Michaels advance corr | AE69: EVANSG01 | AF69: 500000 | AG69: TOPPG01 | AH69: 2855.01
Z70: 10148 | AA70: 192012 | AB70: I02 | AC70: =VLOOKUP(AB70,codes!$B$5:$C$85,2,FALSE) -> Funding for 6th Form Students | AD70: M1 - M11 Actuals | AE70: EVANSG01 | AF70: -1012084.23 | AG70: TOPPG01 | AH70: 3278.68
Z71: 10148 | AA71: 192012 | AB71: I02 | AC71: =VLOOKUP(AB71,codes!$B$5:$C$85,2,FALSE) -> Funding for 6th Form Students | AD71: P12 Posting Summary | AE71: EVANSG01 | AF71: -57391.69 | AG71: TOPPG01 | AH71: 2966.96
Z72: 10148 | AA72: 192012 | AB72: I03 | AC72: =VLOOKUP(AB72,codes!$B$5:$C$85,2,FALSE) -> SEN Funding | AD72: 2018-19 Accruals | AE72: EVANSG01 | AF72: -5000 | AG72: TOPPG01 | AH72: 9463.85
Z73: 10148 | AA73: 192012 | AB73: I03 | AC73: =VLOOKUP(AB73,codes!$B$5:$C$85,2,FALSE) -> SEN Funding | AD73: St Michael's Catholic | AE73: EVANSG01 | AF73: -2200.49 | AG73: TOPPG01 | AH73: 1626.65
Z74: 10148 | AA74: 192012 | AB74: I03 | AC74: =VLOOKUP(AB74,codes!$B$5:$C$85,2,FALSE) -> SEN Funding | AD74: P12 Posting Summary | AE74: EVANSG01 | AF74: -3523.32 | AG74: TOPPG01 | AH74: 2264.32
Z75: 10148 | AA75: 192012 | AB75: I03 | AC75: =VLOOKUP(AB75,codes!$B$5:$C$85,2,FALSE) -> SEN Funding | AD75: M1 - M11 Actuals | AE75: EVANSG01 | AF75: 1476.68 | AG75: TOPPG01 | AH75: 2108
Z76: 10148 | AA76: 192012 | AB76: I05 | AC76: =VLOOKUP(AB76,codes!$B$5:$C$85,2,FALSE) -> Pupil Premium | AD76: P12 Posting Summary | AE76: EVANSG01 | AF76: -5275 | AG76: TOPPG01 | AH76: 30312.63
Z77: 10148 | AA77: 192012 | AB77: I05 | AC77: =VLOOKUP(AB77,codes!$B$5:$C$85,2,FALSE) -> Pupil Premium | AD77: M1 - M11 Actuals | AE77: EVANSG01 | AF77: -32885.49 | AG77: TOPPG01 | AH77: 38854.5
Z78: 10148 | AA78: 192012 | AB78: I05 | AC78: =VLOOKUP(AB78,codes!$B$5:$C$85,2,FALSE) -> Pupil Premium | AD78: St Michael's Catholic | AE78: EVANSG01 | AF78: 2200.49 | AG78: TOPPG01 | AH78: 1697.05
Z79: 10148 | AA79: 192012 | AB79: I06 | AC79: =VLOOKUP(AB79,codes!$B$5:$C$85,2,FALSE) -> Other Government Grants | AD79: P12 Posting Summary | AE79: EVANSG01 | AF79: -83389 | AG79: TOPPG01 | AH79: 1317.7
Z80: 10148 | AA80: 192012 | AB80: I06 | AC80: =VLOOKUP(AB80,codes!$B$5:$C$85,2,FALSE) -> Other Government Grants | AD80: M1 - M11 Actuals | AE80: EVANSG01 | AF80: -232377.36 | AG80: TOPPG01 | AH80: -476551
Z81: 10148 | AA81: 192012 | AB81: I06 | AC81: =VLOOKUP(AB81,codes!$B$5:$C$85,2,FALSE) -> Other Government Grants | AD81: SCH 10148 Year End Adj 2019/20 | AE81: EVANSG01 | AF81: -5677 | AG81: TOPPG01 | AH81: -36108.48
Z82: 10148 | AA82: 192012 | AB82: I07 | AC82: =VLOOKUP(AB82,codes!$B$5:$C$85,2,FALSE) -> Other Grants & Payments | AD82: M1 - M11 Actuals | AE82: EVANSG01 | AF82: -11280.64 | AG82: TOPPG01 | AH82: -5059.3
Z83: 10148 | AA83: 192012 | AB83: I08 | AC83: =VLOOKUP(AB83,codes!$B$5:$C$85,2,FALSE) -> Income from Facilities & Services | AD83: M1 - M11 Actuals | AE83: EVANSG01 | AF83: -983050.2 | AG83: TOPPG01 | AH83: -30
Z84: 10148 | AA84: 192012 | AB84: I08 | AC84: =VLOOKUP(AB84,codes!$B$5:$C$85,2,FALSE) -> Income from Facilities & Services | AD84: P12 Posting Summary | AE84: EVANSG01 | AF84: 605863.51 | AH84: =SUBTOTAL(9,AH6:AH83) -> -1743188.58
Z85: 10148 | AA85: 192012 | AB85: I08 | AC85: =VLOOKUP(AB85,codes!$B$5:$C$85,2,FALSE) -> Income from Facilities & Services | AD85: M1 - M11 Actuals | AE85: EVANSG01 | AF85: -42222 | AH85: =SUBTOTAL(9,AH6:AH83) -> -1743188.58
Z86: 10148 | AA86: 192012 | AB86: I09 | AC86: =VLOOKUP(AB86,codes!$B$5:$C$85,2,FALSE) -> Income from Catering | AD86: M1 - M11 Actuals | AE86: EVANSG01 | AF86: -112798.95 | AG86: LVAUGHAN | AH86: 197.06
Z87: 10148 | AA87: 192012 | AB87: I09 | AC87: =VLOOKUP(AB87,codes!$B$5:$C$85,2,FALSE) -> Income from Catering | AD87: P12 Posting Summary | AE87: EVANSG01 | AF87: -11540.26 | AG87: LVAUGHAN | AH87: 679.3
Z88: 10148 | AA88: 192012 | AB88: I12 | AC88: =VLOOKUP(AB88,codes!$B$5:$C$85,2,FALSE) -> Income from Contributions | AD88: P12 Posting Summary | AE88: EVANSG01 | AF88: -3000 | AG88: LVAUGHAN | AH88: 104.61
Z89: 10148 | AA89: 192012 | AB89: I12 | AC89: =VLOOKUP(AB89,codes!$B$5:$C$85,2,FALSE) -> Income from Contributions | AD89: M1 - M11 Actuals | AE89: EVANSG01 | AF89: -25277.02 | AG89: LVAUGHAN | AH89: 1172.29
Z90: 10148 | AA90: 192012 | AB90: I13 | AC90: =VLOOKUP(AB90,codes!$B$5:$C$85,2,FALSE) -> Donations and / or Voluntary Funds | AD90: M1 - M11 Actuals | AE90: EVANSG01 | AF90: -370914.02 | AG90: LVAUGHAN | AH90: 896.26
Z91: 10148 | AA91: 192012 | AB91: I13 | AC91: =VLOOKUP(AB91,codes!$B$5:$C$85,2,FALSE) -> Donations and / or Voluntary Funds | AD91: P12 Posting Summary | AE91: EVANSG01 | AF91: -2226.93 | AG91: LVAUGHAN | AH91: -0.28
Z92: 10148 Total | AF92: =SUBTOTAL(9,AF6:AF91) -> -4634150.08 | AG92: LVAUGHAN | AH92: 126.93
Z93: Grand Total | AF93: =SUBTOTAL(9,AF6:AF91) -> -4634150.08 | AG93: LVAUGHAN | AH93: 4472.32
Z94: 11174 | AA94: 192012 | AB94: I06 | AC94: =VLOOKUP(AB94,codes!$B$5:$C$85,2,FALSE) -> Other Government Grants | AD94: P12 Posting Summary | AE94: EVANSG01 | AF94: -24211.8 | AG94: LVAUGHAN | AH94: -6.52
Z95: 11174 | AA95: 192012 | AB95: I06 | AC95: =VLOOKUP(AB95,codes!$B$5:$C$85,2,FALSE) -> Other Government Grants | AD95: 2018-19 Accruals | AE95: EVANSG01 | AF95: -46435 | AG95: LVAUGHAN | AH95: 760.25
Z96: 11174 | AA96: 192012 | AB96: I06 | AC96: =VLOOKUP(AB96,codes!$B$5:$C$85,2,FALSE) -> Other Government Grants | AD96: M1 - M11 Actuals | AE96: EVANSG01 | AF96: -115385 | AG96: LVAUGHAN | AH96: 540.15
Z97: 11174 | AA97: 192012 | AB97: I06 | AC97: =VLOOKUP(AB97,codes!$B$5:$C$85,2,FALSE) -> Other Government Grants | AD97: 2018-19 Accruals | AE97: EVANSG01 | AF97: 18623 | AG97: TOPPG01 | AH97: 5505.93
Z98: 11174 | AA98: 192012 | AB98: I07 | AC98: =VLOOKUP(AB98,codes!$B$5:$C$85,2,FALSE) -> Other Grants & Payments | AD98: M1 - M11 Actuals | AE98: EVANSG01 | AF98: -11850 | AG98: TOPPG01 | AH98: 321.46
Z99: 11174 | AA99: 192012 | AB99: I07 | AC99: =VLOOKUP(AB99,codes!$B$5:$C$85,2,FALSE) -> Other Grants & Payments | AD99: SCH 11174 Year End Adj 2019/20 | AE99: EVANSG01 | AF99: 6850 | AG99: TOPPG01 | AH99: 745.58
Z100: 11174 | AA100: 192012 | AB100: I07 | AC100: =VLOOKUP(AB100,codes!$B$5:$C$85,2,FALSE) -> Other Grants & Payments | AD100: 2018-19 Accruals | AE100: EVANSG01 | AF100: 22407 | AG100: TOPPG01 | AH100: -1415.22
Z101: 11174 | AA101: 192012 | AB101: I08 | AC101: =VLOOKUP(AB101,codes!$B$5:$C$85,2,FALSE) -> Income from Facilities & Services | AD101: M1 - M11 Actuals | AE101: EVANSG01 | AF101: -9907 | AG101: TOPPG01 | AH101: 0.28
Z102: 11174 | AA102: 192012 | AB102: I09 | AC102: =VLOOKUP(AB102,codes!$B$5:$C$85,2,FALSE) -> Income from Catering | AD102: SCH 11174 Year End Adj 2019/20 | AE102: EVANSG01 | AF102: 37460 | AG102: TOPPG01 | AH102: -225.03
Z103: 11174 | AA103: 192012 | AB103: I09 | AC103: =VLOOKUP(AB103,codes!$B$5:$C$85,2,FALSE) -> Income from Catering | AD103: M1 - M11 Actuals | AE103: EVANSG01 | AF103: -57824 | AG103: TOPPG01 | AH103: 1415.22
Z104: 11174 | AA104: 192012 | AB104: I09 | AC104: =VLOOKUP(AB104,codes!$B$5:$C$85,2,FALSE) -> Income from Catering | AD104: 2018-19 Accruals | AE104: EVANSG01 | AF104: 20000 | AG104: TOPPG01 | AH104: -0.28
Z105: 11174 | AA105: 192012 | AB105: I10 | AC105: =VLOOKUP(AB105,codes!$B$5:$C$85,2,FALSE) -> Receipts from Supply Teacher Insurance Claims | AD105: M1 - M11 Actuals | AE105: EVANSG01 | AF105: -37163 | AG105: TOPPG01 | AH105: 225.03
Z106: 11174 | AA106: 192012 | AB106: I11 | AC106: =VLOOKUP(AB106,codes!$B$5:$C$85,2,FALSE) -> Receipts from Other Insurance Claims | AD106: M1 - M11 Actuals | AE106: EVANSG01 | AF106: -12550 | AH106: =SUBTOTAL(9,AH6:AH105) -> -1727673.24
Z107: 11174 | AA107: 192012 | AB107: I12 | AC107: =VLOOKUP(AB107,codes!$B$5:$C$85,2,FALSE) -> Income from Contributions | AD107: 2018-19 Accruals | AE107: EVANSG01 | AF107: 391549 | AH107: =SUBTOTAL(9,AH6:AH105) -> -1727673.24
Z108: 11174 | AA108: 192012 | AB108: I12 | AC108: =VLOOKUP(AB108,codes!$B$5:$C$85,2,FALSE) -> Income from Contributions | AD108: P12 Posting Summary | AE108: EVANSG01 | AF108: -65044.33 | AG108: TOPPG01 | AH108: -14332
Z109: 11174 | AA109: 192012 | AB109: I12 | AC109: =VLOOKUP(AB109,codes!$B$5:$C$85,2,FALSE) -> Income from Contributions | AD109: M1 - M11 Actuals | AE109: EVANSG01 | AF109: -1284827 | AG109: TOPPG01 | AH109: -45161.72
Z110: 11174 | AA110: 192012 | AB110: I12 | AC110: =VLOOKUP(AB110,codes!$B$5:$C$85,2,FALSE) -> Income from Contributions | AD110: 2018-19 Accruals | AE110: EVANSG01 | AF110: -50000 | AG110: TOPPG01 | AH110: -48911.96
Z111: 11174 | AA111: 192012 | AB111: I12 | AC111: =VLOOKUP(AB111,codes!$B$5:$C$85,2,FALSE) -> Income from Contributions | AD111: SCH 11174 Year End Adj 2019/20 | AE111: EVANSG01 | AF111: 640135 | AG111: TOPPG01 | AH111: -138570.1
Z112: 11174 | AA112: 192012 | AB112: I12 | AC112: =VLOOKUP(AB112,codes!$B$5:$C$85,2,FALSE) -> Income from Contributions | AD112: SCH 11174 Year End Adj 2019/20 | AE112: EVANSG01 | AF112: -247266 | AG112: TOPPG01 | AH112: -6500
Z113: 11174 | AA113: 192012 | AB113: I13 | AC113: =VLOOKUP(AB113,codes!$B$5:$C$85,2,FALSE) -> Donations and / or Voluntary Funds | AD113: 2018-19 Accruals | AE113: EVANSG01 | AF113: -476115 | AG113: LVAUGHAN | AH113: 269445.19
Z114: 11174 | AA114: 192012 | AB114: I13 | AC114: =VLOOKUP(AB114,codes!$B$5:$C$85,2,FALSE) -> Donations and / or Voluntary Funds | AD114: M1 - M11 Actuals | AE114: EVANSG01 | AF114: -237920 | AG114: LVAUGHAN | AH114: 23376.05
Z115: 11174 | AA115: 192012 | AB115: I13 | AC115: =VLOOKUP(AB115,codes!$B$5:$C$85,2,FALSE) -> Donations and / or Voluntary Funds | AD115: P12 Posting Summary | AE115: EVANSG01 | AF115: -1258567.21 | AG115: LVAUGHAN | AH115: 35697.94
Z116: 11174 Total | AF116: =SUBTOTAL(9,AF6:AF115) -> -7432191.42 | AG116: LVAUGHAN | AH116: 375
Z117: Grand Total | AF117: =SUBTOTAL(9,AF6:AF115) -> -7432191.42 | AG117: LVAUGHAN | AH117: 89142.67
Z118: 11278 | AA118: 192012 | AB118: I08 | AC118: =VLOOKUP(AB118,codes!$B$5:$C$85,2,FALSE) -> Income from Facilities & Services | AD118: M1 - M11 Actuals | AE118: EVANSG01 | AF118: -63847 | AG118: LVAUGHAN | AH118: 4547.2
Z119: 11278 | AA119: 192012 | AB119: I08 | AC119: =VLOOKUP(AB119,codes!$B$5:$C$85,2,FALSE) -> Income from Facilities & Services | AD119: P12 Posting Summary | AE119: EVANSG01 | AF119: -2490.19 | AG119: LVAUGHAN | AH119: 18655.51
Z120: 11278 | AA120: 192012 | AB120: I09 | AC120: =VLOOKUP(AB120,codes!$B$5:$C$85,2,FALSE) -> Income from Catering | AD120: M1 - M11 Actuals | AE120: EVANSG01 | AF120: -13095.78 | AG120: LVAUGHAN | AH120: 8458.56
Z121: 11278 | AA121: 192012 | AB121: I09 | AC121: =VLOOKUP(AB121,codes!$B$5:$C$85,2,FALSE) -> Income from Catering | AD121: P12 Posting Summary | AE121: EVANSG01 | AF121: -966.75 | AG121: LVAUGHAN | AH121: 547.36
Z122: 11278 | AA122: 192012 | AB122: I09 | AC122: =VLOOKUP(AB122,codes!$B$5:$C$85,2,FALSE) -> Income from Catering | AD122: M1 - M11 Actuals | AE122: EVANSG01 | AF122: -13095.78 | AG122: LVAUGHAN | AH122: 2182.32
Z123: 11278 | AA123: 192012 | AB123: I09 | AC123: =VLOOKUP(AB123,codes!$B$5:$C$85,2,FALSE) -> Income from Catering | AD123: M1 - M11 Actuals | AE123: EVANSG01 | AF123: 13095.78 | AG123: LVAUGHAN | AH123: 31473.37
Z124: 11278 | AA124: 192012 | AB124: I12 | AC124: =VLOOKUP(AB124,codes!$B$5:$C$85,2,FALSE) -> Income from Contributions | AD124: P12 Posting Summary | AE124: EVANSG01 | AF124: -1536.16 | AG124: LVAUGHAN | AH124: 2195.88
Z125: 11278 | AA125: 192012 | AB125: I12 | AC125: =VLOOKUP(AB125,codes!$B$5:$C$85,2,FALSE) -> Income from Contributions | AD125: M1 - M11 Actuals | AE125: EVANSG01 | AF125: -10152.43 | AG125: LVAUGHAN | AH125: 5868.6
Z126: 11278 | AA126: 192012 | AB126: I12 | AC126: =VLOOKUP(AB126,codes!$B$5:$C$85,2,FALSE) -> Income from Contributions | AD126: M1 - M11 Actuals | AE126: EVANSG01 | AF126: 10152.43 | AG126: LVAUGHAN | AH126: 5257.49
Z127: 11278 | AA127: 192012 | AB127: I12 | AC127: =VLOOKUP(AB127,codes!$B$5:$C$85,2,FALSE) -> Income from Contributions | AD127: M1 - M11 Actuals | AE127: EVANSG01 | AF127: -10152.43 | AG127: LVAUGHAN | AH127: 298.58
Z128: 11278 | AA128: 192012 | AB128: I13 | AC128: =VLOOKUP(AB128,codes!$B$5:$C$85,2,FALSE) -> Donations and / or Voluntary Funds | AD128: M1 - M11 Actuals | AE128: EVANSG01 | AF128: -408797.1 | AG128: LVAUGHAN | AH128: 298.08
Z129: 11278 | AA129: 192012 | AB129: I13 | AC129: =VLOOKUP(AB129,codes!$B$5:$C$85,2,FALSE) -> Donations and / or Voluntary Funds | AD129: M1 - M11 Actuals | AE129: EVANSG01 | AF129: -408797.1 | AG129: TOPPG01 | AH129: 75
Z130: 11278 | AA130: 192012 | AB130: I13 | AC130: =VLOOKUP(AB130,codes!$B$5:$C$85,2,FALSE) -> Donations and / or Voluntary Funds | AD130: M1 - M11 Actuals | AE130: EVANSG01 | AF130: 408797.1 | AG130: TOPPG01 | AH130: 99.83
Z131: 11278 | AA131: 192012 | AB131: I13 | AC131: =VLOOKUP(AB131,codes!$B$5:$C$85,2,FALSE) -> Donations and / or Voluntary Funds | AD131: P12 Posting Summary | AE131: EVANSG01 | AF131: -79934.68 | AG131: TOPPG01 | AH131: 2066.75
Z132: 11278 | AA132: 192012 | AB132: I18 | AC132: =VLOOKUP(AB132,codes!$B$5:$C$85,2,FALSE) -> Additional Grants for Schools | AD132: M1 - M11 Actuals | AE132: EVANSG01 | AF132: 47182.61 | AG132: TOPPG01 | AH132: 148.56
Z133: 11278 | AA133: 192012 | AB133: I18 | AC133: =VLOOKUP(AB133,codes!$B$5:$C$85,2,FALSE) -> Additional Grants for Schools | AD133: M1 - M11 Actuals | AE133: EVANSG01 | AF133: -47182.61 | AG133: TOPPG01 | AH133: 305.49
Z134: 11278 | AA134: 192012 | AB134: I18 | AC134: =VLOOKUP(AB134,codes!$B$5:$C$85,2,FALSE) -> Additional Grants for Schools | AD134: M1 - M11 Actuals | AE134: EVANSG01 | AF134: -47182.61 | AH134: =SUBTOTAL(9,AH6:AH133) -> -1480633.59
Z135: 11278 | AA135: 192012 | AB135: I18 | AC135: =VLOOKUP(AB135,codes!$B$5:$C$85,2,FALSE) -> Additional Grants for Schools | AD135: P12 Posting Summary | AE135: EVANSG01 | AF135: -5670.55 | AH135: =SUBTOTAL(9,AH6:AH133) -> -1480633.59
Z136: 11278 Total | AF136: =SUBTOTAL(9,AF6:AF135) -> -8065864.67 | AG136: INTERFACE TO SLS | AH136: -25
Z137: Grand Total | AF137: =SUBTOTAL(9,AF6:AF135) -> -8065864.67 | AG137: INTERFACE TO SLS | AH137: -252
Z138: 10069 | AA138: 192012 | AB138: I18 | AC138: =VLOOKUP(AB138,codes!$B$5:$C$85,2,FALSE) -> Additional Grants for Schools | AD138: P12 Posting Summary | AE138: EVANSG01 | AF138: -8919.55 | AG138: INTERFACE TO SLS | AH138: -70
Z139: 10069 | AA139: 192012 | AB139: I18 | AC139: =VLOOKUP(AB139,codes!$B$5:$C$85,2,FALSE) -> Additional Grants for Schools | AD139: M1 - M11 Actuals | AE139: EVANSG01 | AF139: -63382.5 | AG139: INTERFACE TO SLS | AH139: -234
Z140: 10069 Total | AF140: =SUBTOTAL(9,AF6:AF139) -> -8138166.72 | AG140: INTERFACE TO SLS | AH140: -237
Z141: Grand Total | AF141: =SUBTOTAL(9,AF6:AF139) -> -8138166.72 | AG141: INTERFACE TO SLS | AH141: -234
Z142: 10064 | AA142: 192012 | AB142: I09 | AC142: =VLOOKUP(AB142,codes!$B$5:$C$85,2,FALSE) -> Income from Catering | AD142: P12 Posting Summary | AE142: EVANSG01 | AF142: -1010.26 | AG142: INTERFACE TO SLS | AH142: -169
Z143: 10064 | AA143: 192012 | AB143: I09 | AC143: =VLOOKUP(AB143,codes!$B$5:$C$85,2,FALSE) -> Income from Catering | AD143: M1 - M11 Actuals | AE143: EVANSG01 | AF143: -14986 | AG143: INTERFACE TO SLS | AH143: -15
Z144: 10064 | AA144: 192012 | AB144: I09 | AC144: =VLOOKUP(AB144,codes!$B$5:$C$85,2,FALSE) -> Income from Catering | AD144: Cancelled by Journal 0000018038 | AE144: EVANSG01 | AF144: -1010.26 | AG144: INTERFACE TO SLS | AH144: -144
Z145: 10064 | AA145: 192012 | AB145: I12 | AC145: =VLOOKUP(AB145,codes!$B$5:$C$85,2,FALSE) -> Income from Contributions | AD145: Cancelled by Journal 0000018038 | AE145: EVANSG01 | AF145: -1996.91 | AG145: INTERFACE TO SLS | AH145: -66
Z146: 10064 | AA146: 192012 | AB146: I12 | AC146: =VLOOKUP(AB146,codes!$B$5:$C$85,2,FALSE) -> Income from Contributions | AD146: Cancellation of Journal 0000018017 | AE146: EVANSG01 | AF146: 1996.91 | AG146: INTERFACE TO SLS | AH146: -15
Z147: 10064 | AA147: 192012 | AB147: I12 | AC147: =VLOOKUP(AB147,codes!$B$5:$C$85,2,FALSE) -> Income from Contributions | AD147: M1 - M11 Actuals | AE147: EVANSG01 | AF147: -20905.96 | AG147: INTERFACE TO SLS | AH147: -10
Z148: 10064 | AA148: 192012 | AB148: I12 | AC148: =VLOOKUP(AB148,codes!$B$5:$C$85,2,FALSE) -> Income from Contributions | AD148: P12 Posting Summary | AE148: EVANSG01 | AF148: -1996.91 | AG148: INTERFACE TO SLS | AH148: -201
Z149: 10064 | AA149: 192012 | AB149: I13 | AC149: =VLOOKUP(AB149,codes!$B$5:$C$85,2,FALSE) -> Donations and / or Voluntary Funds | AD149: M1 - M11 Actuals | AE149: EVANSG01 | AF149: -750.23 | AG149: INTERFACE TO SLS | AH149: -54
Z150: 10064 | AA150: 192012 | AB150: I16 | AC150: =VLOOKUP(AB150,codes!$B$5:$C$85,2,FALSE) -> Extended School Funding - Community Focussed | AD150: M1 - M11 Actuals | AE150: EVANSG01 | AF150: -180013 | AG150: INTERFACE TO SLS | AH150: -423
Z151: 10064 | AA151: 192012 | AB151: I17 | AC151: =VLOOKUP(AB151,codes!$B$5:$C$85,2,FALSE) -> Community Ext School, Other Income | AD151: M1 - M11 Actuals | AE151: EVANSG01 | AF151: -5963.19 | AG151: INTERFACE TO SLS | AH151: -30
Z152: 10064 | AA152: 192012 | AB152: I17 | AC152: =VLOOKUP(AB152,codes!$B$5:$C$85,2,FALSE) -> Community Ext School, Other Income | AD152: Cancellation of Journal 0000018017 | AE152: EVANSG01 | AF152: 159.17 | AG152: INTERFACE TO SLS | AH152: -352
Z153: 10064 | AA153: 192012 | AB153: I17 | AC153: =VLOOKUP(AB153,codes!$B$5:$C$85,2,FALSE) -> Community Ext School, Other Income | AD153: P12 Posting Summary | AE153: EVANSG01 | AF153: -159.17 | AG153: INTERFACE TO SLS | AH153: -15
Z154: 10064 | AA154: 192012 | AB154: I17 | AC154: =VLOOKUP(AB154,codes!$B$5:$C$85,2,FALSE) -> Community Ext School, Other Income | AD154: Cancelled by Journal 0000018038 | AE154: EVANSG01 | AF154: -159.17 | AG154: INTERFACE TO SLS | AH154: -126
Z155: 10064 | AA155: 192012 | AB155: I18 | AC155: =VLOOKUP(AB155,codes!$B$5:$C$85,2,FALSE) -> Additional Grants for Schools | AD155: M1 - M11 Actuals | AE155: EVANSG01 | AF155: -40209.78 | AG155: LVAUGHAN | AH155: 19028.68
Z156: 10064 | AA156: 192012 | AB156: I18 | AC156: =VLOOKUP(AB156,codes!$B$5:$C$85,2,FALSE) -> Additional Grants for Schools | AD156: P12 Posting Summary | AE156: EVANSG01 | AF156: -4952.3 | AG156: LVAUGHAN | AH156: 1990.47
Z157: 10064 | AA157: 192012 | AB157: I18 | AC157: =VLOOKUP(AB157,codes!$B$5:$C$85,2,FALSE) -> Additional Grants for Schools | AD157: Cancellation of Journal 0000018017 | AE157: EVANSG01 | AF157: 4952.3 | AG157: LVAUGHAN | AH157: 3193.46
Z158: 10064 | AA158: 192012 | AB158: I18 | AC158: =VLOOKUP(AB158,codes!$B$5:$C$85,2,FALSE) -> Additional Grants for Schools | AD158: Cancelled by Journal 0000018038 | AE158: EVANSG01 | AF158: -4952.3 | AG158: LVAUGHAN | AH158: 18978.34
Z159: 10064 Total | AF159: =SUBTOTAL(9,AF6:AF158) -> -8410123.78 | AG159: LVAUGHAN | AH159: 1228.41
Z160: Grand Total | AF160: =SUBTOTAL(9,AF6:AF158) -> -8410123.78 | AG160: LVAUGHAN | AH160: 3888.43
Z161: 10135 | AA161: 192012 | AB161: I17 | AC161: =VLOOKUP(AB161,codes!$B$5:$C$85,2,FALSE) -> Community Ext School, Other Income | AD161: M1 - M11 Actuals | AE161: EVANSG01 | AF161: -504.25 | AG161: LVAUGHAN | AH161: 1531.75
Z162: 10135 | AA162: 192012 | AB162: I17 | AC162: =VLOOKUP(AB162,codes!$B$5:$C$85,2,FALSE) -> Community Ext School, Other Income | AD162: M1 - M11 Actuals | AE162: EVANSG01 | AF162: 504.25 | AG162: LVAUGHAN | AH162: 82.54
Z163: 10135 | AA163: 192012 | AB163: I17 | AC163: =VLOOKUP(AB163,codes!$B$5:$C$85,2,FALSE) -> Community Ext School, Other Income | AD163: M1 - M11 Actuals | AE163: EVANSG01 | AF163: -504.25 | AG163: LVAUGHAN | AH163: 395.19
Z164: 10135 Total | AF164: =SUBTOTAL(9,AF6:AF163) -> -8410628.03 | AG164: LVAUGHAN | AH164: 3669.19
Z165: Grand Total | AF165: =SUBTOTAL(9,AF6:AF163) -> -8410628.03 | AG165: LVAUGHAN | AH165: 229.67
Z166: 10045 | AA166: 181912 | AB166: I18 | AC166: =VLOOKUP(AB166,codes!$B$5:$C$85,2,FALSE) -> Additional Grants for Schools | AD166: Cancellation of Journal 0000015787 | AE166: JAMESC01 | AF166: 18794.12 | AG166: LVAUGHAN | AH166: 946.65
Z167: 10045 Total | AF167: =SUBTOTAL(9,AF6:AF166) -> -8391833.91 | AG167: LVAUGHAN | AH167: 2179.58
Z168: Grand Total | AF168: =SUBTOTAL(9,AF6:AF166) -> -8391833.91 | AG168: LVAUGHAN | AH168: 21.85
Z169: 10083 | AA169: 181912 | AB169: E26 | AC169: =VLOOKUP(AB169,codes!$B$5:$C$85,2,FALSE) -> Agency Supply Teachers | AD169: P9 Posting Summary | AE169: JAMESC01 | AF169: 6300 | AG169: LVAUGHAN | AH169: 336.3
Z170: 10083 | AA170: 181912 | AB170: E26 | AC170: =VLOOKUP(AB170,codes!$B$5:$C$85,2,FALSE) -> Agency Supply Teachers | AD170: P10 Posting Summary | AE170: JAMESC01 | AF170: 6930 | AG170: LVAUGHAN | AH170: 5616.75
Z171: 10083 | AA171: 181912 | AB171: E26 | AC171: =VLOOKUP(AB171,codes!$B$5:$C$85,2,FALSE) -> Agency Supply Teachers | AD171: P12 Posting Summary | AE171: JAMESC01 | AF171: 6040 | AG171: LVAUGHAN | AH171: 588.54
Z172: 10083 | AA172: 181912 | AB172: E27 | AC172: =VLOOKUP(AB172,codes!$B$5:$C$85,2,FALSE) -> Bought in Prof. Services - Curriculum | AD172: P7 Posting Summary | AE172: JAMESC01 | AF172: -1382.45 | AG172: LVAUGHAN | AH172: 844.89
Z173: 10083 | AA173: 181912 | AB173: E27 | AC173: =VLOOKUP(AB173,codes!$B$5:$C$85,2,FALSE) -> Bought in Prof. Services - Curriculum | AD173: P11 Posting Summary | AE173: JAMESC01 | AF173: 838.8 | AG173: TOPPG01 | AH173: 399.6
Z174: 10083 | AA174: 181912 | AB174: E27 | AC174: =VLOOKUP(AB174,codes!$B$5:$C$85,2,FALSE) -> Bought in Prof. Services - Curriculum | AD174: P6 Posting Summary | AE174: JAMESC01 | AF174: 14795.95 | AG174: TOPPG01 | AH174: 564
Z175: 10083 | AA175: 181912 | AB175: E27 | AC175: =VLOOKUP(AB175,codes!$B$5:$C$85,2,FALSE) -> Bought in Prof. Services - Curriculum | AD175: P10 Posting Summary | AE175: JAMESC01 | AF175: 5713 | AG175: TOPPG01 | AH175: 1820.94
Z176: 10083 | AA176: 181912 | AB176: E28 | AC176: =VLOOKUP(AB176,codes!$B$5:$C$85,2,FALSE) -> Bought in Prof. Services - Other | AD176: P8 Posting Summary | AE176: JAMESC01 | AF176: 818.34 | AG176: TOPPG01 | AH176: 40
Z177: 10083 | AA177: 181912 | AB177: E28 | AC177: =VLOOKUP(AB177,codes!$B$5:$C$85,2,FALSE) -> Bought in Prof. Services - Other | AD177: P9 Posting Summary | AE177: JAMESC01 | AF177: 10017.16 | AG177: TOPPG01 | AH177: 951.67
Z178: 10083 | AA178: 181912 | AB178: E28 | AC178: =VLOOKUP(AB178,codes!$B$5:$C$85,2,FALSE) -> Bought in Prof. Services - Other | AD178: P4 Posting Summary | AE178: JAMESC01 | AF178: 1725.12 | AG178: TOPPG01 | AH178: 391.19
Z179: 10083 | AA179: 181912 | AB179: E28 | AC179: =VLOOKUP(AB179,codes!$B$5:$C$85,2,FALSE) -> Bought in Prof. Services - Other | AD179: P7 Posting Summary | AE179: JAMESC01 | AF179: 1031.39 | AG179: TOPPG01 | AH179: 1740.02
Z180: 10083 | AA180: 181912 | AB180: E28 | AC180: =VLOOKUP(AB180,codes!$B$5:$C$85,2,FALSE) -> Bought in Prof. Services - Other | AD180: P11 Posting Summary | AE180: JAMESC01 | AF180: 785.4 | AG180: TOPPG01 | AH180: 8152
Z181: 10083 | AA181: 181912 | AB181: E28 | AC181: =VLOOKUP(AB181,codes!$B$5:$C$85,2,FALSE) -> Bought in Prof. Services - Other | AD181: P6 Posting Summary | AE181: JAMESC01 | AF181: 2245.58 | AG181: TOPPG01 | AH181: 1606.5
Z182: 10083 | AA182: 181912 | AB182: E28 | AC182: =VLOOKUP(AB182,codes!$B$5:$C$85,2,FALSE) -> Bought in Prof. Services - Other | AD182: P10 Posting Summary | AE182: JAMESC01 | AF182: 426.62 | AG182: TOPPG01 | AH182: 4354.51
Z183: 10083 | AA183: 181912 | AB183: E28 | AC183: =VLOOKUP(AB183,codes!$B$5:$C$85,2,FALSE) -> Bought in Prof. Services - Other | AD183: P12 Posting Summary | AE183: JAMESC01 | AF183: 149.58 | AG183: TOPPG01 | AH183: 4212.1
Z184: 10083 | AA184: 181912 | AB184: E32 | AC184: =VLOOKUP(AB184,codes!$B$5:$C$85,2,FALSE) -> Community Ext School Other Costs | AD184: P6 Posting Summary | AE184: JAMESC01 | AF184: 255 | AG184: TOPPG01 | AH184: 1331.53
Z185: 10083 | AA185: 181912 | AB185: I01 | AC185: =VLOOKUP(AB185,codes!$B$5:$C$85,2,FALSE) -> Funds Delegated by LEA | AD185: P6 Posting Summary | AE185: JAMESC01 | AF185: -443212 | AG185: TOPPG01 | AH185: 3118.52
Z186: 10083 | AA186: 181912 | AB186: I01 | AC186: =VLOOKUP(AB186,codes!$B$5:$C$85,2,FALSE) -> Funds Delegated by LEA | AD186: P7 Posting Summary | AE186: JAMESC01 | AF186: -443212 | AG186: TOPPG01 | AH186: 175
Z187: 10083 | AA187: 181912 | AB187: I01 | AC187: =VLOOKUP(AB187,codes!$B$5:$C$85,2,FALSE) -> Funds Delegated by LEA | AD187: P8 Posting Summary | AE187: JAMESC01 | AF187: -221606 | AG187: TOPPG01 | AH187: 100
Z188: 10083 | AA188: 181912 | AB188: I01 | AC188: =VLOOKUP(AB188,codes!$B$5:$C$85,2,FALSE) -> Funds Delegated by LEA | AD188: P9 Posting Summary | AE188: JAMESC01 | AF188: -221583 | AG188: TOPPG01 | AH188: 12123.63
Z189: 10083 | AA189: 181912 | AB189: I01 | AC189: =VLOOKUP(AB189,codes!$B$5:$C$85,2,FALSE) -> Funds Delegated by LEA | AD189: P11 Posting Summary | AE189: JAMESC01 | AF189: -225903 | AG189: TOPPG01 | AH189: 1904.65
Z190: 10083 | AA190: 181912 | AB190: I01 | AC190: =VLOOKUP(AB190,codes!$B$5:$C$85,2,FALSE) -> Funds Delegated by LEA | AD190: P10 Posting Summary | AE190: JAMESC01 | AF190: -225903 | AG190: TOPPG01 | AH190: -100694
Z191: 10083 | AA191: 181912 | AB191: I01 | AC191: =VLOOKUP(AB191,codes!$B$5:$C$85,2,FALSE) -> Funds Delegated by LEA | AD191: P12 Posting Summary | AE191: JAMESC01 | AF191: -152040 | AG191: TOPPG01 | AH191: -600
Z192: 10083 | AA192: 181912 | AB192: I03 | AC192: =VLOOKUP(AB192,codes!$B$5:$C$85,2,FALSE) -> SEN Funding | AD192: P7 Posting Summary | AE192: JAMESC01 | AF192: -24644 | AG192: TOPPG01 | AH192: -9048.28
Z193: 10083 | AA193: 181912 | AB193: I03 | AC193: =VLOOKUP(AB193,codes!$B$5:$C$85,2,FALSE) -> SEN Funding | AD193: P8 Posting Summary | AE193: JAMESC01 | AF193: -12322 | AG193: TOPPG01 | AH193: -1991.1
Z194: 10083 | AA194: 181912 | AB194: I03 | AC194: =VLOOKUP(AB194,codes!$B$5:$C$85,2,FALSE) -> SEN Funding | AD194: P9 Posting Summary | AE194: JAMESC01 | AF194: -12322 | AG194: TOPPG01 | AH194: -2870.68
Z195: 10083 | AA195: 181912 | AB195: I03 | AC195: =VLOOKUP(AB195,codes!$B$5:$C$85,2,FALSE) -> SEN Funding | AD195: P11 Posting Summary | AE195: JAMESC01 | AF195: -30263 | AG195: TOPPG01 | AH195: -200.04
Z196: 10083 | AA196: 181912 | AB196: I03 | AC196: =VLOOKUP(AB196,codes!$B$5:$C$85,2,FALSE) -> SEN Funding | AD196: P6 Posting Summary | AE196: JAMESC01 | AF196: -24644 | AH196: =SUBTOTAL(9,AH6:AH195) -> -1490973.14
Z197: 10083 | AA197: 181912 | AB197: I03 | AC197: =VLOOKUP(AB197,codes!$B$5:$C$85,2,FALSE) -> SEN Funding | AD197: P10 Posting Summary | AE197: JAMESC01 | AF197: -30263 | AH197: =SUBTOTAL(9,AH6:AH195) -> -1490973.14
Z198: 10083 | AA198: 181912 | AB198: I03 | AC198: =VLOOKUP(AB198,codes!$B$5:$C$85,2,FALSE) -> SEN Funding | AD198: P12 Posting Summary | AE198: JAMESC01 | AF198: -26146 | AG198: TOPPG01 | AH198: 20
Z199: 10083 | AA199: 181912 | AB199: I05 | AC199: =VLOOKUP(AB199,codes!$B$5:$C$85,2,FALSE) -> Pupil Premium | AD199: P7 Posting Summary | AE199: JAMESC01 | AF199: -49830 | AG199: TOPPG01 | AH199: 180
Z200: 10083 | AA200: 181912 | AB200: I05 | AC200: =VLOOKUP(AB200,codes!$B$5:$C$85,2,FALSE) -> Pupil Premium | AD200: P9 Posting Summary | AE200: JAMESC01 | AF200: -55230 | AG200: TOPPG01 | AH200: 20
Z201: 10083 | AA201: 181912 | AB201: I05 | AC201: =VLOOKUP(AB201,codes!$B$5:$C$85,2,FALSE) -> Pupil Premium | AD201: P4 Posting Summary | AE201: JAMESC01 | AF201: -59730 | AG201: TOPPG01 | AH201: 20
... 2049 more rows

Sheet School List (hidden)
E1: 1 | F1: 2 | G1: 3 | H1: 4 | I1: 5
C2: Standard School List as at April 2023
A3: category | B3: type | C3: School | D3: Option | E3: Cost Centre | F3: DfE NO. | G3: Cash at Bank GL | H3: Vendor No. | I3: Customer No.
A5: Nur | B5: Comm | C5: Brookhill Nursery * | D5: A | E5: 10130 | F5: 1000 | G5: =VLOOKUP(E5,'[2]bank code'!$B$4:$D$99,2,0) -> 938600 | H5: 400102 | I5: 10021968
A6: Nur / CC | B6: Comm | C6: Hampden Way Nursery * | D6: A | E6: 10131 | F6: 1001 | G6: =VLOOKUP(E6,'[2]bank code'!$B$4:$D$99,2,0) -> 938601 | H6: 400103 | I6: 10028845
A7: Nur / CC | B7: Comm | C7: St Margaret's Nursery * | D7: A | E7: 10133 | F7: 1003 | G7: =VLOOKUP(E7,'[2]bank code'!$B$4:$D$99,2,0) -> 938603 | H7: 400104 | I7: 10010756
A8: Nur | B8: Comm | C8: Moss Hall Nursery | D8: A | E8: 10132 | F8: 1002 | G8: =VLOOKUP(E8,'[2]bank code'!$B$4:$D$99,2,0) -> 938602 | H8: 400072 | I8: 10006116
A9: Nur | B9: Comm | C9: BEYA | D9: A | E9: 10135 | F9: 1000 | G9: 938600 | H9: 162236
C10: Total Nursery Schools | J10: =COUNTA(E8:E9) -> 2
A11: Pri | B11: VA | C11: Akiva | D11: C | E11: 11094 | F11: 3520 | G11: =VLOOKUP(E11,'[2]bank code'!$B$4:$D$99,2,0) -> 938701 | H11: 400125 | I11: 10030154 | K11: *
A12: Pri | B12: VA | C12: All Saints' CE (N20) | D12: A | E12: 10042 | F12: 3317 | G12: =VLOOKUP(E12,'[2]bank code'!$B$4:$D$99,2,0) -> 938664 | H12: 400015 | I12: 10006041
A13: Pri | B13: VA | C13: All Saints' CE (NW2) | D13: A | E13: 10040 | F13: 3300 | G13: =VLOOKUP(E13,'[2]bank code'!$B$4:$D$99,2,0) -> 938652 | H13: 400069 | I13: 10006117
A14: Pri | B14: VA | C14: Annunciation RC Infant | D14: A | E14: 10043 | F14: 3500 | G14: =VLOOKUP(E14,'[2]bank code'!$B$4:$D$99,2,0) -> 938665 | H14: 400023 | I14: 10008146
A15: Pri | B15: VA | C15: Annunciation RC Junior | D15: A | E15: 10117 | F15: 3514 | G15: =VLOOKUP(E15,'[2]bank code'!$B$4:$D$99,2,0) -> 938677 | H15: 400107 | I15: 10007147
A16: Pri / CC | B16: Comm | C16: Barnfield | D16: D | E16: 10044 | F16: 2002 | G16: =VLOOKUP(E16,'[2]bank code'!$B$4:$D$99,2,0) -> 938605 | H16: 400005 | I16: 10007053
A17: Pri | B17: VA | C17: Beis Yaakov | D17: A | E17: 10128 | F17: 2079 | G17: =VLOOKUP(E17,'[2]bank code'!$B$4:$D$99,2,0) -> 938651 | H17: 400070 | I17: 10028579 | K17: *
A18: Pri | B18: VA | C18: Beit Shvidler | D18: C | E18: 11278 | F18: 3524 | G18: =VLOOKUP(E18,'[2]bank code'!$B$4:$D$99,2,0) -> 938702 | H18: 400150 | I18: 10067446 | K18: *
A19: Pri / CC | B19: Comm | C19: Bell Lane | D19: A | E19: 10045 | F19: 2003 | G19: =VLOOKUP(E19,'[2]bank code'!$B$4:$D$99,2,0) -> 938606 | H19: 400051 | I19: 10006405
A20: Pri | B20: VA | C20: Blessed Dominic RC School | D20: A | E20: 10115 | F20: 3511 | G20: =VLOOKUP(E20,'[2]bank code'!$B$4:$D$99,2,0) -> 938674 | H20: 400024 | I20: 10007834
A21: Pri | B21: Comm | C21: Brookland Infant | D21: D | E21: 10047 | F21: 2008 | G21: =VLOOKUP(E21,'[2]bank code'!$B$4:$D$99,2,0) -> 938608 | H21: 400057 | I21: 10006742
A22: Pri | B22: Comm | C22: Brookland Junior | D22: D | E22: 10046 | F22: 2007 | G22: =VLOOKUP(E22,'[2]bank code'!$B$4:$D$99,2,0) -> 938607 | H22: 400040 | I22: 10007055
A23: Pri | B23: Comm | C23: Brunswick Park | D23: A | E23: 10048 | F23: 2009 | G23: =VLOOKUP(E23,'[2]bank code'!$B$4:$D$99,2,0) -> 938609 | H23: 400061 | I23: 10007056
A24: Pri | B24: Comm | C24: Chalgrove | D24: A | E24: 10118 | F24: 2067 | G24: =VLOOKUP(E24,'[2]bank code'!$B$4:$D$99,2,0) -> 938642 | H24: 400065 | I24: 10006373
A25: Pri | B25: VA | C25: Christ Church | D25: D | E25: 10050 | F25: 3302 | G25: =VLOOKUP(E25,'[2]bank code'!$B$4:$D$99,2,0) -> 938653 | H25: 400039 | I25: 10004765
A26: Pri | B26: Comm | C26: Church Hill | D26: A | E26: 10051 | F26: 2011 | G26: =VLOOKUP(E26,'[2]bank code'!$B$4:$D$99,2,0) -> 938611 | H26: 400020 | I26: 10028842
A27: Pri | B27: Comm | C27: Colindale | D27: D | E27: 10054 | F27: 2014 | G27: =VLOOKUP(E27,'[2]bank code'!$B$4:$D$99,2,0) -> 938612 | H27: 400050 | I27: 10006223
A28: Pri / CC | B28: Comm | C28: Coppetts Wood | D28: A | E28: 10055 | F28: 2015 | G28: =VLOOKUP(E28,'[2]bank code'!$B$4:$D$99,2,0) -> 938613 | H28: 400059 | I28: 10029750
A29: Pri | B29: Comm | C29: Courtland | D29: A | E29: 10056 | F29: 2016 | G29: =VLOOKUP(E29,'[2]bank code'!$B$4:$D$99,2,0) -> 938614 | H29: 400049 | I29: 10007246
A30: Pri | B30: Comm | C30: Cromer Road | D30: A | E30: 10057 | F30: 2017 | G30: =VLOOKUP(E30,'[2]bank code'!$B$4:$D$99,2,0) -> 938615 | H30: 400080 | I30: 10005184
A31: Pri | B31: Comm | C31: Danegrove | D31: B | E31: 10083 | F31: 2073 | G31: =VLOOKUP(E31,'[2]bank code'!$B$4:$D$99,2,0) -> 938646 | H31: 400105 | I31: 10004576
A32: Pri | B32: Comm | C32: Deansbrook Infant | D32: A | E32: 10059 | F32: 2019 | G32: =VLOOKUP(E32,'[2]bank code'!$B$4:$D$99,2,0) -> 938617 | H32: 400036 | I32: 10004642
A33: Pri | B33: Comm | C33: Dollis Primary | D33: D | E33: 10061 | F33: 2021 | G33: =VLOOKUP(E33,'[2]bank code'!$B$4:$D$99,2,0) -> 938618 | H33: 400042 | I33: 10029408
A34: Pri | B34: Comm | C34: Edgware Primary | D34: B | E34: 10063 | F34: 2023 | G34: =VLOOKUP(E34,'[2]bank code'!$B$4:$D$99,2,0) -> 938620 | H34: 400159 | I34: 1063
A35: Pri / CC | B35: Comm | C35: Fairway | D35: A | E35: 10064 | F35: 2024 | G35: =VLOOKUP(E35,'[2]bank code'!$B$4:$D$99,2,0) -> 938621 | H35: 400047 | I35: 10006689
A36: Pri | B36: Comm | C36: Foulds | D36: C | E36: 10065 | F36: 2025 | G36: =VLOOKUP(E36,'[2]bank code'!$B$4:$D$99,2,0) -> 938622 | H36: 400001 | I36: 10027412
A37: Pri | B37: Comm | C37: Frith Manor | D37: A | E37: 10066 | F37: 2026 | G37: =VLOOKUP(E37,'[2]bank code'!$B$4:$D$99,2,0) -> 938623 | H37: 400082 | I37: 10007765
A38: Pri | B38: Comm | C38: Garden Suburb Infant | D38: A | E38: 10068 | F38: 2028 | G38: =VLOOKUP(E38,'[2]bank code'!$B$4:$D$99,2,0) -> 938625 | H38: 400067 | I38: 10006049
A39: Pri | B39: Comm | C39: Garden Suburb Junior | D39: A | E39: 10067 | F39: 2027 | G39: =VLOOKUP(E39,'[2]bank code'!$B$4:$D$99,2,0) -> 938624 | H39: 400002 | I39: 10005165
A40: Pri | B40: Comm | C40: Goldbeaters | D40: A | E40: 10069 | F40: 2029 | G40: =VLOOKUP(E40,'[2]bank code'!$B$4:$D$99,2,0) -> 938626 | H40: 400035 | I40: 10008175
A41: Pri | B41: VA | C41: Hasmonean Primary | D41: A | E41: 10121 | F41: 3516 | G41: =VLOOKUP(E41,'[2]bank code'!$B$4:$D$99,2,0) -> 938678 | H41: 400108 | I41: 10006802 | K41: *
A42: Pri | B42: Found | C42: Hollickwood | D42: A | E42: 10071 | F42: 2031 | G42: =VLOOKUP(E42,'[2]bank code'!$B$4:$D$99,2,0) -> 938628 | H42: 400026 | I42: 10008170
A43: Pri | B43: Comm | C43: Holly Park | D43: A | E43: 10072 | F43: 2032 | G43: =VLOOKUP(E43,'[2]bank code'!$B$4:$D$99,2,0) -> 938629 | H43: 400084 | I43: 10007226
A44: Pri | B44: VA | C44: Holy Trinity | D44: A | E44: 10073 | F44: 3304 | G44: =VLOOKUP(E44,'[2]bank code'!$B$4:$D$99,2,0) -> 938654 | H44: 400008 | I44: 10006043
A45: Pri | B45: Comm | C45: Livingstone | D45: A | E45: 10074 | F45: 2036 | G45: =VLOOKUP(E45,'[2]bank code'!$B$4:$D$99,2,0) -> 938630 | H45: 400046 | I45: 10007060
A46: Pri | B46: Comm | C46: Manorside | D46: A | E46: 10075 | F46: 2037 | G46: =VLOOKUP(E46,'[2]bank code'!$B$4:$D$99,2,0) -> 938631 | H46: 400030 | I46: 10007061
A47: Pri | B47: Comm | C47: Martin Primary | D47: B | E47: 11093 | F47: 3523 | G47: =VLOOKUP(E47,'[2]bank code'!$B$4:$D$99,2,0) -> 938700 | H47: 400130 | I47: 10007063
A48: Pri | B48: VA | C48: Mathilda Marks Kennedy | D48: B | E48: 10125 | F48: 5948 | G48: =VLOOKUP(E48,'[2]bank code'!$B$4:$D$99,2,0) -> 938694 | H48: 400112 | I48: 10006913 | K48: *
A49: Pri | B49: VA | C49: Menorah Foundation | D49: B | E49: 10126 | F49: 5949 | G49: =VLOOKUP(E49,'[2]bank code'!$B$4:$D$99,2,0) -> 938695 | H49: 400110 | I49: 10007662 | K49: *
A50: Pri | B50: VA | C50: Menorah Primary | D50: A | E50: 10114 | F50: 3513 | G50: =VLOOKUP(E50,'[2]bank code'!$B$4:$D$99,2,0) -> 938676 | H50: 400007 | I50: 10004701 | K50: *
A51: Pri | B51: VA | C51: Monken Hadley | D51: A | E51: 10078 | F51: 3305 | G51: =VLOOKUP(E51,'[2]bank code'!$B$4:$D$99,2,0) -> 938655 | H51: 400086 | I51: 10007576
A52: Pri | B52: Comm | C52: Monkfrith | D52: D | E52: 10079 | F52: 2042 | G52: =VLOOKUP(E52,'[2]bank code'!$B$4:$D$99,2,0) -> 938632 | H52: 400048 | I52: 10007064
A53: Pri | B53: Comm | C53: Moss Hall Infant | D53: A | E53: 10081 | F53: 2044 | G53: =VLOOKUP(E53,'[2]bank code'!$B$4:$D$99,2,0) -> 938634 | H53: 400087 | I53: 10006045
A54: Pri | B54: Comm | C54: Moss Hall Junior | D54: A | E54: 10080 | F54: 2043 | G54: =VLOOKUP(E54,'[2]bank code'!$B$4:$D$99,2,0) -> 938633 | H54: 400088 | I54: 10006046
A55: Pri | B55: Comm | C55: Northside | D55: A | E55: 10082 | F55: 2045 | G55: =VLOOKUP(E55,'[2]bank code'!$B$4:$D$99,2,0) -> 938635 | H55: 400089 | I55: 10006042
A56: Pri | B56: Comm | C56: Orion | D56: A | E56: 10127 | F56: 2077 | G56: =VLOOKUP(E56,'[2]bank code'!$B$4:$D$99,2,0) -> 938649 | H56: 400113 | I56: 10006118
A57: Pri | B57: Found | C57: Osidge | D57: B | E57: 10084 | F57: 5201 | G57: =VLOOKUP(E57,'[2]bank code'!$B$4:$D$99,2,0) -> 938687 | H57: 400021 | I57: 10006718
A58: Pri | B58: VA | C58: Our Lady of Lourdes | D58: A | E58: 10085 | F58: 3501 | G58: =VLOOKUP(E58,'[2]bank code'!$B$4:$D$99,2,0) -> 938666 | H58: 400003 | I58: 10006044
A59: Pri | B59: VA | C59: Pardes House | D59: A | E59: 10129 | F59: 2078 | G59: =VLOOKUP(E59,'[2]bank code'!$B$4:$D$99,2,0) -> 938650 | H59: 400014 | I59: 10007235 | K59: *
A60: Pri | B60: Comm | C60: Queenswell Federation | D60: B | E60: 10086 | F60: 2072 | G60: =VLOOKUP(E60,'[2]bank code'!$B$4:$D$99,2,0) -> 938645 | H60: 400012 | I60: 10004332
A61: Pri | B61: VA | C61: Rosh Pinah | D61: D | E61: 10112 | F61: 3512 | G61: =VLOOKUP(E61,'[2]bank code'!$B$4:$D$99,2,0) -> 938675 | H61: 400093 | I61: 10005964 | K61: *
A62: Pri | B62: VA | C62: Sacred Heart RC | D62: A | E62: 10110 | F62: 3510 | G62: =VLOOKUP(E62,'[2]bank code'!$B$4:$D$99,2,0) -> 938673 | H62: 400071 | I62: 10004882
A63: Pri | B63: VA | C63: Shalom Noam | D63: B | E63: 10113 | F63: 2053 | G63: 938708 | H63: 158733 | I63: 10030019 | K63: *
A64: Pri | B64: VA | C64: St. Agnes' RC | D64: A | E64: 10087 | F64: 3502 | G64: =VLOOKUP(E64,'[2]bank code'!$B$4:$D$99,2,0) -> 938667 | H64: 400096 | I64: 10007803
A65: Pri | B65: VA | C65: St. Andrew's CE | D65: D | E65: 10099 | F65: 3315 | G65: =VLOOKUP(E65,'[2]bank code'!$B$4:$D$99,2,0) -> 938662 | H65: 400062 | I65: 10004672
A66: Pri | B66: VA | C66: St. Catherine's RC | D66: A | E66: 10088 | F66: 3504 | G66: =VLOOKUP(E66,'[2]bank code'!$B$4:$D$99,2,0) -> 938668 | H66: 400064 | I66: 10007065
A67: Pri | B67: VA | C67: St. John's CE (N11) | D67: A | E67: 10089 | F67: 3307 | G67: =VLOOKUP(E67,'[2]bank code'!$B$4:$D$99,2,0) -> 938656 | H67: 400114 | I67: 10007066
A68: Pri | B68: VA | C68: St. John's CE (N20) | D68: C | E68: 10116 | F68: 3309 | G68: =VLOOKUP(E68,'[2]bank code'!$B$4:$D$99,2,0) -> 938657 | H68: 400098 | I68: 10006508
A69: Pri | B69: VA | C69: St. Joseph's RC Primary | D69: A | E69: 10107 | F69: 3509 | G69: =VLOOKUP(E69,'[2]bank code'!$B$4:$D$99,2,0) -> 938672 | H69: 400066 | I69: 10022140
A70: Pri | B70: VA | C70: St. Mary's CE (EN4) | D70: A | E70: 10093 | F70: 3312 | G70: =VLOOKUP(E70,'[2]bank code'!$B$4:$D$99,2,0) -> 938659 | H70: 400017 | I70: 10004397
A71: Pri | B71: VA | C71: St. Mary's CE (N3) | D71: A | E71: 10092 | F71: 3311 | G71: =VLOOKUP(E71,'[2]bank code'!$B$4:$D$99,2,0) -> 938658 | H71: 400058 | I71: 10008120
A72: Pri | B72: VA | C72: St. Paul's CE (N11) | D72: A | E72: 10094 | F72: 3313 | G72: =VLOOKUP(E72,'[2]bank code'!$B$4:$D$99,2,0) -> 938660 | H72: 400006 | I72: 10007095
A73: Pri | B73: VA | C73: St. Paul's CE (NW7) | D73: C | E73: 10095 | F73: 3314 | G73: =VLOOKUP(E73,'[2]bank code'!$B$4:$D$99,2,0) -> 938661 | H73: 400094 | I73: 10005209
A74: Pri | B74: VA | C74: St. Theresa's | D74: A | E74: 10108 | F74: 3507 | G74: =VLOOKUP(E74,'[2]bank code'!$B$4:$D$99,2,0) -> 938670 | H74: 400037 | I74: 10027404
A75: Pri | B75: VA | C75: St. Vincent's | D75: A | E75: 10096 | F75: 3506 | G75: =VLOOKUP(E75,'[2]bank code'!$B$4:$D$99,2,0) -> 938669 | H75: 400009 | I75: 10007826
A76: Pri | B76: Comm | C76: Sunnyfields | D76: D | E76: 10097 | F76: 2070 | G76: =VLOOKUP(E76,'[2]bank code'!$B$4:$D$99,2,0) -> 938643 | H76: 400038 | I76: 10006577
A77: Pri | B77: VA | C77: Trent CE | D77: A | E77: 10100 | F77: 3316 | G77: =VLOOKUP(E77,'[2]bank code'!$B$4:$D$99,2,0) -> 938663 | H77: 400100 | I77: 10006115
A78: Pri | B78: Comm | C78: Tudor | D78: A | E78: 10101 | F78: 2055 | G78: =VLOOKUP(E78,'[2]bank code'!$B$4:$D$99,2,0) -> 938638 | H78: 400101 | I78: 10007069
A79: Pri / CC | B79: Comm | C79: Underhill School | D79: B | E79: 10103 | F79: 2057 | G79: =VLOOKUP(E79,'[2]bank code'!$B$4:$D$99,2,0) -> 938640 | H79: 400053 | I79: 00001263 | K79: 10055238 | L79: cc
A80: Pri | B80: Comm | C80: Wessex Gardens | D80: D | E80: 10124 | F80: 2076 | G80: =VLOOKUP(E80,'[2]bank code'!$B$4:$D$99,2,0) -> 938648 | H80: 400111 | I80: 10027395
A81: Pri | B81: Comm | C81: Whitings Hill | D81: A | E81: 10105 | F81: 2060 | G81: =VLOOKUP(E81,'[2]bank code'!$B$4:$D$99,2,0) -> 938641 | H81: 400011 | I81: 10007070
A82: Pri | B82: Comm | C82: Woodcroft | D82: D | E82: 10123 | F82: 3518 | G82: =VLOOKUP(E82,'[2]bank code'!$B$4:$D$99,2,0) -> 938679 | H82: 400117 | I82: 10006392
A83: Pri | B83: Comm | C83: Woodridge | D83: A | E83: 10109 | F83: 2054 | G83: =VLOOKUP(E83,'[2]bank code'!$B$4:$D$99,2,0) -> 938637 | H83: 400004 | I83: 10007071
C84: Total Primary Schools | J84: =COUNTA(E11:E83) -> 73
A85: Sec | B85: VA | C85: Finchley Catholic High | D85: B | E85: 10145 | F85: 5405 | G85: =VLOOKUP(E85,'[2]bank code'!$B$4:$D$99,2,0) -> 938690 | H85: 400041 | I85: 10028710
A86: Sec | B86: Comm | C86: Friern Barnet School | D86: D | E86: 10139 | F86: 4003 | G86: =VLOOKUP(E86,'[2]bank code'!$B$4:$D$99,2,0) -> 938683 | H86: 400033 | I86: 10027413
A87: Sec | B87: VA | C87: JCoSS | D87: D | E87: 11174 | F87: 5427 | G87: =VLOOKUP(E87,'[2]bank code'!$B$4:$D$99,2,0) -> 938693 | H87: 400140 | I87: 10057017 | K87: *
A88: Sec | B88: VA | C88: Menorah High School for Girls | D88: D | E88: 11513 | F88: 4004 | G88: =VLOOKUP(E88,'[2]bank code'!$B$4:$D$99,2,0) -> 938707 | H88: 107953 | I88: 10029127 | K88: *
A89: Sec | B89: VA | C89: St James' Catholic High | D89: B | E89: 10142 | F89: 5407 | G89: =VLOOKUP(E89,'[2]bank code'!$B$4:$D$99,2,0) -> 938691 | H89: 400013 | I89: 10028917
A90: Sec | B90: VA | C90: St. Michael's Catholic Grammar | D90: B | E90: 10148 | F90: 5404 | G90: =VLOOKUP(E90,'[2]bank code'!$B$4:$D$99,2,0) -> 938689 | H90: 400029 | I90: 10005539
C91: Total Secondary Schools | J91: =COUNTA(E85:E90) -> 6
A92: All | B92: VA | C92: St. Mary's & St. John's Primary | D92: B | E92: 10698 | F92: 3521 | G92: =VLOOKUP(E92,'[2]bank code'!$B$4:$D$99,2,0) -> 938681 | H92: 400135 | I92: 10007067
C93: Total All Through Schools | J93: =COUNTA(#REF!) -> 1
A94: Sec | B94: Comm | C94: Mapledown | D94: D | E94: 10159 | F94: 7010 | G94: =VLOOKUP(E94,'[2]bank code'!$B$4:$D$99,2,0) -> 938699 | H94: 400063 | I94: 10007062
A95: Pri | B95: Comm | C95: Northway | D95: A | E95: 10157 | F95: 7005 | G95: =VLOOKUP(E95,'[2]bank code'!$B$4:$D$99,2,0) -> 938697 | H95: 400034 | I95: 10006690
A96: Pri | B96: Comm | C96: Oakleigh | D96: D | E96: 10158 | F96: 7009 | G96: =VLOOKUP(E96,'[2]bank code'!$B$4:$D$99,2,0) -> 938698 | H96: 400091 | I96: 10006957
C97: Total Special Schools | J97: =COUNTA(E94:E96) -> 3
A98: Sec | C98: Northgate | D98: A | E98: 10185 | F98: 1102 | G98: =VLOOKUP(E98,'[2]bank code'!$B$4:$D$99,2,0) -> 938705 | H98: 400157 | I98: 10071851
A99: Sec | C99: Pavillion | D99: D | E99: 10188 | F99: 1100 | G99: =VLOOKUP(E99,'[2]bank code'!$B$4:$D$99,2,0) -> 938706 | H99: 400156 | I99: 10028935
C100: Total PRU's | J100: =COUNTA(E98:E99) -> 2
C102: Total No. of Schools as at April 2022 | J102: =J97+J91+J84+J10+J100+J93 -> 87
A106: Pri | B106: Comm | C106: Queenswell Infant | D106: C | E106: 10119 | F106: 2071 | G106: =VLOOKUP(E106,'[2]bank code'!$B$4:$D$99,2,0) -> 938644 | H106: 400010 | I106: 10029831
C110: ACADEMIES
C111: Schools Converted to Academies since 2010/11: | H111: New Vendor No. | I111: converted/converting
A112: Acad | B112: Sec | C112: Ashmole School | E112: 10136 | F112: 5406 | G112: 938530 | H112: 140909 | I112: 2010-10-01
A113: Acad | B113: Sec | C113: Compton School | E113: 10138 | F113: 4215 | G113: 938475 | H113: 140894 | I113: 2011-01-01
A114: Acad | B114: Sec | C114: Copthall School | E114: 10152 | F114: 4210 | G114: 938460 | H114: 148020 | I114: 2012-09-01
A115: Acad | B115: Sec | C115: Queen Elizabeth's School, Barnet | E115: 10149 | F115: 5401 | G115: 938505 | H115: 139142 | I115: 2010-09-01
A116: Acad | B116: Sec | C116: East Barnet School | E116: 10153 | F116: 4212 | G116: 938470 | H116: 143727 | I116: 2011-04-01
A117: Acad | B117: Sec | C117: Christ's College | E117: 10151 | F117: 4211 | G117: 938465 | H117: 144389 | I117: 2011-09-01
A118: Acad | B118: Sec | C118: Hasmonean High School | E118: 10146 | F118: 5409 | G118: 938545 | H118: 145386 | I118: 2011-10-01
A119: Acad | B119: Sec | C119: Hendon School | E119: 10150 | F119: 5400 | G119: 938500 | H119: 145169 | I119: 2011-11-01
A120: Acad | B120: Sec | C120: Henrietta Barnett School | E120: 10147 | F120: 4752 | G120: 938485 | H120: 147243 | I120: 2012-04-01
A121: Acad | B121: Sec | C121: Mill Hill High School | E121: 10140 | F121: 5402 | G121: 938510 | H121: 144069 | I121: 2011-09-01
A122: Acad | B122: Sec | C122: Queen Elizabeth's Girls' School | E122: 10154 | F122: 4208 | G122: 938455 | H122: 144387 | I122: 2011-08-01
A123: Acad | B123: Sec | C123: Ravenscroft School | E123: 10141 | F123: 4009 | G123: 938445 | H123: 144388 | I123: 2011-09-01
A124: Acad | B124: Sec | C124: Whitefield School | E124: 10144 | F124: 4012 | G124: 938450 | H124: 144062 | I124: 2011-09-01
A125: Acad | B125: Sec | C125: Bishop Douglass RC High | E125: 10137 | F125: 5408 | G125: 938540 | H125: 156628 | I125: 2016-09-01
A126: Acad | B126: Special | C126: Oak Lodge | E126: 10156 | F126: 7000 | G126: =VLOOKUP(E126,'[2]bank code'!$B$4:$D$99,2,0) -> 938696 | H126: 156901 | I126: 2017-01-01
A127: Acad | B127: Pri | C127: Grasvenor Avenue Infant School | E127: 10070 | F127: 2030 | G127: 938145 | H127: 148347 | I127: 2012-09-01
A128: Acad | B128: Pri | C128: Independent Jewish Day School | E128: 10106 | F128: 3515 | G128: 938420 | H128: 143982 | I128: 2011-08-17
A129: Acad | B129: Pri | C129: Deansbrook Junior School | E129: 10058 | F129: 2018 | G129: 938090 | H129: 151094 | I129: 2013-04-01
A130: Acad | B130: Pri | C130: Parkfield School | E130: 10120 | F130: 2000 | G130: 938020 | H130: 152217 | I130: 2013-08-01
A131: Acad | B131: Pri | C131: Hyde School | E131: 10122 | F131: 2074 | G131: 938260 | H131: 151702 | I131: 2013-09-01
A132: Acad | B132: Pri | C132: Broadfields School | E132: 10134 | F132: 3519 | G132: 938435 | H132: 152128 | I132: 2013-10-01
A133: Acad | B133: Pri | C133: Claremont | E133: 10953 | F133: 2014 | H133: 6610 | I133: 2016-03-01
A134: Acad | B134: Pri | C134: Summerside | E134: 10098 | F134: 2052 | G134: =VLOOKUP(E134,'[2]bank code'!$B$4:$D$99,2,0) -> 938636 | H134: 157542 | I134: 2017-09-01
A135: Acad | B135: Pri | C135: Sacks Morasha | E135: 11381 | F135: 2041 | G135: 938703 | I135: 2019-03-01
A136: Acad | B136: Pri | C136: Childs Hill | E136: 10049 | F136: 2010 | G136: =VLOOKUP(E136,'[2]bank code'!$B$4:$D$99,2,0) -> 938610 | H136: 160141 | I136: 2020-02-01
C137: Total Schools Converted to Academies | J137: =COUNTA(E112:E136) -> 25
C139: Total Schools (including schools converted to Academies) | J139: =J102+J137 -> 112
C141: Millbrook Park Academy | H141: 153348 | I141: Opening Sept 2015
C143: Closed Schools
A144: Sec | B144: closed | C144: St Mary's CE High School | D144: B | E144: 10143 | F144: 5403 | G144: 938515 | H144: 400025 | I144: 10030357 | K144: 2016-08-31
A146: Pri | B146: Found | C146: Dollis Junior | D146: B | E146: 10060 | F146: 5200 | G146: =VLOOKUP(E146,'[2]bank code'!$B$4:$D$99,2,0) -> 938686 | H146: 400052 | I146: 10029408
E151: Customer No.
C152: Akiva | E152: 10030154
C153: All Saints' CE (NW2) | E153: 10006117
C154: All Saints' CE (N20) | E154: 10006041
C155: Annunciation RC Infant | E155: 10008146
C156: Annunciation RC Junior | E156: 10007147
C157: Ashmole School | E157: 10007865
C158: Barnfield | E158: 10007053
C159: Barnfield Childrens Centre | E159: 10051934
C160: Beis Yaakov | E160: 10028579
C161: Beit Shvidler | E161: 10067446
C162: Bell Lane Childrens Centre | E162: 10051935
C163: Bell Lane | E163: 10006405
C164: Bishop Douglass RC High | E164: 10005963
C165: Blessed Dominic RC School | E165: 10007834
C166: Broadfields Primary | E166: 10007054
C167: Brookhill Nursery | E167: 10021968
C168: Brookland Infant | E168: 10006742
C169: Brookland Junior | E169: 10007055
C170: Brunswick Park | E170: 10007056
C171: Chalgrove | E171: 10006373
C172: Childs Hill Childrens Centre | E172: 10051936
C173: Childs Hill | E173: 10004595
C174: Christ Church | E174: 10004765
C175: Christ's College (Academy) | E175: 10065082
C176: Church Hill | E176: 10028842
C177: Claremont | E177: 10015148
C178: Colindale | E178: 10006223
C179: Compton School (Academy) | E179: 10063055
C180: Coppetts Wood Childrens Centre | E180: 10051937
C181: Coppetts Wood | E181: 10029750
C182: Copthall School | E182: 10005960
C183: Copthall School (Academy) | E183: 10069115
C184: Courtland | E184: 10007246
C185: Cromer Road | E185: 10005184
C186: Danegrove | E186: 10004576
C187: Deansbrook Infant | E187: 10004642
C188: Deansbrook Junior School (Academy) | E188: 10072028
C189: Dollis Infant | E189: 10008630
C190: Dollis Junior | E190: 10029408
C191: East Barnet School (Academy) | E191: 10063334
C192: Edgware Primary | E192: 10029387
C193: Fairway Childrens Centre | E193: 10025086
C194: Fairway | E194: 10006689
C195: Finchley Catholic High | E195: 10028710
C196: Foulds | E196: 10027412
C197: Friern Barnet School | E197: 10027413
C198: Frith Manor | E198: 10007765
C199: Garden Suburb Junior | E199: 10005165
C200: Garden Suburb Infant | E200: 10006049
C201: Goldbeaters | E201: 10008175
C202: Grasvenor Avenue Infant (Academy) | E202: 10069114
C203: Hampden Way Childrens Centre | E203: 10051938
C204: Hampden Way Nursery | E204: 10028845
C205: Hasmonean High School (girls) (Academy) | E205: 10065398
C206: Hasmonean Primary | E206: 10006802
C207: Hendon School (Academy) | E207: 10065838
C208: Henrietta Barnett School (Academy) | E208: 10065035
C209: Hollickwood | E209: 10008170
C210: Holly Park | E210: 10007226
C211: Holy Trinity | E211: 10006043
C212: Hyde Childrens Centre | E212: 10051942
C213: Hyde | E213: 10008119
C214: Independent Jewish Day School (Academy) | E214: 10064736
C215: JCOSS | E215: 10057017
C216: Livingstone | E216: 10007060
... 65 more rows

Sheet check (hidden)
B2: Transactions Totals | O2: CFR Inc + cap | T2: CFR Exp + cap | U2: Rev Bal | W2: Cap Bal
O3: bal bfd | T3: bal bfwd
E4: School | F4: Transactions | G4: Report Total | H4: Non CFR Adj | O4: A | T4: B | U4: C | W4: D
F5: £ | G5: £
B6: 10135 | C6: =B6&" Total" -> 10135 Total | D6: Total | E6: BEYA | F6: =VLOOKUP(C6,BEYA!J:S,7,0) -> 805641.71 | G6: =VLOOKUP(D6,BEYA!B:H,4,0) -> -219007.12 | H6: =G6-F6 -> -1024648.83 | K6: =(VLOOKUP($I$198,BEYA!B:H,5,0)) -> -329255.05 | L6: =IFERROR(K6,0) -> -329255.05 | M6: =(VLOOKUP($I$199,BEYA!B:H,5,0)) -> 0 | N6: =IFERROR(M6,"0") -> 0 | O6: =L6+N6 -> -329255.05 | P6: =(VLOOKUP($I$200,BEYA!B:H,5,0)) -> 1134896.76 | Q6: =IFERROR(P6,0) -> 1134896.76 | R6: =(VLOOKUP($I$201,BEYA!B:H,5,0)) -> 0 | S6: =IFERROR(R6,"0") -> 0 | T6: =Q6+S6 -> 1134896.76 | U6: =(VLOOKUP($I$202,BEYA!B:H,7,0)) -> -1149051.71 | V6: =(VLOOKUP($I$204,BEYA!B:H,7,0)) -> 103003 | W6: =IFERROR(V6,0) -> 103003 | X6: =BEYA!#REF! -> 
B7: 10130 | C7: =B7&" Total" -> 10130 Total | D7: Total | E7: Brookhill Nursery | F7: =IF(VLOOKUP(C7,Brk!I:O,7,0),0) ->  | G7: =VLOOKUP(D7,Brk!B:H,4,0) ->  | H7: =G7-F7 ->  | K7: =(VLOOKUP($I$198,Brk!B:H,5,0)) ->  | L7: =IFERROR(K7,0) -> 0 | M7: =(VLOOKUP($I$199,Brk!B:H,5,0)) ->  | N7: =IFERROR(M7,"0") -> 0 | O7: =L7+N7 -> 0 | P7: =(VLOOKUP($I$200,Brk!B:H,5,0)) ->  | Q7: =IFERROR(P7,0) -> 0 | R7: =(VLOOKUP($I$201,Brk!B:H,5,0)) ->  | S7: =IFERROR(R7,"0") -> 0 | T7: =Q7+S7 -> 0 | U7: =(VLOOKUP($I$202,Brk!B:H,7,0)) ->  | V7: =(VLOOKUP($I$204,Brk!B:H,7,0)) ->  | W7: =IFERROR(V7,0) -> 0 | X7: =Brk!$C$7 -> 0
B8: 10131 | C8: =B8&" Total" -> 10131 Total | D8: Total | E8: Hampden Way Nursery | F8: =VLOOKUP(C8,Hmp!I:O,7,0) ->  | G8: =VLOOKUP(D8,Hmp!B:H,4,0) ->  | H8: =G8-F8 ->  | K8: =(VLOOKUP($I$198,Hmp!B:H,5,0)) ->  | L8: =IFERROR(K8,0) -> 0 | M8: =(VLOOKUP($I$199,Hmp!B:H,5,0)) ->  | N8: 0 | O8: =L8+N8 -> 0 | P8: =(VLOOKUP($I$200,Hmp!B:H,5,0)) ->  | Q8: =IFERROR(P8,0) -> 0 | R8: =(VLOOKUP($I$201,Hmp!B:H,5,0)) ->  | S8: 0 | T8: 0 | U8: =(VLOOKUP($I$202,Hmp!B:H,7,0)) ->  | V8: =(VLOOKUP($I$204,Hmp!B:H,7,0)) ->  | W8: =IFERROR(V8,0) -> 0 | X8: =Hmp!$C$7 -> 0
B9: 10132 | C9: 10132 Total | D9: Total | E9: Moss Hall Nursery | F9: =VLOOKUP(C9,MHN!J:S,7,0) -> 86871.64 | G9: =VLOOKUP(D9,MHN!B:H,4,0) -> -184258.36 | H9: -271130 | K9: =(VLOOKUP($I$198,MHN!B:H,5,0)) -> -214247.25 | L9: -214247.25 | M9: =+(VLOOKUP($I$199,MHN!B:H,5,0)) -> 0 | N9: 0 | O9: -214247.25 | P9: =(VLOOKUP($I$200,MHN!B:H,5,0)) -> 301118.89 | Q9: 301118.89 | R9: =+(VLOOKUP($I$201,MHN!B:H,5,0)) -> 0 | S9: 0 | T9: 301118.89 | U9: =(VLOOKUP($I$202,MHN!B:H,7,0)) -> -282992.64 | V9: =(VLOOKUP($I$204,MHN!B:H,7,0)) -> 27403 | W9: 27403 | X9: =MHN!#REF! -> 
B10: 10133 | C10: 10133 Total | D10: Total | E10: St Margaret's Nursery | F10: =VLOOKUP(C10,StM!I:O,7,0) ->  | G10: =VLOOKUP(D10,StM!B:H,4,0) ->  | K10: =(VLOOKUP($I$198,StM!B:H,5,0)) ->  | L10: 0 | M10: =+(VLOOKUP($I$199,StM!B:H,5,0)) ->  | N10: 0 | O10: 0 | P10: =(VLOOKUP($I$200,StM!B:H,5,0)) ->  | Q10: 0 | R10: =+(VLOOKUP($I$201,StM!B:H,5,0)) ->  | S10: 0 | T10: 0 | U10: =(VLOOKUP($I$202,StM!B:H,7,0)) ->  | V10: =(VLOOKUP($I$204,StM!B:H,7,0)) ->  | W10: 0 | X10: =StM!$C$7 -> 0
B11: 10159 | C11: 10159 Total | D11: Total | E11: Mapledown | F11: =VLOOKUP(C11,Mpldwn!J:S,7,0) -> -99056.03 | G11: =VLOOKUP(D11,Mpldwn!B:H,4,0) -> -156797.03 | H11: -57741 | K11: =(VLOOKUP($I$198,Mpldwn!B:F,5,0)) -> -1178670.74 | L11: -1178670.74 | M11: =+(VLOOKUP($I$199,Mpldwn!B:F,5,0)) -> 0 | N11: 0 | O11: -1178670.74 | P11: =(VLOOKUP($I$200,Mpldwn!B:F,5,0)) -> 1070686.71 | Q11: 1070686.71 | R11: =+(VLOOKUP($I$201,Mpldwn!B:F,5,0)) -> 8928 | S11: 8928 | T11: 1079614.71 | U11: =(VLOOKUP($I$202,Mpldwn!B:H,7,0)) -> 729539.03 | V11: =(VLOOKUP($I$204,Mpldwn!B:H,7,0)) -> 40007 | W11: 40007 | X11: =Mpldwn!#REF! -> 
B12: 10157 | C12: 10157 Total | D12: Total | E12: Northway | F12: =VLOOKUP(C12,Nrthwy!J:S,7,0) -> 352558.6 | G12: =VLOOKUP(D12,Nrthwy!B:H,4,0) -> -737502.89 | H12: -1090061.49 | K12: =(VLOOKUP($I$198,Nrthwy!B:F,5,0)) -> -1002893.25 | L12: -1002893.25 | M12: =+(VLOOKUP($I$199,Nrthwy!B:F,5,0)) -> 0 | N12: 0 | O12: -1002893.25 | P12: =(VLOOKUP($I$200,Nrthwy!B:F,5,0)) -> 1355451.85 | Q12: 1355451.85 | R12: =+(VLOOKUP($I$201,Nrthwy!B:F,5,0)) -> 0 | S12: 0 | T12: 1355451.85 | U12: =(VLOOKUP($I$202,Nrthwy!B:H,7,0)) -> -9493.6 | V12: =(VLOOKUP($I$204,Nrthwy!B:H,7,0)) -> 0 | W12: 0 | X12: =Nrthwy!#REF! -> 
B13: 10156 | C13: 10156 Total | D13: Total | E13: Oak Lodge | F13: 0 | G13: 0 | H13: 0 | K13: =(VLOOKUP($I$198,okldg!B:F,5,0)) ->  | L13: 0 | M13: =+(VLOOKUP($I$199,okldg!B:F,5,0)) ->  | N13: 0 | O13: 0 | P13: =(VLOOKUP($I$200,okldg!B:F,5,0)) ->  | Q13: 0 | R13: =+(VLOOKUP($I$201,okldg!B:F,5,0)) ->  | S13: 0 | T13: 0 | U13: =(VLOOKUP($I$202,okldg!B:H,7,0)) ->  | V13: =(VLOOKUP($I$204,okldg!B:H,7,0)) ->  | W13: 0 | X13: =okldg!$C$7 -> 0
B14: 10158 | C14: 10158 Total | D14: Total | E14: Oakleigh | F14: =VLOOKUP(C14,Oklgh!J:S,7,0) -> 425841.23 | G14: =VLOOKUP(D14,Oklgh!B:H,4,0) -> 222375.54 | H14: -203465.69 | K14: =(VLOOKUP($I$198,Oklgh!B:F,5,0)) -> -1058298.95 | L14: -1058298.95 | M14: =+(VLOOKUP($I$199,Oklgh!B:F,5,0)) -> 0 | N14: 0 | O14: -1058298.95 | P14: =(VLOOKUP($I$200,Oklgh!B:F,5,0)) -> 1435217.18 | Q14: 1435217.18 | R14: =+(VLOOKUP($I$201,Oklgh!B:F,5,0)) -> 48923 | S14: 48923 | T14: 1484140.18 | U14: =(VLOOKUP($I$202,Oklgh!B:H,7,0)) -> -148327.23 | V14: =(VLOOKUP($I$204,Oklgh!B:H,7,0)) -> 3392 | W14: 3392 | X14: =Oklgh!#REF! -> 
B15: 10185 | C15: 10185 Total | D15: Total | E15: Northgate | F15: =VLOOKUP(C15,Northg!J:S,7,0) -> 173915.66 | G15: =VLOOKUP(D15,Northg!B:H,4,0) -> -116715.97 | H15: -290631.63 | K15: =(VLOOKUP($I$198,Northg!B:F,5,0)) -> -63890.99 | L15: -63890.99 | M15: =+(VLOOKUP($I$199,Northg!B:F,5,0)) ->  | N15: 0 | O15: -63890.99 | P15: =(VLOOKUP($I$200,Northg!B:F,5,0)) -> 237806.65 | Q15: 237806.65 | R15: =+(VLOOKUP($I$201,Northg!B:F,5,0)) -> 0 | S15: 0 | T15: 237806.65 | U15: =(VLOOKUP($I$202,Northg!B:H,7,0)) -> -80331.66 | V15: =(VLOOKUP($I$204,Northg!B:H,7,0)) -> 16536 | W15: 16536 | X15: =Northg!#REF! -> 
B16: 10188 | C16: 10188 Total | D16: Total | E16: Pavilion | F16: =VLOOKUP(C16,Pavilion!J:S,7,0) -> 54667.06 | G16: =VLOOKUP(D16,Pavilion!B:H,4,0) -> -24222.94 | H16: -78890 | K16: =(VLOOKUP($I$198,Pavilion!B:F,5,0)) -> -738528.25 | L16: -738528.25 | M16: =+(VLOOKUP($I$199,Pavilion!B:F,5,0)) -> 0 | N16: 0 | O16: -738528.25 | P16: =(VLOOKUP($I$200,Pavilion!B:F,5,0)) -> 778945.31 | Q16: 778945.31 | R16: =+(VLOOKUP($I$201,Pavilion!B:F,5,0)) -> 14250 | S16: 14250 | T16: 793195.31 | U16: =(VLOOKUP($I$202,Pavilion!B:H,7,0)) -> 470368.94 | V16: =(VLOOKUP($I$204,Pavilion!B:H,7,0)) -> 42464 | W16: 42464 | X16: =Pavilion!#REF! -> 
B17: 11094 | C17: 11094 Total | D17: Total | E17: Akiva | F17: =VLOOKUP(C17,Akv!J:S,7,0) -> 106308.8 | G17: =VLOOKUP(D17,Akv!B:H,4,0) -> -715507.36 | H17: -821816.16 | K17: =(VLOOKUP($I$198,Akv!B:F,5,0)) -> -973213.32 | L17: -973213.32 | M17: =+(VLOOKUP($I$199,Akv!B:F,5,0)) -> 27320 | N17: =IFERROR(M17,"0") -> 27320 | O17: -945893.32 | P17: =(VLOOKUP($I$200,Akv!B:F,5,0)) -> 1052202.12 | Q17: 1052202.12 | R17: =+(VLOOKUP($I$201,Akv!B:F,5,0)) ->  | S17: =IFERROR(R17,"0") -> 0 | T17: =Q17+S17 -> 1052202.12 | U17: =(VLOOKUP($I$202,Akv!B:H,7,0)) -> 82008.2 | V17: =(VLOOKUP($I$204,Akv!B:H,7,0)) -> -27320 | W17: -27320 | X17: =Akv!#REF! -> 
B18: 10042 | C18: 10042 Total | D18: Total | E18: All Saint's N20 | F18: =VLOOKUP(C18,AstN20!J:S,7,0) -> 247863.97 | G18: =VLOOKUP(D18,AstN20!B:H,4,0) -> -338243.67 | H18: -586107.64 | K18: =(VLOOKUP($I$198,AstN20!B:F,5,0)) -> -427447.27 | L18: -427447.27 | M18: =+(VLOOKUP($I$199,AstN20!B:F,5,0)) ->  | N18: 0 | O18: -427447.27 | P18: =(VLOOKUP($I$200,AstN20!B:F,5,0)) -> 675311.24 | Q18: 675311.24 | R18: =+(VLOOKUP($I$201,AstN20!B:F,5,0)) ->  | S18: 0 | T18: 675311.24 | U18: =(VLOOKUP($I$202,AstN20!B:H,7,0)) -> -214709.97 | V18: =(VLOOKUP($I$204,AstN20!B:H,7,0)) ->  | W18: 0 | X18: =AstN20!#REF! -> 
B19: 10040 | C19: 10040 Total | D19: Total | E19: All Saint's NW2 | F19: =VLOOKUP(C19,AstNW2!J:S,7,0) -> -107216.14 | G19: =VLOOKUP(D19,AstNW2!B:H,4,0) -> -81719.14 | H19: 25497 | K19: =(VLOOKUP($I$198,AstNW2!B:F,5,0)) -> -408170.41 | L19: -408170.41 | M19: =+(VLOOKUP($I$199,AstNW2!B:F,5,0)) ->  | N19: 0 | O19: -408170.41 | P19: =(VLOOKUP($I$200,AstNW2!B:F,5,0)) -> 300954.27 | Q19: 300954.27 | R19: =+(VLOOKUP($I$201,AstNW2!B:F,5,0)) ->  | S19: 0 | T19: 300954.27 | U19: =(VLOOKUP($I$202,AstNW2!B:H,7,0)) -> 201436.14 | V19: =(VLOOKUP($I$204,AstNW2!B:H,7,0)) ->  | W19: 0 | X19: =AstNW2!#REF! -> 
B20: 10043 | C20: 10043 Total | D20: Total | E20: Annunciation Inf | F20: =VLOOKUP(C20,AnnI!J:S,7,0) -> 22547.78 | G20: =VLOOKUP(D20,AnnI!B:H,4,0) -> -222052.67 | H20: -244600.45 | K20: =(VLOOKUP($I$198,AnnI!B:F,5,0)) -> -333803.84 | L20: -333803.84 | M20: =+(VLOOKUP($I$199,AnnI!B:F,5,0)) -> -20657.87 | N20: -20657.87 | O20: -354461.71 | P20: =(VLOOKUP($I$200,AnnI!B:F,5,0)) -> 350582.08 | Q20: 350582.08 | R20: =+(VLOOKUP($I$201,AnnI!B:F,5,0)) -> 26427.41 | S20: 26427.41 | T20: 377009.49 | U20: =(VLOOKUP($I$202,AnnI!B:H,7,0)) -> -125074.24 | V20: =(VLOOKUP($I$204,AnnI!B:H,7,0)) -> -5769.54 | W20: -5769.54 | X20: =AnnI!#REF! -> 
B21: 10117 | C21: 10117 Total | D21: Total | E21: Annunciation Jun | F21: =VLOOKUP(C21,AnnJ!J:S,7,0) -> 131624.53 | G21: =VLOOKUP(D21,AnnJ!B:H,4,0) -> -213927.1 | H21: -345551.63 | K21: =(VLOOKUP($I$198,AnnJ!B:F,5,0)) -> -348550.97 | L21: -348550.97 | M21: =+(VLOOKUP($I$199,AnnJ!B:F,5,0)) ->  | N21: 0 | O21: -348550.97 | P21: =(VLOOKUP($I$200,AnnJ!B:F,5,0)) -> 480175.5 | Q21: 480175.5 | R21: =+(VLOOKUP($I$201,AnnJ!B:F,5,0)) ->  | S21: 0 | T21: 480175.5 | U21: =(VLOOKUP($I$202,AnnJ!B:H,7,0)) -> -95641.53 | V21: =(VLOOKUP($I$204,AnnJ!B:H,7,0)) ->  | W21: 0 | X21: =AnnJ!#REF! -> 
B22: 10044 | C22: 10044 Total | D22: Total | E22: Barnfield | F22: =VLOOKUP(C22,Barnf!J:S,7,0) -> -120917.68 | G22: =VLOOKUP(D22,Barnf!B:H,4,0) -> -108919.68 | H22: 11998 | K22: =(VLOOKUP($I$198,Barnf!B:F,5,0)) -> -826119.73 | L22: -826119.73 | M22: =+(VLOOKUP($I$199,Barnf!B:F,5,0)) -> 0 | N22: 0 | O22: -826119.73 | P22: =(VLOOKUP($I$200,Barnf!B:F,5,0)) -> 690218.34 | Q22: 690218.34 | R22: =+(VLOOKUP($I$201,Barnf!B:F,5,0)) -> 14983.71 | S22: 14983.71 | T22: 705202.05 | U22: =(VLOOKUP($I$202,Barnf!B:H,7,0)) -> 222064.39 | V22: =(VLOOKUP($I$204,Barnf!B:H,7,0)) -> -14983.71 | W22: -14983.71 | X22: =Barnf!#REF! -> 
B23: 10128 | C23: 10128 Total | D23: Total | E23: Beis Yaakov | F23: =VLOOKUP(C23,BYaak!J:S,7,0) -> 200488.03 | G23: =VLOOKUP(D23,BYaak!B:H,4,0) -> -533456.95 | H23: -733944.98 | K23: =(VLOOKUP($I$198,BYaak!B:F,5,0)) -> -641748.31 | L23: -641748.31 | M23: =+(VLOOKUP($I$199,BYaak!B:F,5,0)) ->  | N23: 0 | O23: -641748.31 | P23: =(VLOOKUP($I$200,BYaak!B:F,5,0)) -> 842236.34 | Q23: 842236.34 | R23: =+(VLOOKUP($I$201,BYaak!B:F,5,0)) ->  | S23: 0 | T23: 842236.34 | U23: =(VLOOKUP($I$202,BYaak!B:H,7,0)) -> -256770.03 | V23: =(VLOOKUP($I$204,BYaak!B:H,7,0)) ->  | W23: 0 | X23: =BYaak!#REF! -> 
B24: 11278 | C24: 11278 Total | D24: Total | E24: Beit Shvidler School | F24: =VLOOKUP(C24,BeitShv!J:S,7,0) -> 472390.94 | G24: =VLOOKUP(D24,BeitShv!B:H,4,0) -> -438140.81 | H24: -910531.75 | K24: =(VLOOKUP($I$198,BeitShv!B:F,5,0)) -> -224954.14 | L24: -224954.14 | M24: =+(VLOOKUP($I$199,BeitShv!B:F,5,0)) ->  | N24: 0 | O24: -224954.14 | P24: =(VLOOKUP($I$200,BeitShv!B:F,5,0)) -> 697345.08 | Q24: 697345.08 | R24: =+(VLOOKUP($I$201,BeitShv!B:F,5,0)) ->  | S24: 0 | T24: 697345.08 | U24: =(VLOOKUP($I$202,BeitShv!B:H,7,0)) -> -392043.94 | V24: =(VLOOKUP($I$204,BeitShv!B:H,7,0)) ->  | W24: 0 | X24: =BeitShv!#REF! -> 
B25: 10045 | C25: 10045 Total | D25: Total | E25: Bell Lane | F25: =VLOOKUP(C25,Bell!J:S,7,0) -> 524030.54 | G25: =VLOOKUP(D25,Bell!B:H,4,0) -> 0 | H25: -524030.54 | K25: =(VLOOKUP($I$198,Bell!B:F,5,0)) -> 6500 | L25: 6500 | M25: =+(VLOOKUP($I$199,Bell!B:F,5,0)) ->  | N25: 0 | O25: 6500 | P25: =(VLOOKUP($I$200,Bell!B:F,5,0)) -> 517530.54 | Q25: 517530.54 | R25: =+(VLOOKUP($I$201,Bell!B:F,5,0)) -> 0 | S25: 0 | T25: 517530.54 | U25: =(VLOOKUP($I$202,Bell!B:H,7,0)) -> -623443.54 | V25: =(VLOOKUP($I$204,Bell!B:H,7,0)) -> 26328 | W25: 26328 | X25: =Bell!#REF! -> 
B26: 10115 | C26: 10115 Total | D26: Total | E26: Blessed Dominic | F26: =VLOOKUP(C26,BDom!J:S,7,0) -> 245934.12 | G26: =VLOOKUP(D26,BDom!B:H,4,0) -> -594419.75 | H26: -840353.87 | K26: =(VLOOKUP($I$198,BDom!B:F,5,0)) -> -793822.56 | L26: -793822.56 | M26: =+(VLOOKUP($I$199,BDom!B:F,5,0)) ->  | N26: 0 | O26: -793822.56 | P26: =(VLOOKUP($I$200,BDom!B:F,5,0)) -> 1039756.68 | Q26: 1039756.68 | R26: =+(VLOOKUP($I$201,BDom!B:F,5,0)) ->  | S26: 0 | T26: 1039756.68 | U26: =(VLOOKUP($I$202,BDom!B:H,7,0)) -> 120518.88 | V26: =(VLOOKUP($I$204,BDom!B:H,7,0)) ->  | W26: 0 | X26: =BDom!#REF! -> 
B27: 10047 | C27: 10047 Total | D27: Total | E27: Brookland Inf | F27: =VLOOKUP(C27,BrookI!J:S,7,0) -> -157199.21 | G27: =VLOOKUP(D27,BrookI!B:H,4,0) -> -110861.21 | H27: 46338 | K27: =(VLOOKUP($I$198,BrookI!B:F,5,0)) -> -634611.09 | L27: =IFERROR(K27,0) -> -634611.09 | M27: =(VLOOKUP($I$199,BrookI!B:F,5,0)) -> 0 | N27: 0 | O27: -634611.09 | P27: =(VLOOKUP($I$200,BrookI!B:F,5,0)) -> 477411.88 | Q27: =IFERROR(P27,0) -> 477411.88 | R27: =(VLOOKUP($I$201,BrookI!B:F,5,0)) -> 0 | S27: 0 | T27: 477411.88 | U27: =(VLOOKUP($I$202,BrookI!B:H,7,0)) -> 188819.21 | V27: =(VLOOKUP($I$204,BrookI!B:H,7,0)) -> 15293 | W27: =IFERROR(V27,0) -> 15293 | X27: =BrookI!#REF! -> 
B28: 10046 | C28: 10046 Total | D28: Total | E28: Brookland Jun | F28: =VLOOKUP(C28,BrookJ!J:S,7,0) -> -77514.36 | G28: =VLOOKUP(D28,BrookJ!B:H,4,0) -> -64545.36 | H28: 12969 | K28: =(VLOOKUP($I$198,BrookJ!B:F,5,0)) -> -710601.68 | L28: -710601.68 | M28: =+(VLOOKUP($I$199,BrookJ!B:F,5,0)) -> 0 | N28: 0 | O28: -710601.68 | P28: =(VLOOKUP($I$200,BrookJ!B:F,5,0)) -> 630111.28 | Q28: 630111.28 | R28: =+(VLOOKUP($I$201,BrookJ!B:F,5,0)) -> 2976.04 | S28: 2976.04 | T28: 633087.32 | U28: =(VLOOKUP($I$202,BrookJ!B:H,7,0)) -> 247497.4 | V28: =(VLOOKUP($I$204,BrookJ!B:H,7,0)) -> 4108.96 | W28: 4108.96 | X28: =BrookJ!#REF! -> 
B29: 10048 | C29: 10048 Total | D29: Total | E29: Brunswick Park | F29: =VLOOKUP(C29,BrunsP!J:S,7,0) -> 1960381.1 | G29: =VLOOKUP(D29,BrunsP!B:H,4,0) -> 0 | H29: -1960381.1 | K29: =(VLOOKUP($I$198,BrunsP!B:F,5,0)) -> 776984.64 | L29: 776984.64 | M29: =+(VLOOKUP($I$199,BrunsP!B:F,5,0)) -> 19055 | N29: 19055 | O29: 796039.64 | P29: =(VLOOKUP($I$200,BrunsP!B:F,5,0)) -> 1164341.46 | Q29: 1164341.46 | R29: =+(VLOOKUP($I$201,BrunsP!B:F,5,0)) -> 0 | S29: 0 | T29: 1164341.46 | U29: =(VLOOKUP($I$202,BrunsP!B:H,7,0)) -> -1968870.1 | V29: =(VLOOKUP($I$204,BrunsP!B:H,7,0)) -> -3678 | W29: -3678 | X29: =BrunsP!#REF! -> 
B30: 10118 | C30: 10118 Total | D30: Total | E30: Chalgrove | F30: =VLOOKUP(C30,Chal!J:S,7,0) -> 192988.95 | G30: =VLOOKUP(D30,Chal!B:H,4,0) -> -396854.6 | H30: -589843.55 | K30: =(VLOOKUP($I$198,Chal!B:F,5,0)) -> -536862.45 | L30: -536862.45 | M30: =+(VLOOKUP($I$199,Chal!B:F,5,0)) -> 0 | N30: 0 | O30: -536862.45 | P30: =(VLOOKUP($I$200,Chal!B:F,5,0)) -> 717966.4 | Q30: 717966.4 | R30: =+(VLOOKUP($I$201,Chal!B:F,5,0)) -> 11885 | S30: 11885 | T30: 729851.4 | U30: =(VLOOKUP($I$202,Chal!B:H,7,0)) -> -160924.95 | V30: =(VLOOKUP($I$204,Chal!B:H,7,0)) -> 9023 | W30: 9023 | X30: =Chal!#REF! -> 
B31: 10049 | C31: 10049 Total | D31: Total | E31: Childs Hill | F31: =VLOOKUP(C31,ChildsH!I:O,7,0) ->  | G31: =VLOOKUP(D31,ChildsH!B:H,4,0) ->  | K31: =(VLOOKUP($I$198,ChildsH!B:F,5,0)) ->  | L31: 0 | M31: =+(VLOOKUP($I$199,ChildsH!B:F,5,0)) ->  | N31: 0 | O31: 0 | P31: =(VLOOKUP($I$200,ChildsH!B:F,5,0)) ->  | Q31: 0 | R31: =+(VLOOKUP($I$201,ChildsH!B:F,5,0)) ->  | S31: 0 | T31: 0 | U31: =(VLOOKUP($I$202,ChildsH!B:H,7,0)) ->  | V31: =(VLOOKUP($I$204,ChildsH!B:H,7,0)) ->  | W31: 0 | X31: =ChildsH!#REF! -> 
B32: 10050 | C32: 10050 Total | D32: Total | E32: Christchurch JMI | F32: =VLOOKUP(C32,ChristC!J:S,7,0) -> -49540.87 | G32: =VLOOKUP(D32,ChristC!B:H,4,0) -> -38666.87 | H32: 10874 | K32: =(VLOOKUP($I$198,ChristC!B:F,5,0)) -> -436134.86 | L32: -436134.86 | M32: =+(VLOOKUP($I$199,ChristC!B:F,5,0)) ->  | N32: 0 | O32: -436134.86 | P32: =(VLOOKUP($I$200,ChristC!B:F,5,0)) -> 386593.99 | Q32: 386593.99 | R32: =+(VLOOKUP($I$201,ChristC!B:F,5,0)) ->  | S32: 0 | T32: 386593.99 | U32: =(VLOOKUP($I$202,ChristC!B:H,7,0)) -> 423820.87 | V32: =(VLOOKUP($I$204,ChristC!B:H,7,0)) ->  | W32: 0 | X32: =ChristC!#REF! -> 
B33: 10051 | C33: 10051 Total | D33: Total | E33: Church Hill | F33: =VLOOKUP(C33,ChurchH!J:S,7,0) -> -4075.37 | G33: =VLOOKUP(D33,ChurchH!B:H,4,0) -> -378981.77 | H33: -374906.4 | K33: =(VLOOKUP($I$198,ChurchH!B:F,5,0)) -> -486228.87 | L33: -486228.87 | M33: =+(VLOOKUP($I$199,ChurchH!B:F,5,0)) -> 0 | N33: 0 | O33: -486228.87 | P33: =(VLOOKUP($I$200,ChurchH!B:F,5,0)) -> 476848.5 | Q33: 476848.5 | R33: =+(VLOOKUP($I$201,ChurchH!B:F,5,0)) -> 5305 | S33: 5305 | T33: 482153.5 | U33: =(VLOOKUP($I$202,ChurchH!B:H,7,0)) -> -156710.63 | V33: =(VLOOKUP($I$204,ChurchH!B:H,7,0)) -> 18096 | W33: 18096 | X33: =ChurchH!#REF! -> 
B34: 10054 | C34: 10054 Total | D34: Total | E34: Colindale | F34: =VLOOKUP(C34,Colin!J:S,7,0) -> -395316.6 | G34: =VLOOKUP(D34,Colin!B:H,4,0) -> -372619.6 | H34: 22697 | K34: =(VLOOKUP($I$198,Colin!B:F,5,0)) -> -1262047.46 | L34: -1262047.46 | M34: =+(VLOOKUP($I$199,Colin!B:F,5,0)) -> 0 | N34: 0 | O34: -1262047.46 | P34: =(VLOOKUP($I$200,Colin!B:F,5,0)) -> 864096.86 | Q34: 864096.86 | R34: =+(VLOOKUP($I$201,Colin!B:F,5,0)) -> 2634 | S34: 2634 | T34: 866730.86 | U34: =(VLOOKUP($I$202,Colin!B:H,7,0)) -> 594118.6 | V34: =(VLOOKUP($I$204,Colin!B:H,7,0)) -> 1506 | W34: 1506 | X34: =Colin!#REF! -> 
B35: 10055 | C35: 10055 Total | D35: Total | E35: Coppetts Wood | F35: =VLOOKUP(C35,Coppet!J:S,7,0) -> 157215.19 | G35: =VLOOKUP(D35,Coppet!B:H,4,0) -> -523171.11 | H35: -680386.3 | K35: =(VLOOKUP($I$198,Coppet!B:F,5,0)) -> -724457 | L35: -724457 | M35: =+(VLOOKUP($I$199,Coppet!B:F,5,0)) -> 0 | N35: 0 | O35: -724457 | P35: =(VLOOKUP($I$200,Coppet!B:F,5,0)) -> 881672.19 | Q35: 881672.19 | R35: =+(VLOOKUP($I$201,Coppet!B:F,5,0)) -> 0 | S35: 0 | T35: 881672.19 | U35: =(VLOOKUP($I$202,Coppet!B:H,7,0)) -> -216183.19 | V35: =(VLOOKUP($I$204,Coppet!B:H,7,0)) -> 14819 | W35: 14819 | X35: =Coppet!#REF! -> 
B36: 10056 | C36: 10056 Total | D36: Total | E36: Courtland | F36: =VLOOKUP(C36,Court!J:S,7,0) -> 69911.7 | G36: =VLOOKUP(D36,Court!B:H,4,0) -> -314323.54 | H36: -384235.24 | K36: =(VLOOKUP($I$198,Court!B:F,5,0)) -> -446494.59 | L36: -446494.59 | M36: =+(VLOOKUP($I$199,Court!B:F,5,0)) ->  | N36: 0 | O36: -446494.59 | P36: =(VLOOKUP($I$200,Court!B:F,5,0)) -> 516406.29 | Q36: 516406.29 | R36: =+(VLOOKUP($I$201,Court!B:F,5,0)) -> 0 | S36: 0 | T36: 516406.29 | U36: =(VLOOKUP($I$202,Court!B:H,7,0)) -> -14159.7 | V36: =(VLOOKUP($I$204,Court!B:H,7,0)) -> 23974 | W36: 23974 | X36: =Court!#REF! -> 
B37: 10057 | C37: 10057 Total | D37: Total | E37: Cromer Road | F37: =VLOOKUP(C37,Cromer!J:S,7,0) -> 229513.57 | G37: =VLOOKUP(D37,Cromer!B:H,4,0) -> -571024 | H37: -800537.57 | K37: =(VLOOKUP($I$198,Cromer!B:F,5,0)) -> -816995 | L37: -816995 | M37: =+(VLOOKUP($I$199,Cromer!B:F,5,0)) ->  | N37: 0 | O37: -816995 | P37: =(VLOOKUP($I$200,Cromer!B:F,5,0)) -> 1044325.57 | Q37: 1044325.57 | R37: =+(VLOOKUP($I$201,Cromer!B:F,5,0)) -> 2183 | S37: 2183 | T37: 1046508.57 | U37: =(VLOOKUP($I$202,Cromer!B:H,7,0)) -> -77888.57 | V37: =(VLOOKUP($I$204,Cromer!B:H,7,0)) -> 7852 | W37: 7852 | X37: =Cromer!#REF! -> 
B38: 10083 | C38: 10083 Total | D38: Total | E38: Danegrove | F38: =VLOOKUP(C38,Daneg!J:S,7,0) -> -195963.84 | G38: =VLOOKUP(D38,Daneg!B:H,4,0) -> -95973.84 | H38: 99990 | K38: =(VLOOKUP($I$198,Daneg!B:F,5,0)) -> -1236483.69 | L38: -1236483.69 | M38: =+(VLOOKUP($I$199,Daneg!B:F,5,0)) -> -10382 | N38: -10382 | O38: -1246865.69 | P38: =(VLOOKUP($I$200,Daneg!B:F,5,0)) -> 1050901.85 | Q38: 1050901.85 | R38: =+(VLOOKUP($I$201,Daneg!B:F,5,0)) -> 0 | S38: 0 | T38: 1050901.85 | U38: =(VLOOKUP($I$202,Daneg!B:H,7,0)) -> 115080.84 | V38: =(VLOOKUP($I$204,Daneg!B:H,7,0)) -> 42163 | W38: 42163 | X38: =Daneg!#REF! -> 
B39: 10059 | C39: 10059 Total | D39: Total | E39: Deansbrook Inf | F39: =VLOOKUP(C39,DeansI!J:S,7,0) -> -136585.13 | G39: =VLOOKUP(D39,DeansI!B:H,4,0) -> -710375.4 | H39: -573790.27 | K39: =(VLOOKUP($I$198,DeansI!B:F,5,0)) -> -845117.49 | L39: -845117.49 | M39: =+(VLOOKUP($I$199,DeansI!B:F,5,0)) -> 0 | N39: 0 | O39: -845117.49 | P39: =(VLOOKUP($I$200,DeansI!B:F,5,0)) -> 708532.36 | Q39: 708532.36 | R39: =+(VLOOKUP($I$201,DeansI!B:F,5,0)) -> 0 | S39: 0 | T39: 708532.36 | U39: =(VLOOKUP($I$202,DeansI!B:H,7,0)) -> -291594.87 | V39: =(VLOOKUP($I$204,DeansI!B:H,7,0)) -> 4617 | W39: 4617 | X39: =DeansI!#REF! -> 
B40: 10061 | C40: 10061 Total | D40: Total | E40: Dollis Primary | F40: =VLOOKUP(C40,'Dollis Prim'!J:S,7,0) -> -31568.28 | G40: =VLOOKUP(D40,'Dollis Prim'!B:H,4,0) -> -23570.28 | H40: 7998 | K40: =(VLOOKUP($I$198,'Dollis Prim'!B:F,5,0)) -> -758021.72 | L40: -758021.72 | M40: =+(VLOOKUP($I$199,'Dollis Prim'!B:F,5,0)) -> 0 | N40: 0 | O40: -758021.72 | P40: =(VLOOKUP($I$200,'Dollis Prim'!B:F,5,0)) -> 726453.44 | Q40: 726453.44 | R40: =+(VLOOKUP($I$201,'Dollis Prim'!B:F,5,0)) -> 0 | S40: 0 | T40: 726453.44 | U40: =(VLOOKUP($I$202,'Dollis Prim'!B:H,7,0)) -> 176454.28 | V40: =(VLOOKUP($I$204,'Dollis Prim'!B:H,7,0)) -> 10677 | W40: 10677 | X40: ='Dollis Prim'!#REF! -> 
B41: 10060 | C41: 10060 Total | D41: Total | E41: Dollis Junior | F41: =VLOOKUP(C41,DollisJ!I:O,7,0) ->  | G41: =VLOOKUP(D41,DollisJ!B:H,4,0) ->  | K41: =(VLOOKUP($I$198,DollisJ!B:F,5,0)) ->  | L41: 0 | M41: =+(VLOOKUP($I$199,DollisJ!B:F,5,0)) ->  | N41: 0 | O41: 0 | P41: =(VLOOKUP($I$200,DollisJ!B:F,5,0)) ->  | Q41: 0 | R41: =+(VLOOKUP($I$201,DollisJ!B:F,5,0)) ->  | S41: 0 | T41: 0 | U41: =(VLOOKUP($I$202,DollisJ!B:H,7,0)) ->  | V41: =(VLOOKUP($I$204,DollisJ!B:H,7,0)) ->  | W41: 0 | X41: =DollisJ!$C$16 -> 0
B42: 10063 | C42: 10063 Total | D42: Total | E42: Edgware Primary | F42: =VLOOKUP(C42,EdgwP!J:S,7,0) -> -91265.84 | G42: =VLOOKUP(D42,EdgwP!B:H,4,0) -> -76699.84 | H42: 14566 | K42: =(VLOOKUP($I$198,EdgwP!B:F,5,0)) -> -875512.22 | L42: -875512.22 | M42: =+(VLOOKUP($I$199,EdgwP!B:F,5,0)) ->  | N42: 0 | O42: -875512.22 | P42: =(VLOOKUP($I$200,EdgwP!B:F,5,0)) -> 773133.38 | Q42: 773133.38 | R42: =+(VLOOKUP($I$201,EdgwP!B:F,5,0)) -> 11113 | S42: 11113 | T42: 784246.38 | U42: =(VLOOKUP($I$202,EdgwP!B:H,7,0)) -> 209626.84 | V42: =(VLOOKUP($I$204,EdgwP!B:H,7,0)) -> 10132 | W42: 10132 | X42: =EdgwP!#REF! -> 
B43: 10064 | C43: 10064 Total | D43: Total | E43: Fairway | F43: =VLOOKUP(C43,Fair!J:S,7,0) -> 221540.6 | G43: =VLOOKUP(D43,Fair!B:H,4,0) -> -400895.98 | H43: -622436.58 | K43: =(VLOOKUP($I$198,Fair!B:F,5,0)) -> -572828.53 | L43: -572828.53 | M43: =+(VLOOKUP($I$199,Fair!B:F,5,0)) -> 0 | N43: 0 | O43: -572828.53 | P43: =(VLOOKUP($I$200,Fair!B:F,5,0)) -> 794369.13 | Q43: 794369.13 | R43: =+(VLOOKUP($I$201,Fair!B:F,5,0)) -> 0 | S43: 0 | T43: 794369.13 | U43: =(VLOOKUP($I$202,Fair!B:H,7,0)) -> -379121.6 | V43: =(VLOOKUP($I$204,Fair!B:H,7,0)) -> 21150 | W43: 21150 | X43: =Fair!#REF! -> 
B44: 10065 | C44: 10065 Total | D44: Total | E44: Foulds | F44: =VLOOKUP(C44,Fould!J:S,7,0) -> 151097.86 | G44: =VLOOKUP(D44,Fould!B:H,4,0) -> -450205.16 | H44: -601303.02 | K44: =(VLOOKUP($I$198,Fould!B:F,5,0)) -> -553397.66 | L44: -553397.66 | M44: =+(VLOOKUP($I$199,Fould!B:F,5,0)) -> 0 | N44: 0 | O44: -553397.66 | P44: =(VLOOKUP($I$200,Fould!B:F,5,0)) -> 704495.52 | Q44: 704495.52 | R44: =+(VLOOKUP($I$201,Fould!B:F,5,0)) -> 0 | S44: 0 | T44: 704495.52 | U44: =(VLOOKUP($I$202,Fould!B:H,7,0)) -> -80011.86 | V44: =(VLOOKUP($I$204,Fould!B:H,7,0)) -> 19874 | W44: 19874 | X44: =Fould!#REF! -> 
B45: 10066 | C45: 10066 Total | D45: Total | E45: Frith Manor | F45: =VLOOKUP(C45,Frith!J:S,7,0) -> -368522.47 | G45: =VLOOKUP(D45,Frith!B:H,4,0) -> -1002461.11 | H45: -633938.64 | K45: =(VLOOKUP($I$198,Frith!B:F,5,0)) -> -1477161.82 | L45: -1477161.82 | M45: =+(VLOOKUP($I$199,Frith!B:F,5,0)) -> 0 | N45: 0 | O45: -1477161.82 | P45: =(VLOOKUP($I$200,Frith!B:F,5,0)) -> 1108639.35 | Q45: 1108639.35 | R45: =+(VLOOKUP($I$201,Frith!B:F,5,0)) -> 0 | S45: 0 | T45: 1108639.35 | U45: =(VLOOKUP($I$202,Frith!B:H,7,0)) -> 111876.47 | V45: =(VLOOKUP($I$204,Frith!B:H,7,0)) -> 18750 | W45: 18750 | X45: =Frith!#REF! -> 
B46: 10068 | C46: 10068 Total | D46: Total | E46: Garden Suburb Inf | F46: =VLOOKUP(C46,GSubI!J:S,7,0) -> 123818.87 | G46: =VLOOKUP(D46,GSubI!B:H,4,0) -> -353345.9 | H46: -477164.77 | K46: =(VLOOKUP($I$198,GSubI!B:F,5,0)) -> -495274.64 | L46: -495274.64 | M46: =+(VLOOKUP($I$199,GSubI!B:F,5,0)) -> 0 | N46: 0 | O46: -495274.64 | P46: =(VLOOKUP($I$200,GSubI!B:F,5,0)) -> 596074.51 | Q46: 596074.51 | R46: =+(VLOOKUP($I$201,GSubI!B:F,5,0)) -> 23019 | S46: 23019 | T46: 619093.51 | U46: =(VLOOKUP($I$202,GSubI!B:H,7,0)) -> -275758.87 | V46: =(VLOOKUP($I$204,GSubI!B:H,7,0)) -> -8256 | W46: -8256 | X46: =GSubI!#REF! -> 
B47: 10067 | C47: 10067 Total | D47: Total | E47: Garden Suburb Jnr | F47: =VLOOKUP(C47,GSubJ!J:S,7,0) -> 116931.28 | G47: =VLOOKUP(D47,GSubJ!B:H,4,0) -> -473126.49 | H47: -590057.77 | K47: =(VLOOKUP($I$198,GSubJ!B:F,5,0)) -> -607646.94 | L47: -607646.94 | M47: =+(VLOOKUP($I$199,GSubJ!B:F,5,0)) -> 0 | N47: 0 | O47: -607646.94 | P47: =(VLOOKUP($I$200,GSubJ!B:F,5,0)) -> 724578.22 | Q47: 724578.22 | R47: =+(VLOOKUP($I$201,GSubJ!B:F,5,0)) -> 0 | S47: 0 | T47: 724578.22 | U47: =(VLOOKUP($I$202,GSubJ!B:H,7,0)) -> -178176.28 | V47: =(VLOOKUP($I$204,GSubJ!B:H,7,0)) -> 20032 | W47: 20032 | X47: =GSubJ!#REF! -> 
B48: 10069 | C48: 10069 Total | D48: Total | E48: Goldbeaters | F48: =VLOOKUP(C48,Gold!J:S,7,0) -> 908559.92 | G48: =VLOOKUP(D48,Gold!B:H,4,0) -> 0 | H48: -908559.92 | K48: =(VLOOKUP($I$198,Gold!B:F,5,0)) -> 99670 | L48: 99670 | M48: =+(VLOOKUP($I$199,Gold!B:F,5,0)) -> 0 | N48: 0 | O48: 99670 | P48: =(VLOOKUP($I$200,Gold!B:F,5,0)) -> 808889.92 | Q48: 808889.92 | R48: =+(VLOOKUP($I$201,Gold!B:F,5,0)) -> 0 | S48: 0 | T48: 808889.92 | U48: =(VLOOKUP($I$202,Gold!B:H,7,0)) -> -886633.92 | V48: =(VLOOKUP($I$204,Gold!B:H,7,0)) -> 50711 | W48: 50711 | X48: =Gold!#REF! -> 
B49: 10121 | C49: 10121 Total | D49: Total | E49: Hasmonean Primary | F49: =VLOOKUP(C49,HasmoP!J:S,7,0) -> 285729.62 | G49: =VLOOKUP(D49,HasmoP!B:H,4,0) -> -377253.73 | H49: -662983.35 | K49: =(VLOOKUP($I$198,HasmoP!B:F,5,0)) -> -355111.46 | L49: -355111.46 | M49: =+(VLOOKUP($I$199,HasmoP!B:F,5,0)) ->  | N49: 0 | O49: -355111.46 | P49: =(VLOOKUP($I$200,HasmoP!B:F,5,0)) -> 640841.08 | Q49: 640841.08 | R49: =+(VLOOKUP($I$201,HasmoP!B:F,5,0)) ->  | S49: 0 | T49: 640841.08 | U49: =(VLOOKUP($I$202,HasmoP!B:H,7,0)) -> -275595.62 | V49: =(VLOOKUP($I$204,HasmoP!B:H,7,0)) ->  | W49: 0 | X49: =HasmoP!#REF! -> 
B50: 10071 | C50: 10071 Total | D50: Total | E50: Hollickwood | F50: =VLOOKUP(C50,Hollick!J:S,7,0) -> 70797.67 | G50: =VLOOKUP(D50,Hollick!B:H,4,0) -> -404684.09 | H50: -475481.76 | K50: =(VLOOKUP($I$198,Hollick!B:F,5,0)) -> -359369.14 | L50: -359369.14 | M50: =+(VLOOKUP($I$199,Hollick!B:F,5,0)) -> -37222.8 | N50: -37222.8 | O50: -396591.94 | P50: =(VLOOKUP($I$200,Hollick!B:F,5,0)) -> 489200.34 | Q50: 489200.34 | R50: =+(VLOOKUP($I$201,Hollick!B:F,5,0)) -> -21810.73 | S50: -21810.73 | T50: 467389.61 | U50: =(VLOOKUP($I$202,Hollick!B:H,7,0)) -> -110968.2 | V50: =(VLOOKUP($I$204,Hollick!B:H,7,0)) -> 89869.53 | W50: 89869.53 | X50: =Hollick!#REF! -> 
B51: 10072 | C51: 10072 Total | D51: Total | E51: Holly Park | F51: =VLOOKUP(C51,HollyP!J:S,7,0) -> 266612.99 | G51: =VLOOKUP(D51,HollyP!B:H,4,0) -> -625134.39 | H51: -891747.38 | K51: =(VLOOKUP($I$198,HollyP!B:F,5,0)) -> -868572.84 | L51: -868572.84 | M51: =+(VLOOKUP($I$199,HollyP!B:F,5,0)) -> 0 | N51: 0 | O51: -868572.84 | P51: =(VLOOKUP($I$200,HollyP!B:F,5,0)) -> 1135185.83 | Q51: 1135185.83 | R51: =+(VLOOKUP($I$201,HollyP!B:F,5,0)) -> 0 | S51: 0 | T51: 1135185.83 | U51: =(VLOOKUP($I$202,HollyP!B:H,7,0)) -> -263789.99 | V51: =(VLOOKUP($I$204,HollyP!B:H,7,0)) -> 0 | W51: 0 | X51: =HollyP!#REF! -> 
B52: 10073 | C52: 10073 Total | D52: Total | E52: Holy Trinity | F52: =VLOOKUP(C52,Holy!J:S,7,0) -> 43961.27 | G52: =VLOOKUP(D52,Holy!B:H,4,0) -> -335084.36 | H52: -379045.63 | K52: =(VLOOKUP($I$198,Holy!B:F,5,0)) -> -446392.56 | L52: -446392.56 | M52: =+(VLOOKUP($I$199,Holy!B:F,5,0)) ->  | N52: 0 | O52: -446392.56 | P52: =(VLOOKUP($I$200,Holy!B:F,5,0)) -> 490353.83 | Q52: 490353.83 | R52: =+(VLOOKUP($I$201,Holy!B:F,5,0)) ->  | S52: 0 | T52: 490353.83 | U52: =(VLOOKUP($I$202,Holy!B:H,7,0)) -> -128380.27 | V52: =(VLOOKUP($I$204,Holy!B:H,7,0)) ->  | W52: 0 | X52: =Holy!#REF! -> 
B53: 10074 | C53: 10074 Total | D53: Total | E53: Livingstone | F53: =VLOOKUP(C53,Living!J:S,7,0) -> 281580.3 | G53: =VLOOKUP(D53,Living!B:H,4,0) -> -488984.04 | H53: -770564.34 | K53: =(VLOOKUP($I$198,Living!B:F,5,0)) -> -585857.22 | L53: -585857.22 | M53: =+(VLOOKUP($I$199,Living!B:F,5,0)) -> 0 | N53: 0 | O53: -585857.22 | P53: =(VLOOKUP($I$200,Living!B:F,5,0)) -> 867437.52 | Q53: 867437.52 | R53: =+(VLOOKUP($I$201,Living!B:F,5,0)) -> 0 | S53: 0 | T53: 867437.52 | U53: =(VLOOKUP($I$202,Living!B:H,7,0)) -> 481104.7 | V53: =(VLOOKUP($I$204,Living!B:H,7,0)) -> 0 | W53: 0 | X53: =Living!#REF! -> 
B54: 10075 | C54: 10075 Total | D54: Total | E54: Manorside | F54: =VLOOKUP(C54,Manor!J:S,7,0) -> 205796.61 | G54: =VLOOKUP(D54,Manor!B:H,4,0) -> -276751.93 | H54: -482548.54 | K54: =(VLOOKUP($I$198,Manor!B:F,5,0)) -> -458998.95 | L54: -458998.95 | M54: =+(VLOOKUP($I$199,Manor!B:F,5,0)) -> 0 | N54: 0 | O54: -458998.95 | P54: =(VLOOKUP($I$200,Manor!B:F,5,0)) -> 664795.56 | Q54: 664795.56 | R54: =+(VLOOKUP($I$201,Manor!B:F,5,0)) -> 0 | S54: 0 | T54: 664795.56 | U54: =(VLOOKUP($I$202,Manor!B:H,7,0)) -> 47913.39 | V54: =(VLOOKUP($I$204,Manor!B:H,7,0)) -> 28803 | W54: 28803 | X54: =Manor!#REF! -> 
B55: 11093 | C55: 11093 Total | D55: Total | E55: Martin Primary School | F55: =VLOOKUP(C55,Martin!J:S,7,0) -> -247003.52 | G55: =VLOOKUP(D55,Martin!B:H,4,0) -> -186852.52 | H55: 60151 | K55: =(VLOOKUP($I$198,Martin!B:F,5,0)) -> -1251903.56 | L55: -1251903.56 | M55: =+(VLOOKUP($I$199,Martin!B:F,5,0)) -> 0 | N55: 0 | O55: -1251903.56 | P55: =(VLOOKUP($I$200,Martin!B:F,5,0)) -> 984446.28 | Q55: 984446.28 | R55: =+(VLOOKUP($I$201,Martin!B:F,5,0)) -> 20453.76 | S55: 20453.76 | T55: 1004900.04 | U55: =(VLOOKUP($I$202,Martin!B:H,7,0)) -> 491454.28 | V55: =(VLOOKUP($I$204,Martin!B:H,7,0)) -> 29601.24 | W55: 29601.24 | X55: =Martin!#REF! -> 
B56: 10125 | C56: 10125 Total | D56: Total | E56: Mathilda Marks Kennedy | F56: =VLOOKUP(C56,MMK!J:S,7,0) -> -88621.11 | G56: =VLOOKUP(D56,MMK!B:H,4,0) -> -88621.11 | H56: 0 | K56: =(VLOOKUP($I$198,MMK!B:F,5,0)) -> -467429.11 | L56: -467429.11 | M56: =+(VLOOKUP($I$199,MMK!B:F,5,0)) ->  | N56: 0 | O56: -467429.11 | P56: =(VLOOKUP($I$200,MMK!B:F,5,0)) -> 378808 | Q56: 378808 | R56: =+(VLOOKUP($I$201,MMK!B:F,5,0)) ->  | S56: 0 | T56: 378808 | U56: =(VLOOKUP($I$202,MMK!B:H,7,0)) -> 36171.11 | V56: =(VLOOKUP($I$204,MMK!B:H,7,0)) ->  | W56: 0 | X56: =MMK!#REF! -> 
B57: 10126 | C57: 10126 Total | D57: Total | E57: Menorah Foundation | F57: =VLOOKUP(C57,MenF!J:S,7,0) -> -37056 | G57: =VLOOKUP(D57,MenF!B:H,4,0) -> 0 | H57: 37056 | K57: =(VLOOKUP($I$198,MenF!B:F,5,0)) ->  | L57: 0 | M57: =+(VLOOKUP($I$199,MenF!B:F,5,0)) ->  | N57: 0 | O57: 0 | P57: =(VLOOKUP($I$200,MenF!B:F,5,0)) -> -37056 | Q57: -37056 | R57: =+(VLOOKUP($I$201,MenF!B:F,5,0)) ->  | S57: 0 | T57: -37056 | U57: =(VLOOKUP($I$202,MenF!B:H,7,0)) -> 3728 | V57: =(VLOOKUP($I$204,MenF!B:H,7,0)) ->  | W57: 0 | X57: =MenF!#REF! -> 
B58: 10114 | C58: 10114 Total | D58: Total | E58: Menorah Primary | F58: =VLOOKUP(C58,MenP!J:S,7,0) -> 279790.6 | G58: =VLOOKUP(D58,MenP!B:H,4,0) -> -440598.2 | H58: -720388.8 | K58: =(VLOOKUP($I$198,MenP!B:F,5,0)) -> -648528.36 | L58: -648528.36 | M58: =+(VLOOKUP($I$199,MenP!B:F,5,0)) ->  | N58: 0 | O58: -648528.36 | P58: =(VLOOKUP($I$200,MenP!B:F,5,0)) -> 928318.96 | Q58: 928318.96 | R58: =+(VLOOKUP($I$201,MenP!B:F,5,0)) ->  | S58: 0 | T58: 928318.96 | U58: =(VLOOKUP($I$202,MenP!B:H,7,0)) -> -270681.6 | V58: =(VLOOKUP($I$204,MenP!B:H,7,0)) ->  | W58: 0 | X58: =MenP!#REF! -> 
B59: 10078 | C59: 10078 Total | D59: Total | E59: Monken Hadley CE | F59: =VLOOKUP(C59,Monken!J:S,7,0) -> -46487.94 | G59: =VLOOKUP(D59,Monken!B:H,4,0) -> -48074.94 | H59: -1587 | K59: =(VLOOKUP($I$198,Monken!B:F,5,0)) -> -286691.93 | L59: -286691.93 | M59: =+(VLOOKUP($I$199,Monken!B:F,5,0)) ->  | N59: 0 | O59: -286691.93 | P59: =(VLOOKUP($I$200,Monken!B:F,5,0)) -> 240203.99 | Q59: 240203.99 | R59: =+(VLOOKUP($I$201,Monken!B:F,5,0)) ->  | S59: 0 | T59: 240203.99 | U59: =(VLOOKUP($I$202,Monken!B:H,7,0)) -> 90260.94 | V59: =(VLOOKUP($I$204,Monken!B:H,7,0)) ->  | W59: 0 | X59: =Monken!#REF! -> 
B60: 10079 | C60: 10079 Total | D60: Total | E60: Monkfrith | F60: =VLOOKUP(C60,MonkF!J:S,7,0) -> -118463.73 | G60: =VLOOKUP(D60,MonkF!B:H,4,0) -> -104938.73 | H60: 13525 | K60: =(VLOOKUP($I$198,MonkF!B:F,5,0)) -> -722635.88 | L60: -722635.88 | M60: =+(VLOOKUP($I$199,MonkF!B:F,5,0)) ->  | N60: 0 | O60: -722635.88 | P60: =(VLOOKUP($I$200,MonkF!B:F,5,0)) -> 604172.15 | Q60: 604172.15 | R60: =+(VLOOKUP($I$201,MonkF!B:F,5,0)) -> 0 | S60: 0 | T60: 604172.15 | U60: =(VLOOKUP($I$202,MonkF!B:H,7,0)) -> 422853.73 | V60: =(VLOOKUP($I$204,MonkF!B:H,7,0)) -> 43169 | W60: 43169 | X60: =MonkF!#REF! -> 
B61: 10081 | C61: 10081 Total | D61: Total | E61: Moss Hall Inf | F61: =VLOOKUP(C61,MHI!J:S,7,0) -> 134146.48 | G61: =VLOOKUP(D61,MHI!B:H,4,0) -> -429166.59 | H61: -563313.07 | K61: =(VLOOKUP($I$198,MHI!B:F,5,0)) -> -641162.73 | L61: -641162.73 | M61: =+(VLOOKUP($I$199,MHI!B:F,5,0)) -> 0 | N61: 0 | O61: -641162.73 | P61: =(VLOOKUP($I$200,MHI!B:F,5,0)) -> 775309.21 | Q61: 775309.21 | R61: =+(VLOOKUP($I$201,MHI!B:F,5,0)) -> 0 | S61: 0 | T61: 775309.21 | U61: =(VLOOKUP($I$202,MHI!B:H,7,0)) -> -193550.48 | V61: =(VLOOKUP($I$204,MHI!B:H,7,0)) -> 24230 | W61: 24230 | X61: =MHI!#REF! -> 
B62: 10080 | C62: 10080 Total | D62: Total | E62: Moss Hall Jun | F62: =VLOOKUP(C62,MHJ!J:S,7,0) -> 9042.48 | G62: =VLOOKUP(D62,MHJ!B:H,4,0) -> -534698.52 | H62: -543741 | K62: =(VLOOKUP($I$198,[3]MHJ!M$1:S$65536,5,0)) ->  | L62: 0 | M62: =+(VLOOKUP($I$199,[3]MHJ!M$1:S$65536,5,0)) ->  | N62: 0 | O62: 0 | P62: =(VLOOKUP($I$200,MHJ!B:F,5,0)) -> 862732.2 | Q62: 862732.2 | R62: =+(VLOOKUP($I$201,MHJ!B:F,5,0)) -> 0 | S62: 0 | T62: 862732.2 | U62: =(VLOOKUP($I$202,MHJ!B:H,7,0)) -> -63252.48 | V62: =(VLOOKUP($I$204,MHJ!B:H,7,0)) -> 33421 | W62: 33421 | X62: =MHJ!#REF! -> 
B63: 10082 | C63: 10082 Total | D63: Total | E63: Northside | F63: =VLOOKUP(C63,Norths!J:S,7,0) -> 185343.21 | G63: =VLOOKUP(D63,Norths!B:H,4,0) -> -421529.96 | H63: -606873.17 | K63: =(VLOOKUP($I$198,Norths!B:F,5,0)) -> -560946.73 | L63: -560946.73 | M63: =+(VLOOKUP($I$199,Norths!B:F,5,0)) -> 0 | N63: 0 | O63: -560946.73 | P63: =(VLOOKUP($I$200,Norths!B:F,5,0)) -> 738506.84 | Q63: 738506.84 | R63: =+(VLOOKUP($I$201,Norths!B:F,5,0)) -> 7783.1 | S63: 7783.1 | T63: 746289.94 | U63: =(VLOOKUP($I$202,Norths!B:H,7,0)) -> -152354.11 | V63: =(VLOOKUP($I$204,Norths!B:H,7,0)) -> 14722.9 | W63: 14722.9 | X63: =Norths!#REF! -> 
B64: 10127 | C64: 10127 Total | D64: Total | E64: Orion | F64: =VLOOKUP(C64,Orion!J:S,7,0) -> 2347287.82 | G64: =VLOOKUP(D64,Orion!B:H,4,0) -> 0 | H64: -2347287.82 | K64: =(VLOOKUP($I$198,Orion!B:F,5,0)) -> 5903 | L64: 5903 | M64: =+(VLOOKUP($I$199,Orion!B:F,5,0)) -> 0 | N64: 0 | O64: 5903 | P64: =(VLOOKUP($I$200,Orion!B:F,5,0)) -> 2341384.82 | Q64: 2341384.82 | R64: =+(VLOOKUP($I$201,Orion!B:F,5,0)) -> 0 | S64: 0 | T64: 2341384.82 | U64: =(VLOOKUP($I$202,Orion!B:H,7,0)) -> -2494537.82 | V64: =(VLOOKUP($I$204,Orion!B:H,7,0)) -> 51626 | W64: 51626 | X64: =Orion!#REF! -> 
B65: 10084 | C65: 10084 Total | D65: Total | E65: Osidge JMI | F65: =VLOOKUP(C65,Osidge!J:S,7,0) -> -113386.61 | G65: =VLOOKUP(D65,Osidge!B:H,4,0) -> -111132.18 | H65: 2254.43 | K65: =(VLOOKUP($I$198,Osidge!B:F,5,0)) -> -728480.57 | L65: -728480.57 | M65: =+(VLOOKUP($I$199,Osidge!B:F,5,0)) -> 0 | N65: 0 | O65: -728480.57 | P65: =(VLOOKUP($I$200,Osidge!B:F,5,0)) -> 615093.96 | Q65: 615093.96 | R65: =+(VLOOKUP($I$201,Osidge!B:F,5,0)) -> 0 | S65: 0 | T65: 615093.96 | U65: =(VLOOKUP($I$202,Osidge!B:H,7,0)) -> 477693.61 | V65: =(VLOOKUP($I$204,Osidge!B:H,7,0)) -> 17934 | W65: 17934 | X65: =Osidge!#REF! -> 
B66: 10085 | C66: 10085 Total | D66: Total | E66: Our Lady of Lourdes | F66: =VLOOKUP(C66,OLOL!J:S,7,0) -> 451938.71 | G66: =VLOOKUP(D66,OLOL!B:H,4,0) -> 0 | H66: -451938.71 | K66: =(VLOOKUP($I$198,OLOL!B:F,5,0)) -> -16692 | L66: -16692 | M66: =+(VLOOKUP($I$199,OLOL!B:F,5,0)) ->  | N66: 0 | O66: -16692 | P66: =(VLOOKUP($I$200,OLOL!B:F,5,0)) -> 468630.71 | Q66: 468630.71 | R66: =+(VLOOKUP($I$201,OLOL!B:F,5,0)) ->  | S66: 0 | T66: 468630.71 | U66: =(VLOOKUP($I$202,OLOL!B:H,7,0)) -> -578476.71 | V66: =(VLOOKUP($I$204,OLOL!B:H,7,0)) ->  | W66: 0 | X66: =OLOL!#REF! -> 
B67: 10129 | C67: 10129 Total | D67: Total | E67: Pardes House | F67: =VLOOKUP(C67,Pardes!J:S,7,0) -> 470890.61 | G67: =VLOOKUP(D67,Pardes!B:H,4,0) -> -165245.23 | H67: -636135.84 | K67: =(VLOOKUP($I$198,Pardes!B:F,5,0)) -> -640673.84 | L67: -640673.84 | M67: =+(VLOOKUP($I$199,Pardes!B:F,5,0)) -> 0 | N67: 0 | O67: -640673.84 | P67: =(VLOOKUP($I$200,Pardes!B:F,5,0)) -> 1111564.45 | Q67: 1111564.45 | R67: =+(VLOOKUP($I$201,Pardes!B:F,5,0)) ->  | S67: 0 | T67: 1111564.45 | U67: =(VLOOKUP($I$202,Pardes!B:H,7,0)) -> -691175.61 | V67: =(VLOOKUP($I$204,Pardes!B:H,7,0)) -> 0 | W67: 0 | X67: =Pardes!#REF! -> 
B68: 10119 | C68: =B68&" Total" -> 10119 Total | D68: Total | E68: Queenswell Inf | F68: =VLOOKUP(C68,QueenI!I:O,7,0) ->  | G68: =VLOOKUP(D68,QueenI!B:H,4,0) ->  | H68: =G68-F68 ->  | K68: =(VLOOKUP($I$198,QueenI!B:F,5,0)) ->  | L68: =IFERROR(K68,0) -> 0 | M68: =+(VLOOKUP($I$199,QueenI!B:F,5,0)) ->  | N68: 0 | O68: =L68+N68 -> 0 | P68: =(VLOOKUP($I$200,QueenI!B:F,5,0)) ->  | Q68: =IFERROR(P68,0) -> 0 | R68: =+(VLOOKUP($I$201,QueenI!B:F,5,0)) ->  | S68: 0 | T68: 0 | U68: =(VLOOKUP($I$202,QueenI!B:H,7,0)) ->  | V68: =(VLOOKUP($I$204,QueenI!B:H,7,0)) ->  | W68: =IFERROR(V68,0) -> 0 | X68: =QueenI!#REF! -> 
B69: 10086 | C69: 10086 Total | D69: Total | E69: Queenswell Federation | F69: =VLOOKUP(C69,QueensFed!J:S,7,0) -> -149797.76 | G69: =VLOOKUP(D69,QueensFed!B:H,4,0) -> -99318.76 | H69: 50479 | K69: =(VLOOKUP($I$198,QueensFed!B:F,5,0)) -> -1105790.47 | L69: -1105790.47 | M69: =+(VLOOKUP($I$199,QueensFed!B:F,5,0)) -> 0 | N69: 0 | O69: -1105790.47 | P69: =(VLOOKUP($I$200,QueensFed!B:F,5,0)) -> 941397.71 | Q69: 941397.71 | R69: =+(VLOOKUP($I$201,QueensFed!B:F,5,0)) -> 14595 | S69: 14595 | T69: 955992.71 | U69: =(VLOOKUP($I$202,QueensFed!B:H,7,0)) -> 258247.76 | V69: =(VLOOKUP($I$204,QueensFed!B:H,7,0)) -> 16899 | W69: 16899 | X69: =QueensFed!#REF! -> 
B70: 10112 | C70: 10112 Total | D70: Total | E70: Rosh Pinah | F70: =VLOOKUP(C70,RoshP!J:S,7,0) -> -300789.08 | G70: =VLOOKUP(D70,RoshP!B:H,4,0) -> -221336.08 | H70: 79453 | K70: =(VLOOKUP($I$198,RoshP!B:F,5,0)) -> -747352.46 | L70: -747352.46 | M70: =+(VLOOKUP($I$199,RoshP!B:F,5,0)) ->  | N70: 0 | O70: -747352.46 | P70: =(VLOOKUP($I$200,RoshP!B:F,5,0)) -> 446563.38 | Q70: 446563.38 | R70: =+(VLOOKUP($I$201,RoshP!B:F,5,0)) ->  | S70: 0 | T70: 446563.38 | U70: =(VLOOKUP($I$202,RoshP!B:H,7,0)) -> 485500.08 | V70: =(VLOOKUP($I$204,RoshP!B:H,7,0)) ->  | W70: 0 | X70: =RoshP!#REF! -> 
B71: 10110 | C71: 10110 Total | D71: Total | E71: Sacred Heart | F71: =VLOOKUP(C71,Sacred!J:S,7,0) -> 45995.09 | G71: =VLOOKUP(D71,Sacred!B:H,4,0) -> -530726.62 | H71: -576721.71 | K71: =(VLOOKUP($I$198,Sacred!B:F,5,0)) -> -688169.83 | L71: -688169.83 | M71: =+(VLOOKUP($I$199,Sacred!B:F,5,0)) ->  | N71: 0 | O71: -688169.83 | P71: =(VLOOKUP($I$200,Sacred!B:F,5,0)) -> 734164.92 | Q71: 734164.92 | R71: =+(VLOOKUP($I$201,Sacred!B:F,5,0)) ->  | S71: 0 | T71: 734164.92 | U71: =(VLOOKUP($I$202,Sacred!B:H,7,0)) -> 199410.91 | V71: =(VLOOKUP($I$204,Sacred!B:H,7,0)) ->  | W71: 0 | X71: =Sacred!#REF! -> 
B72: 11381 | C72: 11381 Total | D72: Total | E72: Sacks Morasha | F72: =VLOOKUP(C72,Morasha!I:O,7,0) ->  | G72: =VLOOKUP(D72,Morasha!B:H,4,0) ->  | K72: =(VLOOKUP($I$198,Morasha!B:F,5,0)) ->  | L72: 0 | M72: =+(VLOOKUP($I$199,Morasha!B:F,5,0)) ->  | N72: 0 | O72: 0 | P72: =(VLOOKUP($I$200,Morasha!B:F,5,0)) ->  | Q72: 0 | R72: =+(VLOOKUP($I$201,Morasha!B:F,5,0)) ->  | S72: 0 | T72: 0 | U72: =(VLOOKUP($I$202,Morasha!B:H,7,0)) ->  | V72: =(VLOOKUP($I$204,Morasha!B:H,7,0)) ->  | W72: 0 | X72: =Morasha!#REF! -> 
B73: 10087 | C73: 10087 Total | D73: Total | E73: St Agnes' RC | F73: =VLOOKUP(C73,StAgnes!J:S,7,0) -> 68506.85 | G73: =VLOOKUP(D73,StAgnes!B:H,4,0) -> -654758.19 | H73: -723265.04 | K73: =(VLOOKUP($I$198,StAgnes!B:F,5,0)) -> -864384.53 | L73: -864384.53 | M73: =+(VLOOKUP($I$199,StAgnes!B:F,5,0)) ->  | N73: 0 | O73: -864384.53 | P73: =(VLOOKUP($I$200,StAgnes!B:F,5,0)) -> 932891.38 | Q73: 932891.38 | R73: =+(VLOOKUP($I$201,StAgnes!B:F,5,0)) ->  | S73: 0 | T73: 932891.38 | U73: =(VLOOKUP($I$202,StAgnes!B:H,7,0)) -> 809094.15 | V73: =(VLOOKUP($I$204,StAgnes!B:H,7,0)) ->  | W73: 0 | X73: =StAgnes!#REF! -> 
B74: 10099 | C74: 10099 Total | D74: Total | E74: St Andrew's CE | F74: =VLOOKUP(C74,StAndrew!J:S,7,0) -> -132151.42 | G74: =VLOOKUP(D74,StAndrew!B:H,4,0) -> -147167.42 | H74: -15016 | K74: =(VLOOKUP($I$198,StAndrew!B:F,5,0)) -> -362007.11 | L74: -362007.11 | M74: =+(VLOOKUP($I$199,StAndrew!B:F,5,0)) ->  | N74: 0 | O74: -362007.11 | P74: =(VLOOKUP($I$200,StAndrew!B:F,5,0)) -> 229855.69 | Q74: 229855.69 | R74: =+(VLOOKUP($I$201,StAndrew!B:F,5,0)) ->  | S74: 0 | T74: 229855.69 | U74: =(VLOOKUP($I$202,StAndrew!B:H,7,0)) -> 198594.42 | V74: =(VLOOKUP($I$204,StAndrew!B:H,7,0)) ->  | W74: 0 | X74: =StAndrew!#REF! -> 
B75: 10088 | C75: 10088 Total | D75: Total | E75: St Catherine's RC | F75: =VLOOKUP(C75,StCath!J:S,7,0) -> 320624.07 | G75: =VLOOKUP(D75,StCath!B:H,4,0) -> -626851.57 | H75: -947475.64 | K75: =(VLOOKUP($I$198,StCath!B:F,5,0)) -> -842175 | L75: -842175 | M75: =+(VLOOKUP($I$199,StCath!B:F,5,0)) ->  | N75: 0 | O75: -842175 | P75: =(VLOOKUP($I$200,StCath!B:F,5,0)) -> 1162799.07 | Q75: 1162799.07 | R75: =+(VLOOKUP($I$201,StCath!B:F,5,0)) ->  | S75: 0 | T75: 1162799.07 | U75: =(VLOOKUP($I$202,StCath!B:H,7,0)) -> -197946.07 | V75: =(VLOOKUP($I$204,StCath!B:H,7,0)) ->  | W75: 0 | X75: =StCath!#REF! -> 
B76: 10089 | C76: 10089 Total | D76: Total | E76: St John's CE N11 | F76: =VLOOKUP(C76,StJohnN11!J:S,7,0) -> 39391.02 | G76: =VLOOKUP(D76,StJohnN11!B:H,4,0) -> -337280.55 | H76: -376671.57 | K76: =(VLOOKUP($I$198,StJohnN11!B:F,5,0)) -> -485622.31 | L76: -485622.31 | M76: =+(VLOOKUP($I$199,StJohnN11!B:F,5,0)) -> 0 | N76: 0 | O76: -485622.31 | P76: =(VLOOKUP($I$200,StJohnN11!B:F,5,0)) -> 525013.33 | Q76: 525013.33 | R76: =+(VLOOKUP($I$201,StJohnN11!B:F,5,0)) ->  | S76: 0 | T76: 525013.33 | U76: =(VLOOKUP($I$202,StJohnN11!B:H,7,0)) -> 18453.98 | V76: =(VLOOKUP($I$204,StJohnN11!B:H,7,0)) -> -7991 | W76: -7991 | X76: =StJohnN11!#REF! -> 
B77: 10116 | C77: 10116 Total | D77: Total | E77: St John's CE N20 | F77: =VLOOKUP(C77,StJohnN20!J:S,7,0) -> -119122.72 | G77: =VLOOKUP(D77,StJohnN20!B:H,4,0) -> -104874.72 | H77: 14248 | K77: =(VLOOKUP($I$198,StJohnN20!B:F,5,0)) -> -493527.27 | L77: -493527.27 | M77: =+(VLOOKUP($I$199,StJohnN20!B:F,5,0)) ->  | N77: 0 | O77: -493527.27 | P77: =(VLOOKUP($I$200,StJohnN20!B:F,5,0)) -> 374404.55 | Q77: 374404.55 | R77: =+(VLOOKUP($I$201,StJohnN20!B:F,5,0)) ->  | S77: 0 | T77: 374404.55 | U77: =(VLOOKUP($I$202,StJohnN20!B:H,7,0)) -> 260111.72 | V77: =(VLOOKUP($I$204,StJohnN20!B:H,7,0)) ->  | W77: 0 | X77: =StJohnN20!#REF! -> 
B78: 10107 | C78: 10107 Total | D78: Total | E78: St Joseph's RC Primary | F78: =VLOOKUP(C78,StJosJ!J:S,7,0) -> -104789.96 | G78: =VLOOKUP(D78,StJosJ!B:H,4,0) -> -778482.92 | H78: -673692.96 | K78: =(VLOOKUP($I$198,StJosJ!B:F,5,0)) -> -1179110.91 | L78: -1179110.91 | M78: =+(VLOOKUP($I$199,StJosJ!B:F,5,0)) ->  | N78: 0 | O78: -1179110.91 | P78: =(VLOOKUP($I$200,StJosJ!B:F,5,0)) -> 1074320.95 | Q78: 1074320.95 | R78: =+(VLOOKUP($I$201,StJosJ!B:F,5,0)) ->  | S78: 0 | T78: 1074320.95 | U78: =(VLOOKUP($I$202,StJosJ!B:H,7,0)) -> -560044.04 | V78: =(VLOOKUP($I$204,StJosJ!B:H,7,0)) ->  | W78: 0 | X78: =StJosJ!#REF! -> 
B79: 10698 | C79: 10698 Total | D79: Total | E79: St Mary's & St John's All-through | F79: =VLOOKUP(C79,StMarStJon!J:S,7,0) -> -615608.96 | G79: =VLOOKUP(D79,StMarStJon!B:H,4,0) -> -737597.96 | H79: -121989 | K79: =(VLOOKUP($I$198,StMarStJon!B:F,5,0)) -> -3342856.7 | L79: -3342856.7 | M79: =+(VLOOKUP($I$199,StMarStJon!B:F,5,0)) ->  | N79: 0 | O79: -3342856.7 | P79: =(VLOOKUP($I$200,StMarStJon!B:F,5,0)) -> 2727247.74 | Q79: 2727247.74 | R79: =+(VLOOKUP($I$201,StMarStJon!B:F,5,0)) ->  | S79: 0 | T79: 2727247.74 | U79: =(VLOOKUP($I$202,StMarStJon!B:H,7,0)) -> 1837797.96 | V79: =(VLOOKUP($I$204,StMarStJon!B:H,7,0)) ->  | W79: 0 | X79: =StMarStJon!#REF! -> 
B80: 10093 | C80: 10093 Total | D80: Total | E80: St Mary's CE EN4 | F80: =VLOOKUP(C80,StMarEN4!J:S,7,0) -> 77835.2 | G80: =VLOOKUP(D80,StMarEN4!B:H,4,0) -> -295996.96 | H80: -373832.16 | K80: =(VLOOKUP($I$198,StMarEN4!B:F,5,0)) -> -425789.3 | L80: -425789.3 | M80: =+(VLOOKUP($I$199,StMarEN4!B:F,5,0)) ->  | N80: =IFERROR(M80,"0") -> 0 | O80: -425789.3 | P80: =(VLOOKUP($I$200,StMarEN4!B:F,5,0)) -> 503624.5 | Q80: 503624.5 | R80: =+(VLOOKUP($I$201,StMarEN4!B:F,5,0)) ->  | S80: =IFERROR(R80,"0") -> 0 | T80: =Q80+S80 -> 503624.5 | U80: =(VLOOKUP($I$202,StMarEN4!B:H,7,0)) -> 14021.8 | V80: =(VLOOKUP($I$204,StMarEN4!B:H,7,0)) ->  | W80: 0 | X80: =StMarEN4!#REF! -> 
B81: 10092 | C81: 10092 Total | D81: Total | E81: St Mary's CE N3 | F81: =VLOOKUP(C81,StMarN3!J:S,7,0) -> -117038.76 | G81: =VLOOKUP(D81,StMarN3!B:H,4,0) -> -83880.76 | H81: 33158 | K81: =(VLOOKUP($I$198,StMarN3!B:F,5,0)) -> -828026.51 | L81: -828026.51 | M81: =+(VLOOKUP($I$199,StMarN3!B:F,5,0)) ->  | N81: 0 | O81: -828026.51 | P81: =(VLOOKUP($I$200,StMarN3!B:F,5,0)) -> 710987.75 | Q81: 710987.75 | R81: =+(VLOOKUP($I$201,StMarN3!B:F,5,0)) ->  | S81: 0 | T81: 710987.75 | U81: =(VLOOKUP($I$202,StMarN3!B:H,7,0)) -> 217200.76 | V81: =(VLOOKUP($I$204,StMarN3!B:H,7,0)) ->  | W81: 0 | X81: =StMarN3!#REF! -> 
B82: 10094 | C82: 10094 Total | D82: Total | E82: St Paul's CE N11 | F82: =VLOOKUP(C82,StPaulN11!J:S,7,0) -> 64268.15 | G82: =VLOOKUP(D82,StPaulN11!B:H,4,0) -> -356834.5 | H82: -421102.65 | K82: =(VLOOKUP($I$198,StPaulN11!B:F,5,0)) -> -471611.01 | L82: -471611.01 | M82: =+(VLOOKUP($I$199,StPaulN11!B:F,5,0)) ->  | N82: 0 | O82: -471611.01 | P82: =(VLOOKUP($I$200,StPaulN11!B:F,5,0)) -> 535879.16 | Q82: 535879.16 | R82: =+(VLOOKUP($I$201,StPaulN11!B:F,5,0)) ->  | S82: 0 | T82: 535879.16 | U82: =(VLOOKUP($I$202,StPaulN11!B:H,7,0)) -> 104450.85 | V82: =(VLOOKUP($I$204,StPaulN11!B:H,7,0)) ->  | W82: 0 | X82: =StPaulN11!#REF! -> 
B83: 10095 | C83: 10095 Total | D83: Total | E83: St Paul's CE NW7 | F83: =VLOOKUP(C83,StPaulNW7!J:S,7,0) -> -45310.25 | G83: =VLOOKUP(D83,StPaulNW7!B:H,4,0) -> -37457.25 | H83: 7853 | K83: =(VLOOKUP($I$198,StPaulNW7!B:F,5,0)) -> -365694.01 | L83: -365694.01 | M83: =+(VLOOKUP($I$199,StPaulNW7!B:F,5,0)) ->  | N83: 0 | O83: -365694.01 | P83: =(VLOOKUP($I$200,StPaulNW7!B:F,5,0)) -> 320383.76 | Q83: 320383.76 | R83: =+(VLOOKUP($I$201,StPaulNW7!B:F,5,0)) ->  | S83: 0 | T83: 320383.76 | U83: =(VLOOKUP($I$202,StPaulNW7!B:H,7,0)) -> 82635.25 | V83: =(VLOOKUP($I$204,StPaulNW7!B:H,7,0)) ->  | W83: 0 | X83: =StPaulNW7!#REF! -> 
B84: 10108 | C84: 10108 Total | D84: Total | E84: St Theresa's RC | F84: =VLOOKUP(C84,StThere!J:S,7,0) -> 52166.82 | G84: =VLOOKUP(D84,StThere!B:H,4,0) -> -211812 | H84: -263978.82 | K84: =(VLOOKUP($I$198,StThere!B:F,5,0)) -> -399720 | L84: -399720 | M84: =+(VLOOKUP($I$199,StThere!B:F,5,0)) ->  | N84: 0 | O84: -399720 | P84: =(VLOOKUP($I$200,StThere!B:F,5,0)) -> 451886.82 | Q84: 451886.82 | R84: =+(VLOOKUP($I$201,StThere!B:F,5,0)) ->  | S84: 0 | T84: 451886.82 | U84: =(VLOOKUP($I$202,StThere!B:H,7,0)) -> -275026.82 | V84: =(VLOOKUP($I$204,StThere!B:H,7,0)) ->  | W84: 0 | X84: =StThere!#REF! -> 
B85: 10096 | C85: 10096 Total | D85: Total | E85: St Vincent's RC | F85: =VLOOKUP(C85,StVin!J:S,7,0) -> 167800.41 | G85: =VLOOKUP(D85,StVin!B:H,4,0) -> -395730.81 | H85: -563531.22 | K85: =(VLOOKUP($I$198,StVin!B:F,5,0)) -> -542802.57 | L85: -542802.57 | M85: =+(VLOOKUP($I$199,StVin!B:F,5,0)) ->  | N85: 0 | O85: -542802.57 | P85: =(VLOOKUP($I$200,StVin!B:F,5,0)) -> 710348.64 | Q85: 710348.64 | R85: =+(VLOOKUP($I$201,StVin!B:F,5,0)) ->  | S85: 0 | T85: 710348.64 | U85: =(VLOOKUP($I$202,StVin!B:H,7,0)) -> -110018.07 | V85: =(VLOOKUP($I$204,StVin!B:H,7,0)) ->  | W85: 0 | X85: =StVin!#REF! -> 
B86: 10113 | C86: 10113 Total | D86: Total | E86: Shalom Noam | F86: =VLOOKUP(C86,Noam!J:S,7,0) -> -25768.54 | G86: =VLOOKUP(D86,Noam!B:H,4,0) -> -25768.54 | H86: 1.236912794e-10 | K86: =(VLOOKUP($I$198,Noam!B:F,5,0)) -> -541595.34 | L86: -541595.34 | M86: =+(VLOOKUP($I$199,Noam!B:F,5,0)) ->  | N86: 0 | O86: -541595.34 | P86: =(VLOOKUP($I$200,Noam!B:F,5,0)) -> 515826.8 | Q86: 515826.8 | R86: =+(VLOOKUP($I$201,Noam!B:F,5,0)) ->  | S86: 0 | T86: 515826.8 | U86: =(VLOOKUP($I$202,Noam!B:H,7,0)) -> 30076.54 | V86: =(VLOOKUP($I$204,Noam!B:H,7,0)) ->  | W86: 0 | X86: =Noam!#REF! -> 
B87: 10097 | C87: 10097 Total | D87: Total | E87: Sunnyfields | F87: =VLOOKUP(C87,Sunny!J:S,7,0) -> -80567.14 | G87: =VLOOKUP(D87,Sunny!B:H,4,0) -> -71012.14 | H87: 9555 | K87: =(VLOOKUP($I$198,Sunny!B:F,5,0)) -> -489258.61 | L87: -489258.61 | M87: =+(VLOOKUP($I$199,Sunny!B:F,5,0)) ->  | N87: 0 | O87: -489258.61 | P87: =(VLOOKUP($I$200,Sunny!B:F,5,0)) -> 431091.47 | Q87: 431091.47 | R87: =+(VLOOKUP($I$201,Sunny!B:F,5,0)) -> -22400 | S87: -22400 | T87: 408691.47 | U87: =(VLOOKUP($I$202,Sunny!B:H,7,0)) -> 366539.14 | V87: =(VLOOKUP($I$204,Sunny!B:H,7,0)) -> 40768 | W87: 40768 | X87: =Sunny!#REF! -> 
B88: 10100 | C88: 10100 Total | D88: Total | E88: Trent | F88: =VLOOKUP(C88,Trent!J:S,7,0) -> 151542.86 | G88: =VLOOKUP(D88,Trent!B:H,4,0) -> -251279.92 | H88: -402822.78 | K88: =(VLOOKUP($I$198,Trent!B:F,5,0)) -> -344625.98 | L88: -344625.98 | M88: =+(VLOOKUP($I$199,Trent!B:F,5,0)) ->  | N88: 0 | O88: -344625.98 | P88: =(VLOOKUP($I$200,Trent!B:F,5,0)) -> 496168.84 | Q88: 496168.84 | R88: =+(VLOOKUP($I$201,Trent!B:F,5,0)) ->  | S88: 0 | T88: 496168.84 | U88: =(VLOOKUP($I$202,Trent!B:H,7,0)) -> -186152.86 | V88: =(VLOOKUP($I$204,Trent!B:H,7,0)) ->  | W88: 0 | X88: =Trent!#REF! -> 
B89: 10101 | C89: 10101 Total | D89: Total | E89: Tudor | F89: =VLOOKUP(C89,Tudor!J:S,7,0) -> 119747.3 | G89: =VLOOKUP(D89,Tudor!B:H,4,0) -> -322501.59 | H89: -442248.89 | K89: =(VLOOKUP($I$198,Tudor!B:F,5,0)) -> -526787.07 | L89: -526787.07 | M89: =+(VLOOKUP($I$199,Tudor!B:F,5,0)) -> 0 | N89: 0 | O89: -526787.07 | P89: =(VLOOKUP($I$200,Tudor!B:F,5,0)) -> 644944.37 | Q89: 644944.37 | R89: =+(VLOOKUP($I$201,Tudor!B:F,5,0)) -> 1590 | S89: 1590 | T89: 646534.37 | U89: =(VLOOKUP($I$202,Tudor!B:H,7,0)) -> -252990.3 | V89: =(VLOOKUP($I$204,Tudor!B:H,7,0)) -> 31171 | W89: 31171 | X89: =Tudor!#REF! -> 
B90: 10103 | C90: 10103 Total | D90: Total | E90: Underhill School | F90: =VLOOKUP(C90,UnderP!J:S,7,0) -> -167597.43 | G90: =VLOOKUP(D90,UnderP!B:H,4,0) -> -129605.43 | H90: 37992 | K90: =(VLOOKUP($I$198,UnderP!B:F,5,0)) -> -1119797.61 | L90: -1119797.61 | M90: =+(VLOOKUP($I$199,UnderP!B:F,5,0)) -> 0 | N90: 0 | O90: -1119797.61 | P90: =(VLOOKUP($I$200,UnderP!B:F,5,0)) -> 952200.18 | Q90: 952200.18 | R90: =+(VLOOKUP($I$201,UnderP!B:F,5,0)) -> 0 | S90: 0 | T90: 952200.18 | U90: =(VLOOKUP($I$202,UnderP!B:H,7,0)) -> 414233.43 | V90: =(VLOOKUP($I$204,UnderP!B:H,7,0)) -> 48620 | W90: 48620 | X90: =UnderP!#REF! -> 
B91: 10124 | C91: 10124 Total | D91: Total | E91: Wessex Gardens | F91: =VLOOKUP(C91,Wessex!J:S,7,0) -> -244209.98 | G91: =VLOOKUP(D91,Wessex!B:H,4,0) -> -225865.98 | H91: 18344 | K91: =(VLOOKUP($I$198,Wessex!B:F,5,0)) -> -761442.83 | L91: -761442.83 | M91: =+(VLOOKUP($I$199,Wessex!B:F,5,0)) -> 0 | N91: 0 | O91: -761442.83 | P91: =(VLOOKUP($I$200,Wessex!B:F,5,0)) -> 517232.85 | Q91: 517232.85 | R91: =+(VLOOKUP($I$201,Wessex!B:F,5,0)) -> 0 | S91: 0 | T91: 517232.85 | U91: =(VLOOKUP($I$202,Wessex!B:H,7,0)) -> 401324.98 | V91: =(VLOOKUP($I$204,Wessex!B:H,7,0)) -> 24093 | W91: 24093 | X91: =Wessex!#REF! -> 
B92: 10105 | C92: 10105 Total | D92: Total | E92: Whitings Hill | F92: =VLOOKUP(C92,Whiting!J:S,7,0) -> 228752.54 | G92: =VLOOKUP(D92,Whiting!B:H,4,0) -> -798085.99 | H92: -1026838.53 | K92: =(VLOOKUP($I$198,Whiting!B:F,5,0)) -> -1031500.35 | L92: -1031500.35 | M92: =+(VLOOKUP($I$199,Whiting!B:F,5,0)) -> -18749.37 | N92: -18749.37 | O92: -1050249.72 | P92: =(VLOOKUP($I$200,Whiting!B:F,5,0)) -> 1252013.89 | Q92: 1252013.89 | R92: =+(VLOOKUP($I$201,Whiting!B:F,5,0)) -> 26988.37 | S92: 26988.37 | T92: 1279002.26 | U92: =(VLOOKUP($I$202,Whiting!B:H,7,0)) -> 2390.46 | V92: =(VLOOKUP($I$204,Whiting!B:H,7,0)) -> 26460 | W92: 26460 | X92: =Whiting!#REF! -> 
B93: 10123 | C93: 10123 Total | D93: Total | E93: Woodcroft Primary | F93: =VLOOKUP(C93,Woodcrft!J:S,7,0) -> -179629.91 | G93: =VLOOKUP(D93,Woodcrft!B:H,4,0) -> -179630.91 | H93: -1 | K93: =(VLOOKUP($I$198,Woodcrft!B:F,5,0)) -> -744702.32 | L93: -744702.32 | M93: =+(VLOOKUP($I$199,Woodcrft!B:F,5,0)) ->  | N93: 0 | O93: -744702.32 | P93: =(VLOOKUP($I$200,Woodcrft!B:F,5,0)) -> 563822.41 | Q93: 563822.41 | R93: =+(VLOOKUP($I$201,Woodcrft!B:F,5,0)) -> 1250 | S93: 1250 | T93: 565072.41 | U93: =(VLOOKUP($I$202,Woodcrft!B:H,7,0)) -> 122561.91 | V93: =(VLOOKUP($I$204,Woodcrft!B:H,7,0)) -> 20074 | W93: 20074 | X93: =Woodcrft!#REF! -> 
B94: 10109 | C94: 10109 Total | D94: Total | E94: Woodridge | F94: =VLOOKUP(C94,Woodrdge!J:S,7,0) -> 75697.35 | G94: =VLOOKUP(D94,Woodrdge!B:H,4,0) -> -303896.98 | H94: -379594.33 | K94: =(VLOOKUP($I$198,Woodrdge!B:F,5,0)) -> -404765.23 | L94: -404765.23 | M94: =+(VLOOKUP($I$199,Woodrdge!B:F,5,0)) -> 0 | N94: 0 | O94: -404765.23 | P94: =(VLOOKUP($I$200,Woodrdge!B:F,5,0)) -> 480462.58 | Q94: 480462.58 | R94: =+(VLOOKUP($I$201,Woodrdge!B:F,5,0)) -> 0 | S94: 0 | T94: 480462.58 | U94: =(VLOOKUP($I$202,Woodrdge!B:H,7,0)) -> -1420.35 | V94: =(VLOOKUP($I$204,Woodrdge!B:H,7,0)) -> 30508 | W94: 30508 | X94: =Woodrdge!#REF! -> 
B95: 10137 | C95: =B95&" Total" -> 10137 Total | D95: Total | E95: Bishop Douglass | F95: 0 | G95: 0 | H95: 0 | K95: =(VLOOKUP($I$198,BishopD!B:F,5,0)) ->  | L95: =IFERROR(K95,0) -> 0 | M95: =+(VLOOKUP($I$199,BishopD!B:F,5,0)) ->  | N95: =IFERROR(M95,"0") -> 0 | O95: 0 | P95: =(VLOOKUP($I$200,BishopD!B:F,5,0)) ->  | Q95: =IFERROR(P95,0) -> 0 | R95: =+(VLOOKUP($I$201,BishopD!B:F,5,0)) ->  | S95: =IFERROR(R95,"0") -> 0 | T95: =Q95+S95 -> 0 | U95: =(VLOOKUP($I$202,BishopD!B:H,7,0)) ->  | V95: =(VLOOKUP($I$204,BishopD!B:H,7,0)) ->  | W95: =IFERROR(V95,0) -> 0 | X95: =BishopD!$C$7 -> 0
B96: 10145 | C96: 10145 Total | D96: Total | E96: Finchley Catholic High | F96: =VLOOKUP(C96,FinchleyC!J:S,7,0) -> -344889.33 | G96: =VLOOKUP(D96,FinchleyC!B:H,4,0) -> -397163.33 | H96: -52274 | K96: =(VLOOKUP($I$198,FinchleyC!B:F,5,0)) -> -2644710.63 | L96: -2644710.63 | M96: =+(VLOOKUP($I$199,FinchleyC!B:F,5,0)) ->  | N96: 0 | O96: -2644710.63 | P96: =(VLOOKUP($I$200,FinchleyC!B:F,5,0)) -> 2299821.3 | Q96: 2299821.3 | R96: =+(VLOOKUP($I$201,FinchleyC!B:F,5,0)) ->  | S96: 0 | T96: 2299821.3 | U96: =(VLOOKUP($I$202,FinchleyC!B:H,7,0)) -> 1302235.33 | V96: =(VLOOKUP($I$204,FinchleyC!B:H,7,0)) ->  | W96: 0 | X96: =FinchleyC!#REF! -> 
B97: 10139 | C97: 10139 Total | D97: Total | E97: Friern Barnet | F97: =VLOOKUP(C97,FBarnet!J:S,7,0) -> -688485.97 | G97: =VLOOKUP(D97,FBarnet!B:H,4,0) -> -581863.97 | H97: 106622 | K97: =(VLOOKUP($I$198,FBarnet!B:F,5,0)) -> -2036070.88 | L97: -2036070.88 | M97: =+(VLOOKUP($I$199,FBarnet!B:F,5,0)) -> 0 | N97: 0 | O97: -2036070.88 | P97: =(VLOOKUP($I$200,FBarnet!B:F,5,0)) -> 1347584.91 | Q97: 1347584.91 | R97: =+(VLOOKUP($I$201,FBarnet!B:F,5,0)) -> 0 | S97: 0 | T97: 1347584.91 | U97: =(VLOOKUP($I$202,FBarnet!B:H,7,0)) -> 921208.97 | V97: =(VLOOKUP($I$204,FBarnet!B:H,7,0)) -> 53678 | W97: 53678 | X97: =FBarnet!#REF! -> 
B98: 11174 | C98: 11174 Total | D98: Total | E98: JCoSS | F98: =VLOOKUP(C98,JCoSS!J:S,7,0) -> -1150331.4 | G98: =VLOOKUP(D98,JCoSS!B:H,4,0) -> -500894.4 | H98: 649437 | K98: =(VLOOKUP($I$198,JCoSS!B:F,5,0)) -> -4153970.27 | L98: -4153970.27 | M98: =+(VLOOKUP($I$199,JCoSS!B:F,5,0)) ->  | N98: 0 | O98: -4153970.27 | P98: =(VLOOKUP($I$200,JCoSS!B:F,5,0)) -> 3003638.87 | Q98: 3003638.87 | R98: =+(VLOOKUP($I$201,JCoSS!B:F,5,0)) ->  | S98: 0 | T98: 3003638.87 | U98: =(VLOOKUP($I$202,JCoSS!B:H,7,0)) -> 1158268.4 | V98: =(VLOOKUP($I$204,JCoSS!B:H,7,0)) ->  | W98: 0 | X98: =JCoSS!#REF! -> 
B99: 10142 | C99: 10142 Total | D99: Total | E99: St James' Catholic High | F99: =VLOOKUP(C99,StJames!J:S,7,0) -> -381844.69 | G99: =VLOOKUP(D99,StJames!B:H,4,0) -> -414940.69 | H99: -33096 | K99: =(VLOOKUP($I$198,StJames!B:F,5,0)) -> -2872804.96 | L99: -2872804.96 | M99: =+(VLOOKUP($I$199,StJames!B:F,5,0)) ->  | N99: 0 | O99: -2872804.96 | P99: =(VLOOKUP($I$200,StJames!B:F,5,0)) -> 2490960.27 | Q99: 2490960.27 | R99: =+(VLOOKUP($I$201,StJames!B:F,5,0)) ->  | S99: 0 | T99: 2490960.27 | U99: =(VLOOKUP($I$202,StJames!B:H,7,0)) -> 1105897.69 | V99: =(VLOOKUP($I$204,StJames!B:H,7,0)) ->  | W99: 0 | X99: =StJames!#REF! -> 
B100: 10143 | C100: 10143 Total | D100: Total | E100: St Mary's C E High | F100: 0 | G100: 0 | H100: 0 | K100: =(VLOOKUP($I$198,StMarys!B:F,5,0)) ->  | L100: 0 | M100: =+(VLOOKUP($I$199,StMarys!B:F,5,0)) ->  | N100: 0 | O100: 0 | P100: =(VLOOKUP($I$200,StMarys!B:F,5,0)) ->  | Q100: 0 | R100: =+(VLOOKUP($I$201,StMarys!B:F,5,0)) ->  | S100: 0 | T100: 0 | U100: =(VLOOKUP($I$202,StMarys!B:H,7,0)) ->  | V100: =(VLOOKUP($I$204,StMarys!B:H,7,0)) ->  | W100: 0 | X100: =StMarys!#REF! -> 
B101: 10148 | C101: 10148 Total | D101: Total | E101: St Michael's Cath Gram | F101: =VLOOKUP(C101,StMichael!J:S,7,0) -> -148414.01 | G101: =VLOOKUP(D101,StMichael!B:H,4,0) -> -130468.01 | H101: 17946 | K101: =(VLOOKUP($I$198,StMichael!B:F,5,0)) -> -1647226.43 | L101: -1647226.43 | M101: =+(VLOOKUP($I$199,StMichael!B:F,5,0)) ->  | N101: 0 | O101: -1647226.43 | P101: =(VLOOKUP($I$200,StMichael!B:F,5,0)) -> 1498812.42 | Q101: 1498812.42 | R101: =+(VLOOKUP($I$201,StMichael!B:F,5,0)) ->  | S101: 0 | T101: 1498812.42 | U101: =(VLOOKUP($I$202,StMichael!B:H,7,0)) -> 525843.01 | V101: =(VLOOKUP($I$204,StMichael!B:H,7,0)) ->  | W101: 0 | X101: =StMichael!#REF! -> 
B102: 11513 | C102: 11513 Total | D102: Total | E102: Menorah High for Girls | F102: =VLOOKUP(C102,MenorahHigh1!J:S,7,0) -> -140873 | G102: =VLOOKUP(D102, MenorahHigh1!B:H,4,0) -> -80286 | H102: 60587 | K102: =MenorahHigh1!#REF! ->  | L102: =IFERROR(K102,0) -> 0 | M102: =(VLOOKUP($I$199,MenorahHigh1!$B:$H,5,0)) -> 0 | N102: =IFERROR(M102,"0") -> 0 | O102: =L102+N102 -> 0 | P102: =(VLOOKUP($I$200,MenorahHigh1!$B:$H,5,0)) -> 669782 | Q102: =IFERROR(P102,0) -> 669782 | R102: =(VLOOKUP($I$201,MenorahHigh1!$B:$H,5,0)) -> 0 | S102: =IFERROR(R102,"0") -> 0 | T102: =Q102+S102 -> 669782 | U102: =(VLOOKUP($I$202,MenorahHigh1!$B:$H,7,0)) -> 200385 | V102: =(VLOOKUP($I$204,MenorahHigh1!$B:$H,7,0)) -> 0 | W102: =IFERROR(V102,0) -> 0 | X102: =MenorahHigh1!#REF! -> 
F103: =SUM(F6:F102) ->  | G103: =SUM(G6:G102) ->  | H103: =SUM(H6:H102) ->  | I103: =SUM(I7:I102) -> 0 | J103: 0 | L103: -63324525.43 | N103: -40637.04 | O103: -63365162.47 | Q103: 70827443.12 | S103: 201076.66 | T103: 71028519.78 | W103: 1006557.38 | X103: =SUM(X6:X102) -> 
I198: CFR Revenue Income (Excl Bal) | J198: a
I199: CFR Capital Income (Excl Bal) | J199: a
I200: CFR2 Revenue Expenditure: TOTAL | J200: b
I201: CFR Capital Expenditure | J201: b
I202: Revenue Balance C/forward | J202: c
I203: TOTAL | J203: d
I204: Capital Balance C/forward

Sheet Check Original (hidden)
B2: Transactions Totals | O2: CFR Inc + cap | T2: CFR Exp + cap | U2: Rev Bal | W2: Cap Bal
O3: bal bfd | T3: bal bfwd
E4: School | F4: Transactions | G4: Report Total | O4: A | T4: B | U4: C | W4: D
F5: £ | G5: £
B6: 10130 | C6: =B6&" Total" -> 10130 Total | D6: Total | E6: Brookhill Nursery | F6: =VLOOKUP(C6,Brk!B:H,9,0) ->  | G6: =VLOOKUP(D6,Brk!I:L,4,0) ->  | H6: =G6-F6 ->  | K6: =(VLOOKUP($I$201,Brk!I:O,5,0)) ->  | L6: =IFERROR(K6,0) -> 0 | M6: =(VLOOKUP($I$202,Brk!I:O,5,0)) ->  | N6: =IFERROR(M6,"0") -> 0 | O6: =L6+N6 -> 0 | P6: =(VLOOKUP($I$203,Brk!I:O,5,0)) ->  | Q6: =IFERROR(P6,0) -> 0 | R6: =(VLOOKUP($I$204,Brk!I:O,5,0)) ->  | S6: =IFERROR(R6,"0") -> 0 | T6: =Q6+S6 -> 0 | U6: =(VLOOKUP($I$205,Brk!I:O,7,0)) ->  | V6: =(VLOOKUP($I$207,Brk!I:O,7,0)) ->  | W6: =IFERROR(V6,0) -> 0
B7: 10131 | C7: =B7&" Total" -> 10131 Total | D7: Total | E7: Hampden Way Nursery | F7: =VLOOKUP(C7,Hmp!B:H,9,0) ->  | G7: =VLOOKUP(D7,Hmp!I:L,4,0) ->  | H7: =G7-F7 ->  | K7: =(VLOOKUP($I$201,Hmp!I:O,5,0)) ->  | L7: =IFERROR(K7,0) -> 0 | M7: =(VLOOKUP($I$202,Hmp!I:O,5,0)) ->  | N7: =IFERROR(M7,"0") -> 0 | O7: =L7+N7 -> 0 | P7: =(VLOOKUP($I$203,Hmp!I:O,5,0)) ->  | Q7: =IFERROR(P7,0) -> 0 | R7: =(VLOOKUP($I$204,Hmp!I:O,5,0)) ->  | S7: =IFERROR(R7,"0") -> 0 | T7: =Q7+S7 -> 0 | U7: =(VLOOKUP($I$205,Hmp!I:O,7,0)) ->  | V7: =(VLOOKUP($I$207,Hmp!I:O,7,0)) ->  | W7: =IFERROR(V7,0) -> 0
B8: 10132 | C8: 10132 Total | D8: Total | E8: Moss Hall Nursery | F8: =VLOOKUP(C8,MHN!B:H,9,0) ->  | G8: =VLOOKUP(D8,MHN!J:P,4,0) ->  | K8: =(VLOOKUP($I$201,MHN!J:S,5,0)) ->  | L8: 0 | M8: =+(VLOOKUP($I$202,MHN!J:S,5,0)) ->  | N8: =IFERROR(M8,"0") -> 0 | O8: 0 | P8: =(VLOOKUP($I$203,MHN!J:S,5,0)) ->  | Q8: 0 | R8: =+(VLOOKUP($I$204,MHN!J:S,5,0)) ->  | S8: =IFERROR(R8,"0") -> 0 | T8: =Q8+S8 -> 0 | U8: =(VLOOKUP($I$205,MHN!J:S,7,0)) ->  | V8: =(VLOOKUP($I$207,MHN!J:S,7,0)) ->  | W8: 0
B9: 10133 | C9: 10133 Total | D9: Total | E9: St Margaret's Nursery | F9: =VLOOKUP(C9,StM!B:H,9,0) ->  | G9: =VLOOKUP(D9,StM!I:L,4,0) ->  | K9: =(VLOOKUP($I$201,StM!I:O,5,0)) ->  | L9: 0 | M9: =+(VLOOKUP($I$202,StM!I:O,5,0)) ->  | N9: =IFERROR(M9,"0") -> 0 | O9: 0 | P9: =(VLOOKUP($I$203,StM!I:O,5,0)) ->  | Q9: 0 | R9: =+(VLOOKUP($I$204,StM!I:O,5,0)) ->  | S9: =IFERROR(R9,"0") -> 0 | T9: =Q9+S9 -> 0 | U9: =(VLOOKUP($I$205,StM!I:O,7,0)) ->  | V9: =(VLOOKUP($I$207,StM!I:O,7,0)) ->  | W9: 0
B11: 10159 | C11: 10159 Total | D11: Total | E11: Mapledown | F11: =VLOOKUP(C11,Mpldwn!B:H,9,0) ->  | G11: =VLOOKUP(D11,Mpldwn!J:J,4,0) ->  | K11: =(VLOOKUP($I$201,Mpldwn!J:P,5,0)) ->  | L11: 0 | M11: =+(VLOOKUP($I$202,Mpldwn!J:P,5,0)) ->  | N11: =IFERROR(M11,"0") -> 0 | O11: 0 | P11: =(VLOOKUP($I$203,Mpldwn!J:P,5,0)) ->  | Q11: 0 | R11: =+(VLOOKUP($I$204,Mpldwn!J:P,5,0)) ->  | S11: =IFERROR(R11,"0") -> 0 | T11: =Q11+S11 -> 0 | U11: =(VLOOKUP($I$205,Mpldwn!J:P,7,0)) ->  | V11: =(VLOOKUP($I$207,Mpldwn!J:P,7,0)) ->  | W11: 0
B12: 10157 | C12: 10157 Total | D12: Total | E12: Northway | F12: =VLOOKUP(C12,Nrthwy!B:H,9,0) ->  | G12: =VLOOKUP(D12,Nrthwy!J:J,4,0) ->  | K12: =(VLOOKUP($I$201,Nrthwy!J:P,5,0)) ->  | L12: 0 | M12: =+(VLOOKUP($I$202,Nrthwy!J:P,5,0)) ->  | N12: =IFERROR(M12,"0") -> 0 | O12: 0 | P12: =(VLOOKUP($I$203,Nrthwy!J:P,5,0)) ->  | Q12: 0 | R12: =+(VLOOKUP($I$204,Nrthwy!J:P,5,0)) ->  | S12: =IFERROR(R12,"0") -> 0 | T12: =Q12+S12 -> 0 | U12: =(VLOOKUP($I$205,Nrthwy!J:P,7,0)) ->  | V12: =(VLOOKUP($I$207,Nrthwy!J:P,7,0)) ->  | W12: 0
B13: 10156 | C13: 10156 Total | D13: Total | E13: Oak Lodge | F13: =VLOOKUP(C13,okldg!B:H,9,0) ->  | G13: =VLOOKUP(D13,okldg!I:I,4,0) ->  | K13: =(VLOOKUP($I$201,okldg!I:L,5,0)) ->  | L13: 0 | M13: =+(VLOOKUP($I$202,okldg!I:L,5,0)) ->  | N13: =IFERROR(M13,"0") -> 0 | O13: 0 | P13: =(VLOOKUP($I$203,okldg!I:L,5,0)) ->  | Q13: 0 | R13: =+(VLOOKUP($I$204,okldg!I:L,5,0)) ->  | S13: =IFERROR(R13,"0") -> 0 | T13: =Q13+S13 -> 0 | U13: =(VLOOKUP($I$205,okldg!I:L,7,0)) ->  | V13: =(VLOOKUP($I$207,okldg!I:L,7,0)) ->  | W13: 0
B14: 10158 | C14: 10158 Total | D14: Total | E14: Oakleigh | F14: =VLOOKUP(C14,Oklgh!B:H,9,0) ->  | G14: =VLOOKUP(D14,Oklgh!J:J,4,0) ->  | K14: =(VLOOKUP($I$201,Oklgh!J:P,5,0)) ->  | L14: 0 | M14: =+(VLOOKUP($I$202,Oklgh!J:P,5,0)) ->  | N14: =IFERROR(M14,"0") -> 0 | O14: 0 | P14: =(VLOOKUP($I$203,Oklgh!J:P,5,0)) ->  | Q14: 0 | R14: =+(VLOOKUP($I$204,Oklgh!J:P,5,0)) ->  | S14: =IFERROR(R14,"0") -> 0 | T14: =Q14+S14 -> 0 | U14: =(VLOOKUP($I$205,Oklgh!J:P,7,0)) ->  | V14: =(VLOOKUP($I$207,Oklgh!J:P,7,0)) ->  | W14: 0
B16: 10185 | C16: 10185 Total | D16: Total | E16: Northgate | F16: =VLOOKUP(C16,Northg!B:H,9,0) ->  | G16: =VLOOKUP(D16,Northg!J:J,4,0) ->  | K16: =(VLOOKUP($I$201,Northg!J:P,5,0)) ->  | L16: 0 | M16: =+(VLOOKUP($I$202,Northg!J:P,5,0)) ->  | N16: =IFERROR(M16,"0") -> 0 | O16: 0 | P16: =(VLOOKUP($I$203,Northg!J:P,5,0)) ->  | Q16: 0 | R16: =+(VLOOKUP($I$204,Northg!J:P,5,0)) ->  | S16: =IFERROR(R16,"0") -> 0 | T16: =Q16+S16 -> 0 | U16: =(VLOOKUP($I$205,Northg!J:P,7,0)) ->  | V16: =(VLOOKUP($I$207,Northg!J:P,7,0)) ->  | W16: 0
B17: 10188 | C17: 10188 Total | D17: Total | E17: Pavilion | F17: =VLOOKUP(C17,Pavilion!B:H,9,0) ->  | G17: =VLOOKUP(D17,Pavilion!J:J,4,0) ->  | K17: =(VLOOKUP($I$201,Pavilion!J:P,5,0)) ->  | L17: 0 | M17: =+(VLOOKUP($I$202,Pavilion!J:P,5,0)) ->  | N17: =IFERROR(M17,"0") -> 0 | O17: 0 | P17: =(VLOOKUP($I$203,Pavilion!J:P,5,0)) ->  | Q17: 0 | R17: =+(VLOOKUP($I$204,Pavilion!J:P,5,0)) ->  | S17: =IFERROR(R17,"0") -> 0 | T17: =Q17+S17 -> 0 | U17: =(VLOOKUP($I$205,Pavilion!J:P,7,0)) ->  | V17: =(VLOOKUP($I$207,Pavilion!J:P,7,0)) ->  | W17: 0
B19: 11094 | C19: 11094 Total | D19: Total | E19: Akiva | F19: =VLOOKUP(C19,Akv!B:H,9,0) ->  | G19: =VLOOKUP(D19,Akv!J:J,4,0) ->  | K19: =(VLOOKUP($I$201,Akv!J:P,5,0)) ->  | L19: 0 | M19: =+(VLOOKUP($I$202,Akv!J:P,5,0)) ->  | N19: =IFERROR(M19,"0") -> 0 | O19: 0 | P19: =(VLOOKUP($I$203,Akv!J:P,5,0)) ->  | Q19: 0 | R19: =+(VLOOKUP($I$204,Akv!J:P,5,0)) ->  | S19: =IFERROR(R19,"0") -> 0 | T19: =Q19+S19 -> 0 | U19: =(VLOOKUP($I$205,Akv!J:P,7,0)) ->  | V19: =(VLOOKUP($I$207,Akv!J:P,7,0)) ->  | W19: 0
B20: 10042 | C20: 10042 Total | D20: Total | E20: All Saints N20 | F20: =VLOOKUP(C20,AstN20!B:H,9,0) ->  | G20: =VLOOKUP(D20,AstN20!J:J,4,0) ->  | K20: =(VLOOKUP($I$201,AstN20!J:P,5,0)) ->  | L20: 0 | M20: =+(VLOOKUP($I$202,AstN20!J:P,5,0)) ->  | N20: 0 | O20: 0 | P20: =(VLOOKUP($I$203,AstN20!J:P,5,0)) ->  | Q20: 0 | R20: =+(VLOOKUP($I$204,AstN20!J:P,5,0)) ->  | S20: 0 | T20: 0 | U20: =(VLOOKUP($I$205,AstN20!J:P,7,0)) ->  | V20: =(VLOOKUP($I$207,AstN20!J:P,7,0)) ->  | W20: 0
B21: 10040 | C21: 10040 Total | D21: Total | E21: All Saints NW2 | F21: =VLOOKUP(C21,AstNW2!B:H,9,0) ->  | G21: =VLOOKUP(D21,AstNW2!J:J,4,0) ->  | K21: =(VLOOKUP($I$201,AstNW2!J:P,5,0)) ->  | L21: 0 | M21: =+(VLOOKUP($I$202,AstNW2!J:P,5,0)) ->  | N21: 0 | O21: 0 | P21: =(VLOOKUP($I$203,AstNW2!J:P,5,0)) ->  | Q21: 0 | R21: =+(VLOOKUP($I$204,AstNW2!J:P,5,0)) ->  | S21: 0 | T21: 0 | U21: =(VLOOKUP($I$205,AstNW2!J:P,7,0)) ->  | V21: =(VLOOKUP($I$207,AstNW2!J:P,7,0)) ->  | W21: 0
B22: 10043 | C22: 10043 Total | D22: Total | E22: Annunciation Inf | F22: =VLOOKUP(C22,AnnI!B:H,9,0) ->  | G22: =VLOOKUP(D22,AnnI!J:J,4,0) ->  | K22: =(VLOOKUP($I$201,AnnI!J:P,5,0)) ->  | L22: 0 | M22: =+(VLOOKUP($I$202,AnnI!J:P,5,0)) ->  | N22: 0 | O22: 0 | P22: =(VLOOKUP($I$203,AnnI!J:P,5,0)) ->  | Q22: 0 | R22: =+(VLOOKUP($I$204,AnnI!J:P,5,0)) ->  | S22: 0 | T22: 0 | U22: =(VLOOKUP($I$205,AnnI!J:P,7,0)) ->  | V22: =(VLOOKUP($I$207,AnnI!J:P,7,0)) ->  | W22: 0
B23: 10117 | C23: 10117 Total | D23: Total | E23: Annunciation Jun | F23: =VLOOKUP(C23,AnnJ!B:H,9,0) ->  | G23: =VLOOKUP(D23,AnnJ!J:J,4,0) ->  | K23: =(VLOOKUP($I$201,AnnJ!J:P,5,0)) ->  | L23: 0 | M23: =+(VLOOKUP($I$202,AnnJ!J:P,5,0)) ->  | N23: 0 | O23: 0 | P23: =(VLOOKUP($I$203,AnnJ!J:P,5,0)) ->  | Q23: 0 | R23: =+(VLOOKUP($I$204,AnnJ!J:P,5,0)) ->  | S23: 0 | T23: 0 | U23: =(VLOOKUP($I$205,AnnJ!J:P,7,0)) ->  | V23: =(VLOOKUP($I$207,AnnJ!J:P,7,0)) ->  | W23: 0
B24: 10044 | C24: 10044 Total | D24: Total | E24: Barnfield | F24: =VLOOKUP(C24,Barnf!B:H,9,0) ->  | G24: =VLOOKUP(D24,Barnf!J:J,4,0) ->  | K24: =(VLOOKUP($I$201,Barnf!J:P,5,0)) ->  | L24: 0 | M24: =+(VLOOKUP($I$202,Barnf!J:P,5,0)) ->  | N24: 0 | O24: 0 | P24: =(VLOOKUP($I$203,Barnf!J:P,5,0)) ->  | Q24: 0 | R24: =+(VLOOKUP($I$204,Barnf!J:P,5,0)) ->  | S24: 0 | T24: 0 | U24: =(VLOOKUP($I$205,Barnf!J:P,7,0)) ->  | V24: =(VLOOKUP($I$207,Barnf!J:P,7,0)) ->  | W24: 0
B25: 10128 | C25: 10128 Total | D25: Total | E25: Beis Yaakov | F25: =VLOOKUP(C25,BYaak!B:H,9,0) ->  | G25: =VLOOKUP(D25,BYaak!J:J,4,0) ->  | K25: =(VLOOKUP($I$201,BYaak!J:P,5,0)) ->  | L25: 0 | M25: =+(VLOOKUP($I$202,BYaak!J:P,5,0)) ->  | N25: 0 | O25: 0 | P25: =(VLOOKUP($I$203,BYaak!J:P,5,0)) ->  | Q25: 0 | R25: =+(VLOOKUP($I$204,BYaak!J:P,5,0)) ->  | S25: 0 | T25: 0 | U25: =(VLOOKUP($I$205,BYaak!J:P,7,0)) ->  | V25: =(VLOOKUP($I$207,BYaak!J:P,7,0)) ->  | W25: 0
B26: 11278 | C26: 11278 Total | D26: Total | E26: Beit Shvidler School | F26: =VLOOKUP(C26,BeitShv!B:H,9,0) ->  | G26: =VLOOKUP(D26,BeitShv!J:J,4,0) ->  | K26: =(VLOOKUP($I$201,BeitShv!J:P,5,0)) ->  | L26: 0 | M26: =+(VLOOKUP($I$202,BeitShv!J:P,5,0)) ->  | N26: 0 | O26: 0 | P26: =(VLOOKUP($I$203,BeitShv!J:P,5,0)) ->  | Q26: 0 | R26: =+(VLOOKUP($I$204,BeitShv!J:P,5,0)) ->  | S26: 0 | T26: 0 | U26: =(VLOOKUP($I$205,BeitShv!J:P,7,0)) ->  | V26: =(VLOOKUP($I$207,BeitShv!J:P,7,0)) ->  | W26: 0
B27: 10045 | C27: 10045 Total | D27: Total | E27: Bell Lane | F27: =VLOOKUP(C27,Bell!B:H,9,0) ->  | G27: =VLOOKUP(D27,Bell!J:J,4,0) ->  | K27: =(VLOOKUP($I$201,Bell!J:P,5,0)) ->  | L27: 0 | M27: =+(VLOOKUP($I$202,Bell!J:P,5,0)) ->  | N27: 0 | O27: 0 | P27: =(VLOOKUP($I$203,Bell!J:P,5,0)) ->  | Q27: 0 | R27: =+(VLOOKUP($I$204,Bell!J:P,5,0)) ->  | S27: 0 | T27: 0 | U27: =(VLOOKUP($I$205,Bell!J:P,7,0)) ->  | V27: =(VLOOKUP($I$207,Bell!J:P,7,0)) ->  | W27: 0
B28: 10115 | C28: 10115 Total | D28: Total | E28: Blessed Dominic | F28: =VLOOKUP(C28,BDom!B:H,9,0) ->  | G28: =VLOOKUP(D28,BDom!J:J,4,0) ->  | K28: =(VLOOKUP($I$201,BDom!J:P,5,0)) ->  | L28: 0 | M28: =+(VLOOKUP($I$202,BDom!J:P,5,0)) ->  | N28: 0 | O28: 0 | P28: =(VLOOKUP($I$203,BDom!J:P,5,0)) ->  | Q28: 0 | R28: =+(VLOOKUP($I$204,BDom!J:P,5,0)) ->  | S28: 0 | T28: 0 | U28: =(VLOOKUP($I$205,BDom!J:P,7,0)) ->  | V28: =(VLOOKUP($I$207,BDom!J:P,7,0)) ->  | W28: 0
B29: 10047 | C29: 10047 Total | D29: Total | E29: Brookland Inf | F29: =VLOOKUP(C29,BrookI!B:H,9,0) ->  | G29: =VLOOKUP(D29,BrookI!J:J,4,0) ->  | K29: =(VLOOKUP($I$201,BrookI!J:P,5,0)) ->  | L29: =IFERROR(K29,0) -> 0 | M29: =(VLOOKUP($I$202,BrookI!J:P,5,0)) ->  | N29: 0 | O29: 0 | P29: =(VLOOKUP($I$203,BrookI!J:P,5,0)) ->  | Q29: =IFERROR(P29,0) -> 0 | R29: =(VLOOKUP($I$204,BrookI!J:P,5,0)) ->  | S29: 0 | T29: 0 | U29: =(VLOOKUP($I$205,BrookI!J:P,7,0)) ->  | V29: =(VLOOKUP($I$207,BrookI!J:P,7,0)) ->  | W29: =IFERROR(V29,0) -> 0
B30: 10046 | C30: 10046 Total | D30: Total | E30: Brookland Jun | F30: =VLOOKUP(C30,BrookJ!B:H,9,0) ->  | G30: =VLOOKUP(D30,BrookJ!J:J,4,0) ->  | K30: =(VLOOKUP($I$201,BrookJ!J:P,5,0)) ->  | L30: 0 | M30: =+(VLOOKUP($I$202,BrookJ!J:P,5,0)) ->  | N30: 0 | O30: 0 | P30: =(VLOOKUP($I$203,BrookJ!J:P,5,0)) ->  | Q30: 0 | R30: =+(VLOOKUP($I$204,BrookJ!J:P,5,0)) ->  | S30: 0 | T30: 0 | U30: =(VLOOKUP($I$205,BrookJ!J:P,7,0)) ->  | V30: =(VLOOKUP($I$207,BrookJ!J:P,7,0)) ->  | W30: 0
B31: 10048 | C31: 10048 Total | D31: Total | E31: Brunswick Park | F31: =VLOOKUP(C31,BrunsP!B:H,9,0) ->  | G31: =VLOOKUP(D31,BrunsP!J:J,4,0) ->  | K31: =(VLOOKUP($I$201,BrunsP!J:P,5,0)) ->  | L31: 0 | M31: =+(VLOOKUP($I$202,BrunsP!J:P,5,0)) ->  | N31: 0 | O31: 0 | P31: =(VLOOKUP($I$203,BrunsP!J:P,5,0)) ->  | Q31: 0 | R31: =+(VLOOKUP($I$204,BrunsP!J:P,5,0)) ->  | S31: 0 | T31: 0 | U31: =(VLOOKUP($I$205,BrunsP!J:P,7,0)) ->  | V31: =(VLOOKUP($I$207,BrunsP!J:P,7,0)) ->  | W31: 0
B32: 10118 | C32: 10118 Total | D32: Total | E32: Chalgrove | F32: =VLOOKUP(C32,Chal!B:H,9,0) ->  | G32: =VLOOKUP(D32,Chal!J:J,4,0) ->  | K32: =(VLOOKUP($I$201,Chal!J:P,5,0)) ->  | L32: 0 | M32: =+(VLOOKUP($I$202,Chal!J:P,5,0)) ->  | N32: 0 | O32: 0 | P32: =(VLOOKUP($I$203,Chal!J:P,5,0)) ->  | Q32: 0 | R32: =+(VLOOKUP($I$204,Chal!J:P,5,0)) ->  | S32: 0 | T32: 0 | U32: =(VLOOKUP($I$205,Chal!J:P,7,0)) ->  | V32: =(VLOOKUP($I$207,Chal!J:P,7,0)) ->  | W32: 0
B33: 10049 | C33: 10049 Total | D33: Total | E33: Childs Hill | F33: =VLOOKUP(C33,ChildsH!B:H,9,0) ->  | G33: =VLOOKUP(D33,ChildsH!I:I,4,0) ->  | K33: =(VLOOKUP($I$201,ChildsH!I:L,5,0)) ->  | L33: 0 | M33: =+(VLOOKUP($I$202,ChildsH!I:L,5,0)) ->  | N33: 0 | O33: 0 | P33: =(VLOOKUP($I$203,ChildsH!I:L,5,0)) ->  | Q33: 0 | R33: =+(VLOOKUP($I$204,ChildsH!I:L,5,0)) ->  | S33: 0 | T33: 0 | U33: =(VLOOKUP($I$205,ChildsH!I:L,7,0)) ->  | V33: =(VLOOKUP($I$207,ChildsH!I:L,7,0)) ->  | W33: 0
B34: 10050 | C34: 10050 Total | D34: Total | E34: Christchurch JMI | F34: =VLOOKUP(C34,ChristC!B:H,9,0) ->  | G34: =VLOOKUP(D34,ChristC!J:J,4,0) ->  | K34: =(VLOOKUP($I$201,ChristC!J:P,5,0)) ->  | L34: 0 | M34: =+(VLOOKUP($I$202,ChristC!J:P,5,0)) ->  | N34: 0 | O34: 0 | P34: =(VLOOKUP($I$203,ChristC!J:P,5,0)) ->  | Q34: 0 | R34: =+(VLOOKUP($I$204,ChristC!J:P,5,0)) ->  | S34: 0 | T34: 0 | U34: =(VLOOKUP($I$205,ChristC!J:P,7,0)) ->  | V34: =(VLOOKUP($I$207,ChristC!J:P,7,0)) ->  | W34: 0
B35: 10051 | C35: 10051 Total | D35: Total | E35: Church Hill | F35: =VLOOKUP(C35,ChurchH!B:H,9,0) ->  | G35: =VLOOKUP(D35,ChurchH!J:J,4,0) ->  | K35: =(VLOOKUP($I$201,ChurchH!J:P,5,0)) ->  | L35: 0 | M35: =+(VLOOKUP($I$202,ChurchH!J:P,5,0)) ->  | N35: 0 | O35: 0 | P35: =(VLOOKUP($I$203,ChurchH!J:P,5,0)) ->  | Q35: 0 | R35: =+(VLOOKUP($I$204,ChurchH!J:P,5,0)) ->  | S35: 0 | T35: 0 | U35: =(VLOOKUP($I$205,ChurchH!J:P,7,0)) ->  | V35: =(VLOOKUP($I$207,ChurchH!J:P,7,0)) ->  | W35: 0
B36: 10953 | C36: 10953 Total | D36: Total | E36: Claremont Primary | F36: =VLOOKUP(C36,Clare!B:H,9,0) ->  | G36: =VLOOKUP(D36,Clare!I:I,4,0) ->  | K36: =(VLOOKUP($I$201,Clare!I:L,5,0)) ->  | L36: 0 | M36: =+(VLOOKUP($I$202,Clare!I:L,5,0)) ->  | N36: 0 | O36: 0 | P36: =(VLOOKUP($I$203,Clare!I:L,5,0)) ->  | Q36: 0 | R36: =+(VLOOKUP($I$204,Clare!I:L,5,0)) ->  | S36: 0 | T36: 0 | U36: =(VLOOKUP($I$205,Clare!I:L,7,0)) ->  | V36: =(VLOOKUP($I$207,Clare!I:L,7,0)) ->  | W36: 0
B37: 10054 | C37: 10054 Total | D37: Total | E37: Colindale | F37: =VLOOKUP(C37,Colin!B:H,9,0) ->  | G37: =VLOOKUP(D37,Colin!J:J,4,0) ->  | K37: =(VLOOKUP($I$201,Colin!J:P,5,0)) ->  | L37: 0 | M37: =+(VLOOKUP($I$202,Colin!J:P,5,0)) ->  | N37: 0 | O37: 0 | P37: =(VLOOKUP($I$203,Colin!J:P,5,0)) ->  | Q37: 0 | R37: =+(VLOOKUP($I$204,Colin!J:P,5,0)) ->  | S37: 0 | T37: 0 | U37: =(VLOOKUP($I$205,Colin!J:P,7,0)) ->  | V37: =(VLOOKUP($I$207,Colin!J:P,7,0)) ->  | W37: 0
B38: 10055 | C38: 10055 Total | D38: Total | E38: Coppetts Wood | F38: =VLOOKUP(C38,Coppet!B:H,9,0) ->  | G38: =VLOOKUP(D38,Coppet!J:J,4,0) ->  | K38: =(VLOOKUP($I$201,Coppet!J:P,5,0)) ->  | L38: 0 | M38: =+(VLOOKUP($I$202,Coppet!J:P,5,0)) ->  | N38: 0 | O38: 0 | P38: =(VLOOKUP($I$203,Coppet!J:P,5,0)) ->  | Q38: 0 | R38: =+(VLOOKUP($I$204,Coppet!J:P,5,0)) ->  | S38: 0 | T38: 0 | U38: =(VLOOKUP($I$205,Coppet!J:P,7,0)) ->  | V38: =(VLOOKUP($I$207,Coppet!J:P,7,0)) ->  | W38: 0
B39: 10056 | C39: 10056 Total | D39: Total | E39: Courtland | F39: =VLOOKUP(C39,Court!B:H,9,0) ->  | G39: =VLOOKUP(D39,Court!J:J,4,0) ->  | K39: =(VLOOKUP($I$201,Court!J:P,5,0)) ->  | L39: 0 | M39: =+(VLOOKUP($I$202,Court!J:P,5,0)) ->  | N39: 0 | O39: 0 | P39: =(VLOOKUP($I$203,Court!J:P,5,0)) ->  | Q39: 0 | R39: =+(VLOOKUP($I$204,Court!J:P,5,0)) ->  | S39: 0 | T39: 0 | U39: =(VLOOKUP($I$205,Court!J:P,7,0)) ->  | V39: =(VLOOKUP($I$207,Court!J:P,7,0)) ->  | W39: 0
B40: 10057 | C40: 10057 Total | D40: Total | E40: Cromer Road | F40: =VLOOKUP(C40,Cromer!B:H,9,0) ->  | G40: =VLOOKUP(D40,Cromer!J:J,4,0) ->  | K40: =(VLOOKUP($I$201,Cromer!J:P,5,0)) ->  | L40: 0 | M40: =+(VLOOKUP($I$202,Cromer!J:P,5,0)) ->  | N40: 0 | O40: 0 | P40: =(VLOOKUP($I$203,Cromer!J:P,5,0)) ->  | Q40: 0 | R40: =+(VLOOKUP($I$204,Cromer!J:P,5,0)) ->  | S40: 0 | T40: 0 | U40: =(VLOOKUP($I$205,Cromer!J:P,7,0)) ->  | V40: =(VLOOKUP($I$207,Cromer!J:P,7,0)) ->  | W40: 0
B41: 10083 | C41: 10083 Total | D41: Total | E41: Danegrove | F41: =VLOOKUP(C41,Daneg!B:H,9,0) ->  | G41: =VLOOKUP(D41,Daneg!J:J,4,0) ->  | K41: =(VLOOKUP($I$201,Daneg!J:P,5,0)) ->  | L41: 0 | M41: =+(VLOOKUP($I$202,Daneg!J:P,5,0)) ->  | N41: 0 | O41: 0 | P41: =(VLOOKUP($I$203,Daneg!J:P,5,0)) ->  | Q41: 0 | R41: =+(VLOOKUP($I$204,Daneg!J:P,5,0)) ->  | S41: 0 | T41: 0 | U41: =(VLOOKUP($I$205,Daneg!J:P,7,0)) ->  | V41: =(VLOOKUP($I$207,Daneg!J:P,7,0)) ->  | W41: 0
B42: 10059 | C42: 10059 Total | D42: Total | E42: Deansbrook Inf | F42: =VLOOKUP(C42,DeansI!B:H,9,0) ->  | G42: =VLOOKUP(D42,DeansI!J:J,4,0) ->  | K42: =(VLOOKUP($I$201,DeansI!J:P,5,0)) ->  | L42: 0 | M42: =+(VLOOKUP($I$202,DeansI!J:P,5,0)) ->  | N42: 0 | O42: 0 | P42: =(VLOOKUP($I$203,DeansI!J:P,5,0)) ->  | Q42: 0 | R42: =+(VLOOKUP($I$204,DeansI!J:P,5,0)) ->  | S42: 0 | T42: 0 | U42: =(VLOOKUP($I$205,DeansI!J:P,7,0)) ->  | V42: =(VLOOKUP($I$207,DeansI!J:P,7,0)) ->  | W42: 0
B43: 10061 | C43: 10061 Total | D43: Total | E43: Dollis Inf | F43: =VLOOKUP(C43,'Dollis Prim'!B:H,9,0) ->  | G43: =VLOOKUP(D43,'Dollis Prim'!J:J,4,0) ->  | K43: =(VLOOKUP($I$201,'Dollis Prim'!J:P,5,0)) ->  | L43: 0 | M43: =+(VLOOKUP($I$202,'Dollis Prim'!J:P,5,0)) ->  | N43: 0 | O43: 0 | P43: =(VLOOKUP($I$203,'Dollis Prim'!J:P,5,0)) ->  | Q43: 0 | R43: =+(VLOOKUP($I$204,'Dollis Prim'!J:P,5,0)) ->  | S43: 0 | T43: 0 | U43: =(VLOOKUP($I$205,'Dollis Prim'!J:P,7,0)) ->  | V43: =(VLOOKUP($I$207,'Dollis Prim'!J:P,7,0)) ->  | W43: 0
B44: 10060 | C44: 10060 Total | D44: Total | E44: Dollis Junior | F44: =VLOOKUP(C44,DollisJ!B:H,9,0) ->  | G44: =VLOOKUP(D44,DollisJ!I:I,4,0) ->  | K44: =(VLOOKUP($I$201,DollisJ!I:L,5,0)) ->  | L44: 0 | M44: =+(VLOOKUP($I$202,DollisJ!I:L,5,0)) ->  | N44: 0 | O44: 0 | P44: =(VLOOKUP($I$203,DollisJ!I:L,5,0)) ->  | Q44: 0 | R44: =+(VLOOKUP($I$204,DollisJ!I:L,5,0)) ->  | S44: 0 | T44: 0 | U44: =(VLOOKUP($I$205,DollisJ!I:L,7,0)) ->  | V44: =(VLOOKUP($I$207,DollisJ!I:L,7,0)) ->  | W44: 0
B45: 10063 | C45: 10063 Total | D45: Total | E45: Edgware Inf | F45: =VLOOKUP(C45,EdgwP!B:H,9,0) ->  | G45: =VLOOKUP(D45,EdgwP!J:J,4,0) ->  | K45: =(VLOOKUP($I$201,EdgwP!J:P,5,0)) ->  | L45: 0 | M45: =+(VLOOKUP($I$202,EdgwP!J:P,5,0)) ->  | N45: 0 | O45: 0 | P45: =(VLOOKUP($I$203,EdgwP!J:P,5,0)) ->  | Q45: 0 | R45: =+(VLOOKUP($I$204,EdgwP!J:P,5,0)) ->  | S45: 0 | T45: 0 | U45: =(VLOOKUP($I$205,EdgwP!J:P,7,0)) ->  | V45: =(VLOOKUP($I$207,EdgwP!J:P,7,0)) ->  | W45: 0
B46: 10064 | C46: 10064 Total | D46: Total | E46: Fairway | F46: =VLOOKUP(C46,Fair!B:H,9,0) ->  | G46: =VLOOKUP(D46,Fair!J:J,4,0) ->  | K46: =(VLOOKUP($I$201,Fair!J:P,5,0)) ->  | L46: 0 | M46: =+(VLOOKUP($I$202,Fair!J:P,5,0)) ->  | N46: 0 | O46: 0 | P46: =(VLOOKUP($I$203,Fair!J:P,5,0)) ->  | Q46: 0 | R46: =+(VLOOKUP($I$204,Fair!J:P,5,0)) ->  | S46: 0 | T46: 0 | U46: =(VLOOKUP($I$205,Fair!J:P,7,0)) ->  | V46: =(VLOOKUP($I$207,Fair!J:P,7,0)) ->  | W46: 0
B47: 10065 | C47: 10065 Total | D47: Total | E47: Foulds | F47: =VLOOKUP(C47,Fould!B:H,9,0) ->  | G47: =VLOOKUP(D47,Fould!J:J,4,0) ->  | K47: =(VLOOKUP($I$201,Fould!J:P,5,0)) ->  | L47: 0 | M47: =+(VLOOKUP($I$202,Fould!J:P,5,0)) ->  | N47: 0 | O47: 0 | P47: =(VLOOKUP($I$203,Fould!J:P,5,0)) ->  | Q47: 0 | R47: =+(VLOOKUP($I$204,Fould!J:P,5,0)) ->  | S47: 0 | T47: 0 | U47: =(VLOOKUP($I$205,Fould!J:P,7,0)) ->  | V47: =(VLOOKUP($I$207,Fould!J:P,7,0)) ->  | W47: 0
B48: 10066 | C48: 10066 Total | D48: Total | E48: Frith Manor | F48: =VLOOKUP(C48,Frith!B:H,9,0) ->  | G48: =VLOOKUP(D48,Frith!J:J,4,0) ->  | K48: =(VLOOKUP($I$201,Frith!J:P,5,0)) ->  | L48: 0 | M48: =+(VLOOKUP($I$202,Frith!J:P,5,0)) ->  | N48: 0 | O48: 0 | P48: =(VLOOKUP($I$203,Frith!J:P,5,0)) ->  | Q48: 0 | R48: =+(VLOOKUP($I$204,Frith!J:P,5,0)) ->  | S48: 0 | T48: 0 | U48: =(VLOOKUP($I$205,Frith!J:P,7,0)) ->  | V48: =(VLOOKUP($I$207,Frith!J:P,7,0)) ->  | W48: 0
B49: 10068 | C49: 10068 Total | D49: Total | E49: Garden Suburb Inf | F49: =VLOOKUP(C49,GSubI!B:H,9,0) ->  | G49: =VLOOKUP(D49,GSubI!J:J,4,0) ->  | K49: =(VLOOKUP($I$201,GSubI!J:P,5,0)) ->  | L49: 0 | M49: =+(VLOOKUP($I$202,GSubI!J:P,5,0)) ->  | N49: 0 | O49: 0 | P49: =(VLOOKUP($I$203,GSubI!J:P,5,0)) ->  | Q49: 0 | R49: =+(VLOOKUP($I$204,GSubI!J:P,5,0)) ->  | S49: 0 | T49: 0 | U49: =(VLOOKUP($I$205,GSubI!J:P,7,0)) ->  | V49: =(VLOOKUP($I$207,GSubI!J:P,7,0)) ->  | W49: 0
B50: 10067 | C50: 10067 Total | D50: Total | E50: Garden Suburb Jnr | F50: =VLOOKUP(C50,GSubJ!B:H,9,0) ->  | G50: =VLOOKUP(D50,GSubJ!J:J,4,0) ->  | K50: =(VLOOKUP($I$201,GSubJ!J:P,5,0)) ->  | L50: 0 | M50: =+(VLOOKUP($I$202,GSubJ!J:P,5,0)) ->  | N50: 0 | O50: 0 | P50: =(VLOOKUP($I$203,GSubJ!J:P,5,0)) ->  | Q50: 0 | R50: =+(VLOOKUP($I$204,GSubJ!J:P,5,0)) ->  | S50: 0 | T50: 0 | U50: =(VLOOKUP($I$205,GSubJ!J:P,7,0)) ->  | V50: =(VLOOKUP($I$207,GSubJ!J:P,7,0)) ->  | W50: 0
B51: 10069 | C51: 10069 Total | D51: Total | E51: Goldbeaters | F51: =VLOOKUP(C51,Gold!B:H,9,0) ->  | G51: =VLOOKUP(D51,Gold!J:J,4,0) ->  | K51: =(VLOOKUP($I$201,Gold!J:P,5,0)) ->  | L51: 0 | M51: =+(VLOOKUP($I$202,Gold!J:P,5,0)) ->  | N51: 0 | O51: 0 | P51: =(VLOOKUP($I$203,Gold!J:P,5,0)) ->  | Q51: 0 | R51: =+(VLOOKUP($I$204,Gold!J:P,5,0)) ->  | S51: 0 | T51: 0 | U51: =(VLOOKUP($I$205,Gold!J:P,7,0)) ->  | V51: =(VLOOKUP($I$207,Gold!J:P,7,0)) ->  | W51: 0
B52: 10121 | C52: 10121 Total | D52: Total | E52: Hasmonean Primary | F52: =VLOOKUP(C52,HasmoP!B:H,9,0) ->  | G52: =VLOOKUP(D52,HasmoP!J:J,4,0) ->  | K52: =(VLOOKUP($I$201,HasmoP!J:P,5,0)) ->  | L52: 0 | M52: =+(VLOOKUP($I$202,HasmoP!J:P,5,0)) ->  | N52: 0 | O52: 0 | P52: =(VLOOKUP($I$203,HasmoP!J:P,5,0)) ->  | Q52: 0 | R52: =+(VLOOKUP($I$204,HasmoP!J:P,5,0)) ->  | S52: 0 | T52: 0 | U52: =(VLOOKUP($I$205,HasmoP!J:P,7,0)) ->  | V52: =(VLOOKUP($I$207,HasmoP!J:P,7,0)) ->  | W52: 0
B53: 10071 | C53: 10071 Total | D53: Total | E53: Hollickwood | F53: =VLOOKUP(C53,Hollick!B:H,9,0) ->  | G53: =VLOOKUP(D53,Hollick!J:J,4,0) ->  | K53: =(VLOOKUP($I$201,Hollick!J:P,5,0)) ->  | L53: 0 | M53: =+(VLOOKUP($I$202,Hollick!J:P,5,0)) ->  | N53: 0 | O53: 0 | P53: =(VLOOKUP($I$203,Hollick!J:P,5,0)) ->  | Q53: 0 | R53: =+(VLOOKUP($I$204,Hollick!J:P,5,0)) ->  | S53: 0 | T53: 0 | U53: =(VLOOKUP($I$205,Hollick!J:P,7,0)) ->  | V53: =(VLOOKUP($I$207,Hollick!J:P,7,0)) ->  | W53: 0
B54: 10072 | C54: 10072 Total | D54: Total | E54: Holly Park | F54: =VLOOKUP(C54,HollyP!B:H,9,0) ->  | G54: =VLOOKUP(D54,HollyP!J:J,4,0) ->  | K54: =(VLOOKUP($I$201,HollyP!J:P,5,0)) ->  | L54: 0 | M54: =+(VLOOKUP($I$202,HollyP!J:P,5,0)) ->  | N54: 0 | O54: 0 | P54: =(VLOOKUP($I$203,HollyP!J:P,5,0)) ->  | Q54: 0 | R54: =+(VLOOKUP($I$204,HollyP!J:P,5,0)) ->  | S54: 0 | T54: 0 | U54: =(VLOOKUP($I$205,HollyP!J:P,7,0)) ->  | V54: =(VLOOKUP($I$207,HollyP!J:P,7,0)) ->  | W54: 0
B55: 10073 | C55: 10073 Total | D55: Total | E55: Holy Trinity | F55: =VLOOKUP(C55,Holy!B:H,9,0) ->  | G55: =VLOOKUP(D55,Holy!J:J,4,0) ->  | K55: =(VLOOKUP($I$201,Holy!J:P,5,0)) ->  | L55: 0 | M55: =+(VLOOKUP($I$202,Holy!J:P,5,0)) ->  | N55: 0 | O55: 0 | P55: =(VLOOKUP($I$203,Holy!J:P,5,0)) ->  | Q55: 0 | R55: =+(VLOOKUP($I$204,Holy!J:P,5,0)) ->  | S55: 0 | T55: 0 | U55: =(VLOOKUP($I$205,Holy!J:P,7,0)) ->  | V55: =(VLOOKUP($I$207,Holy!J:P,7,0)) ->  | W55: 0
B56: 10074 | C56: 10074 Total | D56: Total | E56: Livingstone | F56: =VLOOKUP(C56,Living!B:H,9,0) ->  | G56: =VLOOKUP(D56,Living!J:J,4,0) ->  | K56: =(VLOOKUP($I$201,Living!J:P,5,0)) ->  | L56: 0 | M56: =+(VLOOKUP($I$202,Living!J:P,5,0)) ->  | N56: 0 | O56: 0 | P56: =(VLOOKUP($I$203,Living!J:P,5,0)) ->  | Q56: 0 | R56: =+(VLOOKUP($I$204,Living!J:P,5,0)) ->  | S56: 0 | T56: 0 | U56: =(VLOOKUP($I$205,Living!J:P,7,0)) ->  | V56: =(VLOOKUP($I$207,Living!J:P,7,0)) ->  | W56: 0
B57: 10075 | C57: 10075 Total | D57: Total | E57: Manorside | F57: =VLOOKUP(C57,Manor!B:H,9,0) ->  | G57: =VLOOKUP(D57,Manor!J:J,4,0) ->  | K57: =(VLOOKUP($I$201,Manor!J:P,5,0)) ->  | L57: 0 | M57: =+(VLOOKUP($I$202,Manor!J:P,5,0)) ->  | N57: 0 | O57: 0 | P57: =(VLOOKUP($I$203,Manor!J:P,5,0)) ->  | Q57: 0 | R57: =+(VLOOKUP($I$204,Manor!J:P,5,0)) ->  | S57: 0 | T57: 0 | U57: =(VLOOKUP($I$205,Manor!J:P,7,0)) ->  | V57: =(VLOOKUP($I$207,Manor!J:P,7,0)) ->  | W57: 0
B58: 11093 | C58: 11093 Total | D58: Total | E58: Martin Primary School | F58: =VLOOKUP(C58,Martin!B:H,9,0) ->  | G58: =VLOOKUP(D58,Martin!J:J,4,0) ->  | K58: =(VLOOKUP($I$201,Martin!J:P,5,0)) ->  | L58: 0 | M58: =+(VLOOKUP($I$202,Martin!J:P,5,0)) ->  | N58: 0 | O58: 0 | P58: =(VLOOKUP($I$203,Martin!J:P,5,0)) ->  | Q58: 0 | R58: =+(VLOOKUP($I$204,Martin!J:P,5,0)) ->  | S58: 0 | T58: 0 | U58: =(VLOOKUP($I$205,Martin!J:P,7,0)) ->  | V58: =(VLOOKUP($I$207,Martin!J:P,7,0)) ->  | W58: 0
B59: 10125 | C59: 10125 Total | D59: Total | E59: Mathilda Marks Kennedy | F59: =VLOOKUP(C59,MMK!B:H,9,0) ->  | G59: =VLOOKUP(D59,MMK!J:J,4,0) ->  | K59: =(VLOOKUP($I$201,MMK!J:P,5,0)) ->  | L59: 0 | M59: =+(VLOOKUP($I$202,MMK!J:P,5,0)) ->  | N59: 0 | O59: 0 | P59: =(VLOOKUP($I$203,MMK!J:P,5,0)) ->  | Q59: 0 | R59: =+(VLOOKUP($I$204,MMK!J:P,5,0)) ->  | S59: 0 | T59: 0 | U59: =(VLOOKUP($I$205,MMK!J:P,7,0)) ->  | V59: =(VLOOKUP($I$207,MMK!J:P,7,0)) ->  | W59: 0
B60: 10126 | C60: 10126 Total | D60: Total | E60: Menorah Foundation | F60: =VLOOKUP(C60,MenF!B:H,9,0) ->  | G60: =VLOOKUP(D60,MenF!J:J,4,0) ->  | K60: =(VLOOKUP($I$201,MenF!J:P,5,0)) ->  | L60: 0 | M60: =+(VLOOKUP($I$202,MenF!J:P,5,0)) ->  | N60: 0 | O60: 0 | P60: =(VLOOKUP($I$203,MenF!J:P,5,0)) ->  | Q60: 0 | R60: =+(VLOOKUP($I$204,MenF!J:P,5,0)) ->  | S60: 0 | T60: 0 | U60: =(VLOOKUP($I$205,MenF!J:P,7,0)) ->  | V60: =(VLOOKUP($I$207,MenF!J:P,7,0)) ->  | W60: 0
B61: 10114 | C61: 10114 Total | D61: Total | E61: Menorah Primary | F61: =VLOOKUP(C61,MenP!B:H,9,0) ->  | G61: =VLOOKUP(D61,MenP!J:J,4,0) ->  | K61: =(VLOOKUP($I$201,MenP!J:P,5,0)) ->  | L61: 0 | M61: =+(VLOOKUP($I$202,MenP!J:P,5,0)) ->  | N61: 0 | O61: 0 | P61: =(VLOOKUP($I$203,MenP!J:P,5,0)) ->  | Q61: 0 | R61: =+(VLOOKUP($I$204,MenP!J:P,5,0)) ->  | S61: 0 | T61: 0 | U61: =(VLOOKUP($I$205,MenP!J:P,7,0)) ->  | V61: =(VLOOKUP($I$207,MenP!J:P,7,0)) ->  | W61: 0
B62: 10078 | C62: 10078 Total | D62: Total | E62: Monken Hadley CE | F62: =VLOOKUP(C62,Monken!B:H,9,0) ->  | G62: =VLOOKUP(D62,Monken!J:J,4,0) ->  | K62: =(VLOOKUP($I$201,Monken!J:P,5,0)) ->  | L62: 0 | M62: =+(VLOOKUP($I$202,Monken!J:P,5,0)) ->  | N62: 0 | O62: 0 | P62: =(VLOOKUP($I$203,Monken!J:P,5,0)) ->  | Q62: 0 | R62: =+(VLOOKUP($I$204,Monken!J:P,5,0)) ->  | S62: 0 | T62: 0 | U62: =(VLOOKUP($I$205,Monken!J:P,7,0)) ->  | V62: =(VLOOKUP($I$207,Monken!J:P,7,0)) ->  | W62: 0
B63: 10079 | C63: 10079 Total | D63: Total | E63: Monkfrith | F63: =VLOOKUP(C63,MonkF!B:H,9,0) ->  | G63: =VLOOKUP(D63,MonkF!J:J,4,0) ->  | K63: =(VLOOKUP($I$201,MonkF!J:P,5,0)) ->  | L63: 0 | M63: =+(VLOOKUP($I$202,MonkF!J:P,5,0)) ->  | N63: 0 | O63: 0 | P63: =(VLOOKUP($I$203,MonkF!J:P,5,0)) ->  | Q63: 0 | R63: =+(VLOOKUP($I$204,MonkF!J:P,5,0)) ->  | S63: 0 | T63: 0 | U63: =(VLOOKUP($I$205,MonkF!J:P,7,0)) ->  | V63: =(VLOOKUP($I$207,MonkF!J:P,7,0)) ->  | W63: 0
B64: 10081 | C64: 10081 Total | D64: Total | E64: Moss Hall Inf | F64: =VLOOKUP(C64,MHI!B:H,9,0) ->  | G64: =VLOOKUP(D64,MHI!J:J,4,0) ->  | K64: =(VLOOKUP($I$201,MHI!J:P,5,0)) ->  | L64: 0 | M64: =+(VLOOKUP($I$202,MHI!J:P,5,0)) ->  | N64: 0 | O64: 0 | P64: =(VLOOKUP($I$203,MHI!J:P,5,0)) ->  | Q64: 0 | R64: =+(VLOOKUP($I$204,MHI!J:P,5,0)) ->  | S64: 0 | T64: 0 | U64: =(VLOOKUP($I$205,MHI!J:P,7,0)) ->  | V64: =(VLOOKUP($I$207,MHI!J:P,7,0)) ->  | W64: 0
B65: 10080 | C65: 10080 Total | D65: Total | E65: Moss Hall Jun | F65: =VLOOKUP(C65,MHJ!B:H,9,0) ->  | G65: =VLOOKUP(D65,MHJ!J:J,4,0) ->  | K65: =(VLOOKUP($I$201,MHJ!J:P,5,0)) ->  | L65: 0 | M65: =+(VLOOKUP($I$202,MHJ!J:P,5,0)) ->  | N65: 0 | O65: 0 | P65: =(VLOOKUP($I$203,MHJ!J:P,5,0)) ->  | Q65: 0 | R65: =+(VLOOKUP($I$204,MHJ!J:P,5,0)) ->  | S65: 0 | T65: 0 | U65: =(VLOOKUP($I$205,MHJ!J:P,7,0)) ->  | V65: =(VLOOKUP($I$207,MHJ!J:P,7,0)) ->  | W65: 0
B66: 10082 | C66: 10082 Total | D66: Total | E66: Northside | F66: =VLOOKUP(C66,Norths!B:H,9,0) ->  | G66: =VLOOKUP(D66,Norths!J:J,4,0) ->  | K66: =(VLOOKUP($I$201,Norths!J:P,5,0)) ->  | L66: 0 | M66: =+(VLOOKUP($I$202,Norths!J:P,5,0)) ->  | N66: 0 | O66: 0 | P66: =(VLOOKUP($I$203,Norths!J:P,5,0)) ->  | Q66: 0 | R66: =+(VLOOKUP($I$204,Norths!J:P,5,0)) ->  | S66: 0 | T66: 0 | U66: =(VLOOKUP($I$205,Norths!J:P,7,0)) ->  | V66: =(VLOOKUP($I$207,Norths!J:P,7,0)) ->  | W66: 0
B67: 10127 | C67: 10127 Total | D67: Total | E67: Orion | F67: =VLOOKUP(C67,Orion!B:H,9,0) ->  | G67: =VLOOKUP(D67,Orion!J:J,4,0) ->  | K67: =(VLOOKUP($I$201,Orion!J:P,5,0)) ->  | L67: 0 | M67: =+(VLOOKUP($I$202,Orion!J:P,5,0)) ->  | N67: 0 | O67: 0 | P67: =(VLOOKUP($I$203,Orion!J:P,5,0)) ->  | Q67: 0 | R67: =+(VLOOKUP($I$204,Orion!J:P,5,0)) ->  | S67: 0 | T67: 0 | U67: =(VLOOKUP($I$205,Orion!J:P,7,0)) ->  | V67: =(VLOOKUP($I$207,Orion!J:P,7,0)) ->  | W67: 0
B68: 10084 | C68: 10084 Total | D68: Total | E68: Osidge JMI | F68: =VLOOKUP(C68,Osidge!B:H,9,0) ->  | G68: =VLOOKUP(D68,Osidge!J:J,4,0) ->  | K68: =(VLOOKUP($I$201,Osidge!J:P,5,0)) ->  | L68: 0 | M68: =+(VLOOKUP($I$202,Osidge!J:P,5,0)) ->  | N68: 0 | O68: 0 | P68: =(VLOOKUP($I$203,Osidge!J:P,5,0)) ->  | Q68: 0 | R68: =+(VLOOKUP($I$204,Osidge!J:P,5,0)) ->  | S68: 0 | T68: 0 | U68: =(VLOOKUP($I$205,Osidge!J:P,7,0)) ->  | V68: =(VLOOKUP($I$207,Osidge!J:P,7,0)) ->  | W68: 0
B69: 10085 | C69: 10085 Total | D69: Total | E69: Our Lady of Lourdes | F69: =VLOOKUP(C69,OLOL!B:H,9,0) ->  | G69: =VLOOKUP(D69,OLOL!J:J,4,0) ->  | K69: =(VLOOKUP($I$201,OLOL!J:P,5,0)) ->  | L69: 0 | M69: =+(VLOOKUP($I$202,OLOL!J:P,5,0)) ->  | N69: 0 | O69: 0 | P69: =(VLOOKUP($I$203,OLOL!J:P,5,0)) ->  | Q69: 0 | R69: =+(VLOOKUP($I$204,OLOL!J:P,5,0)) ->  | S69: 0 | T69: 0 | U69: =(VLOOKUP($I$205,OLOL!J:P,7,0)) ->  | V69: =(VLOOKUP($I$207,OLOL!J:P,7,0)) ->  | W69: 0
B70: 10129 | C70: 10129 Total | D70: Total | E70: Pardes House | F70: =VLOOKUP(C70,Pardes!B:H,9,0) ->  | G70: =VLOOKUP(D70,Pardes!J:J,4,0) ->  | K70: =(VLOOKUP($I$201,Pardes!J:P,5,0)) ->  | L70: 0 | M70: =+(VLOOKUP($I$202,Pardes!J:P,5,0)) ->  | N70: 0 | O70: 0 | P70: =(VLOOKUP($I$203,Pardes!J:P,5,0)) ->  | Q70: 0 | R70: =+(VLOOKUP($I$204,Pardes!J:P,5,0)) ->  | S70: 0 | T70: 0 | U70: =(VLOOKUP($I$205,Pardes!J:P,7,0)) ->  | V70: =(VLOOKUP($I$207,Pardes!J:P,7,0)) ->  | W70: 0
B71: 10119 | C71: =B71&" Total" -> 10119 Total | D71: Total | E71: Queenswell Inf | F71: =VLOOKUP(C71,QueenI!B:H,9,0) ->  | G71: =VLOOKUP(D71,QueenI!I:I,4,0) ->  | H71: =G71-F71 ->  | K71: =(VLOOKUP($I$201,QueenI!I:L,5,0)) ->  | L71: =IFERROR(K71,0) -> 0 | M71: =+(VLOOKUP($I$202,QueenI!I:L,5,0)) ->  | N71: 0 | O71: =L71+N71 -> 0 | P71: =(VLOOKUP($I$203,QueenI!I:L,5,0)) ->  | Q71: =IFERROR(P71,0) -> 0 | R71: =+(VLOOKUP($I$204,QueenI!I:L,5,0)) ->  | S71: 0 | T71: 0 | U71: =(VLOOKUP($I$205,QueenI!I:L,7,0)) ->  | V71: =(VLOOKUP($I$207,QueenI!I:L,7,0)) ->  | W71: =IFERROR(V71,0) -> 0
B72: 10086 | C72: 10086 Total | D72: Total | E72: Queenswell Jun | F72: =VLOOKUP(C72,QueensFed!B:H,9,0) ->  | G72: =VLOOKUP(D72,QueensFed!J:J,4,0) ->  | K72: =(VLOOKUP($I$201,QueensFed!J:P,5,0)) ->  | L72: 0 | M72: =+(VLOOKUP($I$202,QueensFed!J:P,5,0)) ->  | N72: 0 | O72: 0 | P72: =(VLOOKUP($I$203,QueensFed!J:P,5,0)) ->  | Q72: 0 | R72: =+(VLOOKUP($I$204,QueensFed!J:P,5,0)) ->  | S72: 0 | T72: 0 | U72: =(VLOOKUP($I$205,QueensFed!J:P,7,0)) ->  | V72: =(VLOOKUP($I$207,QueensFed!J:P,7,0)) ->  | W72: 0
B73: 10112 | C73: 10112 Total | D73: Total | E73: Rosh Pinah | F73: =VLOOKUP(C73,RoshP!B:H,9,0) ->  | G73: =VLOOKUP(D73,RoshP!J:J,4,0) ->  | K73: =(VLOOKUP($I$201,RoshP!J:P,5,0)) ->  | L73: 0 | M73: =+(VLOOKUP($I$202,RoshP!J:P,5,0)) ->  | N73: 0 | O73: 0 | P73: =(VLOOKUP($I$203,RoshP!J:P,5,0)) ->  | Q73: 0 | R73: =+(VLOOKUP($I$204,RoshP!J:P,5,0)) ->  | S73: 0 | T73: 0 | U73: =(VLOOKUP($I$205,RoshP!J:P,7,0)) ->  | V73: =(VLOOKUP($I$207,RoshP!J:P,7,0)) ->  | W73: 0
B74: 10110 | C74: 10110 Total | D74: Total | E74: Sacred Heart | F74: =VLOOKUP(C74,Sacred!B:H,9,0) ->  | G74: =VLOOKUP(D74,Sacred!J:J,4,0) ->  | K74: =(VLOOKUP($I$201,Sacred!J:P,5,0)) ->  | L74: 0 | M74: =+(VLOOKUP($I$202,Sacred!J:P,5,0)) ->  | N74: 0 | O74: 0 | P74: =(VLOOKUP($I$203,Sacred!J:P,5,0)) ->  | Q74: 0 | R74: =+(VLOOKUP($I$204,Sacred!J:P,5,0)) ->  | S74: 0 | T74: 0 | U74: =(VLOOKUP($I$205,Sacred!J:P,7,0)) ->  | V74: =(VLOOKUP($I$207,Sacred!J:P,7,0)) ->  | W74: 0
B75: 11381 | C75: 11381 Total | D75: Total | E75: Sacks Morasha | F75: =VLOOKUP(C75,Morasha!B:H,9,0) ->  | G75: =VLOOKUP(D75,Morasha!I:I,4,0) ->  | K75: =(VLOOKUP($I$201,Morasha!I:L,5,0)) ->  | L75: 0 | M75: =+(VLOOKUP($I$202,Morasha!I:L,5,0)) ->  | N75: 0 | O75: 0 | P75: =(VLOOKUP($I$203,Morasha!I:L,5,0)) ->  | Q75: 0 | R75: =+(VLOOKUP($I$204,Morasha!I:L,5,0)) ->  | S75: 0 | T75: 0 | U75: =(VLOOKUP($I$205,Morasha!I:L,7,0)) ->  | V75: =(VLOOKUP($I$207,Morasha!I:L,7,0)) ->  | W75: 0
B76: 10087 | C76: 10087 Total | D76: Total | E76: St Agnes RC | F76: =VLOOKUP(C76,StAgnes!B:H,9,0) ->  | G76: =VLOOKUP(D76,StAgnes!J:J,4,0) ->  | K76: =(VLOOKUP($I$201,StAgnes!J:P,5,0)) ->  | L76: 0 | M76: =+(VLOOKUP($I$202,StAgnes!J:P,5,0)) ->  | N76: 0 | O76: 0 | P76: =(VLOOKUP($I$203,StAgnes!J:P,5,0)) ->  | Q76: 0 | R76: =+(VLOOKUP($I$204,StAgnes!J:P,5,0)) ->  | S76: 0 | T76: 0 | U76: =(VLOOKUP($I$205,StAgnes!J:P,7,0)) ->  | V76: =(VLOOKUP($I$207,StAgnes!J:P,7,0)) ->  | W76: 0
B77: 10099 | C77: 10099 Total | D77: Total | E77: St Andrews CE | F77: =VLOOKUP(C77,StAndrew!B:H,9,0) ->  | G77: =VLOOKUP(D77,StAndrew!J:J,4,0) ->  | K77: =(VLOOKUP($I$201,StAndrew!J:P,5,0)) ->  | L77: 0 | M77: =+(VLOOKUP($I$202,StAndrew!J:P,5,0)) ->  | N77: 0 | O77: 0 | P77: =(VLOOKUP($I$203,StAndrew!J:P,5,0)) ->  | Q77: 0 | R77: =+(VLOOKUP($I$204,StAndrew!J:P,5,0)) ->  | S77: 0 | T77: 0 | U77: =(VLOOKUP($I$205,StAndrew!J:P,7,0)) ->  | V77: =(VLOOKUP($I$207,StAndrew!J:P,7,0)) ->  | W77: 0
B78: 10088 | C78: 10088 Total | D78: Total | E78: St Catherines RC | F78: =VLOOKUP(C78,StCath!B:H,9,0) ->  | G78: =VLOOKUP(D78,StCath!J:J,4,0) ->  | K78: =(VLOOKUP($I$201,StCath!J:P,5,0)) ->  | L78: 0 | M78: =+(VLOOKUP($I$202,StCath!J:P,5,0)) ->  | N78: 0 | O78: 0 | P78: =(VLOOKUP($I$203,StCath!J:P,5,0)) ->  | Q78: 0 | R78: =+(VLOOKUP($I$204,StCath!J:P,5,0)) ->  | S78: 0 | T78: 0 | U78: =(VLOOKUP($I$205,StCath!J:P,7,0)) ->  | V78: =(VLOOKUP($I$207,StCath!J:P,7,0)) ->  | W78: 0
B79: 10089 | C79: 10089 Total | D79: Total | E79: St Johns CE N11 | F79: =VLOOKUP(C79,StJohnN11!B:H,9,0) ->  | G79: =VLOOKUP(D79,StJohnN11!J:J,4,0) ->  | K79: =(VLOOKUP($I$201,StJohnN11!J:P,5,0)) ->  | L79: 0 | M79: =+(VLOOKUP($I$202,StJohnN11!J:P,5,0)) ->  | N79: 0 | O79: 0 | P79: =(VLOOKUP($I$203,StJohnN11!J:P,5,0)) ->  | Q79: 0 | R79: =+(VLOOKUP($I$204,StJohnN11!J:P,5,0)) ->  | S79: 0 | T79: 0 | U79: =(VLOOKUP($I$205,StJohnN11!J:P,7,0)) ->  | V79: =(VLOOKUP($I$207,StJohnN11!J:P,7,0)) ->  | W79: 0
B80: 10116 | C80: 10116 Total | D80: Total | E80: St Johns CE N20 | F80: =VLOOKUP(C80,StJohnN20!B:H,9,0) ->  | G80: =VLOOKUP(D80,StJohnN20!J:J,4,0) ->  | K80: =(VLOOKUP($I$201,StJohnN20!J:P,5,0)) ->  | L80: 0 | M80: =+(VLOOKUP($I$202,StJohnN20!J:P,5,0)) ->  | N80: 0 | O80: 0 | P80: =(VLOOKUP($I$203,StJohnN20!J:P,5,0)) ->  | Q80: 0 | R80: =+(VLOOKUP($I$204,StJohnN20!J:P,5,0)) ->  | S80: 0 | T80: 0 | U80: =(VLOOKUP($I$205,StJohnN20!J:P,7,0)) ->  | V80: =(VLOOKUP($I$207,StJohnN20!J:P,7,0)) ->  | W80: 0
B81: 10107 | C81: 10107 Total | D81: Total | E81: St Josephs RC Jun | F81: =VLOOKUP(C81,StJosJ!B:H,9,0) ->  | G81: =VLOOKUP(D81,StJosJ!J:J,4,0) ->  | K81: =(VLOOKUP($I$201,StJosJ!J:P,5,0)) ->  | L81: 0 | M81: =+(VLOOKUP($I$202,StJosJ!J:P,5,0)) ->  | N81: 0 | O81: 0 | P81: =(VLOOKUP($I$203,StJosJ!J:P,5,0)) ->  | Q81: 0 | R81: =+(VLOOKUP($I$204,StJosJ!J:P,5,0)) ->  | S81: 0 | T81: 0 | U81: =(VLOOKUP($I$205,StJosJ!J:P,7,0)) ->  | V81: =(VLOOKUP($I$207,StJosJ!J:P,7,0)) ->  | W81: 0
B82: 10698 | C82: 10698 Total | D82: Total | E82: St Mary's & St Johns Primary | F82: =VLOOKUP(C82,StMarStJon!B:H,9,0) ->  | G82: =VLOOKUP(D82,StMarStJon!J:J,4,0) ->  | K82: =(VLOOKUP($I$201,StMarStJon!J:P,5,0)) ->  | L82: 0 | M82: =+(VLOOKUP($I$202,StMarStJon!J:P,5,0)) ->  | N82: 0 | O82: 0 | P82: =(VLOOKUP($I$203,StMarStJon!J:P,5,0)) ->  | Q82: 0 | R82: =+(VLOOKUP($I$204,StMarStJon!J:P,5,0)) ->  | S82: 0 | T82: 0 | U82: =(VLOOKUP($I$205,StMarStJon!J:P,7,0)) ->  | V82: =(VLOOKUP($I$207,StMarStJon!J:P,7,0)) ->  | W82: 0
B83: 10093 | C83: 10093 Total | D83: Total | E83: St Marys CE EB | F83: =VLOOKUP(C83,StMarEN4!B:H,9,0) ->  | G83: =VLOOKUP(D83,StMarEN4!J:J,4,0) ->  | K83: =(VLOOKUP($I$201,StMarEN4!J:P,5,0)) ->  | L83: 0 | M83: =+(VLOOKUP($I$202,StMarEN4!J:P,5,0)) ->  | N83: =IFERROR(M83,"0") -> 0 | O83: 0 | P83: =(VLOOKUP($I$203,StMarEN4!J:P,5,0)) ->  | Q83: 0 | R83: =+(VLOOKUP($I$204,StMarEN4!J:P,5,0)) ->  | S83: =IFERROR(R83,"0") -> 0 | T83: =Q83+S83 -> 0 | U83: =(VLOOKUP($I$205,StMarEN4!J:P,7,0)) ->  | V83: =(VLOOKUP($I$207,StMarEN4!J:P,7,0)) ->  | W83: 0
B84: 10092 | C84: 10092 Total | D84: Total | E84: St Marys CE N3 | F84: =VLOOKUP(C84,StMarN3!B:H,9,0) ->  | G84: =VLOOKUP(D84,StMarN3!J:J,4,0) ->  | K84: =(VLOOKUP($I$201,StMarN3!J:P,5,0)) ->  | L84: 0 | M84: =+(VLOOKUP($I$202,StMarN3!J:P,5,0)) ->  | N84: 0 | O84: 0 | P84: =(VLOOKUP($I$203,StMarN3!J:P,5,0)) ->  | Q84: 0 | R84: =+(VLOOKUP($I$204,StMarN3!J:P,5,0)) ->  | S84: 0 | T84: 0 | U84: =(VLOOKUP($I$205,StMarN3!J:P,7,0)) ->  | V84: =(VLOOKUP($I$207,StMarN3!J:P,7,0)) ->  | W84: 0
B85: 10094 | C85: 10094 Total | D85: Total | E85: St Pauls CE N11 | F85: =VLOOKUP(C85,StPaulN11!B:H,9,0) ->  | G85: =VLOOKUP(D85,StPaulN11!J:J,4,0) ->  | K85: =(VLOOKUP($I$201,StPaulN11!J:P,5,0)) ->  | L85: 0 | M85: =+(VLOOKUP($I$202,StPaulN11!J:P,5,0)) ->  | N85: 0 | O85: 0 | P85: =(VLOOKUP($I$203,StPaulN11!J:P,5,0)) ->  | Q85: 0 | R85: =+(VLOOKUP($I$204,StPaulN11!J:P,5,0)) ->  | S85: 0 | T85: 0 | U85: =(VLOOKUP($I$205,StPaulN11!J:P,7,0)) ->  | V85: =(VLOOKUP($I$207,StPaulN11!J:P,7,0)) ->  | W85: 0
B86: 10095 | C86: 10095 Total | D86: Total | E86: St Pauls CE NW7 | F86: =VLOOKUP(C86,StPaulNW7!B:H,9,0) ->  | G86: =VLOOKUP(D86,StPaulNW7!J:J,4,0) ->  | K86: =(VLOOKUP($I$201,StPaulNW7!J:P,5,0)) ->  | L86: 0 | M86: =+(VLOOKUP($I$202,StPaulNW7!J:P,5,0)) ->  | N86: 0 | O86: 0 | P86: =(VLOOKUP($I$203,StPaulNW7!J:P,5,0)) ->  | Q86: 0 | R86: =+(VLOOKUP($I$204,StPaulNW7!J:P,5,0)) ->  | S86: 0 | T86: 0 | U86: =(VLOOKUP($I$205,StPaulNW7!J:P,7,0)) ->  | V86: =(VLOOKUP($I$207,StPaulNW7!J:P,7,0)) ->  | W86: 0
B87: 10108 | C87: 10108 Total | D87: Total | E87: St Theresas RC | F87: =VLOOKUP(C87,StThere!B:H,9,0) ->  | G87: =VLOOKUP(D87,StThere!J:J,4,0) ->  | K87: =(VLOOKUP($I$201,StThere!J:P,5,0)) ->  | L87: 0 | M87: =+(VLOOKUP($I$202,StThere!J:P,5,0)) ->  | N87: 0 | O87: 0 | P87: =(VLOOKUP($I$203,StThere!J:P,5,0)) ->  | Q87: 0 | R87: =+(VLOOKUP($I$204,StThere!J:P,5,0)) ->  | S87: 0 | T87: 0 | U87: =(VLOOKUP($I$205,StThere!J:P,7,0)) ->  | V87: =(VLOOKUP($I$207,StThere!J:P,7,0)) ->  | W87: 0
B88: 10096 | C88: 10096 Total | D88: Total | E88: St Vincents RC | F88: =VLOOKUP(C88,StVin!B:H,9,0) ->  | G88: =VLOOKUP(D88,StVin!J:J,4,0) ->  | K88: =(VLOOKUP($I$201,StVin!J:P,5,0)) ->  | L88: 0 | M88: =+(VLOOKUP($I$202,StVin!J:P,5,0)) ->  | N88: 0 | O88: 0 | P88: =(VLOOKUP($I$203,StVin!J:P,5,0)) ->  | Q88: 0 | R88: =+(VLOOKUP($I$204,StVin!J:P,5,0)) ->  | S88: 0 | T88: 0 | U88: =(VLOOKUP($I$205,StVin!J:P,7,0)) ->  | V88: =(VLOOKUP($I$207,StVin!J:P,7,0)) ->  | W88: 0
B89: 10098 | C89: 10098 Total | D89: Total | E89: Summerside | F89: =VLOOKUP(C89,Noam!B:H,9,0) ->  | G89: =VLOOKUP(D89,Noam!J:J,4,0) ->  | K89: =(VLOOKUP($I$201,Noam!J:P,5,0)) ->  | L89: 0 | M89: =+(VLOOKUP($I$202,Noam!J:P,5,0)) ->  | N89: 0 | O89: 0 | P89: =(VLOOKUP($I$203,Noam!J:P,5,0)) ->  | Q89: 0 | R89: =+(VLOOKUP($I$204,Noam!J:P,5,0)) ->  | S89: 0 | T89: 0 | U89: =(VLOOKUP($I$205,Noam!J:P,7,0)) ->  | V89: =(VLOOKUP($I$207,Noam!J:P,7,0)) ->  | W89: 0
B90: 10097 | C90: 10097 Total | D90: Total | E90: Sunnyfields | F90: =VLOOKUP(C90,Sunny!B:H,9,0) ->  | G90: =VLOOKUP(D90,Sunny!J:J,4,0) ->  | K90: =(VLOOKUP($I$201,Sunny!J:P,5,0)) ->  | L90: 0 | M90: =+(VLOOKUP($I$202,Sunny!J:P,5,0)) ->  | N90: 0 | O90: 0 | P90: =(VLOOKUP($I$203,Sunny!J:P,5,0)) ->  | Q90: 0 | R90: =+(VLOOKUP($I$204,Sunny!J:P,5,0)) ->  | S90: 0 | T90: 0 | U90: =(VLOOKUP($I$205,Sunny!J:P,7,0)) ->  | V90: =(VLOOKUP($I$207,Sunny!J:P,7,0)) ->  | W90: 0
B91: 10100 | C91: 10100 Total | D91: Total | E91: Trent | F91: =VLOOKUP(C91,Trent!B:H,9,0) ->  | G91: =VLOOKUP(D91,Trent!J:J,4,0) ->  | K91: =(VLOOKUP($I$201,Trent!J:P,5,0)) ->  | L91: 0 | M91: =+(VLOOKUP($I$202,Trent!J:P,5,0)) ->  | N91: 0 | O91: 0 | P91: =(VLOOKUP($I$203,Trent!J:P,5,0)) ->  | Q91: 0 | R91: =+(VLOOKUP($I$204,Trent!J:P,5,0)) ->  | S91: 0 | T91: 0 | U91: =(VLOOKUP($I$205,Trent!J:P,7,0)) ->  | V91: =(VLOOKUP($I$207,Trent!J:P,7,0)) ->  | W91: 0
B92: 10101 | C92: 10101 Total | D92: Total | E92: Tudor | F92: =VLOOKUP(C92,Tudor!B:H,9,0) ->  | G92: =VLOOKUP(D92,Tudor!J:J,4,0) ->  | K92: =(VLOOKUP($I$201,Tudor!J:P,5,0)) ->  | L92: 0 | M92: =+(VLOOKUP($I$202,Tudor!J:P,5,0)) ->  | N92: 0 | O92: 0 | P92: =(VLOOKUP($I$203,Tudor!J:P,5,0)) ->  | Q92: 0 | R92: =+(VLOOKUP($I$204,Tudor!J:P,5,0)) ->  | S92: 0 | T92: 0 | U92: =(VLOOKUP($I$205,Tudor!J:P,7,0)) ->  | V92: =(VLOOKUP($I$207,Tudor!J:P,7,0)) ->  | W92: 0
B93: 10103 | C93: 10103 Total | D93: Total | E93: Underhill Inf | F93: =VLOOKUP(C93,UnderP!B:H,9,0) ->  | G93: =VLOOKUP(D93,UnderP!J:J,4,0) ->  | K93: =(VLOOKUP($I$201,UnderP!J:P,5,0)) ->  | L93: 0 | M93: =+(VLOOKUP($I$202,UnderP!J:P,5,0)) ->  | N93: 0 | O93: 0 | P93: =(VLOOKUP($I$203,UnderP!J:P,5,0)) ->  | Q93: 0 | R93: =+(VLOOKUP($I$204,UnderP!J:P,5,0)) ->  | S93: 0 | T93: 0 | U93: =(VLOOKUP($I$205,UnderP!J:P,7,0)) ->  | V93: =(VLOOKUP($I$207,UnderP!J:P,7,0)) ->  | W93: 0
B94: 10124 | C94: 10124 Total | D94: Total | E94: Wessex Gardens | F94: =VLOOKUP(C94,Wessex!B:H,9,0) ->  | G94: =VLOOKUP(D94,Wessex!J:J,4,0) ->  | K94: =(VLOOKUP($I$201,Wessex!J:P,5,0)) ->  | L94: 0 | M94: =+(VLOOKUP($I$202,Wessex!J:P,5,0)) ->  | N94: 0 | O94: 0 | P94: =(VLOOKUP($I$203,Wessex!J:P,5,0)) ->  | Q94: 0 | R94: =+(VLOOKUP($I$204,Wessex!J:P,5,0)) ->  | S94: 0 | T94: 0 | U94: =(VLOOKUP($I$205,Wessex!J:P,7,0)) ->  | V94: =(VLOOKUP($I$207,Wessex!J:P,7,0)) ->  | W94: 0
B95: 10105 | C95: 10105 Total | D95: Total | E95: Whitings Hill | F95: =VLOOKUP(C95,Whiting!B:H,9,0) ->  | G95: =VLOOKUP(D95,Whiting!J:J,4,0) ->  | K95: =(VLOOKUP($I$201,Whiting!J:P,5,0)) ->  | L95: 0 | M95: =+(VLOOKUP($I$202,Whiting!J:P,5,0)) ->  | N95: 0 | O95: 0 | P95: =(VLOOKUP($I$203,Whiting!J:P,5,0)) ->  | Q95: 0 | R95: =+(VLOOKUP($I$204,Whiting!J:P,5,0)) ->  | S95: 0 | T95: 0 | U95: =(VLOOKUP($I$205,Whiting!J:P,7,0)) ->  | V95: =(VLOOKUP($I$207,Whiting!J:P,7,0)) ->  | W95: 0
B96: 10123 | C96: 10123 Total | D96: Total | E96: Woodcroft Primary | F96: =VLOOKUP(C96,Woodcrft!B:H,9,0) ->  | G96: =VLOOKUP(D96,Woodcrft!J:J,4,0) ->  | K96: =(VLOOKUP($I$201,Woodcrft!J:P,5,0)) ->  | L96: 0 | M96: =+(VLOOKUP($I$202,Woodcrft!J:P,5,0)) ->  | N96: 0 | O96: 0 | P96: =(VLOOKUP($I$203,Woodcrft!J:P,5,0)) ->  | Q96: 0 | R96: =+(VLOOKUP($I$204,Woodcrft!J:P,5,0)) ->  | S96: 0 | T96: 0 | U96: =(VLOOKUP($I$205,Woodcrft!J:P,7,0)) ->  | V96: =(VLOOKUP($I$207,Woodcrft!J:P,7,0)) ->  | W96: 0
B97: 10109 | C97: 10109 Total | D97: Total | E97: Woodridge | F97: =VLOOKUP(C97,Woodrdge!B:H,9,0) ->  | G97: =VLOOKUP(D97,Woodrdge!J:J,4,0) ->  | K97: =(VLOOKUP($I$201,Woodrdge!J:P,5,0)) ->  | L97: 0 | M97: =+(VLOOKUP($I$202,Woodrdge!J:P,5,0)) ->  | N97: 0 | O97: 0 | P97: =(VLOOKUP($I$203,Woodrdge!J:P,5,0)) ->  | Q97: 0 | R97: =+(VLOOKUP($I$204,Woodrdge!J:P,5,0)) ->  | S97: 0 | T97: 0 | U97: =(VLOOKUP($I$205,Woodrdge!J:P,7,0)) ->  | V97: =(VLOOKUP($I$207,Woodrdge!J:P,7,0)) ->  | W97: 0
B99: 10137 | C99: =B99&" Total" -> 10137 Total | D99: Total | E99: Bishop Douglass | F99: =VLOOKUP(C99,BishopD!B:H,9,0) ->  | G99: =VLOOKUP(D99,BishopD!I:I,4,0) ->  | K99: =(VLOOKUP($I$201,BishopD!I:L,5,0)) ->  | L99: =IFERROR(K99,0) -> 0 | M99: =+(VLOOKUP($I$202,BishopD!I:L,5,0)) ->  | N99: =IFERROR(M99,"0") -> 0 | O99: 0 | P99: =(VLOOKUP($I$203,BishopD!I:L,5,0)) ->  | Q99: =IFERROR(P99,0) -> 0 | R99: =+(VLOOKUP($I$204,BishopD!I:L,5,0)) ->  | S99: =IFERROR(R99,"0") -> 0 | T99: =Q99+S99 -> 0 | U99: =(VLOOKUP($I$205,BishopD!I:L,7,0)) ->  | V99: =(VLOOKUP($I$207,BishopD!I:L,7,0)) ->  | W99: =IFERROR(V99,0) -> 0
B100: 10145 | C100: 10145 Total | D100: Total | E100: Finchley Catholic High | F100: =VLOOKUP(C100,FinchleyC!B:H,9,0) ->  | G100: =VLOOKUP(D100,FinchleyC!J:J,4,0) ->  | K100: =(VLOOKUP($I$201,FinchleyC!J:P,5,0)) ->  | L100: 0 | M100: =+(VLOOKUP($I$202,FinchleyC!J:P,5,0)) ->  | N100: 0 | O100: 0 | P100: =(VLOOKUP($I$203,FinchleyC!J:P,5,0)) ->  | Q100: 0 | R100: =+(VLOOKUP($I$204,FinchleyC!J:P,5,0)) ->  | S100: 0 | T100: 0 | U100: =(VLOOKUP($I$205,FinchleyC!J:P,7,0)) ->  | V100: =(VLOOKUP($I$207,FinchleyC!J:P,7,0)) ->  | W100: 0
B101: 10139 | C101: 10139 Total | D101: Total | E101: Friern Barnet | F101: =VLOOKUP(C101,FBarnet!B:H,9,0) ->  | G101: =VLOOKUP(D101,FBarnet!J:J,4,0) ->  | K101: =(VLOOKUP($I$201,FBarnet!J:P,5,0)) ->  | L101: 0 | M101: =+(VLOOKUP($I$202,FBarnet!J:P,5,0)) ->  | N101: 0 | O101: 0 | P101: =(VLOOKUP($I$203,FBarnet!J:P,5,0)) ->  | Q101: 0 | R101: =+(VLOOKUP($I$204,FBarnet!J:P,5,0)) ->  | S101: 0 | T101: 0 | U101: =(VLOOKUP($I$205,FBarnet!J:P,7,0)) ->  | V101: =(VLOOKUP($I$207,FBarnet!J:P,7,0)) ->  | W101: 0
B102: 11174 | C102: 11174 Total | D102: Total | E102: JCoSS | F102: =VLOOKUP(C102,JCoSS!B:H,9,0) ->  | G102: =VLOOKUP(D102,JCoSS!J:J,4,0) ->  | K102: =(VLOOKUP($I$201,JCoSS!J:P,5,0)) ->  | L102: 0 | M102: =+(VLOOKUP($I$202,JCoSS!J:P,5,0)) ->  | N102: 0 | O102: 0 | P102: =(VLOOKUP($I$203,JCoSS!J:P,5,0)) ->  | Q102: 0 | R102: =+(VLOOKUP($I$204,JCoSS!J:P,5,0)) ->  | S102: 0 | T102: 0 | U102: =(VLOOKUP($I$205,JCoSS!J:P,7,0)) ->  | V102: =(VLOOKUP($I$207,JCoSS!J:P,7,0)) ->  | W102: 0
B103: 10142 | C103: 10142 Total | D103: Total | E103: St James' Catholic High | F103: =VLOOKUP(C103,StJames!B:H,9,0) ->  | G103: =VLOOKUP(D103,StJames!J:J,4,0) ->  | K103: =(VLOOKUP($I$201,StJames!J:P,5,0)) ->  | L103: 0 | M103: =+(VLOOKUP($I$202,StJames!J:P,5,0)) ->  | N103: 0 | O103: 0 | P103: =(VLOOKUP($I$203,StJames!J:P,5,0)) ->  | Q103: 0 | R103: =+(VLOOKUP($I$204,StJames!J:P,5,0)) ->  | S103: 0 | T103: 0 | U103: =(VLOOKUP($I$205,StJames!J:P,7,0)) ->  | V103: =(VLOOKUP($I$207,StJames!J:P,7,0)) ->  | W103: 0
B104: 10143 | C104: 10143 Total | D104: Total | E104: St Mary's C E High | F104: =VLOOKUP(C104,StMarys!B:H,9,0) ->  | G104: =VLOOKUP(D104,StMarys!I:I,4,0) ->  | K104: =(VLOOKUP($I$201,StMarys!I:L,5,0)) ->  | L104: 0 | M104: =+(VLOOKUP($I$202,StMarys!I:L,5,0)) ->  | N104: 0 | O104: 0 | P104: =(VLOOKUP($I$203,StMarys!I:L,5,0)) ->  | Q104: 0 | R104: =+(VLOOKUP($I$204,StMarys!I:L,5,0)) ->  | S104: 0 | T104: 0 | U104: =(VLOOKUP($I$205,StMarys!I:L,7,0)) ->  | V104: =(VLOOKUP($I$207,StMarys!I:L,7,0)) ->  | W104: 0
B105: 10148 | C105: 10148 Total | D105: Total | E105: St Michaels Cath Gram | F105: =VLOOKUP(C105,StMichael!B:H,9,0) ->  | G105: =VLOOKUP(D105,StMichael!J:J,4,0) ->  | K105: =(VLOOKUP($I$201,StMichael!J:P,5,0)) ->  | L105: 0 | M105: =+(VLOOKUP($I$202,StMichael!J:P,5,0)) ->  | N105: 0 | O105: 0 | P105: =(VLOOKUP($I$203,StMichael!J:P,5,0)) ->  | Q105: 0 | R105: =+(VLOOKUP($I$204,StMichael!J:P,5,0)) ->  | S105: 0 | T105: 0 | U105: =(VLOOKUP($I$205,StMichael!J:P,7,0)) ->  | V105: =(VLOOKUP($I$207,StMichael!J:P,7,0)) ->  | W105: 0
I201: CFR Revenue Income (Excl Bal) | J201: a
I202: CFR Capital Income (Excl Bal) | J202: a
I203: CFR2 Revenue Expenditure: TOTAL | J203: b
I204: CFR Capital Expenditure | J204: b
I205: Revenue Balance C/forward | J205: c
I206: TOTAL | J206: d
I207: Capital Balance C/forward

Sheet Front sheet
B8: QUARTER 1 MONITORING REPORTS
B9: These reports include the iTrent payroll reports April to August 2023
A12: ó | B12: Click on the School Name to view your School Report
A13: ó | B13: The print settings are already set up for you to print your report
B15: If you have any problems/queries please do not hesitate to contact the Schools Accountancy Section below :
B16: Schools.Accountancy@barnet.gov.uk
A20: Click onto your schools name for your schools Budget Monitoring Report
A23: Primary Schools | G23: Nursery Schools
A24: School Name | B24: DCSF No | C24: Cost Centre | G24: School Name | H24: DfE No | I24: Cost Centre
A25: Akiva | B25: 3520 | C25: 11094 | G25: BEYA | H25: 1000 | I25: 10135
A26: All Saints N20 | B26: 3317 | C26: 10042 | G26: Moss Hall Nursery | H26: 1002 | I26: 10132
A27: All Saints NW2 | B27: 3300 | C27: 10040
A28: Annunciation Inf | B28: 3500 | C28: 10043
A29: Annunciation Jun | B29: 3514 | C29: 10117
A30: Barnfield | B30: 2002 | C30: 10044 | G30: Secondary Schools
A31: Beis Yaakov | B31: 2079 | C31: 10128 | G31: School Name | H31: DCSF No | I31: Cost Centre
A32: Bell Lane | B32: 2003 | C32: 10045 | G32: Finchley Catholic High | H32: 5405 | I32: 10145
A33: Blessed Dominic | B33: 3511 | C33: 10115 | G33: Friern Barnet | H33: 4003 | I33: 10139
A34: Brookland Inf | B34: 2008 | C34: 10047 | G34: JCoSS | H34: 5427 | I34: 11174
A35: Brookland Jun | B35: 2007 | C35: 10046 | G35: Menorah High School | H35: 4004 | I35: 11513
A36: Brunswick Park | B36: 2009 | C36: 10048 | G36: St Mary's & St John's All through | H36: 3521 | I36: 10698
A37: Chalgrove | B37: 2067 | C37: 10118 | G37: St James' Catholic High | H37: 5407 | I37: 10142
A38: Christchurch JMI | B38: 3302 | C38: 10050 | G38: St Michael's Cath Gram | H38: 5404 | I38: 10148
A39: Church Hill | B39: 2011 | C39: 10051
A40: Colindale | B40: 2014 | C40: 10054
A41: Coppetts Wood | B41: 2015 | C41: 10055
A42: Courtland | B42: 2016 | C42: 10056 | G42: Special Schools
A43: Cromer Road | B43: 2017 | C43: 10057 | G43: School Name | H43: DCSF No | I43: Cost Centre
A44: Danegrove | B44: 2073 | C44: 10083 | G44: Mapledown | H44: 7010 | I44: 10159
A45: Deansbrook Inf | B45: 2019 | C45: 10059 | G45: Northway | H45: 7005 | I45: 10157
A46: Dollis Primary | B46: 2021 | C46: 10061 | G46: Oakleigh | H46: 7009 | I46: 10158
A47: Edgware Primary | B47: 2023 | C47: 10063
A48: Beit Shvidler School | B48: 3524 | C48: 11278
A49: Fairway | B49: 2024 | C49: 10064
A50: Foulds | B50: 2025 | C50: 10065 | G50: PUPIL REFERRAL UNITS
A51: Frith Manor | B51: 2026 | C51: 10066 | G51: School Name | H51: DCSF No | I51: Cost Centre
A52: Garden Suburb Inf | B52: 2028 | C52: 10068 | G52: Northgate | H52: 1102 | I52: 10185
A53: Garden Suburb Jnr | B53: 2027 | C53: 10067 | G53: Pavilion | H53: 1100 | I53: 10188
A54: Goldbeaters | B54: 2029 | C54: 10069
A55: Hasmonean Primary | B55: 3516 | C55: 10121
A56: Hollickwood | B56: 2031 | C56: 10071
A57: Holly Park | B57: 2032 | C57: 10072
A58: Holy Trinity | B58: 3304 | C58: 10073
A59: Livingstone | B59: 2036 | C59: 10074
A60: Manorside | B60: 2037 | C60: 10075
A61: Martin Primary School | B61: 3523 | C61: 11093
A62: Mathilda Marks Kennedy | B62: 5948 | C62: 10125
A63: Menorah Foundation | B63: 5949 | C63: 10126
A64: Menorah Primary | B64: 3513 | C64: 10114
A65: Monken Hadley CE | B65: 3305 | C65: 10078
A66: Monkfrith | B66: 2042 | C66: 10079
A67: Moss Hall Inf | B67: 2044 | C67: 10081
A68: Moss Hall Jun | B68: 2043 | C68: 10080
A69: Shalom Noam Primary | B69: 2053 | C69: 10113
A70: Northside | B70: 2045 | C70: 10082
A71: Orion | B71: 2077 | C71: 10127
A72: Osidge JMI | B72: 5201 | C72: 10084
A73: Our Lady of Lourdes | B73: 3501 | C73: 10085
A74: Pardes House | B74: 2078 | C74: 10129
A75: Queenswell Federation | B75: 2072 | C75: 10086
A76: Rosh Pinah | B76: 3512 | C76: 10112
A77: Sacred Heart | B77: 3510 | C77: 10110
A78: St Agnes' RC | B78: 3502 | C78: 10087
A79: St Andrew's CE | B79: 3315 | C79: 10099
A80: St Catherine's RC | B80: 3504 | C80: 10088
A81: St John's CE N11 | B81: 3307 | C81: 10089
A82: St John's CE N20 | B82: 3309 | C82: 10116
A83: St Joseph's RC Primary | B83: 3509 | C83: 10107
A84: St Mary's CE EB | B84: 3312 | C84: 10093
A85: St Mary's CE N3 | B85: 3311 | C85: 10092
A86: St Paul's CE N11 | B86: 3313 | C86: 10094
A87: St Paul's CE NW7 | B87: 3314 | C87: 10095
A88: St Theresa's RC | B88: 3507 | C88: 10108
A89: St Vincent's RC | B89: 3506 | C89: 10096
A90: Sunnyfields | B90: 2070 | C90: 10097
A91: Trent | B91: 3316 | C91: 10100
A92: Tudor | B92: 2055 | C92: 10101
A93: Underhill School | B93: 2057 | C93: 10103
A94: Wessex Gardens | B94: 2076 | C94: 10124
A95: Whitings Hill | B95: 2060 | C95: 10105
A96: Woodcroft Primary | B96: 3518 | C96: 10123
A97: Woodridge | B97: 2054 | C97: 10109
C197: Choose your school
C198: Akiva
C199: All Saints N20
C200: All Saints NW2
C201: Annunciation Inf
C202: Annunciation Jun | D202: DfE No | E202: Cost Centre
C203: Barnfield | D203: 3520 | E203: 11094
C204: Beis Yaakov | D204: 3317 | E204: 10042
C205: Beit Shvidler School | D205: 3300 | E205: 10040
C206: Bell Lane | D206: 3500 | E206: 10043
C207: BEYA | D207: 3514 | E207: 10117
C208: Bishop Douglass | D208: 2002 | E208: 10044
C209: Blessed Dominic | D209: 2079 | E209: 10128
C210: Brookhill Nursery | D210: 3524 | E210: 11278
C211: Brookland Inf | D211: 2003 | E211: 10045
C212: Brookland Jun | E212: 10135
C213: Brunswick Park | D213: 5408 | E213: 10137
C214: Chalgrove | D214: 3511 | E214: 10115
C215: Childs Hill | D215: 1000 | E215: 10130
C216: Christchurch JMI | D216: 2008 | E216: 10047
C217: Church Hill | D217: 2007 | E217: 10046
C218: Colindale | D218: 2009 | E218: 10048
C219: Coppetts Wood | D219: 2067 | E219: 10118
C220: Courtland | D220: 2010 | E220: 10049
C221: Cromer Road | D221: 3302 | E221: 10050
C222: Danegrove | D222: 2011 | E222: 10051
C223: Deansbrook Inf | D223: 2014 | E223: 10054
C224: Dollis Primary | D224: 2015 | E224: 10055
C225: Edgware Primary | D225: 2016 | E225: 10056
C226: Fairway | D226: 2017 | E226: 10057
C227: Finchley Catholic High | D227: 2073 | E227: 10083
C228: Foulds | D228: 2019 | E228: 10059
C229: Friern Barnet | D229: 2021 | E229: 10061
C230: Frith Manor | D230: 2023 | E230: 10063
C231: Garden Suburb Inf | D231: 2024 | E231: 10064
C232: Garden Suburb Jnr | D232: 5405 | E232: 10145
C233: Goldbeaters | D233: 2025 | E233: 10065
C234: Hampden Way Nursery | D234: 4003 | E234: 10139
C235: Hasmonean Primary | D235: 2026 | E235: 10066
C236: Hollickwood | D236: 2028 | E236: 10068
C237: Holly Park | D237: 2027 | E237: 10067
C238: Holy Trinity | D238: 2029 | E238: 10069
C239: JCoSS | D239: 1001 | E239: 10131
C240: Livingstone | D240: 3516 | E240: 10121
C241: Manorside | D241: 2031 | E241: 10071
C242: Mapledown | D242: 2032 | E242: 10072
C243: Martin Primary School | D243: 3304 | E243: 10073
C244: Mathilda Marks Kennedy | D244: 5427 | E244: 11174
C245: Menorah Foundation | D245: 2036 | E245: 10074
C246: Menorah High School | D246: 2037 | E246: 10075
C247: Menorah Primary | D247: 7010 | E247: 10159
C248: Monken Hadley CE | D248: 3523 | E248: 11093
C249: Monkfrith | D249: 5948 | E249: 10125
C250: Moss Hall Inf | D250: 5949 | E250: 10126
C251: Moss Hall Jun | D251: 4004 | E251: 11513
C252: Moss Hall Nursery | D252: 3513 | E252: 10114
C253: Noam Primary | D253: 3305 | E253: 10078
C254: Northgate | D254: 2042 | E254: 10079
C255: Northside | D255: 2044 | E255: 10081
C256: Northway | D256: 2043 | E256: 10080
C257: Oak Lodge | D257: 1002 | E257: 10132
C258: Oakleigh | D258: 2053 | E258: 10113
C259: Orion | D259: 1102 | E259: 10185
C260: Osidge JMI | D260: 2045 | E260: 10082
C261: Our Lady of Lourdes | D261: 7005 | E261: 10157
C262: Pardes House | D262: 7000 | E262: 10156
C263: Pavilion | D263: 7009 | E263: 10158
C264: Queenswell Inf | D264: 2077 | E264: 10127
C265: Queenswell Jun | D265: 5201 | E265: 10084
C266: Rosh Pinah | D266: 3501 | E266: 10085
C267: Sacks Morasha | D267: 2078 | E267: 10129
C268: Sacred Heart | D268: 1100 | E268: 10188
C269: St Agnes RC | D269: 2071 | E269: 10119
C270: St Andrews CE | D270: 2072 | E270: 10086
C271: St Catherines RC | D271: 3512 | E271: 10112
C272: St James' Catholic High | D272: 2041 | E272: 11381
C273: St Johns CE N11 | D273: 3510 | E273: 10110
C274: St Johns CE N20 | D274: 3502 | E274: 10087
C275: St Josephs RC Primary | D275: 3315 | E275: 10099
C276: St Margaret's Nursery | D276: 3504 | E276: 10088
C277: St Mary's C E High | D277: 5407 | E277: 10142
C278: St Marys CE EB | D278: 3307 | E278: 10089
C279: St Marys CE N3 | D279: 3309 | E279: 10116
C280: St Mary's & St Johns All-through | D280: 3509 | E280: 10107
C281: St Michaels Cath Gram | D281: 1003 | E281: 10133
C282: St Pauls CE N11 | D282: 5403 | E282: 10143
C283: St Pauls CE NW7 | D283: 3312 | E283: 10093
C284: St Theresas RC | D284: 3311 | E284: 10092
C285: St Vincents RC | D285: 3521 | E285: 10698
C286: Summerside | D286: 5404 | E286: 10148
C287: Sunnyfields | D287: 3313 | E287: 10094
C288: Trent | D288: 3314 | E288: 10095
C289: Tudor | D289: 3507 | E289: 10108
C290: Underhill School | D290: 3506 | E290: 10096
C291: Wessex Gardens | D291: 2052 | E291: 10098
C292: Whitings Hill | D292: 2070 | E292: 10097
C293: Woodcroft Primary | D293: 3316 | E293: 10100
C294: Woodridge | D294: 2055 | E294: 10101
D295: 2057 | E295: 10103
D296: 2076 | E296: 10124
D297: 2060 | E297: 10105
D298: 3518 | E298: 10123
D299: 2054 | E299: 10109

Sheet codes (hidden)
B1: School Coding Structure in SAP from April 2014
A3: GL code(s) Feeding into | B3: CFR | C3: Cost Element Group | D3: Note
A4: Cost Element Group | B4: Code | C4: Heading
A5: 543970 | B5: I01 | C5: Funds Delegated by LEA
A6: 543971 | B6: I02 | C6: Funding for 6th Form Students
A7: 543972 | B7: I03 | C7: SEN Funding
A8: 543973 | B8: I04 | C8: Funding for Minority Ethnic Pupils
A9: 543975 | B9: I05 | C9: Pupil Premium
A10: 710020 | B10: I06 | C10: Other Government Grants
A11: 720000 | B11: I07 | C11: Other Grants & Payments
A12: 739000 | B12: I08 | C12: Income from Facilities & Services
A13: 739010 | B13: I09 | C13: Income from Catering
A14: 739020 | B14: I10 | C14: Receipts from Supply Teacher Insurance Claims
A15: 739030 | B15: I11 | C15: Receipts from Other Insurance Claims
A16: 739040 | B16: I12 | C16: Income from Contributions
A17: 739050 | B17: I13 | C17: Donations and / or Voluntary Funds
A18: 543952 | B18: I15 | C18: Extended School Funding - Pupil Focussed
A19: 543953 | B19: I16 | C19: Extended School Funding - Community Focussed
A20: 739080 | B20: I17 | C20: Community Ext School, Other Income
A21: 720010 | B21: I18 | C21: Additional Grants for Schools
A22: 111400 | B22: E01 | C22: Teaching Staff | D22: Gross Pay, Employers NI Cont. & Employers Pen Cont.
A23: 113040 | B23: E01 | C23: Teaching Staff
A24: 114040 | B24: E01 | C24: Teaching Staff
A25: 111500 | B25: E02 | C25: Supply Teaching Staff (employed by the school) | D25: Gross Pay, Employers NI Cont. & Employers Pen Cont.
A26: 113050 | B26: E02 | C26: Supply Teaching Staff (employed by the school)
A27: 114050 | B27: E02 | C27: Supply Teaching Staff (employed by the school)
A28: 111600 | B28: E03 | C28: Education Support Staff | D28: Gross Pay, Employers NI Cont. & Employers Pen Cont.
A29: 113060 | B29: E03 | C29: Education Support Staff
A30: 114060 | B30: E03 | C30: Education Support Staff
A31: 111200 | B31: E04 | C31: Premises Staff | D31: Gross Pay, Employers NI Cont. & Employers Pen Cont.
A32: 113020 | B32: E04 | C32: Premises Staff
A33: 114020 | B33: E04 | C33: Premises Staff
A34: 111100 | B34: E05 | C34: Administrative & Clerical Staff | D34: Gross Pay, Employers NI Cont. & Employers Pen Cont.
A35: 113010 | B35: E05 | C35: Administrative & Clerical Staff
A36: 114010 | B36: E05 | C36: Administrative & Clerical Staff
A37: 111300 | B37: E06 | C37: Catering Staff | D37: Gross Pay, Employers NI Cont. & Employers Pen Cont.
A38: 113030 | B38: E06 | C38: Catering Staff
A39: 114030 | B39: E06 | C39: Catering Staff
A40: 111700 | B40: E07 | C40: Cost of Other Staff | D40: Gross Pay, Employers NI Cont. & Employers Pen Cont.
A41: 113000 | B41: E07 | C41: Cost of Other Staff
A42: 114000 | B42: E07 | C42: Cost of Other Staff
A43: 138100 | B43: E08 | C43: Indirect Employee Expenses | D43: Training, Travel exp, Casual user Allow, Subsistence, Employers Pen Contributions for August* Early Retirement
A44: 135130 | B44: E08 | C44: Indirect Employee Expenses
A45: 317000 | B45: E08 | C45: Indirect Employee Expenses
A46: 321010 | B46: E08 | C46: Indirect Employee Expenses
A47: 423000 | B47: E08 | C47: Indirect Employee Expenses
A48: 133100 | B48: E09 | C48: Staff Development & Training
A49: 138110 | B49: E10 | C49: Supply Teacher Insurance
A50: 138120 | B50: E11 | C50: Staff Related Insurance
A51: 210000 | B51: E12 | C51: Building Maintenance & Improvement
A52: 220000 | B52: E13 | C52: Grounds Maintenance & Improvement
A53: 219010 | B53: E14 | C53: Caretaking & Cleaning
A54: 216000 | B54: E15 | C54: Water & Sewerage
A55: 213020 | B55: E16 | C55: Energy
A56: 215000 | B56: E17 | C56: Rates
A57: 219030 | B57: E18 | C57: Other Occupation Costs
A58: 413050 | B58: E19 | C58: Learning Resources (not ICT)
A59: 422620 | B59: E20 | C59: ICT Learning Resources
A60: 420050 | B60: E21 | C60: Exam Fees
A61: 413060 | B61: E22 | C61: Administrative Supplies
A62: 221000 | B62: E23 | C62: Other Insurance Premiums
A63: 413070 | B63: E24 | C63: Special Facilities
A64: 411020 | B64: E25 | C64: Catering Supplies
A65: 420060 | B65: E26 | C65: Agency Supply Teachers
A66: 569010 | B66: E27 | C66: Bought in Prof. Services - Curriculum
A67: 569000 | B67: E28 | C67: Bought in Prof. Services - Other
A68: 610040 | B68: E29 | C68: Loan Interest
A69: 543955 | B69: E30 | C69: Direct Revenue Financing
A70: 111450 | B70: E31 | C70: Extended School Staff | D70: Gross Pay, Employers NI Cont. & Employers Pen Cont.
A71: 113070 | B71: E31 | C71: Extended School Staff
A72: 114070 | B72: E31 | C72: Extended School Staff
A73: 411025 | B73: E32 | C73: Community Ext School Other Costs
A74: 543950 | B74: N/a | C74: Contingency
A75: 543960 | B75: N/a | C75: Revenue Projects - Future Years
A77: 543980 | B77: CI01 | C77: Capital Income (SF Category 6)
A78: 739470 | B78: CI03 | C78: Voluntary or Private Capital Income
A79: 543995 | B79: CI04 | C79: Direct Revenue Financing
A81: 599000 | B81: CE01 | C81: Acquisition of Land & Buildings
A82: 599010 | B82: CE02 | C82: New Construction, Conversion & Renovation
A83: 599020 | B83: CE03 | C83: Vehicles, Plant, Equipment & Machinery
A84: 599030 | B84: CE04 | C84: Information Communications Technology
A85: 599040 | B85: N/a | C85: Capital Resources Held for Future Years
A87: 928018 | B87: 725 | C87: VAT paid on Payments
A88: 928019 | B88: 725 | C88: VAT received on Receipts

Sheet Instructions (hidden)
E2: Instructions - Use of Reports for Website
A6: ó | B6: Choose your School from the drop-down box
A7: ó | B7: Click on the School Report button to view your School Report - the print settings are already set up for you to print your report
A10: ó | B10: To view your transactions, click on the relevant sector button and then click on your school name.
B12: If you have any problems/queries please do not hesitate to contact the Schools Accountancy Section below :
B14: Schools Accountancy Section

Sheet BEYA
B1: =NOW() -> 2023-09-21T16:50:11.040 | C1: Period | D1: DfE No | E1: =VLOOKUP(J8,'School List'!$E$5:$F$99,2,0) -> 1000 | F1: London Borough of Barnet
B2: =VLOOKUP(J8,check!$B$6:$E$102,4,0) -> BEYA | C2: Quarter 1 | D2: Cost Centre | E2: =J8 -> 10135 | F2: SCHOOL REPORT
B5: Cost Centre: 10135 - Barnet Early Years Alliance
B7: CFR_Code. | C7: Budget | D7: Bal._B/Fwd | E7: This Period | F7: Bal_C/Fwd | G7: %Spent/ Received | H7: Bud_Avail | J7: CC | K7: Period | L7: CFR | M7: Desc | N7: Narrative | O7: Entered by | P7: Amount
J8: 10135 | K8: 2324/01 | L8: E01 | M8: Teaching Staff | N8: Payroll for Apr 2023 | O8: TOPPG01 | P8: 28266.35
B9: Revenue Balance B/forward | C9: -343410 | J9: 10135 | K9: 2324/01 | L9: E01 | M9: Teaching Staff | N9: Payroll for Apr 2023 | O9: TOPPG01 | P9: 2932.03
B10: fm letting premises | C10: -21000 | D10: 0 | E10: 0 | F10: 0 | G10: 0 | H10: -21000 | J10: 10135 | K10: 2324/01 | L10: E01 | M10: Teaching Staff | N10: Payroll for Apr 2023 | O10: TOPPG01 | P10: 5535.69
B11: I01 - Funds Delegated by LA | C11: -1199198 | D11: 0 | E11: -160672.92 | F11: -160672.92 | G11: 13.39836457 | H11: -1038525.08 | J11: 10135 | K11: 2324/02 | L11: E01 | M11: Teaching Staff | N11: Payroll for May 2023 | O11: BROWNJ01 | P11: 28433.62
B12: I03 - SEN Funding | C12: -78344 | D12: 0 | E12: -18325.88 | F12: -18325.88 | G12: 23.39155519 | H12: -60018.12 | J12: 10135 | K12: 2324/02 | L12: E01 | M12: Teaching Staff | N12: Payroll for May 2023 | O12: BROWNJ01 | P12: 2967.21
B13: I06 - Other Government Grants | C13: -590510 | D13: 0 | E13: 0 | F13: 0 | G13: 0 | H13: -590510 | J13: 10135 | K13: 2324/02 | L13: E01 | M13: Teaching Staff | N13: Payroll for May 2023 | O13: BROWNJ01 | P13: 5615.93
B14: I07 - Other Grants & Payments | C14: -5000 | D14: 0 | E14: 0 | F14: 0 | G14: 0 | H14: -5000 | J14: 10135 | K14: 2324/03 | L14: E01 | M14: Teaching Staff | N14: Payroll for Jun 2023 | O14: TOPPG01 | P14: 29087.79
B15: I12 - Income - Contributions | C15: -627415 | D15: 19148 | E15: -117306.4 | F15: -98158.4 | G15: 15.64489214 | H15: -529256.6 | J15: 10135 | K15: 2324/03 | L15: E01 | M15: Teaching Staff | N15: Payroll for Jun 2023 | O15: TOPPG01 | P15: 3044.64
B16: I13 - Donations/Private Funds | C16: 0 | D16: 0 | E16: -60 | F16: -60 | G16: 0 | H16: 60 | J16: 10135 | K16: 2324/03 | L16: E01 | M16: Teaching Staff | N16: Payroll for Jun 2023 | O16: TOPPG01 | P16: 5700.19
B17: I16 - Ext Sch Comm Focussed | C17: -149294 | D17: 0 | E17: -49764.67 | F17: -49764.67 | G17: 33.33333557 | H17: -99529.33 | J17: 10135 | K17: 2324/04 | L17: E01 | M17: Teaching Staff | N17: Payroll for Jul 2023 | O17: TOPPG01 | P17: 29879.35
B18: I17 - Ext Sch Comm Other | C18: -750 | D18: 0 | E18: -316.4 | F18: -316.4 | G18: 42.18666667 | H18: -433.6 | J18: 10135 | K18: 2324/04 | L18: E01 | M18: Teaching Staff | N18: Payroll for Jul 2023 | O18: TOPPG01 | P18: 3100.36
B19: other inc-facil & serv | C19: -3500 | D19: 0 | E19: -1956.78 | F19: -1956.78 | G19: 55.908 | H19: -1543.22 | J19: 10135 | K19: 2324/04 | L19: E01 | M19: Teaching Staff | N19: Payroll for Jul 2023 | O19: TOPPG01 | P19: 5811.92
J20: 10135 | K20: 2324/05 | L20: E01 | M20: Teaching Staff | N20: Payroll for Aug 2023 | O20: MCINTOSHM01 | P20: 30725.62
B21: CFR Revenue Income (Excl Bal) | C21: -2675011 | D21: 19148 | E21: -348403.05 | F21: -329255.05 | G21: 12.30854939 | H21: -2345755.95 | J21: 10135 | K21: 2324/05 | L21: E01 | M21: Teaching Staff | N21: Payroll for Aug 2023 | O21: MCINTOSHM01 | P21: 3172.98
J22: 10135 | K22: 2324/05 | L22: E01 | M22: Teaching Staff | N22: Payroll for Aug 2023 | O22: MCINTOSHM01 | P22: 5936.55
B23: E01 - Teaching Staff | C23: 439357 | D23: 190210.23 | E23: 0 | F23: 190210.23 | G23: 43.29286434 | H23: 249146.77 | J23: 10135 | K23: 2324/01 | L23: E03 | M23: Education Support Staff | N23: Payroll for Apr 2023 | O23: TOPPG01 | P23: 108737.06
B24: E03 - Education Support Staff | C24: 1489262 | D24: 692002.91 | E24: 0 | F24: 692002.91 | G24: 46.46616311 | H24: 797259.09 | J24: 10135 | K24: 2324/01 | L24: E03 | M24: Education Support Staff | N24: Payroll for Apr 2023 | O24: TOPPG01 | P24: 8278.24
B25: E04 - Premises Staff | C25: 65552 | D25: 25336.39 | E25: 0 | F25: 25336.39 | G25: 38.65082682 | H25: 40215.61 | J25: 10135 | K25: 2324/01 | L25: E03 | M25: Education Support Staff | N25: Payroll for Apr 2023 | O25: TOPPG01 | P25: 27907.34
B26: E05 - Admin & Clerical | C26: 127171 | D26: 61946.91 | E26: 0 | F26: 61946.91 | G26: 48.71150655 | H26: 65224.09 | J26: 10135 | K26: 2324/02 | L26: E03 | M26: Education Support Staff | N26: Payroll for May 2023 | O26: BROWNJ01 | P26: 103609.47
B27: E07 - Other Staff | C27: 45848 | D27: 36004.39 | E27: 0 | F27: 36004.39 | G27: 78.52990316 | H27: 9843.61 | J27: 10135 | K27: 2324/02 | L27: E03 | M27: Education Support Staff | N27: Payroll for May 2023 | O27: BROWNJ01 | P27: 7876.48
B28: E08 - Indirect Employee Exp | C28: 10992 | D28: 0 | E28: 2843.12 | F28: 2843.12 | G28: 25.86535662 | H28: 8148.88 | J28: 10135 | K28: 2324/02 | L28: E03 | M28: Education Support Staff | N28: Payroll for May 2023 | O28: BROWNJ01 | P28: 26664.07
B29: E09 - Staff Training/Develpmnt | C29: 3500 | D29: 0 | E29: 481.2 | F29: 481.2 | G29: 13.74857143 | H29: 3018.8 | J29: 10135 | K29: 2324/03 | L29: E03 | M29: Education Support Staff | N29: Payroll for Jun 2023 | O29: TOPPG01 | P29: 104119.37
B30: E31 - Extended School Staff | C30: 155258 | D30: 0 | E30: 0 | F30: 0 | G30: 0 | H30: 155258 | J30: 10135 | K30: 2324/03 | L30: E03 | M30: Education Support Staff | N30: Payroll for Jun 2023 | O30: TOPPG01 | P30: 7888.88
J31: 10135 | K31: 2324/03 | L31: E03 | M31: Education Support Staff | N31: Payroll for Jun 2023 | O31: TOPPG01 | P31: 26819.96
B32: CFR Employee Expenditure | C32: 2336940 | D32: 1005500.83 | E32: 3324.32 | F32: 1008825.15 | G32: 43.16863719 | H32: 1328114.85 | J32: 10135 | K32: 2324/04 | L32: E03 | M32: Education Support Staff | N32: Payroll for Jul 2023 | O32: TOPPG01 | P32: 103792.98
B33: E12 - Bldg Maint/Improvement | C33: 20000 | D33: 0 | E33: 3349.09 | F33: 3349.09 | G33: 16.74545 | H33: 16650.91 | J33: 10135 | K33: 2324/04 | L33: E03 | M33: Education Support Staff | N33: Payroll for Jul 2023 | O33: TOPPG01 | P33: 8141.22
B34: E13 - Grounds Maint/Improvemnt | C34: 4500 | D34: 0 | E34: 600 | F34: 600 | G34: 13.33333333 | H34: 3900 | J34: 10135 | K34: 2324/04 | L34: E03 | M34: Education Support Staff | N34: Payroll for Jul 2023 | O34: TOPPG01 | P34: 25605.75
B35: E14 - Cleaning & Caretaking | C35: 5650 | D35: 0 | E35: 2144.62 | F35: 2144.62 | G35: 37.95787611 | H35: 3505.38 | J35: 10135 | K35: 2324/05 | L35: E03 | M35: Education Support Staff | N35: Payroll for Aug 2023 | O35: MCINTOSHM01 | P35: 99017.92
B36: E15 - Water & Sewerage | C36: 6000 | D36: 0 | E36: 1657.13 | F36: 1657.13 | G36: 27.61883333 | H36: 4342.87 | J36: 10135 | K36: 2324/05 | L36: E03 | M36: Education Support Staff | N36: Payroll for Aug 2023 | O36: MCINTOSHM01 | P36: 7816.74
B37: E16 - Energy | C37: 35000 | D37: 0 | E37: 9303.35 | F37: 9303.35 | G37: 26.581 | H37: 25696.65 | J37: 10135 | K37: 2324/05 | L37: E03 | M37: Education Support Staff | N37: Payroll for Aug 2023 | O37: MCINTOSHM01 | P37: 25727.43
B38: E17 - Rates | C38: 98138 | D38: 0 | E38: 34552.01 | F38: 34552.01 | G38: 35.20757505 | H38: 63585.99 | J38: 10135 | K38: 2324/01 | L38: E04 | M38: Premises Staff | N38: Payroll for Apr 2023 | O38: TOPPG01 | P38: 3851.32
B39: E18 - Other Occupation Costs | C39: 16050 | D39: 0 | E39: 7916.55 | F39: 7916.55 | G39: 49.32429907 | H39: 8133.45 | J39: 10135 | K39: 2324/01 | L39: E04 | M39: Premises Staff | N39: Payroll for Apr 2023 | O39: TOPPG01 | P39: 224.66
J40: 10135 | K40: 2324/01 | L40: E04 | M40: Premises Staff | N40: Payroll for Apr 2023 | O40: TOPPG01 | P40: 843.74
B41: CFR Premises Expenditure | C41: 185338 | D41: 0 | E41: 59522.75 | F41: 59522.75 | G41: 32.11578306 | H41: 125815.25 | J41: 10135 | K41: 2324/02 | L41: E04 | M41: Premises Staff | N41: Payroll for May 2023 | O41: BROWNJ01 | P41: 4084.24
B42: E19 - Learning Resources | C42: 21408 | D42: 0 | E42: 10501.94 | F42: 10501.94 | G42: 49.05614723 | H42: 10906.06 | J42: 10135 | K42: 2324/02 | L42: E04 | M42: Premises Staff | N42: Payroll for May 2023 | O42: BROWNJ01 | P42: 247
B43: E20 - ICT Learning Resources | C43: 14468 | D43: 0 | E43: 12968.5 | F43: 12968.5 | G43: 89.63574786 | H43: 1499.5 | J43: 10135 | K43: 2324/02 | L43: E04 | M43: Premises Staff | N43: Payroll for May 2023 | O43: BROWNJ01 | P43: 909.56
B44: E22 - Administrative Supplies | C44: 32994 | D44: 0 | E44: 11615.7 | F44: 11615.7 | G44: 35.20549191 | H44: 21378.3 | J44: 10135 | K44: 2324/03 | L44: E04 | M44: Premises Staff | N44: Payroll for Jun 2023 | O44: TOPPG01 | P44: 3949.99
B45: E23 - Other Insurance Premiums | C45: 8500 | D45: 0 | E45: 0 | F45: 0 | G45: 0 | H45: 8500 | J45: 10135 | K45: 2324/03 | L45: E04 | M45: Premises Staff | N45: Payroll for Jun 2023 | O45: TOPPG01 | P45: 228.57
B46: E25 - Catering Supplies | C46: 7500 | D46: 0 | E46: 1371.32 | F46: 1371.32 | G46: 18.28426667 | H46: 6128.68 | J46: 10135 | K46: 2324/03 | L46: E04 | M46: Premises Staff | N46: Payroll for Jun 2023 | O46: TOPPG01 | P46: 871.62
B47: E32 - Extended Sch other costs | C47: 25000 | D47: 0 | E47: 1869.22 | F47: 1869.22 | G47: 7.47688 | H47: 23130.78 | J47: 10135 | K47: 2324/04 | L47: E04 | M47: Premises Staff | N47: Payroll for Jul 2023 | O47: TOPPG01 | P47: 3964.26
J48: 10135 | K48: 2324/04 | L48: E04 | M48: Premises Staff | N48: Payroll for Jul 2023 | O48: TOPPG01 | P48: 230.53
B49: CFR Supplies & Services | C49: 109870 | D49: 0 | E49: 38326.68 | F49: 38326.68 | G49: 34.88366251 | H49: 71543.32 | J49: 10135 | K49: 2324/04 | L49: E04 | M49: Premises Staff | N49: Payroll for Jul 2023 | O49: TOPPG01 | P49: 875.65
B50: E27 - Prof Services-Curriculum | C50: 9350 | D50: 0 | E50: 2547 | F50: 2547 | G50: 27.24064171 | H50: 6803 | J50: 10135 | K50: 2324/05 | L50: E04 | M50: Premises Staff | N50: Payroll for Aug 2023 | O50: MCINTOSHM01 | P50: 3953.56
B51: E28A - prof serv-other exc PFI | C51: 47168 | D51: 0 | E51: 25675.18 | F51: 25675.18 | G51: 54.43347185 | H51: 21492.82 | J51: 10135 | K51: 2324/05 | L51: E04 | M51: Premises Staff | N51: Payroll for Aug 2023 | O51: MCINTOSHM01 | P51: 229.06
J52: 10135 | K52: 2324/05 | L52: E04 | M52: Premises Staff | N52: Payroll for Aug 2023 | O52: MCINTOSHM01 | P52: 872.63
B53: CFR Agency & Contr Serv | C53: 56518 | D53: 0 | E53: 28222.18 | F53: 28222.18 | G53: 49.93485261 | H53: 28295.82 | J53: 10135 | K53: 2324/01 | L53: E05 | M53: Administrative & Clerical Staff | N53: Payroll for Apr 2023 | O53: TOPPG01 | P53: 9328.72
B54: Contingency | C54: -357065 | D54: 0 | E54: 0 | F54: 0 | G54: 0 | H54: -357065 | J54: 10135 | K54: 2324/01 | L54: E05 | M54: Administrative & Clerical Staff | N54: Payroll for Apr 2023 | O54: TOPPG01 | P54: 757.93
J55: 10135 | K55: 2324/01 | L55: E05 | M55: Administrative & Clerical Staff | N55: Payroll for Apr 2023 | O55: TOPPG01 | P55: 2291.25
B56: CFR Holding | C56: -357065 | D56: 0 | E56: 0 | F56: 0 | G56: 0 | H56: -357065 | J56: 10135 | K56: 2324/02 | L56: E05 | M56: Administrative & Clerical Staff | N56: Payroll for May 2023 | O56: BROWNJ01 | P56: 9221.79
J57: 10135 | K57: 2324/02 | L57: E05 | M57: Administrative & Clerical Staff | N57: Payroll for May 2023 | O57: BROWNJ01 | P57: 743.25
B58: CFR2 Revenue Expenditure: TOTAL | C58: 2331601 | D58: 1005500.83 | E58: 129395.93 | F58: 1134896.76 | G58: 48.67456996 | H58: 1196704.24 | J58: 10135 | K58: 2324/02 | L58: E05 | M58: Administrative & Clerical Staff | N58: Payroll for May 2023 | O58: BROWNJ01 | P58: 2291.25
B59: Revenue Balance C/forward | C59: -343410 | D59: 1024648.83 | E59: -219007.12 | F59: 805641.71 | G59: -234.6005387 | H59: -1149051.71 | J59: 10135 | K59: 2324/03 | L59: E05 | M59: Administrative & Clerical Staff | N59: Payroll for Jun 2023 | O59: TOPPG01 | P59: 9328.72
B60: Capital Balance B/forward | C60: 103003 | J60: 10135 | K60: 2324/03 | L60: E05 | M60: Administrative & Clerical Staff | N60: Payroll for Jun 2023 | O60: TOPPG01 | P60: 757.93
B61: CI01 - Capital Income | C61: -15260 | D61: 0 | E61: 0 | F61: 0 | G61: 0 | H61: -15260 | J61: 10135 | K61: 2324/03 | L61: E05 | M61: Administrative & Clerical Staff | N61: Payroll for Jun 2023 | O61: TOPPG01 | P61: 2291.25
J62: 10135 | K62: 2324/04 | L62: E05 | M62: Administrative & Clerical Staff | N62: Payroll for Jul 2023 | O62: TOPPG01 | P62: 9433.92
B63: CFR Capital Income (Excl Bal) | C63: -15260 | D63: 0 | E63: 0 | F63: 0 | G63: 0 | H63: -15260 | J63: 10135 | K63: 2324/04 | L63: E05 | M63: Administrative & Clerical Staff | N63: Payroll for Jul 2023 | O63: TOPPG01 | P63: 772.38
J64: 10135 | K64: 2324/04 | L64: E05 | M64: Administrative & Clerical Staff | N64: Payroll for Jul 2023 | O64: TOPPG01 | P64: 2314.8
B65: Capital - Future Yrs | C65: 18263 | D65: 0 | E65: 0 | F65: 0 | G65: 0 | H65: 18263 | J65: 10135 | K65: 2324/05 | L65: E05 | M65: Administrative & Clerical Staff | N65: Payroll for Aug 2023 | O65: MCINTOSHM01 | P65: 9355.03
B66: CE02 - New Constr/Conversion | C66: 90000 | D66: 0 | E66: 0 | F66: 0 | G66: 0 | H66: 90000 | J66: 10135 | K66: 2324/05 | L66: E05 | M66: Administrative & Clerical Staff | N66: Payroll for Aug 2023 | O66: MCINTOSHM01 | P66: 761.55
B67: CE04 - ICT Capital | C67: 10000 | D67: 0 | E67: 0 | F67: 0 | G67: 0 | H67: 10000 | J67: 10135 | K67: 2324/05 | L67: E05 | M67: Administrative & Clerical Staff | N67: Payroll for Aug 2023 | O67: MCINTOSHM01 | P67: 2297.14
J68: 10135 | K68: 2324/01 | L68: E07 | M68: Cost of Other Staff | N68: Payroll for Apr 2023 | O68: TOPPG01 | P68: 5714
B69: CFR Capital Expenditure | C69: 118263 | D69: 0 | E69: 0 | F69: 0 | G69: 0 | H69: 118263 | J69: 10135 | K69: 2324/01 | L69: E07 | M69: Cost of Other Staff | N69: Payroll for Apr 2023 | O69: TOPPG01 | P69: 261.59
J70: 10135 | K70: 2324/01 | L70: E07 | M70: Cost of Other Staff | N70: Payroll for Apr 2023 | O70: TOPPG01 | P70: 1614.7
B71: Capital Balance C/forward | C71: 103003 | D71: 0 | E71: 0 | F71: 0 | G71: 0 | H71: 103003 | J71: 10135 | K71: 2324/02 | L71: E07 | M71: Cost of Other Staff | N71: Payroll for May 2023 | O71: BROWNJ01 | P71: 4525.79
J72: 10135 | K72: 2324/02 | L72: E07 | M72: Cost of Other Staff | N72: Payroll for May 2023 | O72: BROWNJ01 | P72: 137.37
B73: TOTAL | C73: -240407 | D73: 1024648.83 | E73: -219007.12 | F73: 805641.71 | G73: -335.1157454 | H73: -1046048.71 | J73: 10135 | K73: 2324/02 | L73: E07 | M73: Cost of Other Staff | N73: Payroll for May 2023 | O73: BROWNJ01 | P73: 1214.08
J74: 10135 | K74: 2324/03 | L74: E07 | M74: Cost of Other Staff | N74: Payroll for Jun 2023 | O74: TOPPG01 | P74: 6858.56
J75: 10135 | K75: 2324/03 | L75: E07 | M75: Cost of Other Staff | N75: Payroll for Jun 2023 | O75: TOPPG01 | P75: 285.29
J76: 10135 | K76: 2324/03 | L76: E07 | M76: Cost of Other Staff | N76: Payroll for Jun 2023 | O76: TOPPG01 | P76: 1663.49
J77: 10135 | K77: 2324/04 | L77: E07 | M77: Cost of Other Staff | N77: Payroll for Jul 2023 | O77: TOPPG01 | P77: 6309.35
J78: 10135 | K78: 2324/04 | L78: E07 | M78: Cost of Other Staff | N78: Payroll for Jul 2023 | O78: TOPPG01 | P78: 212.34
J79: 10135 | K79: 2324/04 | L79: E07 | M79: Cost of Other Staff | N79: Payroll for Jul 2023 | O79: TOPPG01 | P79: 1443.44
J80: 10135 | K80: 2324/05 | L80: E07 | M80: Cost of Other Staff | N80: Payroll for Aug 2023 | O80: MCINTOSHM01 | P80: 4378.88
J81: 10135 | K81: 2324/05 | L81: E07 | M81: Cost of Other Staff | N81: Payroll for Aug 2023 | O81: MCINTOSHM01 | P81: 148.08
J82: 10135 | K82: 2324/05 | L82: E07 | M82: Cost of Other Staff | N82: Payroll for Aug 2023 | O82: MCINTOSHM01 | P82: 1237.43
J83: 10135 | K83: 2324/06 | L83: E08 | M83: Indirect Employee Expenses | N83: Q1 M1-M3 Actuals | O83: TIBAR01 | P83: 2843.12
J84: 10135 | K84: 2324/06 | L84: E09 | M84: Staff Development & Training | N84: Q1 M1-M3 Actuals | O84: TIBAR01 | P84: 481.2
J85: 10135 | K85: 2324/06 | L85: E12 | M85: Building Maintenance & Improvement | N85: Q1 M1-M3 Actuals | O85: TIBAR01 | P85: 3349.09
J86: 10135 | K86: 2324/06 | L86: E13 | M86: Grounds Maintenance & Improvement | N86: Q1 M1-M3 Actuals | O86: TIBAR01 | P86: 600
J87: 10135 | K87: 2324/06 | L87: E14 | M87: Caretaking & Cleaning | N87: Q1 M1-M3 Actuals | O87: TIBAR01 | P87: 2144.62
J88: 10135 | K88: 2324/06 | L88: E15 | M88: Water & Sewerage | N88: Q1 M1-M3 Actuals | O88: TIBAR01 | P88: 1657.13
J89: 10135 | K89: 2324/06 | L89: E16 | M89: Energy | N89: Q1 M1-M3 Actuals | O89: TIBAR01 | P89: 9303.35
J90: 10135 | K90: 2324/06 | L90: E17 | M90: Rates | N90: Q1 M1-M3 Actuals | O90: TIBAR01 | P90: 34552.01
J91: 10135 | K91: 2324/06 | L91: E18 | M91: Other Occupation Costs | N91: Q1 M1-M3 Actuals | O91: TIBAR01 | P91: 7916.55
J92: 10135 | K92: 2324/06 | L92: E19 | M92: Learning Resources (not ICT) | N92: Q1 M1-M3 Actuals | O92: TIBAR01 | P92: 10501.94
J93: 10135 | K93: 2324/06 | L93: E20 | M93: ICT Learning Resources | N93: Q1 M1-M3 Actuals | O93: TIBAR01 | P93: 12968.5
J94: 10135 | K94: 2324/06 | L94: E22 | M94: Administrative Supplies | N94: Q1 M1-M3 Actuals | O94: TIBAR01 | P94: 11615.7
J95: 10135 | K95: 2324/06 | L95: E25 | M95: Catering Supplies | N95: Q1 M1-M3 Actuals | O95: TIBAR01 | P95: 1371.32
J96: 10135 | K96: 2324/06 | L96: E27 | M96: Bought in Prof. Services - Curriculum | N96: Q1 M1-M3 Actuals | O96: TIBAR01 | P96: 2547
J97: 10135 | K97: 2324/06 | L97: E28a | M97: Bought in Prof. Services - Other (except PFI) | N97: Q1 M1-M3 Actuals | O97: TIBAR01 | P97: 25675.18
J98: 10135 | K98: 2324/06 | L98: E32 | M98: Community Ext School Other Costs | N98: Q1 M1-M3 Actuals | O98: TIBAR01 | P98: 1869.22
J99: 10135 | K99: 2324/06 | L99: I01 | M99: Funds Delegated by LEA | N99: Q1 M1-M3 Actuals | O99: TIBAR01 | P99: -160672.92
J100: 10135 | K100: 2324/06 | L100: I03 | M100: SEN Funding | N100: Q1 M1-M3 Actuals | O100: TIBAR01 | P100: -18325.88
J101: 10135 | K101: 2324/06 | L101: I08b | M101: Other income from facilities and services | N101: Q1 M1-M3 Actuals | O101: TIBAR01 | P101: -1956.78
J102: 10135 | K102: 2324/01 | L102: I12 | M102: Income from Contributions | N102: R/SCH 10135 Year End Adj 2022/23 | O102: TIBAR01 | P102: 19148
J103: 10135 | K103: 2324/06 | L103: I12 | M103: Income from Contributions | N103: Q1 M1-M3 Actuals | O103: TIBAR01 | P103: -117306.4
J104: 10135 | K104: 2324/06 | L104: I13 | M104: Donations and / or Voluntary Funds | N104: Q1 M1-M3 Actuals | O104: TIBAR01 | P104: -60
J105: 10135 | K105: 2324/06 | L105: I16 | M105: Extended School Funding - Community Focussed | N105: Q1 M1-M3 Actuals | O105: TIBAR01 | P105: -49764.67
J106: 10135 | K106: 2324/06 | L106: I17 | M106: Community Ext School, Other Income | N106: Q1 M1-M3 Actuals | O106: TIBAR01 | P106: -316.4
J107: 10135 Total | P107: =SUBTOTAL(9,P8:P106) -> 805641.71
J108: Grand Total | P108: =SUBTOTAL(9,P8:P106) -> 805641.71

Sheet Brk (hidden)
B1: =+'Front sheet'!#REF! ->  | C1: Period | D1: DfE No | E1: =+'Front sheet'!#REF! ->  | F1: London Borough of Barnet
B2: =NOW() -> 2023-09-21T16:50:11.040 | C2: =+'Front sheet'!#REF! ->  | D2: Cost Centre | E2: =+'Front sheet'!#REF! ->  | F2: SCHOOL REPORT | K2: TRANSACTION LIST
B3: =VLOOKUP(I7,check!$B$6:$E$102,4,0) -> 
B5: CFR_Code | C5: Budget | D5: Bal._B/Fwd | E5: This Period | F5: Bal_C/Fwd | G5: %Spent/ Received | H5: Bud_Avail
I6: CC | J6: Period | K6: CFR | L6: Desc | M6: Narrative | N6: Entered by | O6: Amount

Sheet Hmp (hidden)
B1: =+'Front sheet'!#REF! ->  | C1: Period | D1: DfE No | E1: =+'Front sheet'!#REF! ->  | F1: London Borough of Barnet
B2: =NOW() -> 2023-09-21T16:50:11.040 | C2: =+'Front sheet'!#REF! ->  | D2: Cost Centre | E2: =+'Front sheet'!#REF! ->  | F2: SCHOOL REPORT | K2: TRANSACTION LIST
B3: =VLOOKUP(I7,check!$B$6:$E$102,4,0) -> 
B5: CFR_Code | C5: Budget | D5: Bal._B/Fwd | E5: This Period | F5: Bal_C/Fwd | G5: %Spent/ Received | H5: Bud_Avail
I6: CC | J6: Period | K6: CFR | L6: Desc | M6: Narrative | N6: Entered by | O6: Amount

Sheet MHN
B1: =NOW() -> 2023-09-21T16:50:11.040 | C1: Period | D1: DfE No | E1: =VLOOKUP(J8,'School List'!$E$5:$F$99,2,0) -> 1002 | F1: London Borough of Barnet
B2: =VLOOKUP(J8,check!$B$6:$E$102,4,0) -> Moss Hall Nursery | C2: Quarter 1 | D2: Cost Centre | E2: =J8 -> 10132 | F2: SCHOOL REPORT
B5: Cost Centre: 10132 - Moss Hall Nursery School
B7: CFR_Code. | C7: Budget | D7: Bal._B/Fwd | E7: This Period | F7: Bal_C/Fwd | G7: %Spent/ Received | H7: Bud_Avail | J7: CC | K7: Period | L7: CFR | M7: Desc | N7: Narrative | O7: Entered by | P7: Amount
J8: 10132 | K8: 2324/01 | L8: E01 | M8: Teaching Staff | N8: Payroll for Apr 2023 | O8: TOPPG01 | P8: 13038.51
B9: Revenue Balance B/forward | C9: -196121 | J9: 10132 | K9: 2324/01 | L9: E01 | M9: Teaching Staff | N9: Payroll for Apr 2023 | O9: TOPPG01 | P9: 1374.51
B10: I01 - Funds Delegated by LA | C10: -615340 | D10: 0 | E10: -149338.87 | F10: -149338.87 | G10: 24.2693259 | H10: -466001.13 | J10: 10132 | K10: 2324/01 | L10: E01 | M10: Teaching Staff | N10: Payroll for Apr 2023 | O10: TOPPG01 | P10: 3072.15
B11: I03 - SEN Funding | C11: -5000 | D11: -2394.44 | E11: -3681.08 | F11: -6075.52 | G11: 121.5104 | H11: 1075.52 | J11: 10132 | K11: 2324/02 | L11: E01 | M11: Teaching Staff | N11: Payroll for May 2023 | O11: BROWNJ01 | P11: 13199.83
B12: I06 - Other Government Grants | C12: 0 | D12: 0 | E12: -868.57 | F12: -868.57 | G12: 0 | H12: 868.57 | J12: 10132 | K12: 2324/02 | L12: E01 | M12: Teaching Staff | N12: Payroll for May 2023 | O12: BROWNJ01 | P12: 1447.69
B13: I07 - Other Grants & Payments | C13: -5400 | D13: 0 | E13: -1800 | F13: -1800 | G13: 33.33333333 | H13: -3600 | J13: 10132 | K13: 2324/02 | L13: E01 | M13: Teaching Staff | N13: Payroll for May 2023 | O13: BROWNJ01 | P13: 3110.16
B14: I09 - Income from Catering | C14: -15000 | D14: 0 | E14: 0 | F14: 0 | G14: 0 | H14: -15000 | J14: 10132 | K14: 2324/03 | L14: E01 | M14: Teaching Staff | N14: Payroll for Jun 2023 | O14: TOPPG01 | P14: 13579.67
B15: I12 - Income - Contributions | C15: -243418 | D15: 0 | E15: -56023.22 | F15: -56023.22 | G15: 23.01523306 | H15: -187394.78 | J15: 10132 | K15: 2324/03 | L15: E01 | M15: Teaching Staff | N15: Payroll for Jun 2023 | O15: TOPPG01 | P15: 1446.25
B16: I13 - Donations/Private Funds | C16: -5188 | D16: 0 | E16: -131.23 | F16: -131.23 | G16: 2.529491133 | H16: -5056.77 | J16: 10132 | K16: 2324/03 | L16: E01 | M16: Teaching Staff | N16: Payroll for Jun 2023 | O16: TOPPG01 | P16: 3199.67
B17: other inc-facil & serv | C17: -13020 | D17: 0 | E17: -9.84 | F17: -9.84 | G17: 0.07557603687 | H17: -13010.16 | J17: 10132 | K17: 2324/04 | L17: E01 | M17: Teaching Staff | N17: Payroll for Jul 2023 | O17: TOPPG01 | P17: 13573.42
J18: 10132 | K18: 2324/04 | L18: E01 | M18: Teaching Staff | N18: Payroll for Jul 2023 | O18: TOPPG01 | P18: 1464.97
B19: CFR Revenue Income (Excl Bal) | C19: -902366 | D19: -2394.44 | E19: -211852.81 | F19: -214247.25 | G19: 23.74283273 | H19: -688118.75 | J19: 10132 | K19: 2324/04 | L19: E01 | M19: Teaching Staff | N19: Payroll for Jul 2023 | O19: TOPPG01 | P19: 3198.19
J20: 10132 | K20: 2324/05 | L20: E01 | M20: Teaching Staff | N20: Payroll for Aug 2023 | O20: MCINTOSHM01 | P20: 13084.32
B21: E01 - Teaching Staff | C21: 222828 | D21: 89287.11 | E21: 0 | F21: 89287.11 | G21: 40.06996877 | H21: 133540.89 | J21: 10132 | K21: 2324/05 | L21: E01 | M21: Teaching Staff | N21: Payroll for Aug 2023 | O21: MCINTOSHM01 | P21: 1414.82
B22: E03 - Education Support Staff | C22: 357800 | D22: 124604.57 | E22: 0 | F22: 124604.57 | G22: 34.82520123 | H22: 233195.43 | J22: 10132 | K22: 2324/05 | L22: E01 | M22: Teaching Staff | N22: Payroll for Aug 2023 | O22: MCINTOSHM01 | P22: 3082.95
B23: E04 - Premises Staff | C23: 42769 | D23: 15912.55 | E23: 0 | F23: 15912.55 | G23: 37.20580327 | H23: 26856.45 | J23: 10132 | K23: 2324/01 | L23: E03 | M23: Education Support Staff | N23: Payroll for Apr 2023 | O23: TOPPG01 | P23: 18772.32
B24: E05 - Admin & Clerical | C24: 80065 | D24: 28784.13 | E24: 0 | F24: 28784.13 | G24: 35.95095235 | H24: 51280.87 | J24: 10132 | K24: 2324/01 | L24: E03 | M24: Education Support Staff | N24: Payroll for Apr 2023 | O24: TOPPG01 | P24: 1421.37
B25: E07 - Other Staff | C25: 34947 | D25: 14936.08 | E25: 0 | F25: 14936.08 | G25: 42.7392337 | H25: 20010.92 | J25: 10132 | K25: 2324/01 | L25: E03 | M25: Education Support Staff | N25: Payroll for Apr 2023 | O25: TOPPG01 | P25: 5197.19
B26: E08 - Indirect Employee Exp | C26: 6195 | D26: 0 | E26: 1301.43 | F26: 1301.43 | G26: 21.00774818 | H26: 4893.57 | J26: 10132 | K26: 2324/01 | L26: E03 | M26: Education Support Staff | N26: R/SCH 10132 Year End Adj 2022/23 | O26: TIBAR01 | P26: -7783.03
B27: E09 - Staff Training/Develpmnt | C27: 2150 | D27: 0 | E27: 685.4 | F27: 685.4 | G27: 31.87906977 | H27: 1464.6 | J27: 10132 | K27: 2324/02 | L27: E03 | M27: Education Support Staff | N27: Payroll for May 2023 | O27: BROWNJ01 | P27: 20432.05
J28: 10132 | K28: 2324/02 | L28: E03 | M28: Education Support Staff | N28: Payroll for May 2023 | O28: BROWNJ01 | P28: 1594.23
B29: CFR Employee Expenditure | C29: 746754 | D29: 273524.44 | E29: 1986.83 | F29: 275511.27 | G29: 36.89451546 | H29: 471242.73 | J29: 10132 | K29: 2324/02 | L29: E03 | M29: Education Support Staff | N29: Payroll for May 2023 | O29: BROWNJ01 | P29: 5560.25
B30: E12 - Bldg Maint/Improvement | C30: 5000 | D30: 0 | E30: 229.73 | F30: 229.73 | G30: 4.5946 | H30: 4770.27 | J30: 10132 | K30: 2324/03 | L30: E03 | M30: Education Support Staff | N30: Payroll for Jun 2023 | O30: TOPPG01 | P30: 19439.48
B31: E13 - Grounds Maint/Improvemnt | C31: 4350 | D31: 0 | E31: 266.75 | F31: 266.75 | G31: 6.132183908 | H31: 4083.25 | J31: 10132 | K31: 2324/03 | L31: E03 | M31: Education Support Staff | N31: Payroll for Jun 2023 | O31: TOPPG01 | P31: 1447.9
B32: E14 - Cleaning & Caretaking | C32: 2000 | D32: 0 | E32: 237.85 | F32: 237.85 | G32: 11.8925 | H32: 1762.15 | J32: 10132 | K32: 2324/03 | L32: E03 | M32: Education Support Staff | N32: Payroll for Jun 2023 | O32: TOPPG01 | P32: 5297.97
B33: E15 - Water & Sewerage | C33: 1500 | D33: 0 | E33: 0 | F33: 0 | G33: 0 | H33: 1500 | J33: 10132 | K33: 2324/04 | L33: E03 | M33: Education Support Staff | N33: Payroll for Jul 2023 | O33: TOPPG01 | P33: 20100.72
B34: E16 - Energy | C34: 11908 | D34: 0 | E34: 3091.88 | F34: 3091.88 | G34: 25.96472959 | H34: 8816.12 | J34: 10132 | K34: 2324/04 | L34: E03 | M34: Education Support Staff | N34: Payroll for Jul 2023 | O34: TOPPG01 | P34: 1585.07
B35: E18 - Other Occupation Costs | C35: 4477 | D35: 0 | E35: 2503.39 | F35: 2503.39 | G35: 55.91668528 | H35: 1973.61 | J35: 10132 | K35: 2324/04 | L35: E03 | M35: Education Support Staff | N35: Payroll for Jul 2023 | O35: TOPPG01 | P35: 5626.39
J36: 10132 | K36: 2324/05 | L36: E03 | M36: Education Support Staff | N36: Payroll for Aug 2023 | O36: MCINTOSHM01 | P36: 19166.44
B37: CFR Premises Expenditure | C37: 29235 | D37: 0 | E37: 6329.6 | F37: 6329.6 | G37: 21.65076107 | H37: 22905.4 | J37: 10132 | K37: 2324/05 | L37: E03 | M37: Education Support Staff | N37: Payroll for Aug 2023 | O37: MCINTOSHM01 | P37: 1437.64
B38: E19 - Learning Resources | C38: 20493 | D38: 0 | E38: 1692.45 | F38: 1692.45 | G38: 8.258673693 | H38: 18800.55 | J38: 10132 | K38: 2324/05 | L38: E03 | M38: Education Support Staff | N38: Payroll for Aug 2023 | O38: MCINTOSHM01 | P38: 5308.58
B39: E20 - ICT Learning Resources | C39: 6300 | D39: 0 | E39: 3470.1 | F39: 3470.1 | G39: 55.08095238 | H39: 2829.9 | J39: 10132 | K39: 2324/01 | L39: E04 | M39: Premises Staff | N39: Payroll for Apr 2023 | O39: TOPPG01 | P39: 2315.03
B40: E22 - Administrative Supplies | C40: 9400 | D40: 0 | E40: 5049.28 | F40: 5049.28 | G40: 53.71574468 | H40: 4350.72 | J40: 10132 | K40: 2324/01 | L40: E04 | M40: Premises Staff | N40: Payroll for Apr 2023 | O40: TOPPG01 | P40: 213.28
B41: E23 - Other Insurance Premiums | C41: 2000 | D41: 0 | E41: 0 | F41: 0 | G41: 0 | H41: 2000 | J41: 10132 | K41: 2324/01 | L41: E04 | M41: Premises Staff | N41: Payroll for Apr 2023 | O41: TOPPG01 | P41: 654.2
B42: E24 - Special Facilities | C42: 2000 | D42: 0 | E42: 341.47 | F42: 341.47 | G42: 17.0735 | H42: 1658.53 | J42: 10132 | K42: 2324/02 | L42: E04 | M42: Premises Staff | N42: Payroll for May 2023 | O42: BROWNJ01 | P42: 2315.03
B43: E25 - Catering Supplies | C43: 15000 | D43: 0 | E43: 4270.28 | F43: 4270.28 | G43: 28.46853333 | H43: 10729.72 | J43: 10132 | K43: 2324/02 | L43: E04 | M43: Premises Staff | N43: Payroll for May 2023 | O43: BROWNJ01 | P43: 213.28
J44: 10132 | K44: 2324/02 | L44: E04 | M44: Premises Staff | N44: Payroll for May 2023 | O44: BROWNJ01 | P44: 654.2
B45: CFR Supplies & Services | C45: 55193 | D45: 0 | E45: 14823.58 | F45: 14823.58 | G45: 26.85771746 | H45: 40369.42 | J45: 10132 | K45: 2324/03 | L45: E04 | M45: Premises Staff | N45: Payroll for Jun 2023 | O45: TOPPG01 | P45: 2315.03
B46: E26 - Agency Supply Teachers | C46: 2500 | D46: 0 | E46: 0 | F46: 0 | G46: 0 | H46: 2500 | J46: 10132 | K46: 2324/03 | L46: E04 | M46: Premises Staff | N46: Payroll for Jun 2023 | O46: TOPPG01 | P46: 213.28
B47: E27 - Prof Services-Curriculum | C47: 3750 | D47: 0 | E47: 0 | F47: 0 | G47: 0 | H47: 3750 | J47: 10132 | K47: 2324/03 | L47: E04 | M47: Premises Staff | N47: Payroll for Jun 2023 | O47: TOPPG01 | P47: 654.2
B48: E28A - prof serv-other exc PFI | C48: 13828 | D48: 0 | E48: 4454.44 | F48: 4454.44 | G48: 32.21319063 | H48: 9373.56 | J48: 10132 | K48: 2324/04 | L48: E04 | M48: Premises Staff | N48: Payroll for Jul 2023 | O48: TOPPG01 | P48: 2315.03
J49: 10132 | K49: 2324/04 | L49: E04 | M49: Premises Staff | N49: Payroll for Jul 2023 | O49: TOPPG01 | P49: 213.28
B50: CFR Agency & Contr Serv | C50: 20078 | D50: 0 | E50: 4454.44 | F50: 4454.44 | G50: 22.18567586 | H50: 15623.56 | J50: 10132 | K50: 2324/04 | L50: E04 | M50: Premises Staff | N50: Payroll for Jul 2023 | O50: TOPPG01 | P50: 654.2
B51: Contingency | C51: -145015 | D51: 0 | E51: 0 | F51: 0 | G51: 0 | H51: -145015 | J51: 10132 | K51: 2324/05 | L51: E04 | M51: Premises Staff | N51: Payroll for Aug 2023 | O51: MCINTOSHM01 | P51: 2315.03
J52: 10132 | K52: 2324/05 | L52: E04 | M52: Premises Staff | N52: Payroll for Aug 2023 | O52: MCINTOSHM01 | P52: 213.28
B53: CFR Holding | C53: -145015 | D53: 0 | E53: 0 | F53: 0 | G53: 0 | H53: -145015 | J53: 10132 | K53: 2324/05 | L53: E04 | M53: Premises Staff | N53: Payroll for Aug 2023 | O53: MCINTOSHM01 | P53: 654.2
J54: 10132 | K54: 2324/01 | L54: E05 | M54: Administrative & Clerical Staff | N54: Payroll for Apr 2023 | O54: TOPPG01 | P54: 4230.65
B55: CFR2 Revenue Expenditure: TOTAL | C55: 706245 | D55: 273524.44 | E55: 27594.45 | F55: 301118.89 | G55: 42.63660486 | H55: 405126.11 | J55: 10132 | K55: 2324/01 | L55: E05 | M55: Administrative & Clerical Staff | N55: Payroll for Apr 2023 | O55: TOPPG01 | P55: 371.71
B56: Revenue Balance C/forward | C56: -196121 | D56: 271130 | E56: -184258.36 | F56: 86871.64 | G56: -44.29491997 | H56: -282992.64 | J56: 10132 | K56: 2324/01 | L56: E05 | M56: Administrative & Clerical Staff | N56: Payroll for Apr 2023 | O56: TOPPG01 | P56: 1195.53
B57: Capital Balance B/forward | C57: 27403 | J57: 10132 | K57: 2324/02 | L57: E05 | M57: Administrative & Clerical Staff | N57: Payroll for May 2023 | O57: BROWNJ01 | P57: 4170.98
B58: CI01 - Capital Income | C58: -4945 | D58: 0 | E58: 0 | F58: 0 | G58: 0 | H58: -4945 | J58: 10132 | K58: 2324/02 | L58: E05 | M58: Administrative & Clerical Staff | N58: Payroll for May 2023 | O58: BROWNJ01 | P58: 363.52
J59: 10132 | K59: 2324/02 | L59: E05 | M59: Administrative & Clerical Staff | N59: Payroll for May 2023 | O59: BROWNJ01 | P59: 1178.66
B60: CFR Capital Income (Excl Bal) | C60: -4945 | D60: 0 | E60: 0 | F60: 0 | G60: 0 | H60: -4945 | J60: 10132 | K60: 2324/03 | L60: E05 | M60: Administrative & Clerical Staff | N60: Payroll for Jun 2023 | O60: TOPPG01 | P60: 4170.97
J61: 10132 | K61: 2324/03 | L61: E05 | M61: Administrative & Clerical Staff | N61: Payroll for Jun 2023 | O61: TOPPG01 | P61: 363.52
B62: CE02 - New Constr/Conversion | C62: 32348 | D62: 0 | E62: 0 | F62: 0 | G62: 0 | H62: 32348 | J62: 10132 | K62: 2324/03 | L62: E05 | M62: Administrative & Clerical Staff | N62: Payroll for Jun 2023 | O62: TOPPG01 | P62: 1178.66
J63: 10132 | K63: 2324/04 | L63: E05 | M63: Administrative & Clerical Staff | N63: Payroll for Jul 2023 | O63: TOPPG01 | P63: 4246.26
B64: CFR Capital Expenditure | C64: 32348 | D64: 0 | E64: 0 | F64: 0 | G64: 0 | H64: 32348 | J64: 10132 | K64: 2324/04 | L64: E05 | M64: Administrative & Clerical Staff | N64: Payroll for Jul 2023 | O64: TOPPG01 | P64: 373.85
J65: 10132 | K65: 2324/04 | L65: E05 | M65: Administrative & Clerical Staff | N65: Payroll for Jul 2023 | O65: TOPPG01 | P65: 1199.94
B66: Capital Balance C/forward | C66: 27403 | D66: 0 | E66: 0 | F66: 0 | G66: 0 | H66: 27403 | J66: 10132 | K66: 2324/05 | L66: E05 | M66: Administrative & Clerical Staff | N66: Payroll for Aug 2023 | O66: MCINTOSHM01 | P66: 4189.79
J67: 10132 | K67: 2324/05 | L67: E05 | M67: Administrative & Clerical Staff | N67: Payroll for Aug 2023 | O67: MCINTOSHM01 | P67: 366.11
B68: TOTAL | C68: -168718 | D68: 271130 | E68: -184258.36 | F68: 86871.64 | G68: -51.48925426 | H68: -255589.64 | J68: 10132 | K68: 2324/05 | L68: E05 | M68: Administrative & Clerical Staff | N68: Payroll for Aug 2023 | O68: MCINTOSHM01 | P68: 1183.98
J69: 10132 | K69: 2324/01 | L69: E07 | M69: Cost of Other Staff | N69: Payroll for Apr 2023 | O69: TOPPG01 | P69: 2765.76
J70: 10132 | K70: 2324/01 | L70: E07 | M70: Cost of Other Staff | N70: Payroll for Apr 2023 | O70: TOPPG01 | P70: 87.5
J71: 10132 | K71: 2324/01 | L71: E07 | M71: Cost of Other Staff | N71: Payroll for Apr 2023 | O71: TOPPG01 | P71: 643.5
J72: 10132 | K72: 2324/02 | L72: E07 | M72: Cost of Other Staff | N72: Payroll for May 2023 | O72: BROWNJ01 | P72: 2342.83
J73: 10132 | K73: 2324/02 | L73: E07 | M73: Cost of Other Staff | N73: Payroll for May 2023 | O73: BROWNJ01 | P73: 55.04
J74: 10132 | K74: 2324/02 | L74: E07 | M74: Cost of Other Staff | N74: Payroll for May 2023 | O74: BROWNJ01 | P74: 523.99
J75: 10132 | K75: 2324/03 | L75: E07 | M75: Cost of Other Staff | N75: Payroll for Jun 2023 | O75: TOPPG01 | P75: 2170.22
J76: 10132 | K76: 2324/03 | L76: E07 | M76: Cost of Other Staff | N76: Payroll for Jun 2023 | O76: TOPPG01 | P76: 48.01
J77: 10132 | K77: 2324/03 | L77: E07 | M77: Cost of Other Staff | N77: Payroll for Jun 2023 | O77: TOPPG01 | P77: 475.21
J78: 10132 | K78: 2324/04 | L78: E07 | M78: Cost of Other Staff | N78: Payroll for Jul 2023 | O78: TOPPG01 | P78: 2552.21
J79: 10132 | K79: 2324/04 | L79: E07 | M79: Cost of Other Staff | N79: Payroll for Jul 2023 | O79: TOPPG01 | P79: 52.68
J80: 10132 | K80: 2324/04 | L80: E07 | M80: Cost of Other Staff | N80: Payroll for Jul 2023 | O80: TOPPG01 | P80: 580.66
J81: 10132 | K81: 2324/05 | L81: E07 | M81: Cost of Other Staff | N81: Payroll for Aug 2023 | O81: MCINTOSHM01 | P81: 2130.31
J82: 10132 | K82: 2324/05 | L82: E07 | M82: Cost of Other Staff | N82: Payroll for Aug 2023 | O82: MCINTOSHM01 | P82: 44.85
J83: 10132 | K83: 2324/05 | L83: E07 | M83: Cost of Other Staff | N83: Payroll for Aug 2023 | O83: MCINTOSHM01 | P83: 463.31
J84: 10132 | K84: 2324/06 | L84: E08 | M84: Indirect Employee Expenses | N84: Q1 M1-M3 Actuals | O84: TIBAR01 | P84: 1301.43
J85: 10132 | K85: 2324/06 | L85: E09 | M85: Staff Development & Training | N85: Q1 M1-M3 Actuals | O85: TIBAR01 | P85: 685.4
J86: 10132 | K86: 2324/06 | L86: E12 | M86: Building Maintenance & Improvement | N86: Q1 M1-M3 Actuals | O86: TIBAR01 | P86: 229.73
J87: 10132 | K87: 2324/06 | L87: E13 | M87: Grounds Maintenance & Improvement | N87: Q1 M1-M3 Actuals | O87: TIBAR01 | P87: 266.75
J88: 10132 | K88: 2324/06 | L88: E14 | M88: Caretaking & Cleaning | N88: Q1 M1-M3 Actuals | O88: TIBAR01 | P88: 237.85
J89: 10132 | K89: 2324/06 | L89: E16 | M89: Energy | N89: Q1 M1-M3 Actuals | O89: TIBAR01 | P89: 3091.88
J90: 10132 | K90: 2324/06 | L90: E18 | M90: Other Occupation Costs | N90: Q1 M1-M3 Actuals | O90: TIBAR01 | P90: 2503.39
J91: 10132 | K91: 2324/06 | L91: E19 | M91: Learning Resources (not ICT) | N91: Q1 M1-M3 Actuals | O91: TIBAR01 | P91: 1692.45
J92: 10132 | K92: 2324/06 | L92: E20 | M92: ICT Learning Resources | N92: Q1 M1-M3 Actuals | O92: TIBAR01 | P92: 3470.1
J93: 10132 | K93: 2324/06 | L93: E22 | M93: Administrative Supplies | N93: Q1 M1-M3 Actuals | O93: TIBAR01 | P93: 5049.28
J94: 10132 | K94: 2324/06 | L94: E24 | M94: Special Facilities | N94: Q1 M1-M3 Actuals | O94: TIBAR01 | P94: 341.47
J95: 10132 | K95: 2324/06 | L95: E25 | M95: Catering Supplies | N95: Q1 M1-M3 Actuals | O95: TIBAR01 | P95: 4270.28
J96: 10132 | K96: 2324/06 | L96: E28a | M96: Bought in Prof. Services - Other (except PFI) | N96: Q1 M1-M3 Actuals | O96: TIBAR01 | P96: 4454.44
J97: 10132 | K97: 2324/06 | L97: I01 | M97: Funds Delegated by LEA | N97: Q1 M1-M3 Actuals | O97: TIBAR01 | P97: -149338.87
J98: 10132 | K98: 2324/01 | L98: I03 | M98: SEN Funding | N98: R/SCH 10132 Year End Adj 2022/23 | O98: TIBAR01 | P98: -2394.44
J99: 10132 | K99: 2324/06 | L99: I03 | M99: SEN Funding | N99: Q1 M1-M3 Actuals | O99: TIBAR01 | P99: -3681.08
J100: 10132 | K100: 2324/06 | L100: I06 | M100: Other Government Grants | N100: Q1 M1-M3 Actuals | O100: TIBAR01 | P100: -868.57
J101: 10132 | K101: 2324/06 | L101: I07 | M101: Other Grants & Payments | N101: Q1 M1-M3 Actuals | O101: TIBAR01 | P101: -1800
J102: 10132 | K102: 2324/06 | L102: I08b | M102: Other income from facilities and services | N102: Q1 M1-M3 Actuals | O102: TIBAR01 | P102: -9.84
J103: 10132 | K103: 2324/06 | L103: I12 | M103: Income from Contributions | N103: Q1 M1-M3 Actuals | O103: TIBAR01 | P103: -56023.22
J104: 10132 | K104: 2324/06 | L104: I13 | M104: Donations and / or Voluntary Funds | N104: Q1 M1-M3 Actuals | O104: TIBAR01 | P104: -131.23
J105: 10132 Total | P105: =SUBTOTAL(9,P8:P104) -> 86871.64
J106: Grand Total | P106: =SUBTOTAL(9,P8:P104) -> 86871.64

Sheet StM (hidden)
B1: =+'Front sheet'!#REF! ->  | C1: Period | D1: DfE No | E1: =+'Front sheet'!#REF! ->  | F1: London Borough of Barnet
B2: =NOW() -> 2023-09-21T16:50:11.040 | C2: =+'Front sheet'!#REF! ->  | D2: Cost Centre | E2: =+'Front sheet'!#REF! ->  | F2: SCHOOL REPORT | K2: TRANSACTION LIST
B3: =VLOOKUP(I7,check!$B$6:$E$102,4,0) -> 
B5: CFR_Code | C5: Budget | D5: Bal._B/Fwd | E5: This Period | F5: Bal_C/Fwd | G5: %Spent/ Received | H5: Bud_Avail
I6: CC | J6: Period | K6: CFR | L6: Desc | M6: Narrative | N6: Entered by | O6: Amount

Sheet AstNW2
B1: =NOW() -> 2023-09-21T16:50:11.040 | C1: Period | D1: DfE No | E1: =VLOOKUP(J8,'School List'!$E$5:$F$99,2,0) -> 3300 | F1: London Borough of Barnet
B2: =VLOOKUP(J8,check!$B$6:$E$102,4,0) -> All Saint's NW2 | C2: Quarter 1 | D2: Cost Centre | E2: =J8 -> 10040 | F2: SCHOOL REPORT
B5: Cost Centre: 10040 - All Saints' CE NW2
B7: CFR_Code. | C7: Budget | D7: Bal._B/Fwd | E7: This Period | F7: Bal_C/Fwd | G7: %Spent/ Received | H7: Bud_Avail | J7: CC | K7: Period | L7: CFR | M7: Desc | N7: Narrative | O7: Entered by | P7: Amount
J8: 10040 | K8: 2324/06 | L8: E01 | M8: Teaching Staff | N8: Q1 M1-M3 Actuals | O8: TIBAR01 | P8: 136959.3
B9: Revenue Balance B/forward | C9: 94220 | J9: 10040 | K9: 2324/06 | L9: E03 | M9: Education Support Staff | N9: Q1 M1-M3 Actuals | O9: TIBAR01 | P9: 33798.85
B10: I01 - Funds Delegated by LA | C10: -1072587 | D10: 0 | E10: -329466.8 | F10: -329466.8 | G10: 30.71702342 | H10: -743120.2 | J10: 10040 | K10: 2324/06 | L10: E04 | M10: Premises Staff | N10: Q1 M1-M3 Actuals | O10: TIBAR01 | P10: 9856.08
B11: I03 - SEN Funding | C11: -54456 | D11: 0 | E11: -14517.97 | F11: -14517.97 | G11: 26.66000073 | H11: -39938.03 | J11: 10040 | K11: 2324/06 | L11: E05 | M11: Administrative & Clerical Staff | N11: Q1 M1-M3 Actuals | O11: TIBAR01 | P11: 9123.72
B12: I05 - Pupil Premium Grant | C12: -133860 | D12: 0 | E12: 0 | F12: 0 | G12: 0 | H12: -133860 | J12: 10040 | K12: 2324/06 | L12: E07 | M12: Cost of Other Staff | N12: Q1 M1-M3 Actuals | O12: TIBAR01 | P12: 3355.4
B13: I09 - Income from Catering | C13: -7050 | D13: 0 | E13: -1623.14 | F13: -1623.14 | G13: 23.02326241 | H13: -5426.86 | J13: 10040 | K13: 2324/06 | L13: E08 | M13: Indirect Employee Expenses | N13: Q1 M1-M3 Actuals | O13: TIBAR01 | P13: 35
B14: I12 - Income - Contributions | C14: -7665 | D14: 0 | E14: -6160 | F14: -6160 | G14: 80.3652968 | H14: -1505 | J14: 10040 | K14: 2324/06 | L14: E09 | M14: Staff Development & Training | N14: Q1 M1-M3 Actuals | O14: TIBAR01 | P14: 335
B15: I13 - Donations/Private Funds | C15: -2500 | D15: 0 | E15: 0 | F15: 0 | G15: 0 | H15: -2500 | J15: 10040 | K15: 2324/06 | L15: E12 | M15: Building Maintenance & Improvement | N15: Q1 M1-M3 Actuals | O15: TIBAR01 | P15: 3040.08
B16: I18 - Addit Grants for Schools | C16: -26568 | D16: 0 | E16: -7208 | F16: -7208 | G16: 27.13038241 | H16: -19360 | J16: 10040 | K16: 2324/06 | L16: E13 | M16: Grounds Maintenance & Improvement | N16: Q1 M1-M3 Actuals | O16: TIBAR01 | P16: 345
B17: I18C-COVID-19 catch-up package | C17: 0 | D17: -19130 | E17: -27450 | F17: -46580 | G17: 0 | H17: 46580 | J17: 10040 | K17: 2324/06 | L17: E14 | M17: Caretaking & Cleaning | N17: Q1 M1-M3 Actuals | O17: TIBAR01 | P17: 6558.29
B18: other inc-facil & serv | C18: -8600 | D18: 0 | E18: -2614.5 | F18: -2614.5 | G18: 30.40116279 | H18: -5985.5 | J18: 10040 | K18: 2324/06 | L18: E15 | M18: Water & Sewerage | N18: Q1 M1-M3 Actuals | O18: TIBAR01 | P18: 888.39
J19: 10040 | K19: 2324/06 | L19: E16 | M19: Energy | N19: Q1 M1-M3 Actuals | O19: TIBAR01 | P19: 3976.77
B20: CFR Revenue Income (Excl Bal) | C20: -1313286 | D20: -19130 | E20: -389040.41 | F20: -408170.41 | G20: 31.08008537 | H20: -905115.59 | J20: 10040 | K20: 2324/06 | L20: E18 | M20: Other Occupation Costs | N20: Q1 M1-M3 Actuals | O20: TIBAR01 | P20: 3271.65
J21: 10040 | K21: 2324/06 | L21: E19 | M21: Learning Resources (not ICT) | N21: Q1 M1-M3 Actuals | O21: TIBAR01 | P21: 17070.02
B22: E01 - Teaching Staff | C22: 612519 | D22: 0 | E22: 136959.3 | F22: 136959.3 | G22: 22.36000842 | H22: 475559.7 | J22: 10040 | K22: 2324/06 | L22: E20 | M22: ICT Learning Resources | N22: Q1 M1-M3 Actuals | O22: TIBAR01 | P22: 6069.95
B23: E03 - Education Support Staff | C23: 133692 | D23: 0 | E23: 33798.85 | F23: 33798.85 | G23: 25.28113126 | H23: 99893.15 | J23: 10040 | K23: 2324/06 | L23: E22 | M23: Administrative Supplies | N23: Q1 M1-M3 Actuals | O23: TIBAR01 | P23: 2906
B24: E04 - Premises Staff | C24: 43749 | D24: 0 | E24: 9856.08 | F24: 9856.08 | G24: 22.5286978 | H24: 33892.92 | J24: 10040 | K24: 2324/06 | L24: E24 | M24: Special Facilities | N24: Q1 M1-M3 Actuals | O24: TIBAR01 | P24: 134.47
B25: E05 - Admin & Clerical | C25: 40144 | D25: 0 | E25: 9123.72 | F25: 9123.72 | G25: 22.72748107 | H25: 31020.28 | J25: 10040 | K25: 2324/01 | L25: E25 | M25: Catering Supplies | N25: R/SCH 10040 Year End Adj 2022/23 | O25: TIBAR01 | P25: -6367
B26: E07 - Other Staff | C26: 20477 | D26: 0 | E26: 3355.4 | F26: 3355.4 | G26: 16.38618938 | H26: 17121.6 | J26: 10040 | K26: 2324/06 | L26: E25 | M26: Catering Supplies | N26: Q1 M1-M3 Actuals | O26: TIBAR01 | P26: 7039.05
B27: E08 - Indirect Employee Exp | C27: 1400 | D27: 0 | E27: 35 | F27: 35 | G27: 2.5 | H27: 1365 | J27: 10040 | K27: 2324/06 | L27: E26 | M27: Agency Supply Teachers | N27: Q1 M1-M3 Actuals | O27: TIBAR01 | P27: 10557.17
B28: E09 - Staff Training/Develpmnt | C28: 1150 | D28: 0 | E28: 335 | F28: 335 | G28: 29.13043478 | H28: 815 | J28: 10040 | K28: 2324/06 | L28: E27 | M28: Bought in Prof. Services - Curriculum | N28: Q1 M1-M3 Actuals | O28: TIBAR01 | P28: 37772.63
B29: E10 - Supply Teacher Insurance | C29: 269 | D29: 0 | E29: 0 | F29: 0 | G29: 0 | H29: 269 | J29: 10040 | K29: 2324/06 | L29: E28a | M29: Bought in Prof. Services - Other (except PFI) | N29: Q1 M1-M3 Actuals | O29: TIBAR01 | P29: 14228.45
J30: 10040 | K30: 2324/06 | L30: I01 | M30: Funds Delegated by LEA | N30: Q1 M1-M3 Actuals | O30: TIBAR01 | P30: -329466.8
B31: CFR Employee Expenditure | C31: 853400 | D31: 0 | E31: 193463.35 | F31: 193463.35 | G31: 22.66971526 | H31: 659936.65 | J31: 10040 | K31: 2324/06 | L31: I03 | M31: SEN Funding | N31: Q1 M1-M3 Actuals | O31: TIBAR01 | P31: -14517.97
B32: E12 - Bldg Maint/Improvement | C32: 11400 | D32: 0 | E32: 3040.08 | F32: 3040.08 | G32: 26.66736842 | H32: 8359.92 | J32: 10040 | K32: 2324/06 | L32: I08b | M32: Other income from facilities and services | N32: Q1 M1-M3 Actuals | O32: TIBAR01 | P32: -2614.5
B33: E13 - Grounds Maint/Improvemnt | C33: 3500 | D33: 0 | E33: 345 | F33: 345 | G33: 9.857142857 | H33: 3155 | J33: 10040 | K33: 2324/06 | L33: I09 | M33: Income from Catering | N33: Q1 M1-M3 Actuals | O33: TIBAR01 | P33: -1623.14
B34: E14 - Cleaning & Caretaking | C34: 26526 | D34: 0 | E34: 6558.29 | F34: 6558.29 | G34: 24.72400663 | H34: 19967.71 | J34: 10040 | K34: 2324/06 | L34: I12 | M34: Income from Contributions | N34: Q1 M1-M3 Actuals | O34: TIBAR01 | P34: -6160
B35: E15 - Water & Sewerage | C35: 7000 | D35: 0 | E35: 888.39 | F35: 888.39 | G35: 12.69128571 | H35: 6111.61 | J35: 10040 | K35: 2324/01 | L35: I18c | M35: Income from the £1bn coronavirus (COVID-19) catch-up package announced on 20 July 2020 | N35: R/SCH 10040 Year End Adj 2022/23 | O35: TIBAR01 | P35: -19130
B36: E16 - Energy | C36: 28032 | D36: 0 | E36: 3976.77 | F36: 3976.77 | G36: 14.18653682 | H36: 24055.23 | J36: 10040 | K36: 2324/06 | L36: I18c | M36: Income from the £1bn coronavirus (COVID-19) catch-up package announced on 20 July 2020 | N36: Q1 M1-M3 Actuals | O36: TIBAR01 | P36: -27450
B37: E17 - Rates | C37: 3068 | D37: 0 | E37: 0 | F37: 0 | G37: 0 | H37: 3068 | J37: 10040 | K37: 2324/06 | L37: I18d | M37: Income from other additional grants | N37: Q1 M1-M3 Actuals | O37: TIBAR01 | P37: -7208
B38: E18 - Other Occupation Costs | C38: 6436 | D38: 0 | E38: 3271.65 | F38: 3271.65 | G38: 50.83359229 | H38: 3164.35 | J38: 10040 Total | P38: =SUBTOTAL(9,P8:P37) -> -107216.14
J39: Grand Total | P39: =SUBTOTAL(9,P8:P37) -> -107216.14
B40: CFR Premises Expenditure | C40: 85962 | D40: 0 | E40: 18080.18 | F40: 18080.18 | G40: 21.03275866 | H40: 67881.82
B41: E19 - Learning Resources | C41: 88194 | D41: 0 | E41: 17070.02 | F41: 17070.02 | G41: 19.35508084 | H41: 71123.98
B42: E20 - ICT Learning Resources | C42: 14966 | D42: 0 | E42: 6069.95 | F42: 6069.95 | G42: 40.5582654 | H42: 8896.05
B43: E22 - Administrative Supplies | C43: 8670 | D43: 0 | E43: 2906 | F43: 2906 | G43: 33.51787774 | H43: 5764
B44: E23 - Other Insurance Premiums | C44: 6300 | D44: 0 | E44: 0 | F44: 0 | G44: 0 | H44: 6300
B45: E24 - Special Facilities | C45: 1700 | D45: 0 | E45: 134.47 | F45: 134.47 | G45: 7.91 | H45: 1565.53
B46: E25 - Catering Supplies | C46: 47247 | D46: -6367 | E46: 7039.05 | F46: 672.05 | G46: 1.422418355 | H46: 46574.95
B48: CFR Supplies & Services | C48: 167077 | D48: -6367 | E48: 33219.49 | F48: 26852.49 | G48: 16.07192492 | H48: 140224.51
B49: E26 - Agency Supply Teachers | C49: 19620 | D49: 0 | E49: 10557.17 | F49: 10557.17 | G49: 53.80820591 | H49: 9062.83
B50: E27 - Prof Services-Curriculum | C50: 200887 | D50: 0 | E50: 37772.63 | F50: 37772.63 | G50: 18.80292403 | H50: 163114.37
B51: E28A - prof serv-other exc PFI | C51: 33967 | D51: 0 | E51: 14228.45 | F51: 14228.45 | G51: 41.88903936 | H51: 19738.55
B53: CFR Agency & Contr Serv | C53: 254474 | D53: 0 | E53: 62558.25 | F53: 62558.25 | G53: 24.58335626 | H53: 191915.75
B54: Contingency | C54: 46593 | D54: 0 | E54: 0 | F54: 0 | G54: 0 | H54: 46593
B56: CFR Holding | C56: 46593 | D56: 0 | E56: 0 | F56: 0 | G56: 0 | H56: 46593
B58: CFR2 Revenue Expenditure: TOTAL | C58: 1407506 | D58: -6367 | E58: 307321.27 | F58: 300954.27 | G58: 21.382095 | H58: 1106551.73
B59: Revenue Balance C/forward | C59: 94220 | D59: -25497 | E59: -81719.14 | F59: -107216.14 | G59: -113.7933984 | H59: 201436.14
B61: TOTAL | C61: 94220 | D61: -25497 | E61: -81719.14 | F61: -107216.14 | G61: -113.7933984 | H61: 201436.14

Sheet AstN20
B1: =NOW() -> 2023-09-21T16:50:11.040 | C1: Period | D1: DfE No | E1: =VLOOKUP(J8,'School List'!$E$5:$F$99,2,0) -> 3317 | F1: London Borough of Barnet
B2: =VLOOKUP(J8,check!$B$6:$E$102,4,0) -> All Saint's N20 | C2: Quarter 1 | D2: Cost Centre | E2: =J8 -> 10042 | F2: SCHOOL REPORT
B5: Cost Centre: 10042 - All Saints' CE N20
B7: CFR_Code. | C7: Budget | D7: Bal._B/Fwd | E7: This Period | F7: Bal_C/Fwd | G7: %Spent/ Received | H7: Bud_Avail | J7: CC | K7: Period | L7: CFR | M7: Desc | N7: Narrative | O7: Entered by | P7: Amount
J8: 10042 | K8: 2324/01 | L8: E01 | M8: Teaching Staff | N8: Payroll for Apr 2023 | O8: TOPPG01 | P8: 42343.54
B9: Revenue Balance B/forward | C9: 33154 | J9: 10042 | K9: 2324/01 | L9: E01 | M9: Teaching Staff | N9: Payroll for Apr 2023 | O9: TOPPG01 | P9: 4420.82
B10: fm letting premises | C10: -30000 | D10: 0 | E10: -912.5 | F10: -912.5 | G10: 3.041666667 | H10: -29087.5 | J10: 10042 | K10: 2324/01 | L10: E01 | M10: Teaching Staff | N10: Payroll for Apr 2023 | O10: TOPPG01 | P10: 10173.81
B11: I01 - Funds Delegated by LA | C11: -1274039 | D11: 41160.65 | E11: -384332.68 | F11: -343172.03 | G11: 26.9357555 | H11: -930866.97 | J11: 10042 | K11: 2324/02 | L11: E01 | M11: Teaching Staff | N11: Payroll for May 2023 | O11: BROWNJ01 | P11: 40250.54
B12: I03 - SEN Funding | C12: -106508 | D12: 0 | E12: -23608.61 | F12: -23608.61 | G12: 22.16604387 | H12: -82899.39 | J12: 10042 | K12: 2324/02 | L12: E01 | M12: Teaching Staff | N12: Payroll for May 2023 | O12: BROWNJ01 | P12: 4237.12
B13: I05 - Pupil Premium Grant | C13: -84000 | D13: 1245 | E13: -195 | F13: 1050 | G13: -1.25 | H13: -85050 | J13: 10042 | K13: 2324/02 | L13: E01 | M13: Teaching Staff | N13: Payroll for May 2023 | O13: BROWNJ01 | P13: 9681.64
B14: I06 - Other Government Grants | C14: 0 | D14: 2538 | E14: -2179.28 | F14: 358.72 | G14: 0 | H14: -358.72 | J14: 10042 | K14: 2324/03 | L14: E01 | M14: Teaching Staff | N14: Payroll for Jun 2023 | O14: TOPPG01 | P14: 43840.7
B15: I07 - Other Grants & Payments | C15: 0 | D15: 0 | E15: -1066.22 | F15: -1066.22 | G15: 0 | H15: 1066.22 | J15: 10042 | K15: 2324/03 | L15: E01 | M15: Teaching Staff | N15: Payroll for Jun 2023 | O15: TOPPG01 | P15: 4649.87
B16: I09 - Income from Catering | C16: -39200 | D16: 0 | E16: -8472.97 | F16: -8472.97 | G16: 21.61471939 | H16: -30727.03 | J16: 10042 | K16: 2324/03 | L16: E01 | M16: Teaching Staff | N16: Payroll for Jun 2023 | O16: TOPPG01 | P16: 10569.36
B17: I12 - Income - Contributions | C17: -45468 | D17: -12870 | E17: -21267.5 | F17: -34137.5 | G17: 75.08027624 | H17: -11330.5 | J17: 10042 | K17: 2324/04 | L17: E01 | M17: Teaching Staff | N17: Payroll for Jul 2023 | O17: TOPPG01 | P17: 46526.19
B18: I13 - Donations/Private Funds | C18: -21738 | D18: 0 | E18: -2093.41 | F18: -2093.41 | G18: 9.63018677 | H18: -19644.59 | J18: 10042 | K18: 2324/04 | L18: E01 | M18: Teaching Staff | N18: Payroll for Jul 2023 | O18: TOPPG01 | P18: 5009.45
B19: I18 - Addit Grants for Schools | C19: -57777 | D19: 0 | E19: -12298.25 | F19: -12298.25 | G19: 21.28571923 | H19: -45478.75 | J19: 10042 | K19: 2324/04 | L19: E01 | M19: Teaching Staff | N19: Payroll for Jul 2023 | O19: TOPPG01 | P19: 11167.71
B20: other inc-facil & serv | C20: -16616 | D20: 0 | E20: -3094.5 | F20: -3094.5 | G20: 18.62361579 | H20: -13521.5 | J20: 10042 | K20: 2324/04 | L20: E01 | M20: Teaching Staff | N20: Additional salary amount | O20: PHELAND01 | P20: -512.97
J21: 10042 | K21: 2324/04 | L21: E01 | M21: Teaching Staff | N21: To cancel Invoice 0020306670 | O21: PHELAND01 | P21: 3020.44
B22: CFR Revenue Income (Excl Bal) | C22: -1675346 | D22: 32073.65 | E22: -459520.92 | F22: -427447.27 | G22: 25.51396965 | H22: -1247898.73 | J22: 10042 | K22: 2324/04 | L22: E01 | M22: Teaching Staff | N22: To refund inv.20316871 | O22: PHELAND01 | P22: 24505.33
J23: 10042 | K23: 2324/04 | L23: E01 | M23: Teaching Staff | N23: To refund inv. 20316871 | O23: PHELAND01 | P23: 20000
B24: E01 - Teaching Staff | C24: 774382 | D24: 340166.89 | E24: 0 | F24: 340166.89 | G24: 43.9275306 | H24: 434215.11 | J24: 10042 | K24: 2324/04 | L24: E01 | M24: Teaching Staff | N24: To cancel inv. 0020310662 | O24: PHELAND01 | P24: 1481.15
B25: E02 - Supply Teaching Staff | C25: 15000 | D25: 10700.29 | E25: 0 | F25: 10700.29 | G25: 71.33526667 | H25: 4299.71 | J25: 10042 | K25: 2324/05 | L25: E01 | M25: Teaching Staff | N25: Payroll for Aug 2023 | O25: MCINTOSHM01 | P25: 43653.22
B26: E03 - Education Support Staff | C26: 372097 | D26: 151018.88 | E26: 0 | F26: 151018.88 | G26: 40.58589024 | H26: 221078.12 | J26: 10042 | K26: 2324/05 | L26: E01 | M26: Teaching Staff | N26: Payroll for Aug 2023 | O26: MCINTOSHM01 | P26: 4624
B27: E04 - Premises Staff | C27: 40475 | D27: 16331.01 | E27: 0 | F27: 16331.01 | G27: 40.34838789 | H27: 24143.99 | J27: 10042 | K27: 2324/05 | L27: E01 | M27: Teaching Staff | N27: Payroll for Aug 2023 | O27: MCINTOSHM01 | P27: 10524.97
B28: E05 - Admin & Clerical | C28: 61568 | D28: 25540.11 | E28: 0 | F28: 25540.11 | G28: 41.48276702 | H28: 36027.89 | J28: 10042 | K28: 2324/01 | L28: E02 | M28: Supply Teaching Staff (employed by the school) | N28: Payroll for Apr 2023 | O28: TOPPG01 | P28: 3244.2
B29: E07 - Other Staff | C29: 39506 | D29: 15606.81 | E29: 0 | F29: 15606.81 | G29: 39.50491065 | H29: 23899.19 | J29: 10042 | K29: 2324/01 | L29: E02 | M29: Supply Teaching Staff (employed by the school) | N29: Payroll for Apr 2023 | O29: TOPPG01 | P29: 238.49
B30: E08 - Indirect Employee Exp | C30: 800 | D30: 0 | E30: 432.24 | F30: 432.24 | G30: 54.03 | H30: 367.76 | J30: 10042 | K30: 2324/02 | L30: E02 | M30: Supply Teaching Staff (employed by the school) | N30: Payroll for May 2023 | O30: BROWNJ01 | P30: 974.5
B31: E09 - Staff Training/Develpmnt | C31: 7053 | D31: 0 | E31: 0 | F31: 0 | G31: 0 | H31: 7053 | J31: 10042 | K31: 2324/03 | L31: E02 | M31: Supply Teaching Staff (employed by the school) | N31: Payroll for Jun 2023 | O31: TOPPG01 | P31: 2355.74
B32: E10 - Supply Teacher Insurance | C32: 8362 | D32: 0 | E32: 7079.63 | F32: 7079.63 | G32: 84.66431476 | H32: 1282.37 | J32: 10042 | K32: 2324/03 | L32: E02 | M32: Supply Teaching Staff (employed by the school) | N32: Payroll for Jun 2023 | O32: TOPPG01 | P32: 142.66
J33: 10042 | K33: 2324/04 | L33: E02 | M33: Supply Teaching Staff (employed by the school) | N33: Payroll for Jul 2023 | O33: TOPPG01 | P33: 2597.37
B34: CFR Employee Expenditure | C34: 1319243 | D34: 559363.99 | E34: 7511.87 | F34: 566875.86 | G34: 42.96978343 | H34: 752367.14 | J34: 10042 | K34: 2324/04 | L34: E02 | M34: Supply Teaching Staff (employed by the school) | N34: Payroll for Jul 2023 | O34: TOPPG01 | P34: 149.23
B35: E12 - Bldg Maint/Improvement | C35: 16010 | D35: 0 | E35: 7616.49 | F35: 7616.49 | G35: 47.57332917 | H35: 8393.51 | J35: 10042 | K35: 2324/05 | L35: E02 | M35: Supply Teaching Staff (employed by the school) | N35: Payroll for Aug 2023 | O35: MCINTOSHM01 | P35: 969
B36: E13 - Grounds Maint/Improvemnt | C36: 2530 | D36: 0 | E36: 730.7 | F36: 730.7 | G36: 28.88142292 | H36: 1799.3 | J36: 10042 | K36: 2324/05 | L36: E02 | M36: Supply Teaching Staff (employed by the school) | N36: Payroll for Aug 2023 | O36: MCINTOSHM01 | P36: 29.1
B37: E14 - Cleaning & Caretaking | C37: 41800 | D37: 0 | E37: 8222.41 | F37: 8222.41 | G37: 19.67083732 | H37: 33577.59 | J37: 10042 | K37: 2324/01 | L37: E03 | M37: Education Support Staff | N37: Payroll for Apr 2023 | O37: TOPPG01 | P37: 24092.26
B38: E15 - Water & Sewerage | C38: 5000 | D38: -5000 | E38: -5000 | F38: -10000 | G38: -200 | H38: 15000 | J38: 10042 | K38: 2324/01 | L38: E03 | M38: Education Support Staff | N38: Payroll for Apr 2023 | O38: TOPPG01 | P38: 1694.01
B39: E16 - Energy | C39: 49500 | D39: 0 | E39: 11241.01 | F39: 11241.01 | G39: 22.70911111 | H39: 38258.99 | J39: 10042 | K39: 2324/01 | L39: E03 | M39: Education Support Staff | N39: Payroll for Apr 2023 | O39: TOPPG01 | P39: 6830.38
B40: E17 - Rates | C40: 3900 | D40: 0 | E40: 0 | F40: 0 | G40: 0 | H40: 3900 | J40: 10042 | K40: 2324/02 | L40: E03 | M40: Education Support Staff | N40: Payroll for May 2023 | O40: BROWNJ01 | P40: 21878.16
B41: E18 - Other Occupation Costs | C41: 10038 | D41: 0 | E41: 6422.6 | F41: 6422.6 | G41: 63.98286511 | H41: 3615.4 | J41: 10042 | K41: 2324/02 | L41: E03 | M41: Education Support Staff | N41: Payroll for May 2023 | O41: BROWNJ01 | P41: 1507.36
J42: 10042 | K42: 2324/02 | L42: E03 | M42: Education Support Staff | N42: Payroll for May 2023 | O42: BROWNJ01 | P42: 6213.39
B43: CFR Premises Expenditure | C43: 128778 | D43: -5000 | E43: 29233.21 | F43: 24233.21 | G43: 18.81781826 | H43: 104544.79 | J43: 10042 | K43: 2324/03 | L43: E03 | M43: Education Support Staff | N43: Payroll for Jun 2023 | O43: TOPPG01 | P43: 21968.78
B44: E19 - Learning Resources | C44: 26431 | D44: 8520 | E44: 20485.61 | F44: 29005.61 | G44: 109.7408725 | H44: -2574.61 | J44: 10042 | K44: 2324/03 | L44: E03 | M44: Education Support Staff | N44: Payroll for Jun 2023 | O44: TOPPG01 | P44: 1507.09
B45: E20 - ICT Learning Resources | C45: 18039 | D45: 0 | E45: 7473.53 | F45: 7473.53 | G45: 41.42984644 | H45: 10565.47 | J45: 10042 | K45: 2324/03 | L45: E03 | M45: Education Support Staff | N45: Payroll for Jun 2023 | O45: TOPPG01 | P45: 6239.14
B46: E22 - Administrative Supplies | C46: 14343 | D46: 0 | E46: 5574.99 | F46: 5574.99 | G46: 38.86906505 | H46: 8768.01 | J46: 10042 | K46: 2324/04 | L46: E03 | M46: Education Support Staff | N46: Payroll for Jul 2023 | O46: TOPPG01 | P46: 22068.71
